Workbook

Sheet Ward Summary Sheet
B120: month | C120: year | I120: Area | J120: Number unemployed | K120: Percentage unemployed (%) | L120: Number change since previous month | M120: % change since previous month | N120: Number change since previous year | O120: % change since previous year
B121: =OFFSET(INDEX(Number!$S295:$EN295,Index!$D$2),0,-1) -> 2530 | C121: =OFFSET(INDEX(Number!$S295:$EN295,Index!$D$2),0,-12) -> 2405 | D121: Chart Data | I121: Ashford District | J121: =INDEX(Number!$S295:$EN295,Index!$D$2) -> 2575 | K121: =INDEX(Rate!$S295:$EN295,Index!$D$2) -> 3.2 | L121: =IF(ISERROR((SUM(J121-B121))),"-",(SUM(J121-B121))) -> 45 | M121: =IF(ISERROR((SUM(L121/B121))),"-",(SUM(L121/B121))) -> 0.01778656126 | N121: =IF(ISERROR((SUM(J121-C121))),"-",(SUM(J121-C121))) -> 170 | O121: =IF(ISERROR((SUM(N121/C121))),"-",(SUM(N121/C121))) -> 0.07068607069
A122: =I122 -> Aylesford & East Stour | B122: =OFFSET(INDEX(Number!$S24:$EN24,Index!$D$2),0,-1) -> 195 | C122: =OFFSET(INDEX(Number!$S24:$EN24,Index!$D$2),0,-12) -> 175 | D122: =K$121 -> 3.2 | E122: =IF(M122>0,M122,"") ->  | F122: =IF(M122<0,M122,"") ->  | I122: Aylesford & East Stour | J122: =INDEX(Number!$S24:$EN24,Index!$D$2) -> 195 | K122: =INDEX(Rate!$S24:$EN24,Index!$D$2) -> 4.4 | L122: 0 | M122: 0 | N122: 20 | O122: 0.1142857143
A123: Beaver | B123: =OFFSET(INDEX(Number!$S25:$EN25,Index!$D$2),0,-1) -> 260 | C123: =OFFSET(INDEX(Number!$S25:$EN25,Index!$D$2),0,-12) -> 230 | D123: 3.2 | F123: -0.05769230769 | I123: Beaver | J123: =INDEX(Number!$S25:$EN25,Index!$D$2) -> 245 | K123: =INDEX(Rate!$S25:$EN25,Index!$D$2) -> 5.7 | L123: -15 | M123: -0.05769230769 | N123: 15 | O123: 0.0652173913
A124: Biddenden | B124: =OFFSET(INDEX(Number!$S26:$EN26,Index!$D$2),0,-1) -> 40 | C124: =OFFSET(INDEX(Number!$S26:$EN26,Index!$D$2),0,-12) -> 30 | D124: 3.2 | I124: Biddenden | J124: =INDEX(Number!$S26:$EN26,Index!$D$2) -> 40 | K124: =INDEX(Rate!$S26:$EN26,Index!$D$2) -> 2.9 | L124: 0 | M124: 0 | N124: 10 | O124: 0.3333333333
A125: Bircholt | B125: =OFFSET(INDEX(Number!$S27:$EN27,Index!$D$2),0,-1) -> 30 | C125: =OFFSET(INDEX(Number!$S27:$EN27,Index!$D$2),0,-12) -> 30 | D125: 3.2 | E125: 0.1666666667 | I125: Bircholt | J125: =INDEX(Number!$S27:$EN27,Index!$D$2) -> 35 | K125: =INDEX(Rate!$S27:$EN27,Index!$D$2) -> 2.1 | L125: 5 | M125: 0.1666666667 | N125: 5 | O125: 0.1666666667
A126: Bockhanger | B126: =OFFSET(INDEX(Number!$S28:$EN28,Index!$D$2),0,-1) -> 55 | C126: =OFFSET(INDEX(Number!$S28:$EN28,Index!$D$2),0,-12) -> 55 | D126: 3.2 | E126: 0.09090909091 | I126: Bockhanger | J126: =INDEX(Number!$S28:$EN28,Index!$D$2) -> 60 | K126: =INDEX(Rate!$S28:$EN28,Index!$D$2) -> 3.8 | L126: 5 | M126: 0.09090909091 | N126: 5 | O126: 0.09090909091
A127: Bybrook | B127: =OFFSET(INDEX(Number!$S29:$EN29,Index!$D$2),0,-1) -> 70 | C127: =OFFSET(INDEX(Number!$S29:$EN29,Index!$D$2),0,-12) -> 60 | D127: 3.2 | E127: 0.07142857143 | I127: Bybrook | J127: =INDEX(Number!$S29:$EN29,Index!$D$2) -> 75 | K127: =INDEX(Rate!$S29:$EN29,Index!$D$2) -> 4 | L127: 5 | M127: 0.07142857143 | N127: 15 | O127: 0.25
A128: Charing | B128: =OFFSET(INDEX(Number!$S30:$EN30,Index!$D$2),0,-1) -> 45 | C128: =OFFSET(INDEX(Number!$S30:$EN30,Index!$D$2),0,-12) -> 45 | D128: 3.2 | F128: -0.1111111111 | I128: Charing | J128: =INDEX(Number!$S30:$EN30,Index!$D$2) -> 40 | K128: =INDEX(Rate!$S30:$EN30,Index!$D$2) -> 2.7 | L128: -5 | M128: -0.1111111111 | N128: -5 | O128: -0.1111111111
A129: Conningbrook & Little Burton Farm | B129: =OFFSET(INDEX(Number!$S31:$EN31,Index!$D$2),0,-1) -> 20 | C129: =OFFSET(INDEX(Number!$S31:$EN31,Index!$D$2),0,-12) -> 20 | D129: 3.2 | I129: Conningbrook & Little Burton Farm | J129: =INDEX(Number!$S31:$EN31,Index!$D$2) -> 20 | K129: =INDEX(Rate!$S31:$EN31,Index!$D$2) -> 1.5 | L129: 0 | M129: 0 | N129: 0 | O129: 0
A130: Downs North | B130: =OFFSET(INDEX(Number!$S32:$EN32,Index!$D$2),0,-1) -> 40 | C130: =OFFSET(INDEX(Number!$S32:$EN32,Index!$D$2),0,-12) -> 40 | D130: 3.2 | I130: Downs North | J130: =INDEX(Number!$S32:$EN32,Index!$D$2) -> 40 | K130: =INDEX(Rate!$S32:$EN32,Index!$D$2) -> 2.8 | L130: 0 | M130: 0 | N130: 0 | O130: 0
A131: Downs West | B131: =OFFSET(INDEX(Number!$S33:$EN33,Index!$D$2),0,-1) -> 15 | C131: =OFFSET(INDEX(Number!$S33:$EN33,Index!$D$2),0,-12) -> 10 | D131: 3.2 | E131: 0.3333333333 | I131: Downs West | J131: =INDEX(Number!$S33:$EN33,Index!$D$2) -> 20 | K131: =INDEX(Rate!$S33:$EN33,Index!$D$2) -> 1.2 | L131: 5 | M131: 0.3333333333 | N131: 10 | O131: 1
A132: Furley | B132: =OFFSET(INDEX(Number!$S34:$EN34,Index!$D$2),0,-1) -> 200 | C132: =OFFSET(INDEX(Number!$S34:$EN34,Index!$D$2),0,-12) -> 190 | D132: 3.2 | E132: 0.025 | I132: Furley | J132: =INDEX(Number!$S34:$EN34,Index!$D$2) -> 205 | K132: =INDEX(Rate!$S34:$EN34,Index!$D$2) -> 4.7 | L132: 5 | M132: 0.025 | N132: 15 | O132: 0.07894736842
A133: Goat Lees | B133: =OFFSET(INDEX(Number!$S35:$EN35,Index!$D$2),0,-1) -> 60 | C133: =OFFSET(INDEX(Number!$S35:$EN35,Index!$D$2),0,-12) -> 55 | D133: 3.2 | F133: -0.08333333333 | I133: Goat Lees | J133: =INDEX(Number!$S35:$EN35,Index!$D$2) -> 55 | K133: =INDEX(Rate!$S35:$EN35,Index!$D$2) -> 3.4 | L133: -5 | M133: -0.08333333333 | N133: 0 | O133: 0
A134: Godinton | B134: =OFFSET(INDEX(Number!$S36:$EN36,Index!$D$2),0,-1) -> 60 | C134: =OFFSET(INDEX(Number!$S36:$EN36,Index!$D$2),0,-12) -> 65 | D134: 3.2 | I134: Godinton | J134: =INDEX(Number!$S36:$EN36,Index!$D$2) -> 60 | K134: =INDEX(Rate!$S36:$EN36,Index!$D$2) -> 2.2 | L134: 0 | M134: 0 | N134: -5 | O134: -0.07692307692
A135: Highfield | B135: =OFFSET(INDEX(Number!$S37:$EN37,Index!$D$2),0,-1) -> 20 | C135: =OFFSET(INDEX(Number!$S37:$EN37,Index!$D$2),0,-12) -> 20 | D135: 3.2 | I135: Highfield | J135: =INDEX(Number!$S37:$EN37,Index!$D$2) -> 20 | K135: =INDEX(Rate!$S37:$EN37,Index!$D$2) -> 1.2 | L135: 0 | M135: 0 | N135: 0 | O135: 0
A136: Isle of Oxney | B136: =OFFSET(INDEX(Number!$S38:$EN38,Index!$D$2),0,-1) -> 35 | C136: =OFFSET(INDEX(Number!$S38:$EN38,Index!$D$2),0,-12) -> 25 | D136: 3.2 | I136: Isle of Oxney | J136: =INDEX(Number!$S38:$EN38,Index!$D$2) -> 35 | K136: =INDEX(Rate!$S38:$EN38,Index!$D$2) -> 2.4 | L136: 0 | M136: 0 | N136: 10 | O136: 0.4
A137: Kennington | B137: =OFFSET(INDEX(Number!$S39:$EN39,Index!$D$2),0,-1) -> 25 | C137: =OFFSET(INDEX(Number!$S39:$EN39,Index!$D$2),0,-12) -> 30 | D137: 3.2 | I137: Kennington | J137: =INDEX(Number!$S39:$EN39,Index!$D$2) -> 25 | K137: =INDEX(Rate!$S39:$EN39,Index!$D$2) -> 2.1 | L137: 0 | M137: 0 | N137: -5 | O137: -0.1666666667
A138: Kingsnorth Village & Bridgefield | B138: =OFFSET(INDEX(Number!$S40:$EN40,Index!$D$2),0,-1) -> 55 | C138: =OFFSET(INDEX(Number!$S40:$EN40,Index!$D$2),0,-12) -> 45 | D138: 3.2 | F138: -0.09090909091 | I138: Kingsnorth Village & Bridgefield | J138: =INDEX(Number!$S40:$EN40,Index!$D$2) -> 50 | K138: =INDEX(Rate!$S40:$EN40,Index!$D$2) -> 3.2 | L138: -5 | M138: -0.09090909091 | N138: 5 | O138: 0.1111111111
A139: Mersham, Sevington South with Finberry | B139: =OFFSET(INDEX(Number!$S41:$EN41,Index!$D$2),0,-1) -> 45 | C139: =OFFSET(INDEX(Number!$S41:$EN41,Index!$D$2),0,-12) -> 35 | D139: 3.2 | F139: -0.1111111111 | I139: Mersham, Sevington South with Finberry | J139: =INDEX(Number!$S41:$EN41,Index!$D$2) -> 40 | K139: =INDEX(Rate!$S41:$EN41,Index!$D$2) -> 3.3 | L139: -5 | M139: -0.1111111111 | N139: 5 | O139: 0.1428571429
A140: Norman | B140: =OFFSET(INDEX(Number!$S42:$EN42,Index!$D$2),0,-1) -> 80 | C140: =OFFSET(INDEX(Number!$S42:$EN42,Index!$D$2),0,-12) -> 95 | D140: 3.2 | E140: 0.1875 | I140: Norman | J140: =INDEX(Number!$S42:$EN42,Index!$D$2) -> 95 | K140: =INDEX(Rate!$S42:$EN42,Index!$D$2) -> 4.6 | L140: 15 | M140: 0.1875 | N140: 0 | O140: 0
A141: Park Farm North | B141: =OFFSET(INDEX(Number!$S43:$EN43,Index!$D$2),0,-1) -> 30 | C141: =OFFSET(INDEX(Number!$S43:$EN43,Index!$D$2),0,-12) -> 30 | D141: 3.2 | I141: Park Farm North | J141: =INDEX(Number!$S43:$EN43,Index!$D$2) -> 30 | K141: =INDEX(Rate!$S43:$EN43,Index!$D$2) -> 1.6 | L141: 0 | M141: 0 | N141: 0 | O141: 0
A142: Park Farm South | B142: =OFFSET(INDEX(Number!$S44:$EN44,Index!$D$2),0,-1) -> 35 | C142: =OFFSET(INDEX(Number!$S44:$EN44,Index!$D$2),0,-12) -> 35 | D142: 3.2 | E142: 0.1428571429 | I142: Park Farm South | J142: =INDEX(Number!$S44:$EN44,Index!$D$2) -> 40 | K142: =INDEX(Rate!$S44:$EN44,Index!$D$2) -> 2.1 | L142: 5 | M142: 0.1428571429 | N142: 5 | O142: 0.1428571429
A143: Repton | B143: =OFFSET(INDEX(Number!$S45:$EN45,Index!$D$2),0,-1) -> 50 | C143: =OFFSET(INDEX(Number!$S45:$EN45,Index!$D$2),0,-12) -> 50 | D143: 3.2 | I143: Repton | J143: =INDEX(Number!$S45:$EN45,Index!$D$2) -> 50 | K143: =INDEX(Rate!$S45:$EN45,Index!$D$2) -> 2.8 | L143: 0 | M143: 0 | N143: 0 | O143: 0
A144: Rolvenden & Tenterden West | B144: =OFFSET(INDEX(Number!$S46:$EN46,Index!$D$2),0,-1) -> 30 | C144: =OFFSET(INDEX(Number!$S46:$EN46,Index!$D$2),0,-12) -> 25 | D144: 3.2 | E144: 0.3333333333 | I144: Rolvenden & Tenterden West | J144: =INDEX(Number!$S46:$EN46,Index!$D$2) -> 40 | K144: =INDEX(Rate!$S46:$EN46,Index!$D$2) -> 2.7 | L144: 10 | M144: 0.3333333333 | N144: 15 | O144: 0.6
A145: Roman | B145: =OFFSET(INDEX(Number!$S47:$EN47,Index!$D$2),0,-1) -> 35 | C145: =OFFSET(INDEX(Number!$S47:$EN47,Index!$D$2),0,-12) -> 35 | D145: 3.2 | E145: 0.1428571429 | I145: Roman | J145: =INDEX(Number!$S47:$EN47,Index!$D$2) -> 40 | K145: =INDEX(Rate!$S47:$EN47,Index!$D$2) -> 1.9 | L145: 5 | M145: 0.1428571429 | N145: 5 | O145: 0.1428571429
A146: Saxon Shore | B146: =OFFSET(INDEX(Number!$S48:$EN48,Index!$D$2),0,-1) -> 20 | C146: =OFFSET(INDEX(Number!$S48:$EN48,Index!$D$2),0,-12) -> 15 | D146: 3.2 | I146: Saxon Shore | J146: =INDEX(Number!$S48:$EN48,Index!$D$2) -> 20 | K146: =INDEX(Rate!$S48:$EN48,Index!$D$2) -> 1.2 | L146: 0 | M146: 0 | N146: 5 | O146: 0.3333333333
A147: Singleton East | B147: =OFFSET(INDEX(Number!$S49:$EN49,Index!$D$2),0,-1) -> 45 | C147: =OFFSET(INDEX(Number!$S49:$EN49,Index!$D$2),0,-12) -> 50 | D147: 3.2 | I147: Singleton East | J147: =INDEX(Number!$S49:$EN49,Index!$D$2) -> 45 | K147: =INDEX(Rate!$S49:$EN49,Index!$D$2) -> 2.7 | L147: 0 | M147: 0 | N147: -5 | O147: -0.1
A148: Singleton West | B148: =OFFSET(INDEX(Number!$S50:$EN50,Index!$D$2),0,-1) -> 35 | C148: =OFFSET(INDEX(Number!$S50:$EN50,Index!$D$2),0,-12) -> 35 | D148: 3.2 | I148: Singleton West | J148: =INDEX(Number!$S50:$EN50,Index!$D$2) -> 35 | K148: =INDEX(Rate!$S50:$EN50,Index!$D$2) -> 1.7 | L148: 0 | M148: 0 | N148: 0 | O148: 0
A149: Stanhope | B149: =OFFSET(INDEX(Number!$S51:$EN51,Index!$D$2),0,-1) -> 160 | C149: =OFFSET(INDEX(Number!$S51:$EN51,Index!$D$2),0,-12) -> 145 | D149: 3.2 | I149: Stanhope | J149: =INDEX(Number!$S51:$EN51,Index!$D$2) -> 160 | K149: =INDEX(Rate!$S51:$EN51,Index!$D$2) -> 7 | L149: 0 | M149: 0 | N149: 15 | O149: 0.1034482759
A150: Tenterden North | B150: =OFFSET(INDEX(Number!$S52:$EN52,Index!$D$2),0,-1) -> 25 | C150: =OFFSET(INDEX(Number!$S52:$EN52,Index!$D$2),0,-12) -> 25 | D150: 3.2 | I150: Tenterden North | J150: =INDEX(Number!$S52:$EN52,Index!$D$2) -> 25 | K150: =INDEX(Rate!$S52:$EN52,Index!$D$2) -> 2.3 | L150: 0 | M150: 0 | N150: 0 | O150: 0
A151: Tenterden South | B151: =OFFSET(INDEX(Number!$S53:$EN53,Index!$D$2),0,-1) -> 40 | C151: =OFFSET(INDEX(Number!$S53:$EN53,Index!$D$2),0,-12) -> 35 | D151: 3.2 | I151: Tenterden South | J151: =INDEX(Number!$S53:$EN53,Index!$D$2) -> 40 | K151: =INDEX(Rate!$S53:$EN53,Index!$D$2) -> 3.9 | L151: 0 | M151: 0 | N151: 5 | O151: 0.1428571429
A152: Tenterden St Michael's | B152: =OFFSET(INDEX(Number!$S54:$EN54,Index!$D$2),0,-1) -> 30 | C152: =OFFSET(INDEX(Number!$S54:$EN54,Index!$D$2),0,-12) -> 30 | D152: 3.2 | I152: Tenterden St Michael's | J152: =INDEX(Number!$S54:$EN54,Index!$D$2) -> 30 | K152: =INDEX(Rate!$S54:$EN54,Index!$D$2) -> 2.1 | L152: 0 | M152: 0 | N152: 0 | O152: 0
A153: Upper Weald | B153: =OFFSET(INDEX(Number!$S55:$EN55,Index!$D$2),0,-1) -> 45 | C153: =OFFSET(INDEX(Number!$S55:$EN55,Index!$D$2),0,-12) -> 55 | D153: 3.2 | F153: -0.1111111111 | I153: Upper Weald | J153: =INDEX(Number!$S55:$EN55,Index!$D$2) -> 40 | K153: =INDEX(Rate!$S55:$EN55,Index!$D$2) -> 2.6 | L153: -5 | M153: -0.1111111111 | N153: -15 | O153: -0.2727272727
A154: Victoria | B154: =OFFSET(INDEX(Number!$S56:$EN56,Index!$D$2),0,-1) -> 240 | C154: =OFFSET(INDEX(Number!$S56:$EN56,Index!$D$2),0,-12) -> 240 | D154: 3.2 | E154: 0.08333333333 | I154: Victoria | J154: =INDEX(Number!$S56:$EN56,Index!$D$2) -> 260 | K154: =INDEX(Rate!$S56:$EN56,Index!$D$2) -> 6.3 | L154: 20 | M154: 0.08333333333 | N154: 20 | O154: 0.08333333333
A155: Washford | B155: =OFFSET(INDEX(Number!$S57:$EN57,Index!$D$2),0,-1) -> 55 | C155: =OFFSET(INDEX(Number!$S57:$EN57,Index!$D$2),0,-12) -> 50 | D155: 3.2 | F155: -0.09090909091 | I155: Washford | J155: =INDEX(Number!$S57:$EN57,Index!$D$2) -> 50 | K155: =INDEX(Rate!$S57:$EN57,Index!$D$2) -> 2.6 | L155: -5 | M155: -0.09090909091 | N155: 0 | O155: 0
A156: Weald Central | B156: =OFFSET(INDEX(Number!$S58:$EN58,Index!$D$2),0,-1) -> 85 | C156: =OFFSET(INDEX(Number!$S58:$EN58,Index!$D$2),0,-12) -> 80 | D156: 3.2 | E156: 0.05882352941 | I156: Weald Central | J156: =INDEX(Number!$S58:$EN58,Index!$D$2) -> 90 | K156: =INDEX(Rate!$S58:$EN58,Index!$D$2) -> 3.2 | L156: 5 | M156: 0.05882352941 | N156: 10 | O156: 0.125
A157: Weald North | B157: =OFFSET(INDEX(Number!$S59:$EN59,Index!$D$2),0,-1) -> 20 | C157: =OFFSET(INDEX(Number!$S59:$EN59,Index!$D$2),0,-12) -> 10 | D157: =K$121 -> 3.2 | I157: Weald North | J157: =INDEX(Number!$S59:$EN59,Index!$D$2) -> 20 | K157: =INDEX(Rate!$S63:$EN63,Index!$D$2) -> 3.8 | L157: 0 | M157: 0 | N157: 10 | O157: 1
A158: Weald South | B158: =OFFSET(INDEX(Number!$S60:$EN60,Index!$D$2),0,-1) -> 65 | C158: =OFFSET(INDEX(Number!$S60:$EN60,Index!$D$2),0,-12) -> 75 | D158: 3.2 | I158: Weald South | J158: =INDEX(Number!$S60:$EN60,Index!$D$2) -> 65 | K158: =INDEX(Rate!$S64:$EN64,Index!$D$2) -> 2.5 | L158: 0 | M158: 0 | N158: -10 | O158: -0.1333333333
A159: Willesborough | B159: =OFFSET(INDEX(Number!$S61:$EN61,Index!$D$2),0,-1) -> 100 | C159: =OFFSET(INDEX(Number!$S61:$EN61,Index!$D$2),0,-12) -> 90 | D159: 3.2 | E159: 0.1 | I159: Willesborough | J159: =INDEX(Number!$S61:$EN61,Index!$D$2) -> 110 | K159: =INDEX(Rate!$S65:$EN65,Index!$D$2) -> 0.7 | L159: 10 | M159: 0.1 | N159: 20 | O159: 0.2222222222
A160: Wye with Hinxhill | B160: =OFFSET(INDEX(Number!$S62:$EN62,Index!$D$2),0,-1) -> 45 | C160: =OFFSET(INDEX(Number!$S62:$EN62,Index!$D$2),0,-12) -> 45 | D160: 3.2 | I160: Wye with Hinxhill | J160: =INDEX(Number!$S62:$EN62,Index!$D$2) -> 45 | K160: =INDEX(Rate!$S66:$EN66,Index!$D$2) -> 2.3 | L160: 0 | M160: 0 | N160: 0 | O160: 0
B236: month | C236: year | I236: Area | J236: Number unemployed | K236: Percentage unemployed (%) | L236: Number change since previous month | M236: % change since previous month | N236: Number change since previous year | O236: % change since previous year
B237: =OFFSET(INDEX(Number!$S296:$EN296,Index!$D$2),0,-1) -> 3280 | C237: =OFFSET(INDEX(Number!$S296:$EN296,Index!$D$2),0,-12) -> 3125 | D237: Chart Data | I237: Canterbury District | J237: =INDEX(Number!$S$296:$EN$296,Index!$D$2) -> 3290 | K237: =INDEX(Rate!$S$296:$EN$296,Index!$D$2) -> 3.4 | L237: =IF(ISERROR((SUM(J237-B237))),"-",(SUM(J237-B237))) -> 10 | M237: =IF(ISERROR((SUM(L237/B237))),"-",(SUM(L237/B237))) -> 0.003048780488 | N237: =IF(ISERROR((SUM(J237-C237))),"-",(SUM(J237-C237))) -> 165 | O237: =IF(ISERROR((SUM(N237/C237))),"-",(SUM(N237/C237))) -> 0.0528
A238: =I238 -> Barton | B238: =OFFSET(INDEX(Number!$S63:$EN63,Index!$D$2),0,-1) -> 385 | C238: =OFFSET(INDEX(Number!$S63:$EN63,Index!$D$2),0,-12) -> 355 | D238: =$K$237 -> 3.4 | E238: =IF($M$238>0,$M$238,"") ->  | F238: =IF($M$238<0,$M$238,"") ->  | I238: Barton | J238: =INDEX(Number!$S$63:$EN$63,Index!$D$2) -> 385 | K238: =INDEX(Rate!$S$63:$EN$63,Index!$D$2) -> 3.8 | L238: 0 | M238: 0 | N238: 30 | O238: 0.08450704225
A239: Beltinge | B239: =OFFSET(INDEX(Number!$S64:$EN64,Index!$D$2),0,-1) -> 90 | C239: =OFFSET(INDEX(Number!$S64:$EN64,Index!$D$2),0,-12) -> 70 | D239: 3.4 | E239: =IF($M$239>0,$M$239,"") ->  | F239: =IF($M$239<0,$M$239,"") -> -0.05555555556 | I239: Beltinge | J239: =INDEX(Number!$S$64:$EN$64,Index!$D$2) -> 85 | K239: =INDEX(Rate!$S$64:$EN$64,Index!$D$2) -> 2.5 | L239: -5 | M239: -0.05555555556 | N239: 15 | O239: 0.2142857143
A240: Blean Forest | B240: =OFFSET(INDEX(Number!$S65:$EN65,Index!$D$2),0,-1) -> 65 | C240: =OFFSET(INDEX(Number!$S65:$EN65,Index!$D$2),0,-12) -> 65 | D240: 3.4 | E240: =IF($M$240>0,$M$240,"") ->  | F240: =IF($M$240<0,$M$240,"") ->  | I240: Blean Forest | J240: =INDEX(Number!$S$65:$EN$65,Index!$D$2) -> 65 | K240: =INDEX(Rate!$S$65:$EN$65,Index!$D$2) -> 0.7 | L240: 0 | M240: 0 | N240: 0 | O240: 0
A241: Chartham & Stone Street | B241: =OFFSET(INDEX(Number!$S66:$EN66,Index!$D$2),0,-1) -> 115 | C241: =OFFSET(INDEX(Number!$S66:$EN66,Index!$D$2),0,-12) -> 125 | D241: 3.4 | E241: =IF($M$241>0,$M$241,"") ->  | F241: =IF($M$241<0,$M$241,"") -> -0.04347826087 | I241: Chartham & Stone Street | J241: =INDEX(Number!$S$66:$EN$66,Index!$D$2) -> 110 | K241: =INDEX(Rate!$S$66:$EN$66,Index!$D$2) -> 2.3 | L241: -5 | M241: -0.04347826087 | N241: -15 | O241: -0.12
A242: Chestfield | B242: =OFFSET(INDEX(Number!$S67:$EN67,Index!$D$2),0,-1) -> 75 | C242: =OFFSET(INDEX(Number!$S67:$EN67,Index!$D$2),0,-12) -> 75 | D242: 3.4 | E242: =IF($M$242>0,$M$242,"") -> 0.06666666667 | F242: =IF($M$242<0,$M$242,"") ->  | I242: Chestfield | J242: =INDEX(Number!$S$67:$EN$67,Index!$D$2) -> 80 | K242: =INDEX(Rate!$S$67:$EN$67,Index!$D$2) -> 2.1 | L242: 5 | M242: 0.06666666667 | N242: 5 | O242: 0.06666666667
A243: Gorrell | B243: =OFFSET(INDEX(Number!$S68:$EN68,Index!$D$2),0,-1) -> 225 | C243: =OFFSET(INDEX(Number!$S68:$EN68,Index!$D$2),0,-12) -> 210 | D243: 3.4 | E243: =IF($M$243>0,$M$243,"") ->  | F243: =IF($M$243<0,$M$243,"") ->  | I243: Gorrell | J243: =INDEX(Number!$S$68:$EN$68,Index!$D$2) -> 225 | K243: =INDEX(Rate!$S$68:$EN$68,Index!$D$2) -> 3.4 | L243: 0 | M243: 0 | N243: 15 | O243: 0.07142857143
A244: Greenhill | B244: =OFFSET(INDEX(Number!$S69:$EN69,Index!$D$2),0,-1) -> 110 | C244: =OFFSET(INDEX(Number!$S69:$EN69,Index!$D$2),0,-12) -> 90 | D244: 3.4 | E244: =IF($M$244>0,$M$244,"") ->  | F244: =IF($M$244<0,$M$244,"") ->  | I244: Greenhill | J244: =INDEX(Number!$S$69:$EN$69,Index!$D$2) -> 110 | K244: =INDEX(Rate!$S$69:$EN$69,Index!$D$2) -> 4.6 | L244: 0 | M244: 0 | N244: 20 | O244: 0.2222222222
A245: Herne & Broomfield | B245: =OFFSET(INDEX(Number!$S70:$EN70,Index!$D$2),0,-1) -> 130 | C245: =OFFSET(INDEX(Number!$S70:$EN70,Index!$D$2),0,-12) -> 125 | D245: 3.4 | E245: =IF($M$245>0,$M$245,"") -> 0.07692307692 | F245: =IF($M$245<0,$M$245,"") ->  | I245: Herne & Broomfield | J245: =INDEX(Number!$S$70:$EN$70,Index!$D$2) -> 140 | K245: =INDEX(Rate!$S$70:$EN$70,Index!$D$2) -> 2.4 | L245: 10 | M245: 0.07692307692 | N245: 15 | O245: 0.12
A246: Heron | B246: =OFFSET(INDEX(Number!$S71:$EN71,Index!$D$2),0,-1) -> 340 | C246: =OFFSET(INDEX(Number!$S71:$EN71,Index!$D$2),0,-12) -> 360 | D246: 3.4 | E246: =IF($M$246>0,$M$246,"") ->  | F246: =IF($M$246<0,$M$246,"") -> -0.04411764706 | I246: Heron | J246: =INDEX(Number!$S$71:$EN$71,Index!$D$2) -> 325 | K246: =INDEX(Rate!$S$71:$EN$71,Index!$D$2) -> 4.1 | L246: -15 | M246: -0.04411764706 | N246: -35 | O246: -0.09722222222
A247: Little Stour & Adisham | B247: =OFFSET(INDEX(Number!$S72:$EN72,Index!$D$2),0,-1) -> 50 | C247: =OFFSET(INDEX(Number!$S72:$EN72,Index!$D$2),0,-12) -> 45 | D247: 3.4 | E247: =IF($M$247>0,$M$247,"") -> 0.1 | F247: =IF($M$247<0,$M$247,"") ->  | I247: Little Stour & Adisham | J247: =INDEX(Number!$S$72:$EN$72,Index!$D$2) -> 55 | K247: =INDEX(Rate!$S$72:$EN$72,Index!$D$2) -> 2.1 | L247: 5 | M247: 0.1 | N247: 10 | O247: 0.2222222222
A248: Nailbourne | B248: =OFFSET(INDEX(Number!$S73:$EN73,Index!$D$2),0,-1) -> 55 | C248: =OFFSET(INDEX(Number!$S73:$EN73,Index!$D$2),0,-12) -> 55 | D248: 3.4 | E248: =IF($M$248>0,$M$248,"") ->  | F248: =IF($M$248<0,$M$248,"") -> -0.09090909091 | I248: Nailbourne | J248: =INDEX(Number!$S$73:$EN$73,Index!$D$2) -> 50 | K248: =INDEX(Rate!$S$73:$EN$73,Index!$D$2) -> 2.3 | L248: -5 | M248: -0.09090909091 | N248: -5 | O248: -0.09090909091
A249: Northgate | B249: =OFFSET(INDEX(Number!$S74:$EN74,Index!$D$2),0,-1) -> 335 | C249: =OFFSET(INDEX(Number!$S74:$EN74,Index!$D$2),0,-12) -> 320 | D249: 3.4 | E249: =IF($M$249>0,$M$249,"") -> 0.05970149254 | F249: =IF($M$249<0,$M$249,"") ->  | I249: Northgate | J249: =INDEX(Number!$S$74:$EN$74,Index!$D$2) -> 355 | K249: =INDEX(Rate!$S$74:$EN$74,Index!$D$2) -> 5.4 | L249: 20 | M249: 0.05970149254 | N249: 35 | O249: 0.109375
A250: Reculver | B250: =OFFSET(INDEX(Number!$S75:$EN75,Index!$D$2),0,-1) -> 65 | C250: =OFFSET(INDEX(Number!$S75:$EN75,Index!$D$2),0,-12) -> 60 | D250: 3.4 | E250: =IF($M$250>0,$M$250,"") -> 0.07692307692 | F250: =IF($M$250<0,$M$250,"") ->  | I250: Reculver | J250: =INDEX(Number!$S$75:$EN$75,Index!$D$2) -> 70 | K250: =INDEX(Rate!$S$75:$EN$75,Index!$D$2) -> 2.8 | L250: 5 | M250: 0.07692307692 | N250: 10 | O250: 0.1666666667
A251: Seasalter | B251: =OFFSET(INDEX(Number!$S76:$EN76,Index!$D$2),0,-1) -> 120 | C251: =OFFSET(INDEX(Number!$S76:$EN76,Index!$D$2),0,-12) -> 90 | D251: 3.4 | E251: =IF($M$251>0,$M$251,"") ->  | F251: =IF($M$251<0,$M$251,"") -> -0.04166666667 | I251: Seasalter | J251: =INDEX(Number!$S$76:$EN$76,Index!$D$2) -> 115 | K251: =INDEX(Rate!$S$76:$EN$76,Index!$D$2) -> 2.7 | L251: -5 | M251: -0.04166666667 | N251: 25 | O251: 0.2777777778
A252: St Stephen's | B252: =OFFSET(INDEX(Number!$S77:$EN77,Index!$D$2),0,-1) -> 265 | C252: =OFFSET(INDEX(Number!$S77:$EN77,Index!$D$2),0,-12) -> 280 | D252: 3.4 | E252: =IF($M$252>0,$M$252,"") -> 0.01886792453 | F252: =IF($M$252<0,$M$252,"") ->  | I252: St Stephen's | J252: =INDEX(Number!$S$77:$EN$77,Index!$D$2) -> 270 | K252: =INDEX(Rate!$S$77:$EN$77,Index!$D$2) -> 3.3 | L252: 5 | M252: 0.01886792453 | N252: -10 | O252: -0.03571428571
A253: Sturry | B253: =OFFSET(INDEX(Number!$S78:$EN78,Index!$D$2),0,-1) -> 165 | C253: =OFFSET(INDEX(Number!$S78:$EN78,Index!$D$2),0,-12) -> 155 | D253: 3.4 | E253: =IF($M$253>0,$M$253,"") -> 0.06060606061 | F253: =IF($M$253<0,$M$253,"") ->  | I253: Sturry | J253: =INDEX(Number!$S$78:$EN$78,Index!$D$2) -> 175 | K253: =INDEX(Rate!$S$78:$EN$78,Index!$D$2) -> 3.7 | L253: 10 | M253: 0.06060606061 | N253: 20 | O253: 0.1290322581
A254: Swalecliffe | B254: =OFFSET(INDEX(Number!$S79:$EN79,Index!$D$2),0,-1) -> 60 | C254: =OFFSET(INDEX(Number!$S79:$EN79,Index!$D$2),0,-12) -> 50 | D254: 3.4 | E254: =IF($M$254>0,$M$254,"") ->  | F254: =IF($M$254<0,$M$254,"") -> -0.08333333333 | I254: Swalecliffe | J254: =INDEX(Number!$S$79:$EN$79,Index!$D$2) -> 55 | K254: =INDEX(Rate!$S$79:$EN$79,Index!$D$2) -> 2.6 | L254: -5 | M254: -0.08333333333 | N254: 5 | O254: 0.1
A255: Tankerton | B255: =OFFSET(INDEX(Number!$S80:$EN80,Index!$D$2),0,-1) -> 30 | C255: =OFFSET(INDEX(Number!$S80:$EN80,Index!$D$2),0,-12) -> 30 | D255: 3.4 | E255: =IF($M$255>0,$M$255,"") ->  | F255: =IF($M$255<0,$M$255,"") ->  | I255: Tankerton | J255: =INDEX(Number!$S$80:$EN$80,Index!$D$2) -> 30 | K255: =INDEX(Rate!$S$80:$EN$80,Index!$D$2) -> 1.6 | L255: 0 | M255: 0 | N255: 0 | O255: 0
A256: West Bay | B256: =OFFSET(INDEX(Number!$S81:$EN81,Index!$D$2),0,-1) -> 85 | C256: =OFFSET(INDEX(Number!$S81:$EN81,Index!$D$2),0,-12) -> 75 | D256: 3.4 | E256: =IF($M$256>0,$M$256,"") -> 0.05882352941 | F256: =IF($M$256<0,$M$256,"") ->  | I256: West Bay | J256: =INDEX(Number!$S$81:$EN$81,Index!$D$2) -> 90 | K256: =INDEX(Rate!$S$81:$EN$81,Index!$D$2) -> 3.8 | L256: 5 | M256: 0.05882352941 | N256: 15 | O256: 0.2
A257: Westgate | B257: =OFFSET(INDEX(Number!$S82:$EN82,Index!$D$2),0,-1) -> 245 | C257: =OFFSET(INDEX(Number!$S82:$EN82,Index!$D$2),0,-12) -> 235 | D257: 3.4 | E257: =IF($M$257>0,$M$257,"") ->  | F257: =IF($M$257<0,$M$257,"") -> -0.02040816327 | I257: Westgate | J257: =INDEX(Number!$S$82:$EN$82,Index!$D$2) -> 240 | K257: =INDEX(Rate!$S$82:$EN$82,Index!$D$2) -> 3.1 | L257: -5 | M257: -0.02040816327 | N257: 5 | O257: 0.02127659574
A258: Wincheap | B258: =OFFSET(INDEX(Number!$S83:$EN83,Index!$D$2),0,-1) -> 275 | C258: =OFFSET(INDEX(Number!$S83:$EN83,Index!$D$2),0,-12) -> 250 | D258: 3.4 | E258: =IF($M$258>0,$M$258,"") ->  | F258: =IF($M$258<0,$M$258,"") -> -0.03636363636 | I258: Wincheap | J258: =INDEX(Number!$S$83:$EN$83,Index!$D$2) -> 265 | K258: =INDEX(Rate!$S$83:$EN$83,Index!$D$2) -> 3.8 | L258: -10 | M258: -0.03636363636 | N258: 15 | O258: 0.06
B337: month | C337: year | I337: Area | J337: Number unemployed | K337: Percentage unemployed (%) | L337: Number change since previous month | M337: % change since previous month | N337: Number change since previous year | O337: % change since previous year
B338: =OFFSET(INDEX(Number!$S297:$EN297,Index!$D$2),0,-1) -> 2250 | C338: =OFFSET(INDEX(Number!$S297:$EN297,Index!$D$2),0,-12) -> 2190 | D338: Chart Data | I338: Dartford District | J338: =INDEX(Number!$S$297:$EN$297,Index!$D$2) -> 2335 | K338: =INDEX(Rate!$S$297:$EN$297,Index!$D$2) -> 3.1 | L338: =IF(ISERROR((SUM(J338-B338))),"-",(SUM(J338-B338))) -> 85 | M338: =IF(ISERROR((SUM(L338/B338))),"-",(SUM(L338/B338))) -> 0.03777777778 | N338: =IF(ISERROR((SUM(J338-C338))),"-",(SUM(J338-C338))) -> 145 | O338: =IF(ISERROR((SUM(N338/C338))),"-",(SUM(N338/C338))) -> 0.06621004566
A339: =I339 -> Bean & Village Park | B339: =OFFSET(INDEX(Number!$S84:$EN84,Index!$D$2),0,-1) -> 35 | C339: =OFFSET(INDEX(Number!$S84:$EN84,Index!$D$2),0,-12) -> 40 | D339: =$K$338 -> 3.1 | E339: =IF($M$339>0,$M$339,"") -> 0.1428571429 | F339: =IF($M$339<0,$M$339,"") ->  | I339: Bean & Village Park | J339: =INDEX(Number!$S84:$EN84,Index!$D$2) -> 40 | K339: =INDEX(Rate!$S84:$EN84,Index!$D$2) -> 2.4 | L339: 5 | M339: 0.1428571429 | N339: 0 | O339: 0
A340: Brent | B340: =OFFSET(INDEX(Number!$S85:$EN85,Index!$D$2),0,-1) -> 95 | C340: =OFFSET(INDEX(Number!$S85:$EN85,Index!$D$2),0,-12) -> 70 | D340: 3.1 | E340: =IF($M$340>0,$M$340,"") ->  | F340: =IF($M$340<0,$M$340,"") ->  | I340: Brent | J340: =INDEX(Number!$S85:$EN85,Index!$D$2) -> 95 | K340: =INDEX(Rate!$S85:$EN85,Index!$D$2) -> 2.7 | L340: 0 | M340: 0 | N340: 25 | O340: 0.3571428571
A341: Bridge | B341: =OFFSET(INDEX(Number!$S86:$EN86,Index!$D$2),0,-1) -> 40 | C341: =OFFSET(INDEX(Number!$S86:$EN86,Index!$D$2),0,-12) -> 40 | D341: 3.1 | E341: =IF($M$341>0,$M$341,"") ->  | F341: =IF($M$341<0,$M$341,"") ->  | I341: Bridge | J341: =INDEX(Number!$S86:$EN86,Index!$D$2) -> 40 | K341: =INDEX(Rate!$S86:$EN86,Index!$D$2) -> 2.2 | L341: 0 | M341: 0 | N341: 0 | O341: 0
A342: Burnham | B342: =OFFSET(INDEX(Number!$S87:$EN87,Index!$D$2),0,-1) -> 80 | C342: =OFFSET(INDEX(Number!$S87:$EN87,Index!$D$2),0,-12) -> 80 | D342: 3.1 | E342: =IF($M$342>0,$M$342,"") ->  | F342: =IF($M$342<0,$M$342,"") ->  | I342: Burnham | J342: =INDEX(Number!$S87:$EN87,Index!$D$2) -> 80 | K342: =INDEX(Rate!$S87:$EN87,Index!$D$2) -> 3.4 | L342: 0 | M342: 0 | N342: 0 | O342: 0
A343: Darenth | B343: =OFFSET(INDEX(Number!$S88:$EN88,Index!$D$2),0,-1) -> 60 | C343: =OFFSET(INDEX(Number!$S88:$EN88,Index!$D$2),0,-12) -> 70 | D343: 3.1 | E343: =IF($M$343>0,$M$343,"") ->  | F343: =IF($M$343<0,$M$343,"") ->  | I343: Darenth | J343: =INDEX(Number!$S88:$EN88,Index!$D$2) -> 60 | K343: =INDEX(Rate!$S88:$EN88,Index!$D$2) -> 3.4 | L343: 0 | M343: 0 | N343: -10 | O343: -0.1428571429
A344: Ebbsfleet | B344: =OFFSET(INDEX(Number!$S89:$EN89,Index!$D$2),0,-1) -> 35 | C344: =OFFSET(INDEX(Number!$S89:$EN89,Index!$D$2),0,-12) -> 35 | D344: 3.1 | E344: =IF($M$344>0,$M$344,"") ->  | F344: =IF($M$344<0,$M$344,"") ->  | I344: Ebbsfleet | J344: =INDEX(Number!$S89:$EN89,Index!$D$2) -> 35 | K344: =INDEX(Rate!$S89:$EN89,Index!$D$2) -> 4.6 | L344: 0 | M344: 0 | N344: 0 | O344: 0
A345: Greenhithe & Knockhall | B345: =OFFSET(INDEX(Number!$S90:$EN90,Index!$D$2),0,-1) -> 205 | C345: =OFFSET(INDEX(Number!$S90:$EN90,Index!$D$2),0,-12) -> 185 | D345: 3.1 | E345: =IF($M$345>0,$M$345,"") -> 0.0243902439 | F345: =IF($M$345<0,$M$345,"") ->  | I345: Greenhithe & Knockhall | J345: =INDEX(Number!$S90:$EN90,Index!$D$2) -> 210 | K345: =INDEX(Rate!$S90:$EN90,Index!$D$2) -> 3 | L345: 5 | M345: 0.0243902439 | N345: 25 | O345: 0.1351351351
A346: Heath | B346: =OFFSET(INDEX(Number!$S91:$EN91,Index!$D$2),0,-1) -> 65 | C346: =OFFSET(INDEX(Number!$S91:$EN91,Index!$D$2),0,-12) -> 50 | D346: 3.1 | E346: =IF($M$346>0,$M$346,"") ->  | F346: =IF($M$346<0,$M$346,"") ->  | I346: Heath | J346: =INDEX(Number!$S91:$EN91,Index!$D$2) -> 65 | K346: =INDEX(Rate!$S91:$EN91,Index!$D$2) -> 1.9 | L346: 0 | M346: 0 | N346: 15 | O346: 0.3
A347: Joyden's Wood | B347: =OFFSET(INDEX(Number!$S92:$EN92,Index!$D$2),0,-1) -> 55 | C347: =OFFSET(INDEX(Number!$S92:$EN92,Index!$D$2),0,-12) -> 40 | D347: 3.1 | E347: =IF($M$347>0,$M$347,"") ->  | F347: =IF($M$347<0,$M$347,"") ->  | I347: Joyden's Wood | J347: =INDEX(Number!$S92:$EN92,Index!$D$2) -> 55 | K347: =INDEX(Rate!$S92:$EN92,Index!$D$2) -> 2 | L347: 0 | M347: 0 | N347: 15 | O347: 0.375
A348: Longfield, New Barn & Southfleet | B348: =OFFSET(INDEX(Number!$S93:$EN93,Index!$D$2),0,-1) -> 70 | C348: =OFFSET(INDEX(Number!$S93:$EN93,Index!$D$2),0,-12) -> 55 | D348: 3.1 | E348: =IF($M$348>0,$M$348,"") ->  | F348: =IF($M$348<0,$M$348,"") -> -0.07142857143 | I348: Longfield, New Barn & Southfleet | J348: =INDEX(Number!$S93:$EN93,Index!$D$2) -> 65 | K348: =INDEX(Rate!$S93:$EN93,Index!$D$2) -> 1.8 | L348: -5 | M348: -0.07142857143 | N348: 10 | O348: 0.1818181818
A349: Maypole & Leyton Cross | B349: =OFFSET(INDEX(Number!$S94:$EN94,Index!$D$2),0,-1) -> 35 | C349: =OFFSET(INDEX(Number!$S94:$EN94,Index!$D$2),0,-12) -> 40 | D349: 3.1 | E349: =IF($M$349>0,$M$349,"") -> 0.1428571429 | F349: =IF($M$349<0,$M$349,"") ->  | I349: Maypole & Leyton Cross | J349: =INDEX(Number!$S94:$EN94,Index!$D$2) -> 40 | K349: =INDEX(Rate!$S94:$EN94,Index!$D$2) -> 2.1 | L349: 5 | M349: 0.1428571429 | N349: 0 | O349: 0
A350: Newtown | B350: =OFFSET(INDEX(Number!$S95:$EN95,Index!$D$2),0,-1) -> 145 | C350: =OFFSET(INDEX(Number!$S95:$EN95,Index!$D$2),0,-12) -> 175 | D350: 3.1 | E350: =IF($M$350>0,$M$350,"") -> 0.1379310345 | F350: =IF($M$350<0,$M$350,"") ->  | I350: Newtown | J350: =INDEX(Number!$S95:$EN95,Index!$D$2) -> 165 | K350: =INDEX(Rate!$S95:$EN95,Index!$D$2) -> 3.8 | L350: 20 | M350: 0.1379310345 | N350: -10 | O350: -0.05714285714
A351: Princes | B351: =OFFSET(INDEX(Number!$S96:$EN96,Index!$D$2),0,-1) -> 155 | C351: =OFFSET(INDEX(Number!$S96:$EN96,Index!$D$2),0,-12) -> 150 | D351: 3.1 | E351: =IF($M$351>0,$M$351,"") ->  | F351: =IF($M$351<0,$M$351,"") ->  | I351: Princes | J351: =INDEX(Number!$S96:$EN96,Index!$D$2) -> 155 | K351: =INDEX(Rate!$S96:$EN96,Index!$D$2) -> 4.4 | L351: 0 | M351: 0 | N351: 5 | O351: 0.03333333333
A352: Stone Castle | B352: =OFFSET(INDEX(Number!$S97:$EN97,Index!$D$2),0,-1) -> 150 | C352: =OFFSET(INDEX(Number!$S97:$EN97,Index!$D$2),0,-12) -> 150 | D352: 3.1 | E352: =IF($M$352>0,$M$352,"") -> 0.1666666667 | F352: =IF($M$352<0,$M$352,"") ->  | I352: Stone Castle | J352: =INDEX(Number!$S97:$EN97,Index!$D$2) -> 175 | K352: =INDEX(Rate!$S97:$EN97,Index!$D$2) -> 3.2 | L352: 25 | M352: 0.1666666667 | N352: 25 | O352: 0.1666666667
A353: Stone House | B353: =OFFSET(INDEX(Number!$S98:$EN98,Index!$D$2),0,-1) -> 125 | C353: =OFFSET(INDEX(Number!$S98:$EN98,Index!$D$2),0,-12) -> 130 | D353: 3.1 | E353: =IF($M$353>0,$M$353,"") -> 0.08 | F353: =IF($M$353<0,$M$353,"") ->  | I353: Stone House | J353: =INDEX(Number!$S98:$EN98,Index!$D$2) -> 135 | K353: =INDEX(Rate!$S98:$EN98,Index!$D$2) -> 3.3 | L353: 10 | M353: 0.08 | N353: 5 | O353: 0.03846153846
A354: Swanscombe | B354: =OFFSET(INDEX(Number!$S99:$EN99,Index!$D$2),0,-1) -> 230 | C354: =OFFSET(INDEX(Number!$S99:$EN99,Index!$D$2),0,-12) -> 220 | D354: 3.1 | E354: =IF($M$354>0,$M$354,"") ->  | F354: =IF($M$354<0,$M$354,"") ->  | I354: Swanscombe | J354: =INDEX(Number!$S99:$EN99,Index!$D$2) -> 230 | K354: =INDEX(Rate!$S99:$EN99,Index!$D$2) -> 4.8 | L354: 0 | M354: 0 | N354: 10 | O354: 0.04545454545
A355: Temple Hill | B355: =OFFSET(INDEX(Number!$S100:$EN100,Index!$D$2),0,-1) -> 350 | C355: =OFFSET(INDEX(Number!$S100:$EN100,Index!$D$2),0,-12) -> 340 | D355: 3.1 | E355: =IF($M$355>0,$M$355,"") -> 0.02857142857 | F355: =IF($M$355<0,$M$355,"") ->  | I355: Temple Hill | J355: =INDEX(Number!$S100:$EN100,Index!$D$2) -> 360 | K355: =INDEX(Rate!$S100:$EN100,Index!$D$2) -> 4.7 | L355: 10 | M355: 0.02857142857 | N355: 20 | O355: 0.05882352941
A356: Town | B356: =OFFSET(INDEX(Number!$S101:$EN101,Index!$D$2),0,-1) -> 95 | C356: =OFFSET(INDEX(Number!$S101:$EN101,Index!$D$2),0,-12) -> 80 | D356: 3.1 | E356: =IF($M$355>0,$M$355,"") -> 0.02857142857 | F356: =IF($M$355<0,$M$355,"") ->  | I356: Town | J356: =INDEX(Number!$S101:$EN101,Index!$D$2) -> 100 | K356: =INDEX(Rate!$S101:$EN101,Index!$D$2) -> 7.6 | L356: 5 | M356: 0.05263157895 | N356: 20 | O356: 0.25
A357: West Hill | B357: =OFFSET(INDEX(Number!$S102:$EN102,Index!$D$2),0,-1) -> 130 | C357: =OFFSET(INDEX(Number!$S102:$EN102,Index!$D$2),0,-12) -> 150 | D357: 3.1 | E357: =IF($M$355>0,$M$355,"") -> 0.02857142857 | F357: =IF($M$355<0,$M$355,"") ->  | I357: West Hill | J357: =INDEX(Number!$S102:$EN102,Index!$D$2) -> 135 | K357: =INDEX(Rate!$S102:$EN102,Index!$D$2) -> 2.4 | L357: 5 | M357: 0.03846153846 | N357: -15 | O357: -0.1
A358: Wilmington, Sutton-at-Hone & Hawley | B358: =OFFSET(INDEX(Number!$S103:$EN103,Index!$D$2),0,-1) -> 95 | C358: =OFFSET(INDEX(Number!$S103:$EN103,Index!$D$2),0,-12) -> 100 | D358: 3.1 | E358: =IF($M$355>0,$M$355,"") -> 0.02857142857 | F358: =IF($M$355<0,$M$355,"") ->  | I358: Wilmington, Sutton-at-Hone & Hawley | J358: =INDEX(Number!$S103:$EN103,Index!$D$2) -> 90 | K358: =INDEX(Rate!$S103:$EN103,Index!$D$2) -> 2 | L358: -5 | M358: -0.05263157895 | N358: -10 | O358: -0.1
B436: month | C436: year | I436: Area | J436: Number unemployed | K436: Percentage unemployed (%) | L436: Number change since previous month | M436: % change since previous month | N436: Number change since previous year | O436: % change since previous year
B437: =OFFSET(INDEX(Number!$S298:$EN298,Index!$D$2),0,-1) -> 2635 | C437: =OFFSET(INDEX(Number!$S298:$EN298,Index!$D$2),0,-12) -> 2610 | D437: Chart Data | I437: Dover District | J437: =INDEX(Number!$S$298:$EN$298,Index!$D$2) -> 2655 | K437: =INDEX(Rate!$S$298:$EN$298,Index!$D$2) -> 3.9 | L437: =IF(ISERROR((SUM(J437-B437))),"-",(SUM(J437-B437))) -> 20 | M437: =IF(ISERROR((SUM(L437/B437))),"-",(SUM(L437/B437))) -> 0.007590132827 | N437: =IF(ISERROR((SUM(J437-C437))),"-",(SUM(J437-C437))) -> 45 | O437: =IF(ISERROR((SUM(N437/C437))),"-",(SUM(N437/C437))) -> 0.01724137931
A438: =I438 -> Alkham & Capel-le-Ferne | B438: =OFFSET(INDEX(Number!$S104:$EN104,Index!$D$2),0,-1) -> 35 | C438: =OFFSET(INDEX(Number!$S104:$EN104,Index!$D$2),0,-12) -> 35 | D438: =$K$437 -> 3.9 | E438: =IF($M$438>0,$M$438,"") -> 0.1428571429 | F438: =IF($M$438<0,$M$438,"") ->  | I438: Alkham & Capel-le-Ferne | J438: =INDEX(Number!$S$104:$EN$104,Index!$D$2) -> 40 | K438: =INDEX(Rate!$S$104:$EN$104,Index!$D$2) -> 2.4 | L438: 5 | M438: 0.1428571429 | N438: 5 | O438: 0.1428571429
A439: Aylesham, Eythorne & Shepherdswell | B439: =OFFSET(INDEX(Number!$S105:$EN105,Index!$D$2),0,-1) -> 200 | C439: =OFFSET(INDEX(Number!$S105:$EN105,Index!$D$2),0,-12) -> 205 | D439: 3.9 | E439: =IF($M$439>0,$M$439,"") ->  | F439: =IF($M$439<0,$M$439,"") ->  | I439: Aylesham, Eythorne & Shepherdswell | J439: =INDEX(Number!$S$105:$EN$105,Index!$D$2) -> 200 | K439: =INDEX(Rate!$S$105:$EN$105,Index!$D$2) -> 3.1 | L439: 0 | M439: 0 | N439: -5 | O439: -0.0243902439
A440: Buckland | B440: =OFFSET(INDEX(Number!$S106:$EN106,Index!$D$2),0,-1) -> 235 | C440: =OFFSET(INDEX(Number!$S106:$EN106,Index!$D$2),0,-12) -> 250 | D440: 3.9 | E440: =IF($M$440>0,$M$440,"") ->  | F440: =IF($M$440<0,$M$440,"") ->  | I440: Buckland | J440: =INDEX(Number!$S$106:$EN$106,Index!$D$2) -> 235 | K440: =INDEX(Rate!$S$106:$EN$106,Index!$D$2) -> 4.7 | L440: 0 | M440: 0 | N440: -15 | O440: -0.06
A441: Dover Downs & River | B441: =OFFSET(INDEX(Number!$S107:$EN107,Index!$D$2),0,-1) -> 55 | C441: =OFFSET(INDEX(Number!$S107:$EN107,Index!$D$2),0,-12) -> 50 | D441: 3.9 | E441: =IF($M$441>0,$M$441,"") ->  | F441: =IF($M$441<0,$M$441,"") ->  | I441: Dover Downs & River | J441: =INDEX(Number!$S$107:$EN$107,Index!$D$2) -> 55 | K441: =INDEX(Rate!$S$107:$EN$107,Index!$D$2) -> 1.4 | L441: 0 | M441: 0 | N441: 5 | O441: 0.1
A442: Eastry Rural | B442: =OFFSET(INDEX(Number!$S108:$EN108,Index!$D$2),0,-1) -> 105 | C442: =OFFSET(INDEX(Number!$S108:$EN108,Index!$D$2),0,-12) -> 105 | D442: 3.9 | E442: =IF($M$442>0,$M$442,"") ->  | F442: =IF($M$442<0,$M$442,"") -> -0.04761904762 | I442: Eastry Rural | J442: =INDEX(Number!$S$108:$EN$108,Index!$D$2) -> 100 | K442: =INDEX(Rate!$S$108:$EN$108,Index!$D$2) -> 2.6 | L442: -5 | M442: -0.04761904762 | N442: -5 | O442: -0.04761904762
A443: Guston, Kingsdown & St Margaret's-at-Cliffe | B443: =OFFSET(INDEX(Number!$S109:$EN109,Index!$D$2),0,-1) -> 110 | C443: =OFFSET(INDEX(Number!$S109:$EN109,Index!$D$2),0,-12) -> 80 | D443: 3.9 | E443: =IF($M$443>0,$M$443,"") ->  | F443: =IF($M$443<0,$M$443,"") -> -0.04545454545 | I443: Guston, Kingsdown & St Margaret's-at-Cliffe | J443: =INDEX(Number!$S$109:$EN$109,Index!$D$2) -> 105 | K443: =INDEX(Rate!$S$109:$EN$109,Index!$D$2) -> 2.5 | L443: -5 | M443: -0.04545454545 | N443: 25 | O443: 0.3125
A444: Little Stour & Ashstone | B444: =OFFSET(INDEX(Number!$S110:$EN110,Index!$D$2),0,-1) -> 110 | C444: =OFFSET(INDEX(Number!$S110:$EN110,Index!$D$2),0,-12) -> 95 | D444: 3.9 | E444: =IF($M$444>0,$M$444,"") ->  | F444: =IF($M$444<0,$M$444,"") ->  | I444: Little Stour & Ashstone | J444: =INDEX(Number!$S$110:$EN$110,Index!$D$2) -> 110 | K444: =INDEX(Rate!$S$110:$EN$110,Index!$D$2) -> 2.6 | L444: 0 | M444: 0 | N444: 15 | O444: 0.1578947368
A445: Maxton & Elms Vale | B445: =OFFSET(INDEX(Number!$S111:$EN111,Index!$D$2),0,-1) -> 60 | C445: =OFFSET(INDEX(Number!$S111:$EN111,Index!$D$2),0,-12) -> 80 | D445: 3.9 | E445: =IF($M$445>0,$M$445,"") -> 0.08333333333 | F445: =IF($M$445<0,$M$445,"") ->  | I445: Maxton & Elms Vale | J445: =INDEX(Number!$S$111:$EN$111,Index!$D$2) -> 65 | K445: =INDEX(Rate!$S$111:$EN$111,Index!$D$2) -> 2.5 | L445: 5 | M445: 0.08333333333 | N445: -15 | O445: -0.1875
A446: Middle Deal | B446: =OFFSET(INDEX(Number!$S112:$EN112,Index!$D$2),0,-1) -> 140 | C446: =OFFSET(INDEX(Number!$S112:$EN112,Index!$D$2),0,-12) -> 135 | D446: 3.9 | E446: =IF($M$446>0,$M$446,"") -> 0.03571428571 | F446: =IF($M$446<0,$M$446,"") ->  | I446: Middle Deal | J446: =INDEX(Number!$S$112:$EN$112,Index!$D$2) -> 145 | K446: =INDEX(Rate!$S$112:$EN$112,Index!$D$2) -> 3.6 | L446: 5 | M446: 0.03571428571 | N446: 10 | O446: 0.07407407407
A447: Mill Hill | B447: =OFFSET(INDEX(Number!$S113:$EN113,Index!$D$2),0,-1) -> 140 | C447: =OFFSET(INDEX(Number!$S113:$EN113,Index!$D$2),0,-12) -> 155 | D447: 3.9 | E447: =IF($M$447>0,$M$447,"") -> 0.07142857143 | F447: =IF($M$447<0,$M$447,"") ->  | I447: Mill Hill | J447: =INDEX(Number!$S$113:$EN$113,Index!$D$2) -> 150 | K447: =INDEX(Rate!$S$113:$EN$113,Index!$D$2) -> 3.2 | L447: 10 | M447: 0.07142857143 | N447: -5 | O447: -0.03225806452
A448: North Deal | B448: =OFFSET(INDEX(Number!$S114:$EN114,Index!$D$2),0,-1) -> 135 | C448: =OFFSET(INDEX(Number!$S114:$EN114,Index!$D$2),0,-12) -> 120 | D448: 3.9 | E448: =IF($M$448>0,$M$448,"") ->  | F448: =IF($M$448<0,$M$448,"") -> -0.1111111111 | I448: North Deal | J448: =INDEX(Number!$S$114:$EN$114,Index!$D$2) -> 120 | K448: =INDEX(Rate!$S$114:$EN$114,Index!$D$2) -> 2.6 | L448: -15 | M448: -0.1111111111 | N448: 0 | O448: 0
A449: Sandwich | B449: =OFFSET(INDEX(Number!$S115:$EN115,Index!$D$2),0,-1) -> 110 | C449: =OFFSET(INDEX(Number!$S115:$EN115,Index!$D$2),0,-12) -> 120 | D449: 3.9 | E449: =IF($M$449>0,$M$449,"") -> 0.09090909091 | F449: =IF($M$449<0,$M$449,"") ->  | I449: Sandwich | J449: =INDEX(Number!$S$115:$EN$115,Index!$D$2) -> 120 | K449: =INDEX(Rate!$S$115:$EN$115,Index!$D$2) -> 3.3 | L449: 10 | M449: 0.09090909091 | N449: 0 | O449: 0
A450: St Radigunds | B450: =OFFSET(INDEX(Number!$S116:$EN116,Index!$D$2),0,-1) -> 295 | C450: =OFFSET(INDEX(Number!$S116:$EN116,Index!$D$2),0,-12) -> 290 | D450: 3.9 | E450: =IF($M$450>0,$M$450,"") -> 0.01694915254 | F450: =IF($M$450<0,$M$450,"") ->  | I450: St Radigunds | J450: =INDEX(Number!$S$116:$EN$116,Index!$D$2) -> 300 | K450: =INDEX(Rate!$S$116:$EN$116,Index!$D$2) -> 6.3 | L450: 5 | M450: 0.01694915254 | N450: 10 | O450: 0.03448275862
A451: Tower Hamlets | B451: =OFFSET(INDEX(Number!$S117:$EN117,Index!$D$2),0,-1) -> 250 | C451: =OFFSET(INDEX(Number!$S117:$EN117,Index!$D$2),0,-12) -> 230 | D451: 3.9 | E451: =IF($M$451>0,$M$451,"") ->  | F451: =IF($M$451<0,$M$451,"") ->  | I451: Tower Hamlets | J451: =INDEX(Number!$S$117:$EN$117,Index!$D$2) -> 250 | K451: =INDEX(Rate!$S$117:$EN$117,Index!$D$2) -> 7.9 | L451: 0 | M451: 0 | N451: 20 | O451: 0.08695652174
A452: Town & Castle | B452: =OFFSET(INDEX(Number!$S118:$EN118,Index!$D$2),0,-1) -> 490 | C452: =OFFSET(INDEX(Number!$S118:$EN118,Index!$D$2),0,-12) -> 475 | D452: 3.9 | E452: =IF($M$452>0,$M$452,"") ->  | F452: =IF($M$452<0,$M$452,"") ->  | I452: Town & Castle | J452: =INDEX(Number!$S$118:$EN$118,Index!$D$2) -> 490 | K452: =INDEX(Rate!$S$118:$EN$118,Index!$D$2) -> 8.4 | L452: 0 | M452: 0 | N452: 15 | O452: 0.03157894737
A453: Walmer | B453: =OFFSET(INDEX(Number!$S119:$EN119,Index!$D$2),0,-1) -> 75 | C453: =OFFSET(INDEX(Number!$S119:$EN119,Index!$D$2),0,-12) -> 100 | D453: 3.9 | E453: =IF($M$453>0,$M$453,"") -> 0.06666666667 | F453: =IF($M$453<0,$M$453,"") ->  | I453: Walmer | J453: =INDEX(Number!$S$119:$EN$119,Index!$D$2) -> 80 | K453: =INDEX(Rate!$S$119:$EN$119,Index!$D$2) -> 2.3 | L453: 5 | M453: 0.06666666667 | N453: -20 | O453: -0.2
A454: Whitfield | B454: =OFFSET(INDEX(Number!$S120:$EN120,Index!$D$2),0,-1) -> 95 | C454: =OFFSET(INDEX(Number!$S120:$EN120,Index!$D$2),0,-12) -> 90 | D454: 3.9 | E454: =IF($M$454>0,$M$454,"") ->  | F454: =IF($M$454<0,$M$454,"") ->  | I454: Whitfield | J454: =INDEX(Number!$S$120:$EN$120,Index!$D$2) -> 95 | K454: =INDEX(Rate!$S$120:$EN$120,Index!$D$2) -> 2.7 | L454: 0 | M454: 0 | N454: 5 | O454: 0.05555555556
B530: month | C530: year | I530: Area | J530: Number unemployed | K530: Percentage unemployed (%) | L530: Number change since previous month | M530: % change since previous month | N530: Number change since previous year | O530: % change since previous year
B531: =OFFSET(INDEX(Number!$S299:$EN299,Index!$D$2),0,-1) -> 2605 | C531: =OFFSET(INDEX(Number!$S299:$EN299,Index!$D$2),0,-12) -> 2440 | D531: Chart Data | I531: Folkestone & Hythe District | J531: =INDEX(Number!$S$299:$EN$299,Index!$D$2) -> 2580 | K531: =INDEX(Rate!$S$299:$EN$299,Index!$D$2) -> 4 | L531: =IF(ISERROR((SUM(J531-B531))),"-",(SUM(J531-B531))) -> -25 | M531: =IF(ISERROR((SUM(L531/B531))),"-",(SUM(L531/B531))) -> -0.009596928983 | N531: =IF(ISERROR((SUM(J531-C531))),"-",(SUM(J531-C531))) -> 140 | O531: =IF(ISERROR((SUM(N531/C531))),"-",(SUM(N531/C531))) -> 0.05737704918
A532: =I532 -> Broadmead | B532: =OFFSET(INDEX(Number!$S191:$EN191,Index!$D$2),0,-1) -> 75 | C532: =OFFSET(INDEX(Number!$S191:$EN191,Index!$D$2),0,-12) -> 55 | D532: =$K$531 -> 4 | E532: =IF($M$532>0,$M$532,"") ->  | F532: =IF($M$532<0,$M$532,"") -> -0.1333333333 | I532: Broadmead | J532: =INDEX(Number!$S$191:$EN$191,Index!$D$2) -> 65 | K532: =INDEX(Rate!$S$191:$EN$191,Index!$D$2) -> 3 | L532: -10 | M532: -0.1333333333 | N532: 10 | O532: 0.1818181818
A533: Cheriton | B533: =OFFSET(INDEX(Number!$S192:$EN192,Index!$D$2),0,-1) -> 275 | C533: =OFFSET(INDEX(Number!$S192:$EN192,Index!$D$2),0,-12) -> 280 | D533: 4 | E533: =IF($M$533>0,$M$533,"") -> 0.01818181818 | F533: =IF($M$533<0,$M$533,"") ->  | I533: Cheriton | J533: =INDEX(Number!$S$192:$EN$192,Index!$D$2) -> 280 | K533: =INDEX(Rate!$S$192:$EN$192,Index!$D$2) -> 3.3 | L533: 5 | M533: 0.01818181818 | N533: 0 | O533: 0
A534: East Folkestone | B534: =OFFSET(INDEX(Number!$S193:$EN193,Index!$D$2),0,-1) -> 410 | C534: =OFFSET(INDEX(Number!$S193:$EN193,Index!$D$2),0,-12) -> 410 | D534: 4 | E534: =IF($M$534>0,$M$534,"") ->  | F534: =IF($M$534<0,$M$534,"") -> -0.03658536585 | I534: East Folkestone | J534: =INDEX(Number!$S$193:$EN$193,Index!$D$2) -> 395 | K534: =INDEX(Rate!$S$193:$EN$193,Index!$D$2) -> 5.4 | L534: -15 | M534: -0.03658536585 | N534: -15 | O534: -0.03658536585
A535: Folkestone Central | B535: =OFFSET(INDEX(Number!$S194:$EN194,Index!$D$2),0,-1) -> 545 | C535: =OFFSET(INDEX(Number!$S194:$EN194,Index!$D$2),0,-12) -> 525 | D535: 4 | E535: =IF($M$535>0,$M$535,"") ->  | F535: =IF($M$535<0,$M$535,"") ->  | I535: Folkestone Central | J535: =INDEX(Number!$S$194:$EN$194,Index!$D$2) -> 545 | K535: =INDEX(Rate!$S$194:$EN$194,Index!$D$2) -> 6.9 | L535: 0 | M535: 0 | N535: 20 | O535: 0.0380952381
A536: Folkestone Harbour | B536: =OFFSET(INDEX(Number!$S195:$EN195,Index!$D$2),0,-1) -> 305 | C536: =OFFSET(INDEX(Number!$S195:$EN195,Index!$D$2),0,-12) -> 290 | D536: 4 | E536: =IF($M$536>0,$M$536,"") ->  | F536: =IF($M$536<0,$M$536,"") ->  | I536: Folkestone Harbour | J536: =INDEX(Number!$S$195:$EN$195,Index!$D$2) -> 305 | K536: =INDEX(Rate!$S$195:$EN$195,Index!$D$2) -> 7.3 | L536: 0 | M536: 0 | N536: 15 | O536: 0.05172413793
A537: Hythe | B537: =OFFSET(INDEX(Number!$S196:$EN196,Index!$D$2),0,-1) -> 170 | C537: =OFFSET(INDEX(Number!$S196:$EN196,Index!$D$2),0,-12) -> 135 | D537: 4 | E537: =IF($M$537>0,$M$537,"") -> 0.02941176471 | F537: =IF($M$537<0,$M$537,"") ->  | I537: Hythe | J537: =INDEX(Number!$S$196:$EN$196,Index!$D$2) -> 175 | K537: =INDEX(Rate!$S$196:$EN$196,Index!$D$2) -> 3 | L537: 5 | M537: 0.02941176471 | N537: 40 | O537: 0.2962962963
A538: Hythe Rural | B538: =OFFSET(INDEX(Number!$S197:$EN197,Index!$D$2),0,-1) -> 60 | C538: =OFFSET(INDEX(Number!$S197:$EN197,Index!$D$2),0,-12) -> 50 | D538: 4 | E538: =IF($M$538>0,$M$538,"") ->  | F538: =IF($M$538<0,$M$538,"") ->  | I538: Hythe Rural | J538: =INDEX(Number!$S$197:$EN$197,Index!$D$2) -> 60 | K538: =INDEX(Rate!$S$197:$EN$197,Index!$D$2) -> 1.8 | L538: 0 | M538: 0 | N538: 10 | O538: 0.2
A539: New Romney | B539: =OFFSET(INDEX(Number!$S198:$EN198,Index!$D$2),0,-1) -> 130 | C539: =OFFSET(INDEX(Number!$S198:$EN198,Index!$D$2),0,-12) -> 115 | D539: 4 | E539: =IF($M$539>0,$M$539,"") -> 0.03846153846 | F539: =IF($M$539<0,$M$539,"") ->  | I539: New Romney | J539: =INDEX(Number!$S$198:$EN$198,Index!$D$2) -> 135 | K539: =INDEX(Rate!$S$198:$EN$198,Index!$D$2) -> 3.4 | L539: 5 | M539: 0.03846153846 | N539: 20 | O539: 0.1739130435
A540: North Downs East | B540: =OFFSET(INDEX(Number!$S199:$EN199,Index!$D$2),0,-1) -> 160 | C540: =OFFSET(INDEX(Number!$S199:$EN199,Index!$D$2),0,-12) -> 155 | D540: 4 | E540: =IF($M$540>0,$M$540,"") -> 0.03125 | F540: =IF($M$540<0,$M$540,"") ->  | I540: North Downs East | J540: =INDEX(Number!$S$199:$EN$199,Index!$D$2) -> 165 | K540: =INDEX(Rate!$S$199:$EN$199,Index!$D$2) -> 2.3 | L540: 5 | M540: 0.03125 | N540: 10 | O540: 0.06451612903
A541: North Downs West | B541: =OFFSET(INDEX(Number!$S200:$EN200,Index!$D$2),0,-1) -> 75 | C541: =OFFSET(INDEX(Number!$S200:$EN200,Index!$D$2),0,-12) -> 65 | D541: 4 | E541: =IF($M$541>0,$M$541,"") ->  | F541: =IF($M$541<0,$M$541,"") -> -0.1333333333 | I541: North Downs West | J541: =INDEX(Number!$S$200:$EN$200,Index!$D$2) -> 65 | K541: =INDEX(Rate!$S$200:$EN$200,Index!$D$2) -> 1.8 | L541: -10 | M541: -0.1333333333 | N541: 0 | O541: 0
A542: Romney Marsh | B542: =OFFSET(INDEX(Number!$S201:$EN201,Index!$D$2),0,-1) -> 130 | C542: =OFFSET(INDEX(Number!$S201:$EN201,Index!$D$2),0,-12) -> 100 | D542: 4 | E542: =IF($M$542>0,$M$542,"") ->  | F542: =IF($M$542<0,$M$542,"") -> -0.07692307692 | I542: Romney Marsh | J542: =INDEX(Number!$S$201:$EN$201,Index!$D$2) -> 120 | K542: =INDEX(Rate!$S$201:$EN$201,Index!$D$2) -> 3.2 | L542: -10 | M542: -0.07692307692 | N542: 20 | O542: 0.2
A543: Sandgate & West Folkestone | B543: =OFFSET(INDEX(Number!$S202:$EN202,Index!$D$2),0,-1) -> 120 | C543: =OFFSET(INDEX(Number!$S202:$EN202,Index!$D$2),0,-12) -> 105 | D543: 4 | E543: =IF($M$543>0,$M$543,"") ->  | F543: =IF($M$543<0,$M$543,"") -> -0.04166666667 | I543: Sandgate & West Folkestone | J543: =INDEX(Number!$S$202:$EN$202,Index!$D$2) -> 115 | K543: =INDEX(Rate!$S$202:$EN$202,Index!$D$2) -> 3.4 | L543: -5 | M543: -0.04166666667 | N543: 10 | O543: 0.09523809524
A544: Walland & Denge Marsh | B544: =OFFSET(INDEX(Number!$S203:$EN203,Index!$D$2),0,-1) -> 150 | C544: =OFFSET(INDEX(Number!$S203:$EN203,Index!$D$2),0,-12) -> 155 | D544: 4 | E544: =IF($M$544>0,$M$544,"") ->  | F544: =IF($M$544<0,$M$544,"") ->  | I544: Walland & Denge Marsh | J544: =INDEX(Number!$S$203:$EN$203,Index!$D$2) -> 150 | K544: =INDEX(Rate!$S$203:$EN$203,Index!$D$2) -> 3.2 | L544: 0 | M544: 0 | N544: -5 | O544: -0.03225806452
B616: month | C616: year | I616: Area | J616: Number unemployed | K616: Percentage unemployed (%) | L616: Number change since previous month | M616: % change since previous month | N616: Number change since previous year | O616: % change since previous year
B617: =OFFSET(INDEX(Number!$S300:$EN300,Index!$D$2),0,-1) -> 2980 | C617: =OFFSET(INDEX(Number!$S300:$EN300,Index!$D$2),0,-12) -> 2850 | D617: Chart Data | I617: Gravesham District | J617: =INDEX(Number!$S$300:$EN$300,Index!$D$2) -> 2985 | K617: =INDEX(Rate!$S$300:$EN$300,Index!$D$2) -> 4.5 | L617: =IF(ISERROR((SUM(J617-B617))),"-",(SUM(J617-B617))) -> 5 | M617: =IF(ISERROR((SUM(L617/B617))),"-",(SUM(L617/B617))) -> 0.001677852349 | N617: =IF(ISERROR((SUM(J617-C617))),"-",(SUM(J617-C617))) -> 135 | O617: =IF(ISERROR((SUM(N617/C617))),"-",(SUM(N617/C617))) -> 0.04736842105
A618: =I618 -> Central | B618: =OFFSET(INDEX(Number!$S121:$EN121,Index!$D$2),0,-1) -> 245 | C618: =OFFSET(INDEX(Number!$S121:$EN121,Index!$D$2),0,-12) -> 265 | D618: =$K$617 -> 4.5 | E618: =IF($M$618>0,$M$618,"") -> 0.02040816327 | F618: =IF($M$618<0,$M$618,"") ->  | I618: Central | J618: =INDEX(Number!$S$121:$EN$121,Index!$D$2) -> 250 | K618: =INDEX(Rate!$S$121:$EN$121,Index!$D$2) -> 5.2 | L618: 5 | M618: 0.02040816327 | N618: -15 | O618: -0.05660377358
A619: Chalk | B619: =OFFSET(INDEX(Number!$S122:$EN122,Index!$D$2),0,-1) -> 35 | C619: =OFFSET(INDEX(Number!$S122:$EN122,Index!$D$2),0,-12) -> 30 | D619: 4.5 | E619: =IF($M$619>0,$M$619,"") -> 0.1428571429 | F619: =IF($M$619<0,$M$619,"") ->  | I619: Chalk | J619: =INDEX(Number!$S$122:$EN$122,Index!$D$2) -> 40 | K619: =INDEX(Rate!$S$122:$EN$122,Index!$D$2) -> 3.1 | L619: 5 | M619: 0.1428571429 | N619: 10 | O619: 0.3333333333
A620: Coldharbour | B620: =OFFSET(INDEX(Number!$S123:$EN123,Index!$D$2),0,-1) -> 150 | C620: =OFFSET(INDEX(Number!$S123:$EN123,Index!$D$2),0,-12) -> 155 | D620: 4.5 | E620: =IF($M$620>0,$M$620,"") ->  | F620: =IF($M$620<0,$M$620,"") -> -0.1 | I620: Coldharbour | J620: =INDEX(Number!$S$123:$EN$123,Index!$D$2) -> 135 | K620: =INDEX(Rate!$S$123:$EN$123,Index!$D$2) -> 4.6 | L620: -15 | M620: -0.1 | N620: -20 | O620: -0.1290322581
A621: Higham | B621: =OFFSET(INDEX(Number!$S124:$EN124,Index!$D$2),0,-1) -> 55 | C621: =OFFSET(INDEX(Number!$S124:$EN124,Index!$D$2),0,-12) -> 45 | D621: 4.5 | E621: =IF($M$621>0,$M$621,"") ->  | F621: =IF($M$621<0,$M$621,"") -> -0.09090909091 | I621: Higham | J621: =INDEX(Number!$S$124:$EN$124,Index!$D$2) -> 50 | K621: =INDEX(Rate!$S$124:$EN$124,Index!$D$2) -> 2.3 | L621: -5 | M621: -0.09090909091 | N621: 5 | O621: 0.1111111111
A622: Istead Rise | B622: =OFFSET(INDEX(Number!$S125:$EN125,Index!$D$2),0,-1) -> 15 | C622: =OFFSET(INDEX(Number!$S125:$EN125,Index!$D$2),0,-12) -> 20 | D622: 4.5 | E622: =IF($M$622>0,$M$622,"") ->  | F622: =IF($M$622<0,$M$622,"") ->  | I622: Istead Rise | J622: =INDEX(Number!$S$125:$EN$125,Index!$D$2) -> 15 | K622: =INDEX(Rate!$S$125:$EN$125,Index!$D$2) -> 1 | L622: 0 | M622: 0 | N622: -5 | O622: -0.25
A623: Meopham North | B623: =OFFSET(INDEX(Number!$S126:$EN126,Index!$D$2),0,-1) -> 45 | C623: =OFFSET(INDEX(Number!$S126:$EN126,Index!$D$2),0,-12) -> 25 | D623: 4.5 | E623: =IF($M$623>0,$M$623,"") ->  | F623: =IF($M$623<0,$M$623,"") -> -0.1111111111 | I623: Meopham North | J623: =INDEX(Number!$S$126:$EN$126,Index!$D$2) -> 40 | K623: =INDEX(Rate!$S$126:$EN$126,Index!$D$2) -> 1.7 | L623: -5 | M623: -0.1111111111 | N623: 15 | O623: 0.6
A624: Meopham South and Vigo | B624: =OFFSET(INDEX(Number!$S127:$EN127,Index!$D$2),0,-1) -> 45 | C624: =OFFSET(INDEX(Number!$S127:$EN127,Index!$D$2),0,-12) -> 45 | D624: 4.5 | E624: =IF($M$624>0,$M$624,"") ->  | F624: =IF($M$624<0,$M$624,"") ->  | I624: Meopham South and Vigo | J624: =INDEX(Number!$S$127:$EN$127,Index!$D$2) -> 45 | K624: =INDEX(Rate!$S$127:$EN$127,Index!$D$2) -> 1.7 | L624: 0 | M624: 0 | N624: 0 | O624: 0
A625: Northfleet North | B625: =OFFSET(INDEX(Number!$S128:$EN128,Index!$D$2),0,-1) -> 350 | C625: =OFFSET(INDEX(Number!$S128:$EN128,Index!$D$2),0,-12) -> 335 | D625: 4.5 | E625: =IF($M$625>0,$M$625,"") -> 0.05714285714 | F625: =IF($M$625<0,$M$625,"") ->  | I625: Northfleet North | J625: =INDEX(Number!$S$128:$EN$128,Index!$D$2) -> 370 | K625: =INDEX(Rate!$S$128:$EN$128,Index!$D$2) -> 6.7 | L625: 20 | M625: 0.05714285714 | N625: 35 | O625: 0.1044776119
A626: Northfleet South | B626: =OFFSET(INDEX(Number!$S129:$EN129,Index!$D$2),0,-1) -> 260 | C626: =OFFSET(INDEX(Number!$S129:$EN129,Index!$D$2),0,-12) -> 250 | D626: 4.5 | E626: =IF($M$626>0,$M$626,"") ->  | F626: =IF($M$626<0,$M$626,"") -> -0.01923076923 | I626: Northfleet South | J626: =INDEX(Number!$S$129:$EN$129,Index!$D$2) -> 255 | K626: =INDEX(Rate!$S$129:$EN$129,Index!$D$2) -> 4.5 | L626: -5 | M626: -0.01923076923 | N626: 5 | O626: 0.02
A627: Painters Ash | B627: =OFFSET(INDEX(Number!$S130:$EN130,Index!$D$2),0,-1) -> 105 | C627: =OFFSET(INDEX(Number!$S130:$EN130,Index!$D$2),0,-12) -> 75 | D627: 4.5 | E627: =IF($M$627>0,$M$627,"") -> 0.04761904762 | F627: =IF($M$627<0,$M$627,"") ->  | I627: Painters Ash | J627: =INDEX(Number!$S$130:$EN$130,Index!$D$2) -> 110 | K627: =INDEX(Rate!$S$130:$EN$130,Index!$D$2) -> 3.6 | L627: 5 | M627: 0.04761904762 | N627: 35 | O627: 0.4666666667
A628: Pelham | B628: =OFFSET(INDEX(Number!$S131:$EN131,Index!$D$2),0,-1) -> 350 | C628: =OFFSET(INDEX(Number!$S131:$EN131,Index!$D$2),0,-12) -> 365 | D628: 4.5 | E628: =IF($M$628>0,$M$628,"") -> 0.01428571429 | F628: =IF($M$628<0,$M$628,"") ->  | I628: Pelham | J628: =INDEX(Number!$S$131:$EN$131,Index!$D$2) -> 355 | K628: =INDEX(Rate!$S$131:$EN$131,Index!$D$2) -> 6.6 | L628: 5 | M628: 0.01428571429 | N628: -10 | O628: -0.02739726027
A629: Riverside | B629: =OFFSET(INDEX(Number!$S132:$EN132,Index!$D$2),0,-1) -> 430 | C629: =OFFSET(INDEX(Number!$S132:$EN132,Index!$D$2),0,-12) -> 435 | D629: 4.5 | E629: =IF($M$629>0,$M$629,"") -> 0.01162790698 | F629: =IF($M$629<0,$M$629,"") ->  | I629: Riverside | J629: =INDEX(Number!$S$132:$EN$132,Index!$D$2) -> 435 | K629: =INDEX(Rate!$S$132:$EN$132,Index!$D$2) -> 6.5 | L629: 5 | M629: 0.01162790698 | N629: 0 | O629: 0
A630: Riverview | B630: =OFFSET(INDEX(Number!$S133:$EN133,Index!$D$2),0,-1) -> 50 | C630: =OFFSET(INDEX(Number!$S133:$EN133,Index!$D$2),0,-12) -> 45 | D630: 4.5 | E630: =IF($M$630>0,$M$630,"") -> 0.1 | F630: =IF($M$630<0,$M$630,"") ->  | I630: Riverview | J630: =INDEX(Number!$S$133:$EN$133,Index!$D$2) -> 55 | K630: =INDEX(Rate!$S$133:$EN$133,Index!$D$2) -> 2.2 | L630: 5 | M630: 0.1 | N630: 10 | O630: 0.2222222222
A631: Shorne, Cobham and Luddesdown | B631: =OFFSET(INDEX(Number!$S134:$EN134,Index!$D$2),0,-1) -> 45 | C631: =OFFSET(INDEX(Number!$S134:$EN134,Index!$D$2),0,-12) -> 30 | D631: 4.5 | E631: =IF($M$631>0,$M$631,"") ->  | F631: =IF($M$631<0,$M$631,"") ->  | I631: Shorne, Cobham and Luddesdown | J631: =INDEX(Number!$S$134:$EN$134,Index!$D$2) -> 45 | K631: =INDEX(Rate!$S$134:$EN$134,Index!$D$2) -> 2 | L631: 0 | M631: 0 | N631: 15 | O631: 0.5
A632: Singlewell | B632: =OFFSET(INDEX(Number!$S135:$EN135,Index!$D$2),0,-1) -> 270 | C632: =OFFSET(INDEX(Number!$S135:$EN135,Index!$D$2),0,-12) -> 270 | D632: 4.5 | E632: =IF($M$632>0,$M$632,"") ->  | F632: =IF($M$632<0,$M$632,"") -> -0.03703703704 | I632: Singlewell | J632: =INDEX(Number!$S$135:$EN$135,Index!$D$2) -> 260 | K632: =INDEX(Rate!$S$135:$EN$135,Index!$D$2) -> 5.2 | L632: -10 | M632: -0.03703703704 | N632: -10 | O632: -0.03703703704
A633: Westcourt | B633: =OFFSET(INDEX(Number!$S136:$EN136,Index!$D$2),0,-1) -> 260 | C633: =OFFSET(INDEX(Number!$S136:$EN136,Index!$D$2),0,-12) -> 240 | D633: 4.5 | E633: =IF($M$633>0,$M$633,"") ->  | F633: =IF($M$633<0,$M$633,"") -> -0.03846153846 | I633: Westcourt | J633: =INDEX(Number!$S$136:$EN$136,Index!$D$2) -> 250 | K633: =INDEX(Rate!$S$136:$EN$136,Index!$D$2) -> 6 | L633: -10 | M633: -0.03846153846 | N633: 10 | O633: 0.04166666667
A634: Whitehill | B634: =OFFSET(INDEX(Number!$S137:$EN137,Index!$D$2),0,-1) -> 110 | C634: =OFFSET(INDEX(Number!$S137:$EN137,Index!$D$2),0,-12) -> 90 | D634: 4.5 | E634: =IF($M$634>0,$M$634,"") ->  | F634: =IF($M$634<0,$M$634,"") -> -0.04545454545 | I634: Whitehill | J634: =INDEX(Number!$S$137:$EN$137,Index!$D$2) -> 105 | K634: =INDEX(Rate!$S$137:$EN$137,Index!$D$2) -> 3.8 | L634: -5 | M634: -0.04545454545 | N634: 15 | O634: 0.1666666667
A635: Woodlands | B635: =OFFSET(INDEX(Number!$S138:$EN138,Index!$D$2),0,-1) -> 160 | C635: =OFFSET(INDEX(Number!$S138:$EN138,Index!$D$2),0,-12) -> 130 | D635: 4.5 | E635: =IF($M$635>0,$M$635,"") -> 0.0625 | F635: =IF($M$635<0,$M$635,"") ->  | I635: Woodlands | J635: =INDEX(Number!$S$138:$EN$138,Index!$D$2) -> 170 | K635: =INDEX(Rate!$S$138:$EN$138,Index!$D$2) -> 3.9 | L635: 10 | M635: 0.0625 | N635: 40 | O635: 0.3076923077
B714: month | C714: year | I714: Area | J714: Number unemployed | K714: Percentage unemployed (%) | L714: Number change since previous month | M714: % change since previous month | N714: Number change since previous year | O714: % change since previous year
B715: =OFFSET(INDEX(Number!$S301:$EN301,Index!$D$2),0,-1) -> 3475 | C715: =OFFSET(INDEX(Number!$S301:$EN301,Index!$D$2),0,-12) -> 3090 | D715: Chart Data | I715: Maidstone District | J715: =INDEX(Number!$S$301:$EN$301,Index!$D$2) -> 3510 | K715: =INDEX(Rate!$S$301:$EN$301,Index!$D$2) -> 3.2 | L715: =IF(ISERROR((SUM(J715-B715))),"-",(SUM(J715-B715))) -> 35 | M715: =IF(ISERROR((SUM(L715/B715))),"-",(SUM(L715/B715))) -> 0.01007194245 | N715: =IF(ISERROR((SUM(J715-C715))),"-",(SUM(J715-C715))) -> 420 | O715: =IF(ISERROR((SUM(N715/C715))),"-",(SUM(N715/C715))) -> 0.1359223301
A716: =I716 -> Allington | B716: =OFFSET(INDEX(Number!$S139:$EN139,Index!$D$2),0,-1) -> 70 | C716: =OFFSET(INDEX(Number!$S139:$EN139,Index!$D$2),0,-12) -> 60 | D716: =$K$715 -> 3.2 | E716: =IF($M$716>0,$M$716,"") ->  | F716: =IF($M$716<0,$M$716,"") -> -0.1428571429 | I716: Allington | J716: =INDEX(Number!$S$139:$EN$139,Index!$D$2) -> 60 | K716: =INDEX(Rate!$S$139:$EN$139,Index!$D$2) -> 1.5 | L716: -10 | M716: -0.1428571429 | N716: 0 | O716: 0
A717: Barming and Teston | B717: =OFFSET(INDEX(Number!$S140:$EN140,Index!$D$2),0,-1) -> 30 | C717: =OFFSET(INDEX(Number!$S140:$EN140,Index!$D$2),0,-12) -> 15 | D717: 3.2 | E717: =IF($M$717>0,$M$717,"") ->  | F717: =IF($M$717<0,$M$717,"") ->  | I717: Barming and Teston | J717: =INDEX(Number!$S$140:$EN$140,Index!$D$2) -> 30 | K717: =INDEX(Rate!$S$140:$EN$140,Index!$D$2) -> 2.5 | L717: 0 | M717: 0 | N717: 15 | O717: 1
A718: Bearsted | B718: =OFFSET(INDEX(Number!$S141:$EN141,Index!$D$2),0,-1) -> 55 | C718: =OFFSET(INDEX(Number!$S141:$EN141,Index!$D$2),0,-12) -> 45 | D718: 3.2 | E718: =IF($M$718>0,$M$718,"") -> 0.09090909091 | F718: =IF($M$718<0,$M$718,"") ->  | I718: Bearsted | J718: =INDEX(Number!$S$141:$EN$141,Index!$D$2) -> 60 | K718: =INDEX(Rate!$S$141:$EN$141,Index!$D$2) -> 1.4 | L718: 5 | M718: 0.09090909091 | N718: 15 | O718: 0.3333333333
A719: Boughton Monchelsea and Chart Sutton | B719: =OFFSET(INDEX(Number!$S142:$EN142,Index!$D$2),0,-1) -> 35 | C719: =OFFSET(INDEX(Number!$S142:$EN142,Index!$D$2),0,-12) -> 30 | D719: 3.2 | E719: =IF($M$719>0,$M$719,"") ->  | F719: =IF($M$719<0,$M$719,"") -> -0.1428571429 | I719: Boughton Monchelsea and Chart Sutton | J719: =INDEX(Number!$S$142:$EN$142,Index!$D$2) -> 30 | K719: =INDEX(Rate!$S$142:$EN$142,Index!$D$2) -> 1.8 | L719: -5 | M719: -0.1428571429 | N719: 0 | O719: 0
A720: Boxley | B720: =OFFSET(INDEX(Number!$S143:$EN143,Index!$D$2),0,-1) -> 65 | C720: =OFFSET(INDEX(Number!$S143:$EN143,Index!$D$2),0,-12) -> 55 | D720: 3.2 | E720: =IF($M$720>0,$M$720,"") -> 0.1538461538 | F720: =IF($M$720<0,$M$720,"") ->  | I720: Boxley | J720: =INDEX(Number!$S$143:$EN$143,Index!$D$2) -> 75 | K720: =INDEX(Rate!$S$143:$EN$143,Index!$D$2) -> 1.4 | L720: 10 | M720: 0.1538461538 | N720: 20 | O720: 0.3636363636
A721: Bridge | B721: =OFFSET(INDEX(Number!$S144:$EN144,Index!$D$2),0,-1) -> 140 | C721: =OFFSET(INDEX(Number!$S144:$EN144,Index!$D$2),0,-12) -> 155 | D721: 3.2 | E721: =IF($M$721>0,$M$721,"") -> 0.07142857143 | F721: =IF($M$721<0,$M$721,"") ->  | I721: Bridge | J721: =INDEX(Number!$S$144:$EN$144,Index!$D$2) -> 150 | K721: =INDEX(Rate!$S$144:$EN$144,Index!$D$2) -> 3.5 | L721: 10 | M721: 0.07142857143 | N721: -5 | O721: -0.03225806452
A722: Coxheath and Hunton | B722: =OFFSET(INDEX(Number!$S145:$EN145,Index!$D$2),0,-1) -> 130 | C722: =OFFSET(INDEX(Number!$S145:$EN145,Index!$D$2),0,-12) -> 110 | D722: 3.2 | E722: =IF($M$722>0,$M$722,"") ->  | F722: =IF($M$722<0,$M$722,"") -> -0.03846153846 | I722: Coxheath and Hunton | J722: =INDEX(Number!$S$145:$EN$145,Index!$D$2) -> 125 | K722: =INDEX(Rate!$S$145:$EN$145,Index!$D$2) -> 2.7 | L722: -5 | M722: -0.03846153846 | N722: 15 | O722: 0.1363636364
A723: Detling and Thurnham | B723: =OFFSET(INDEX(Number!$S146:$EN146,Index!$D$2),0,-1) -> 35 | C723: =OFFSET(INDEX(Number!$S146:$EN146,Index!$D$2),0,-12) -> 20 | D723: 3.2 | E723: =IF($M$723>0,$M$723,"") -> 0.1428571429 | F723: =IF($M$723<0,$M$723,"") ->  | I723: Detling and Thurnham | J723: =INDEX(Number!$S$146:$EN$146,Index!$D$2) -> 40 | K723: =INDEX(Rate!$S$146:$EN$146,Index!$D$2) -> 2.2 | L723: 5 | M723: 0.1428571429 | N723: 20 | O723: 1
A724: Downswood and Otham | B724: =OFFSET(INDEX(Number!$S147:$EN147,Index!$D$2),0,-1) -> 55 | C724: =OFFSET(INDEX(Number!$S147:$EN147,Index!$D$2),0,-12) -> 45 | D724: 3.2 | E724: =IF($M$724>0,$M$724,"") -> 0.09090909091 | F724: =IF($M$724<0,$M$724,"") ->  | I724: Downswood and Otham | J724: =INDEX(Number!$S$147:$EN$147,Index!$D$2) -> 60 | K724: =INDEX(Rate!$S$147:$EN$147,Index!$D$2) -> 3 | L724: 5 | M724: 0.09090909091 | N724: 15 | O724: 0.3333333333
A725: East | B725: =OFFSET(INDEX(Number!$S148:$EN148,Index!$D$2),0,-1) -> 175 | C725: =OFFSET(INDEX(Number!$S148:$EN148,Index!$D$2),0,-12) -> 175 | D725: 3.2 | E725: =IF($M$725>0,$M$725,"") -> 0.05714285714 | F725: =IF($M$725<0,$M$725,"") ->  | I725: East | J725: =INDEX(Number!$S$148:$EN$148,Index!$D$2) -> 185 | K725: =INDEX(Rate!$S$148:$EN$148,Index!$D$2) -> 3.4 | L725: 10 | M725: 0.05714285714 | N725: 10 | O725: 0.05714285714
A726: Fant | B726: =OFFSET(INDEX(Number!$S149:$EN149,Index!$D$2),0,-1) -> 285 | C726: =OFFSET(INDEX(Number!$S149:$EN149,Index!$D$2),0,-12) -> 245 | D726: 3.2 | E726: =IF($M$726>0,$M$726,"") ->  | F726: =IF($M$726<0,$M$726,"") ->  | I726: Fant | J726: =INDEX(Number!$S$149:$EN$149,Index!$D$2) -> 285 | K726: =INDEX(Rate!$S$149:$EN$149,Index!$D$2) -> 3.9 | L726: 0 | M726: 0 | N726: 40 | O726: 0.1632653061
A727: Harrietsham and Lenham | B727: =OFFSET(INDEX(Number!$S150:$EN150,Index!$D$2),0,-1) -> 105 | C727: =OFFSET(INDEX(Number!$S150:$EN150,Index!$D$2),0,-12) -> 95 | D727: 3.2 | E727: =IF($M$727>0,$M$727,"") -> 0.09523809524 | F727: =IF($M$727<0,$M$727,"") ->  | I727: Harrietsham and Lenham | J727: =INDEX(Number!$S$150:$EN$150,Index!$D$2) -> 115 | K727: =INDEX(Rate!$S$150:$EN$150,Index!$D$2) -> 3.1 | L727: 10 | M727: 0.09523809524 | N727: 20 | O727: 0.2105263158
A728: Headcorn | B728: =OFFSET(INDEX(Number!$S151:$EN151,Index!$D$2),0,-1) -> 90 | C728: =OFFSET(INDEX(Number!$S151:$EN151,Index!$D$2),0,-12) -> 85 | D728: 3.2 | E728: =IF($M$728>0,$M$728,"") ->  | F728: =IF($M$728<0,$M$728,"") ->  | I728: Headcorn | J728: =INDEX(Number!$S$151:$EN$151,Index!$D$2) -> 90 | K728: =INDEX(Rate!$S$151:$EN$151,Index!$D$2) -> 2.6 | L728: 0 | M728: 0 | N728: 5 | O728: 0.05882352941
A729: Heath | B729: =OFFSET(INDEX(Number!$S152:$EN152,Index!$D$2),0,-1) -> 100 | C729: =OFFSET(INDEX(Number!$S152:$EN152,Index!$D$2),0,-12) -> 90 | D729: 3.2 | E729: =IF($M$729>0,$M$729,"") -> 0.05 | F729: =IF($M$729<0,$M$729,"") ->  | I729: Heath | J729: =INDEX(Number!$S$152:$EN$152,Index!$D$2) -> 105 | K729: =INDEX(Rate!$S$152:$EN$152,Index!$D$2) -> 2.3 | L729: 5 | M729: 0.05 | N729: 15 | O729: 0.1666666667
A730: High Street | B730: =OFFSET(INDEX(Number!$S153:$EN153,Index!$D$2),0,-1) -> 605 | C730: =OFFSET(INDEX(Number!$S153:$EN153,Index!$D$2),0,-12) -> 560 | D730: 3.2 | E730: =IF($M$730>0,$M$730,"") ->  | F730: =IF($M$730<0,$M$730,"") -> -0.02479338843 | I730: High Street | J730: =INDEX(Number!$S$153:$EN$153,Index!$D$2) -> 590 | K730: =INDEX(Rate!$S$153:$EN$153,Index!$D$2) -> 7.3 | L730: -15 | M730: -0.02479338843 | N730: 30 | O730: 0.05357142857
A731: Leeds | B731: =OFFSET(INDEX(Number!$S154:$EN154,Index!$D$2),0,-1) -> 30 | C731: =OFFSET(INDEX(Number!$S154:$EN154,Index!$D$2),0,-12) -> 30 | D731: 3.2 | E731: =IF($M$731>0,$M$731,"") -> 0.1666666667 | F731: =IF($M$731<0,$M$731,"") ->  | I731: Leeds | J731: =INDEX(Number!$S$154:$EN$154,Index!$D$2) -> 35 | K731: =INDEX(Rate!$S$154:$EN$154,Index!$D$2) -> 2.4 | L731: 5 | M731: 0.1666666667 | N731: 5 | O731: 0.1666666667
A732: Loose | B732: =OFFSET(INDEX(Number!$S155:$EN155,Index!$D$2),0,-1) -> 40 | C732: =OFFSET(INDEX(Number!$S155:$EN155,Index!$D$2),0,-12) -> 25 | D732: 3.2 | E732: =IF($M$732>0,$M$732,"") ->  | F732: =IF($M$732<0,$M$732,"") ->  | I732: Loose | J732: =INDEX(Number!$S$155:$EN$155,Index!$D$2) -> 40 | K732: =INDEX(Rate!$S$155:$EN$155,Index!$D$2) -> 2.8 | L732: 0 | M732: 0 | N732: 15 | O732: 0.6
A733: Marden and Yalding | B733: =OFFSET(INDEX(Number!$S156:$EN156,Index!$D$2),0,-1) -> 150 | C733: =OFFSET(INDEX(Number!$S156:$EN156,Index!$D$2),0,-12) -> 165 | D733: 3.2 | E733: =IF($M$733>0,$M$733,"") -> 0.06666666667 | F733: =IF($M$733<0,$M$733,"") ->  | I733: Marden and Yalding | J733: =INDEX(Number!$S$156:$EN$156,Index!$D$2) -> 160 | K733: =INDEX(Rate!$S$156:$EN$156,Index!$D$2) -> 3 | L733: 10 | M733: 0.06666666667 | N733: -5 | O733: -0.0303030303
A734: North | B734: =OFFSET(INDEX(Number!$S157:$EN157,Index!$D$2),0,-1) -> 215 | C734: =OFFSET(INDEX(Number!$S157:$EN157,Index!$D$2),0,-12) -> 170 | D734: 3.2 | E734: =IF($M$734>0,$M$734,"") -> 0.09302325581 | F734: =IF($M$734<0,$M$734,"") ->  | I734: North | J734: =INDEX(Number!$S$157:$EN$157,Index!$D$2) -> 235 | K734: =INDEX(Rate!$S$157:$EN$157,Index!$D$2) -> 3.5 | L734: 20 | M734: 0.09302325581 | N734: 65 | O734: 0.3823529412
A735: North Downs | B735: =OFFSET(INDEX(Number!$S158:$EN158,Index!$D$2),0,-1) -> 25 | C735: =OFFSET(INDEX(Number!$S158:$EN158,Index!$D$2),0,-12) -> 30 | D735: 3.2 | E735: =IF($M$735>0,$M$735,"") -> 0.2 | F735: =IF($M$735<0,$M$735,"") ->  | I735: North Downs | J735: =INDEX(Number!$S$158:$EN$158,Index!$D$2) -> 30 | K735: =INDEX(Rate!$S$158:$EN$158,Index!$D$2) -> 2.3 | L735: 5 | M735: 0.2 | N735: 0 | O735: 0
A736: Park Wood | B736: =OFFSET(INDEX(Number!$S159:$EN159,Index!$D$2),0,-1) -> 290 | C736: =OFFSET(INDEX(Number!$S159:$EN159,Index!$D$2),0,-12) -> 250 | D736: 3.2 | E736: =IF($M$736>0,$M$736,"") ->  | F736: =IF($M$736<0,$M$736,"") ->  | I736: Park Wood | J736: =INDEX(Number!$S$159:$EN$159,Index!$D$2) -> 290 | K736: =INDEX(Rate!$S$159:$EN$159,Index!$D$2) -> 5.1 | L736: 0 | M736: 0 | N736: 40 | O736: 0.16
A737: Shepway North | B737: =OFFSET(INDEX(Number!$S160:$EN160,Index!$D$2),0,-1) -> 220 | C737: =OFFSET(INDEX(Number!$S160:$EN160,Index!$D$2),0,-12) -> 185 | D737: 3.2 | E737: =IF($M$737>0,$M$737,"") ->  | F737: =IF($M$737<0,$M$737,"") -> -0.04545454545 | I737: Shepway North | J737: =INDEX(Number!$S$160:$EN$160,Index!$D$2) -> 210 | K737: =INDEX(Rate!$S$160:$EN$160,Index!$D$2) -> 3.8 | L737: -10 | M737: -0.04545454545 | N737: 25 | O737: 0.1351351351
A738: Shepway South | B738: =OFFSET(INDEX(Number!$S161:$EN161,Index!$D$2),0,-1) -> 185 | C738: =OFFSET(INDEX(Number!$S161:$EN161,Index!$D$2),0,-12) -> 155 | D738: 3.2 | E738: =IF($M$738>0,$M$738,"") ->  | F738: =IF($M$738<0,$M$738,"") -> -0.05405405405 | I738: Shepway South | J738: =INDEX(Number!$S$161:$EN$161,Index!$D$2) -> 175 | K738: =INDEX(Rate!$S$161:$EN$161,Index!$D$2) -> 5.1 | L738: -10 | M738: -0.05405405405 | N738: 20 | O738: 0.1290322581
A739: South | B739: =OFFSET(INDEX(Number!$S162:$EN162,Index!$D$2),0,-1) -> 170 | C739: =OFFSET(INDEX(Number!$S162:$EN162,Index!$D$2),0,-12) -> 155 | D739: 3.2 | E739: =IF($M$739>0,$M$739,"") ->  | F739: =IF($M$739<0,$M$739,"") ->  | I739: South | J739: =INDEX(Number!$S$162:$EN$162,Index!$D$2) -> 170 | K739: =INDEX(Rate!$S$162:$EN$162,Index!$D$2) -> 2.8 | L739: 0 | M739: 0 | N739: 15 | O739: 0.09677419355
A740: Staplehurst | B740: =OFFSET(INDEX(Number!$S163:$EN163,Index!$D$2),0,-1) -> 105 | C740: =OFFSET(INDEX(Number!$S163:$EN163,Index!$D$2),0,-12) -> 95 | D740: 3.2 | E740: =IF($M$740>0,$M$740,"") -> 0.04761904762 | F740: =IF($M$740<0,$M$740,"") ->  | I740: Staplehurst | J740: =INDEX(Number!$S$163:$EN$163,Index!$D$2) -> 110 | K740: =INDEX(Rate!$S$163:$EN$163,Index!$D$2) -> 3 | L740: 5 | M740: 0.04761904762 | N740: 15 | O740: 0.1578947368
A741: Sutton Valence and Langley | B741: =OFFSET(INDEX(Number!$S164:$EN164,Index!$D$2),0,-1) -> 70 | C741: =OFFSET(INDEX(Number!$S164:$EN164,Index!$D$2),0,-12) -> 45 | D741: 3.2 | E741: =IF($M$741>0,$M$741,"") ->  | F741: =IF($M$741<0,$M$741,"") -> -0.2142857143 | I741: Sutton Valence and Langley | J741: =INDEX(Number!$S$164:$EN$164,Index!$D$2) -> 55 | K741: =INDEX(Rate!$S$164:$EN$164,Index!$D$2) -> 2.6 | L741: -15 | M741: -0.2142857143 | N741: 10 | O741: 0.2222222222
B818: month | C818: year | I818: Area | J818: Number unemployed | K818: Percentage unemployed (%) | L818: Number change since previous month | M818: % change since previous month | N818: Number change since previous year | O818: % change since previous year
B819: =OFFSET(INDEX(Number!$S302:$EN302,Index!$D$2),0,-1) -> 1450 | C819: =OFFSET(INDEX(Number!$S302:$EN302,Index!$D$2),0,-12) -> 1400 | D819: Chart Data | I819: Sevenoaks District | J819: =INDEX(Number!$S$302:$EN$302,Index!$D$2) -> 1465 | K819: =INDEX(Rate!$S$302:$EN$302,Index!$D$2) -> 2.1 | L819: =IF(ISERROR((SUM(J819-B819))),"-",(SUM(J819-B819))) -> 15 | M819: =IF(ISERROR((SUM(L819/B819))),"-",(SUM(L819/B819))) -> 0.01034482759 | N819: =IF(ISERROR((SUM(J819-C819))),"-",(SUM(J819-C819))) -> 65 | O819: =IF(ISERROR((SUM(N819/C819))),"-",(SUM(N819/C819))) -> 0.04642857143
A820: =I820 -> Ash and New Ash Green | B820: =OFFSET(INDEX(Number!$S165:$EN165,Index!$D$2),0,-1) -> 75 | C820: =OFFSET(INDEX(Number!$S165:$EN165,Index!$D$2),0,-12) -> 65 | D820: =$K$819 -> 2.1 | E820: =IF($M$820>0,$M$820,"") -> 0.06666666667 | F820: =IF($M$820<0,$M$820,"") ->  | I820: Ash and New Ash Green | J820: =INDEX(Number!$S$165:$EN$165,Index!$D$2) -> 80 | K820: =INDEX(Rate!$S$165:$EN$165,Index!$D$2) -> 2.3 | L820: 5 | M820: 0.06666666667 | N820: 15 | O820: 0.2307692308
A821: Brasted, Chevening and Sundridge | B821: =OFFSET(INDEX(Number!$S166:$EN166,Index!$D$2),0,-1) -> 60 | C821: =OFFSET(INDEX(Number!$S166:$EN166,Index!$D$2),0,-12) -> 60 | D821: 2.1 | E821: =IF($M$821>0,$M$821,"") -> 0.08333333333 | F821: =IF($M$821<0,$M$821,"") ->  | I821: Brasted, Chevening and Sundridge | J821: =INDEX(Number!$S$166:$EN$166,Index!$D$2) -> 65 | K821: =INDEX(Rate!$S$166:$EN$166,Index!$D$2) -> 1.6 | L821: 5 | M821: 0.08333333333 | N821: 5 | O821: 0.08333333333
A822: Cowden and Hever | B822: =OFFSET(INDEX(Number!$S167:$EN167,Index!$D$2),0,-1) -> 25 | C822: =OFFSET(INDEX(Number!$S167:$EN167,Index!$D$2),0,-12) -> 15 | D822: 2.1 | E822: =IF($M$822>0,$M$822,"") -> 0.2 | F822: =IF($M$822<0,$M$822,"") ->  | I822: Cowden and Hever | J822: =INDEX(Number!$S$167:$EN$167,Index!$D$2) -> 30 | K822: =INDEX(Rate!$S$167:$EN$167,Index!$D$2) -> 2.2 | L822: 5 | M822: 0.2 | N822: 15 | O822: 1
A823: Crockenhill and Well Hill | B823: =OFFSET(INDEX(Number!$S168:$EN168,Index!$D$2),0,-1) -> 25 | C823: =OFFSET(INDEX(Number!$S168:$EN168,Index!$D$2),0,-12) -> 25 | D823: 2.1 | E823: =IF($M$823>0,$M$823,"") ->  | F823: =IF($M$823<0,$M$823,"") -> -0.2 | I823: Crockenhill and Well Hill | J823: =INDEX(Number!$S$168:$EN$168,Index!$D$2) -> 20 | K823: =INDEX(Rate!$S$168:$EN$168,Index!$D$2) -> 1.8 | L823: -5 | M823: -0.2 | N823: -5 | O823: -0.2
A824: Dunton Green and Riverhead | B824: =OFFSET(INDEX(Number!$S169:$EN169,Index!$D$2),0,-1) -> 75 | C824: =OFFSET(INDEX(Number!$S169:$EN169,Index!$D$2),0,-12) -> 65 | D824: 2.1 | E824: =IF($M$824>0,$M$824,"") ->  | F824: =IF($M$824<0,$M$824,"") -> -0.06666666667 | I824: Dunton Green and Riverhead | J824: =INDEX(Number!$S$169:$EN$169,Index!$D$2) -> 70 | K824: =INDEX(Rate!$S$169:$EN$169,Index!$D$2) -> 1.8 | L824: -5 | M824: -0.06666666667 | N824: 5 | O824: 0.07692307692
A825: Edenbridge North and East | B825: =OFFSET(INDEX(Number!$S170:$EN170,Index!$D$2),0,-1) -> 80 | C825: =OFFSET(INDEX(Number!$S170:$EN170,Index!$D$2),0,-12) -> 65 | D825: 2.1 | E825: =IF($M$825>0,$M$825,"") ->  | F825: =IF($M$825<0,$M$825,"") ->  | I825: Edenbridge North and East | J825: =INDEX(Number!$S$170:$EN$170,Index!$D$2) -> 80 | K825: =INDEX(Rate!$S$170:$EN$170,Index!$D$2) -> 2.6 | L825: 0 | M825: 0 | N825: 15 | O825: 0.2307692308
A826: Edenbridge South and West | B826: =OFFSET(INDEX(Number!$S171:$EN171,Index!$D$2),0,-1) -> 85 | C826: =OFFSET(INDEX(Number!$S171:$EN171,Index!$D$2),0,-12) -> 60 | D826: 2.1 | E826: =IF($M$826>0,$M$826,"") ->  | F826: =IF($M$826<0,$M$826,"") -> -0.05882352941 | I826: Edenbridge South and West | J826: =INDEX(Number!$S$171:$EN$171,Index!$D$2) -> 80 | K826: =INDEX(Rate!$S$171:$EN$171,Index!$D$2) -> 2.9 | L826: -5 | M826: -0.05882352941 | N826: 20 | O826: 0.3333333333
A827: Eynsford | B827: =OFFSET(INDEX(Number!$S172:$EN172,Index!$D$2),0,-1) -> 20 | C827: =OFFSET(INDEX(Number!$S172:$EN172,Index!$D$2),0,-12) -> 15 | D827: 2.1 | E827: =IF($M$827>0,$M$827,"") ->  | F827: =IF($M$827<0,$M$827,"") ->  | I827: Eynsford | J827: =INDEX(Number!$S$172:$EN$172,Index!$D$2) -> 20 | K827: =INDEX(Rate!$S$172:$EN$172,Index!$D$2) -> 1.9 | L827: 0 | M827: 0 | N827: 5 | O827: 0.3333333333
A828: Farningham, Horton Kirby and South Darenth | B828: =OFFSET(INDEX(Number!$S173:$EN173,Index!$D$2),0,-1) -> 75 | C828: =OFFSET(INDEX(Number!$S173:$EN173,Index!$D$2),0,-12) -> 70 | D828: 2.1 | E828: =IF($M$828>0,$M$828,"") ->  | F828: =IF($M$828<0,$M$828,"") ->  | I828: Farningham, Horton Kirby and South Darenth | J828: =INDEX(Number!$S$173:$EN$173,Index!$D$2) -> 75 | K828: =INDEX(Rate!$S$173:$EN$173,Index!$D$2) -> 2.5 | L828: 0 | M828: 0 | N828: 5 | O828: 0.07142857143
A829: Fawkham and West Kingsdown | B829: =OFFSET(INDEX(Number!$S174:$EN174,Index!$D$2),0,-1) -> 80 | C829: =OFFSET(INDEX(Number!$S174:$EN174,Index!$D$2),0,-12) -> 75 | D829: 2.1 | E829: =IF($M$829>0,$M$829,"") ->  | F829: =IF($M$829<0,$M$829,"") ->  | I829: Fawkham and West Kingsdown | J829: =INDEX(Number!$S$174:$EN$174,Index!$D$2) -> 80 | K829: =INDEX(Rate!$S$174:$EN$174,Index!$D$2) -> 2.5 | L829: 0 | M829: 0 | N829: 5 | O829: 0.06666666667
A830: Halstead, Knockholt and Badgers Mount | B830: =OFFSET(INDEX(Number!$S175:$EN175,Index!$D$2),0,-1) -> 20 | C830: =OFFSET(INDEX(Number!$S175:$EN175,Index!$D$2),0,-12) -> 20 | D830: 2.1 | E830: =IF($M$830>0,$M$830,"") ->  | F830: =IF($M$830<0,$M$830,"") ->  | I830: Halstead, Knockholt and Badgers Mount | J830: =INDEX(Number!$S$175:$EN$175,Index!$D$2) -> 20 | K830: =INDEX(Rate!$S$175:$EN$175,Index!$D$2) -> 1 | L830: 0 | M830: 0 | N830: 0 | O830: 0
A831: Hartley and Hodsoll Street | B831: =OFFSET(INDEX(Number!$S176:$EN176,Index!$D$2),0,-1) -> 50 | C831: =OFFSET(INDEX(Number!$S176:$EN176,Index!$D$2),0,-12) -> 45 | D831: 2.1 | E831: =IF($M$831>0,$M$831,"") -> 0.1 | F831: =IF($M$831<0,$M$831,"") ->  | I831: Hartley and Hodsoll Street | J831: =INDEX(Number!$S$176:$EN$176,Index!$D$2) -> 55 | K831: =INDEX(Rate!$S$176:$EN$176,Index!$D$2) -> 1.7 | L831: 5 | M831: 0.1 | N831: 10 | O831: 0.2222222222
A832: Hextable | B832: =OFFSET(INDEX(Number!$S177:$EN177,Index!$D$2),0,-1) -> 35 | C832: =OFFSET(INDEX(Number!$S177:$EN177,Index!$D$2),0,-12) -> 35 | D832: 2.1 | E832: =IF($M$832>0,$M$832,"") ->  | F832: =IF($M$832<0,$M$832,"") ->  | I832: Hextable | J832: =INDEX(Number!$S$177:$EN$177,Index!$D$2) -> 35 | K832: =INDEX(Rate!$S$177:$EN$177,Index!$D$2) -> 1.4 | L832: 0 | M832: 0 | N832: 0 | O832: 0
A833: Kemsing | B833: =OFFSET(INDEX(Number!$S178:$EN178,Index!$D$2),0,-1) -> 40 | C833: =OFFSET(INDEX(Number!$S178:$EN178,Index!$D$2),0,-12) -> 45 | D833: 2.1 | E833: =IF($M$833>0,$M$833,"") ->  | F833: =IF($M$833<0,$M$833,"") ->  | I833: Kemsing | J833: =INDEX(Number!$S$178:$EN$178,Index!$D$2) -> 40 | K833: =INDEX(Rate!$S$178:$EN$178,Index!$D$2) -> 1.7 | L833: 0 | M833: 0 | N833: -5 | O833: -0.1111111111
A834: Leigh and Chiddingstone Causeway | B834: =OFFSET(INDEX(Number!$S179:$EN179,Index!$D$2),0,-1) -> 20 | C834: =OFFSET(INDEX(Number!$S179:$EN179,Index!$D$2),0,-12) -> 30 | D834: 2.1 | E834: =IF($M$834>0,$M$834,"") -> 0.25 | F834: =IF($M$834<0,$M$834,"") ->  | I834: Leigh and Chiddingstone Causeway | J834: =INDEX(Number!$S$179:$EN$179,Index!$D$2) -> 25 | K834: =INDEX(Rate!$S$179:$EN$179,Index!$D$2) -> 1.8 | L834: 5 | M834: 0.25 | N834: -5 | O834: -0.1666666667
A835: Otford and Shoreham | B835: =OFFSET(INDEX(Number!$S180:$EN180,Index!$D$2),0,-1) -> 40 | C835: =OFFSET(INDEX(Number!$S180:$EN180,Index!$D$2),0,-12) -> 45 | D835: 2.1 | E835: =IF($M$835>0,$M$835,"") -> 0.125 | F835: =IF($M$835<0,$M$835,"") ->  | I835: Otford and Shoreham | J835: =INDEX(Number!$S$180:$EN$180,Index!$D$2) -> 45 | K835: =INDEX(Rate!$S$180:$EN$180,Index!$D$2) -> 1.6 | L835: 5 | M835: 0.125 | N835: 0 | O835: 0
A836: Penshurst, Fordcombe and Chiddingstone | B836: =OFFSET(INDEX(Number!$S181:$EN181,Index!$D$2),0,-1) -> 25 | C836: =OFFSET(INDEX(Number!$S181:$EN181,Index!$D$2),0,-12) -> 20 | D836: 2.1 | E836: =IF($M$836>0,$M$836,"") -> 0.2 | F836: =IF($M$836<0,$M$836,"") ->  | I836: Penshurst, Fordcombe and Chiddingstone | J836: =INDEX(Number!$S$181:$EN$181,Index!$D$2) -> 30 | K836: =INDEX(Rate!$S$181:$EN$181,Index!$D$2) -> 2.2 | L836: 5 | M836: 0.2 | N836: 10 | O836: 0.5
A837: Seal and Weald | B837: =OFFSET(INDEX(Number!$S182:$EN182,Index!$D$2),0,-1) -> 40 | C837: =OFFSET(INDEX(Number!$S182:$EN182,Index!$D$2),0,-12) -> 40 | D837: 2.1 | E837: =IF($M$837>0,$M$837,"") ->  | F837: =IF($M$837<0,$M$837,"") ->  | I837: Seal and Weald | J837: =INDEX(Number!$S$182:$EN$182,Index!$D$2) -> 40 | K837: =INDEX(Rate!$S$182:$EN$182,Index!$D$2) -> 1.7 | L837: 0 | M837: 0 | N837: 0 | O837: 0
A838: Sevenoaks Eastern | B838: =OFFSET(INDEX(Number!$S183:$EN183,Index!$D$2),0,-1) -> 45 | C838: =OFFSET(INDEX(Number!$S183:$EN183,Index!$D$2),0,-12) -> 50 | D838: 2.1 | E838: =IF($M$838>0,$M$838,"") -> 0.1111111111 | F838: =IF($M$838<0,$M$838,"") ->  | I838: Sevenoaks Eastern | J838: =INDEX(Number!$S$183:$EN$183,Index!$D$2) -> 50 | K838: =INDEX(Rate!$S$183:$EN$183,Index!$D$2) -> 1.9 | L838: 5 | M838: 0.1111111111 | N838: 0 | O838: 0
A839: Sevenoaks Kippington | B839: =OFFSET(INDEX(Number!$S184:$EN184,Index!$D$2),0,-1) -> 30 | C839: =OFFSET(INDEX(Number!$S184:$EN184,Index!$D$2),0,-12) -> 40 | D839: 2.1 | E839: =IF($M$839>0,$M$839,"") ->  | F839: =IF($M$839<0,$M$839,"") ->  | I839: Sevenoaks Kippington | J839: =INDEX(Number!$S$184:$EN$184,Index!$D$2) -> 30 | K839: =INDEX(Rate!$S$184:$EN$184,Index!$D$2) -> 1 | L839: 0 | M839: 0 | N839: -10 | O839: -0.25
A840: Sevenoaks Northern | B840: =OFFSET(INDEX(Number!$S185:$EN185,Index!$D$2),0,-1) -> 60 | C840: =OFFSET(INDEX(Number!$S185:$EN185,Index!$D$2),0,-12) -> 60 | D840: 2.1 | E840: =IF($M$840>0,$M$840,"") -> 0.08333333333 | F840: =IF($M$840<0,$M$840,"") ->  | I840: Sevenoaks Northern | J840: =INDEX(Number!$S$185:$EN$185,Index!$D$2) -> 65 | K840: =INDEX(Rate!$S$185:$EN$185,Index!$D$2) -> 2.3 | L840: 5 | M840: 0.08333333333 | N840: 5 | O840: 0.08333333333
A841: Sevenoaks Town and St John's | B841: =OFFSET(INDEX(Number!$S186:$EN186,Index!$D$2),0,-1) -> 60 | C841: =OFFSET(INDEX(Number!$S186:$EN186,Index!$D$2),0,-12) -> 65 | D841: 2.1 | E841: =IF($M$841>0,$M$841,"") ->  | F841: =IF($M$841<0,$M$841,"") ->  | I841: Sevenoaks Town and St John's | J841: =INDEX(Number!$S$186:$EN$186,Index!$D$2) -> 60 | K841: =INDEX(Rate!$S$186:$EN$186,Index!$D$2) -> 1.3 | L841: 0 | M841: 0 | N841: -5 | O841: -0.07692307692
A842: Swanley Christchurch and Swanley Village | B842: =OFFSET(INDEX(Number!$S187:$EN187,Index!$D$2),0,-1) -> 85 | C842: =OFFSET(INDEX(Number!$S187:$EN187,Index!$D$2),0,-12) -> 85 | D842: 2.1 | E842: =IF($M$842>0,$M$842,"") ->  | F842: =IF($M$842<0,$M$842,"") -> -0.05882352941 | I842: Swanley Christchurch and Swanley Village | J842: =INDEX(Number!$S$187:$EN$187,Index!$D$2) -> 80 | K842: =INDEX(Rate!$S$187:$EN$187,Index!$D$2) -> 2.1 | L842: -5 | M842: -0.05882352941 | N842: -5 | O842: -0.05882352941
A843: Swanley St Mary's | B843: =OFFSET(INDEX(Number!$S188:$EN188,Index!$D$2),0,-1) -> 140 | C843: =OFFSET(INDEX(Number!$S188:$EN188,Index!$D$2),0,-12) -> 125 | D843: 2.1 | E843: =IF($M$843>0,$M$843,"") ->  | F843: =IF($M$843<0,$M$843,"") ->  | I843: Swanley St Mary's | J843: =INDEX(Number!$S$188:$EN$188,Index!$D$2) -> 140 | K843: =INDEX(Rate!$S$188:$EN$188,Index!$D$2) -> 4.8 | L843: 0 | M843: 0 | N843: 15 | O843: 0.12
A844: Swanley White Oak | B844: =OFFSET(INDEX(Number!$S189:$EN189,Index!$D$2),0,-1) -> 115 | C844: =OFFSET(INDEX(Number!$S189:$EN189,Index!$D$2),0,-12) -> 130 | D844: 2.1 | E844: =IF($M$844>0,$M$844,"") ->  | F844: =IF($M$844<0,$M$844,"") -> -0.04347826087 | I844: Swanley White Oak | J844: =INDEX(Number!$S$189:$EN$189,Index!$D$2) -> 110 | K844: =INDEX(Rate!$S$189:$EN$189,Index!$D$2) -> 2.9 | L844: -5 | M844: -0.04347826087 | N844: -20 | O844: -0.1538461538
A845: Westerham and Crockham Hill | B845: =OFFSET(INDEX(Number!$S190:$EN190,Index!$D$2),0,-1) -> 45 | C845: =OFFSET(INDEX(Number!$S190:$EN190,Index!$D$2),0,-12) -> 60 | D845: 2.1 | E845: =IF($M$845>0,$M$845,"") -> 0.1111111111 | F845: =IF($M$845<0,$M$845,"") ->  | I845: Westerham and Crockham Hill | J845: =INDEX(Number!$S$190:$EN$190,Index!$D$2) -> 50 | K845: =INDEX(Rate!$S$190:$EN$190,Index!$D$2) -> 1.9 | L845: 5 | M845: 0.1111111111 | N845: -10 | O845: -0.1666666667
B922: month | C922: year | I922: Area | J922: Number unemployed | K922: Percentage unemployed (%) | L922: Number change since previous month | M922: % change since previous month | N922: Number change since previous year | O922: % change since previous year
B923: =OFFSET(INDEX(Number!$S303:$EN303,Index!$D$2),0,-1) -> 3440 | C923: =OFFSET(INDEX(Number!$S303:$EN303,Index!$D$2),0,-12) -> 3320 | D923: Chart Data | I923: Swale District | J923: =INDEX(Number!$S$303:$EN$303,Index!$D$2) -> 3415 | K923: =INDEX(Rate!$S$303:$EN$303,Index!$D$2) -> 3.7 | L923: =IF(ISERROR((SUM(J923-B923))),"-",(SUM(J923-B923))) -> -25 | M923: =IF(ISERROR((SUM(L923/B923))),"-",(SUM(L923/B923))) -> -0.00726744186 | N923: =IF(ISERROR((SUM(J923-C923))),"-",(SUM(J923-C923))) -> 95 | O923: =IF(ISERROR((SUM(N923/C923))),"-",(SUM(N923/C923))) -> 0.02861445783
A924: =I924 -> Abbey | B924: =OFFSET(INDEX(Number!$S204:$EN204,Index!$D$2),0,-1) -> 105 | C924: =OFFSET(INDEX(Number!$S204:$EN204,Index!$D$2),0,-12) -> 90 | D924: =$K$923 -> 3.7 | E924: =IF($M$924>0,$M$924,"") ->  | F924: =IF($M$924<0,$M$924,"") ->  | I924: Abbey | J924: =INDEX(Number!$S$204:$EN$204,Index!$D$2) -> 105 | K924: =INDEX(Rate!$S$204:$EN$204,Index!$D$2) -> 3.3 | L924: 0 | M924: 0 | N924: 15 | O924: 0.1666666667
A925: Bobbing, Iwade and Lower Halstow | B925: =OFFSET(INDEX(Number!$S205:$EN205,Index!$D$2),0,-1) -> 75 | C925: =OFFSET(INDEX(Number!$S205:$EN205,Index!$D$2),0,-12) -> 60 | D925: 3.7 | E925: =IF($M$925>0,$M$925,"") ->  | F925: =IF($M$925<0,$M$925,"") ->  | I925: Bobbing, Iwade and Lower Halstow | J925: =INDEX(Number!$S$205:$EN$205,Index!$D$2) -> 75 | K925: =INDEX(Rate!$S$205:$EN$205,Index!$D$2) -> 2 | L925: 0 | M925: 0 | N925: 15 | O925: 0.25
... 119 more rows

Sheet Number (hidden)
C1: 2019 Ward Code | E1: Merged ward code | G1: 2013-01-01 | H1: 2013-02-01 | I1: 2013-03-01 | J1: 2013-04-01 | K1: 2013-05-01 | L1: 2013-06-01 | M1: 2013-07-01 | N1: 2013-08-01 | O1: 2013-09-01 | P1: 2013-10-01 | Q1: 2013-11-01 | R1: 2013-12-01 | S1: 2014-01-01 | T1: 2014-02-01 | U1: 2014-03-01 | V1: 2014-04-01 | W1: 2014-05-01 | X1: 2014-06-01 | Y1: 2014-07-01 | Z1: 2014-08-01 | AA1: 2014-09-01 | AB1: 2014-10-01 | AC1: 2014-11-01 | AD1: 2014-12-01 | AE1: 2015-01-01 | AF1: 2015-02-01 | AG1: 2015-03-01 | AH1: 2015-04-01 | AI1: 2015-05-01 | AJ1: 2015-06-01 | AK1: 2015-07-01 | AL1: 2015-08-01 | AM1: 2015-09-01 | AN1: 2015-10-01 | AO1: 2015-11-01 | AP1: 2015-12-01 | AQ1: 2016-01-01 | AR1: 2016-02-01 | AS1: 2016-03-01 | AT1: 2016-04-01 | AU1: 2016-05-01 | AV1: 2016-06-01 | AW1: 2016-07-01 | AX1: 2016-08-01 | AY1: 2016-09-01 | AZ1: 2016-10-01 | BA1: 2016-11-01 | BB1: 2016-12-01 | BC1: 2017-01-01 | BD1: 2017-02-01 | BE1: 2017-03-01 | BF1: 2017-04-01 | BG1: 2017-05-01 | BH1: 2017-06-01 | BI1: 2017-07-01 | BJ1: 2017-08-01 | BK1: 2017-09-01 | BL1: 2017-10-01 | BM1: 2017-11-01 | BN1: 2017-12-01 | BO1: 2018-01-01 | BP1: 2018-02-01 | BQ1: 2018-03-01 | BR1: 2018-04-01 | BS1: 2018-05-01 | BT1: 2018-06-01 | BU1: 2018-07-01 | BV1: 2018-08-01 | BW1: 2018-09-01 | BX1: 2018-10-01 | BY1: 2018-11-01 | BZ1: 2018-12-01 | CA1: 2019-01-01 | CB1: 2019-02-01 | CC1: 2019-03-01 | CD1: 2019-04-01 | CE1: 2019-05-01 | CF1: 2019-06-01 | CG1: 2019-07-01 | CH1: 2019-08-01 | CI1: 2019-09-01 | CJ1: 2019-10-01 | CK1: 2019-11-01 | CL1: 2019-12-01 | CM1: 2020-01-01 | CN1: 2020-02-01 | CO1: 2020-03-01 | CP1: 2020-04-01 | CQ1: 2020-05-01 | CR1: 2020-06-01 | CS1: 2020-07-01 | CT1: 2020-08-01 | CU1: 2020-09-01 | CV1: 2020-10-01 | CW1: 2020-11-01 | CX1: 2020-12-01 | CY1: 2021-01-01 | CZ1: 2021-02-01 | DA1: 2021-03-01 | DB1: 2021-04-01 | DC1: 2021-05-01 | DD1: 2021-06-01 | DE1: 2021-07-01 | DF1: 2021-08-01 | DG1: 2021-09-01 | DH1: 2021-10-01 | DI1: 2021-11-01 | DJ1: 2021-12-01 | DK1: 2022-01-01 | DL1: 2022-02-01 | DM1: 2022-03-01 | DN1: 2022-04-01 | DO1: 2022-05-01 | DP1: 2022-06-01 | DQ1: 2022-07-01 | DR1: 2022-08-01 | DS1: 2022-09-01 | DT1: 2022-10-01 | DU1: 2022-11-01 | DV1: 2022-12-01 | DW1: 2023-01-01 | DX1: 2023-02-01 | DY1: 2023-03-01 | DZ1: 2023-04-01 | EA1: 2023-05-01 | EB1: 2023-06-01 | EC1: 2023-07-01 | ED1: 2023-08-01 | EE1: 2023-09-01 | EF1: 2023-10-01 | EG1: 2023-11-01 | EH1: 2023-12-01 | EI1: 2024-01-01 | EJ1: 2024-02-01 | EK1: 2024-03-01 | EL1: 2024-04-01 | EM1: 2024-05-01 | EN1: Insert column
A2: Medway | B2: 00LCNN | C2: E05002249 | D2: E05002249 | E2: E36000802 | F2: Chatham Central | G2: 835 | H2: 850 | I2: 845 | J2: 810 | K2: 780 | L2: 775 | M2: 760 | N2: 750 | O2: 720 | P2: 690 | Q2: 705 | R2: 685 | S2: 695 | T2: 705 | U2: 700 | V2: 650 | W2: 665 | X2: 625 | Y2: 590 | Z2: 545 | AA2: 540 | AB2: 535 | AC2: 505 | AD2: 470 | AE2: 470 | AF2: 495 | AG2: 480 | AH2: 470 | AI2: 465 | AJ2: 450 | AK2: 460 | AL2: 460 | AM2: 440 | AN2: 440 | AO2: 425 | AP2: 420 | AQ2: 435 | AR2: 450 | AS2: 450 | AT2: 450 | AU2: 430 | AV2: 415 | AW2: 410 | AX2: 410 | AY2: 400 | AZ2: 415 | BA2: 410 | BB2: 380 | BC2: 390 | BD2: 410 | BE2: 405 | BF2: 400 | BG2: 395 | BH2: 390 | BI2: 400 | BJ2: 385 | BK2: 375 | BL2: 380 | BM2: 375 | BN2: 345 | BO2: 350 | BP2: 375 | BQ2: 385 | BR2: 395 | BS2: 375 | BT2: 365 | BU2: 375 | BV2: 385 | BW2: 400 | BX2: 430 | BY2: 420 | BZ2: 420 | CA2: 440 | CB2: 465 | CC2: 480 | CD2: 505 | CE2: 530 | CF2: 515 | CG2: 535 | CH2: 525 | CI2: 535 | CJ2: 555 | CK2: 560 | CL2: 570 | CM2: 580 | CN2: 585 | CO2: 595 | CP2: 880 | CQ2: 1180 | CR2: 1130 | CS2: 1175 | CT2: 1215 | CU2: 1175 | CV2: 1165 | CW2: 1160 | CX2: 1185 | CY2: 1160 | CZ2: 1230 | DA2: 1235 | DB2: 1255 | DC2: 1205 | DD2: 1150 | DE2: 1105 | DF2: 1095 | DG2: 1035 | DH2: 1015 | DI2: 990 | DJ2: 960 | DK2: 930 | DL2: 920 | DM2: 895 | DN2: 835 | DO2: 790 | DP2: 750 | DQ2: 755 | DR2: 735 | DS2: 750 | DT2: 720 | DU2: 735 | DV2: 735 | DW2: 715 | DX2: 705 | DY2: 720 | DZ2: 775 | EA2: 750 | EB2: 780 | EC2: 790 | ED2: 780 | EE2: 790 | EF2: 760 | EG2: 790 | EH2: 775 | EI2: 770 | EJ2: 755 | EK2: 765 | EL2: 740 | EM2: 725
A3: Medway | B3: 00LCNP | C3: E05002250 | D3: E05002250 | E3: E36000803 | F3: Cuxton and Halling | G3: 65 | H3: 70 | I3: 70 | J3: 75 | K3: 70 | L3: 65 | M3: 65 | N3: 70 | O3: 70 | P3: 55 | Q3: 50 | R3: 45 | S3: 50 | T3: 55 | U3: 55 | V3: 50 | W3: 50 | X3: 35 | Y3: 40 | Z3: 40 | AA3: 40 | AB3: 40 | AC3: 35 | AD3: 35 | AE3: 50 | AF3: 45 | AG3: 50 | AH3: 40 | AI3: 35 | AJ3: 40 | AK3: 40 | AL3: 45 | AM3: 35 | AN3: 40 | AO3: 35 | AP3: 30 | AQ3: 35 | AR3: 40 | AS3: 45 | AT3: 40 | AU3: 40 | AV3: 35 | AW3: 35 | AX3: 40 | AY3: 40 | AZ3: 40 | BA3: 40 | BB3: 35 | BC3: 35 | BD3: 35 | BE3: 35 | BF3: 35 | BG3: 35 | BH3: 35 | BI3: 35 | BJ3: 35 | BK3: 30 | BL3: 30 | BM3: 30 | BN3: 35 | BO3: 35 | BP3: 35 | BQ3: 40 | BR3: 35 | BS3: 35 | BT3: 35 | BU3: 35 | BV3: 45 | BW3: 45 | BX3: 45 | BY3: 50 | BZ3: 50 | CA3: 45 | CB3: 45 | CC3: 45 | CD3: 45 | CE3: 45 | CF3: 50 | CG3: 45 | CH3: 45 | CI3: 50 | CJ3: 50 | CK3: 45 | CL3: 55 | CM3: 60 | CN3: 60 | CO3: 60 | CP3: 105 | CQ3: 160 | CR3: 140 | CS3: 150 | CT3: 155 | CU3: 150 | CV3: 135 | CW3: 155 | CX3: 155 | CY3: 145 | CZ3: 160 | DA3: 165 | DB3: 160 | DC3: 130 | DD3: 130 | DE3: 135 | DF3: 115 | DG3: 95 | DH3: 90 | DI3: 90 | DJ3: 95 | DK3: 75 | DL3: 80 | DM3: 90 | DN3: 75 | DO3: 75 | DP3: 65 | DQ3: 75 | DR3: 70 | DS3: 70 | DT3: 65 | DU3: 65 | DV3: 60 | DW3: 65 | DX3: 75 | DY3: 75 | DZ3: 70 | EA3: 60 | EB3: 65 | EC3: 65 | ED3: 65 | EE3: 65 | EF3: 70 | EG3: 70 | EH3: 65 | EI3: 60 | EJ3: 70 | EK3: 75 | EL3: 70 | EM3: 80
A4: Medway | B4: 00LCNQ | C4: E05002251 | D4: E05002251 | E4: E36000804 | F4: Gillingham North | G4: 635 | H4: 655 | I4: 625 | J4: 615 | K4: 615 | L4: 605 | M4: 580 | N4: 560 | O4: 525 | P4: 475 | Q4: 450 | R4: 450 | S4: 475 | T4: 490 | U4: 480 | V4: 470 | W4: 465 | X4: 440 | Y4: 430 | Z4: 420 | AA4: 405 | AB4: 390 | AC4: 380 | AD4: 365 | AE4: 365 | AF4: 375 | AG4: 365 | AH4: 355 | AI4: 360 | AJ4: 355 | AK4: 355 | AL4: 340 | AM4: 345 | AN4: 345 | AO4: 340 | AP4: 315 | AQ4: 340 | AR4: 345 | AS4: 355 | AT4: 355 | AU4: 330 | AV4: 335 | AW4: 325 | AX4: 335 | AY4: 340 | AZ4: 335 | BA4: 335 | BB4: 335 | BC4: 310 | BD4: 340 | BE4: 350 | BF4: 350 | BG4: 350 | BH4: 355 | BI4: 340 | BJ4: 335 | BK4: 340 | BL4: 325 | BM4: 320 | BN4: 345 | BO4: 360 | BP4: 345 | BQ4: 345 | BR4: 345 | BS4: 355 | BT4: 325 | BU4: 345 | BV4: 350 | BW4: 370 | BX4: 390 | BY4: 405 | BZ4: 435 | CA4: 480 | CB4: 485 | CC4: 515 | CD4: 530 | CE4: 540 | CF4: 555 | CG4: 580 | CH4: 585 | CI4: 600 | CJ4: 620 | CK4: 600 | CL4: 625 | CM4: 645 | CN4: 650 | CO4: 640 | CP4: 895 | CQ4: 1175 | CR4: 1110 | CS4: 1130 | CT4: 1150 | CU4: 1135 | CV4: 1115 | CW4: 1140 | CX4: 1155 | CY4: 1130 | CZ4: 1180 | DA4: 1195 | DB4: 1205 | DC4: 1150 | DD4: 1080 | DE4: 1060 | DF4: 1055 | DG4: 1020 | DH4: 945 | DI4: 905 | DJ4: 885 | DK4: 850 | DL4: 850 | DM4: 825 | DN4: 790 | DO4: 765 | DP4: 740 | DQ4: 715 | DR4: 705 | DS4: 710 | DT4: 695 | DU4: 695 | DV4: 730 | DW4: 725 | DX4: 715 | DY4: 725 | DZ4: 735 | EA4: 730 | EB4: 715 | EC4: 735 | ED4: 765 | EE4: 790 | EF4: 770 | EG4: 705 | EH4: 740 | EI4: 720 | EJ4: 750 | EK4: 735 | EL4: 735 | EM4: 765
A5: Medway | B5: 00LCNR | C5: E05002252 | D5: E05002252 | E5: E36000805 | F5: Gillingham South | G5: 630 | H5: 655 | I5: 635 | J5: 610 | K5: 590 | L5: 575 | M5: 545 | N5: 580 | O5: 545 | P5: 525 | Q5: 530 | R5: 520 | S5: 525 | T5: 535 | U5: 510 | V5: 495 | W5: 505 | X5: 450 | Y5: 445 | Z5: 420 | AA5: 400 | AB5: 385 | AC5: 385 | AD5: 370 | AE5: 385 | AF5: 375 | AG5: 375 | AH5: 365 | AI5: 355 | AJ5: 360 | AK5: 365 | AL5: 370 | AM5: 355 | AN5: 355 | AO5: 340 | AP5: 350 | AQ5: 350 | AR5: 370 | AS5: 350 | AT5: 350 | AU5: 345 | AV5: 355 | AW5: 340 | AX5: 330 | AY5: 320 | AZ5: 330 | BA5: 325 | BB5: 320 | BC5: 320 | BD5: 340 | BE5: 350 | BF5: 360 | BG5: 355 | BH5: 355 | BI5: 345 | BJ5: 340 | BK5: 330 | BL5: 340 | BM5: 340 | BN5: 335 | BO5: 340 | BP5: 355 | BQ5: 365 | BR5: 355 | BS5: 345 | BT5: 325 | BU5: 335 | BV5: 360 | BW5: 370 | BX5: 385 | BY5: 405 | BZ5: 420 | CA5: 435 | CB5: 460 | CC5: 485 | CD5: 520 | CE5: 510 | CF5: 520 | CG5: 540 | CH5: 560 | CI5: 570 | CJ5: 535 | CK5: 565 | CL5: 570 | CM5: 570 | CN5: 580 | CO5: 565 | CP5: 815 | CQ5: 1055 | CR5: 995 | CS5: 1040 | CT5: 1060 | CU5: 1065 | CV5: 1030 | CW5: 1070 | CX5: 1100 | CY5: 1065 | CZ5: 1100 | DA5: 1135 | DB5: 1140 | DC5: 1085 | DD5: 1020 | DE5: 1005 | DF5: 970 | DG5: 905 | DH5: 880 | DI5: 865 | DJ5: 840 | DK5: 815 | DL5: 825 | DM5: 800 | DN5: 780 | DO5: 755 | DP5: 715 | DQ5: 660 | DR5: 670 | DS5: 685 | DT5: 680 | DU5: 685 | DV5: 655 | DW5: 660 | DX5: 675 | DY5: 685 | DZ5: 690 | EA5: 650 | EB5: 685 | EC5: 690 | ED5: 680 | EE5: 670 | EF5: 650 | EG5: 655 | EH5: 660 | EI5: 660 | EJ5: 695 | EK5: 695 | EL5: 670 | EM5: 705
A6: Medway | B6: 00LCNS | C6: E05002253 | D6: E05002253 | E6: E36000806 | F6: Hempstead and Wigmore | G6: 55 | H6: 55 | I6: 65 | J6: 60 | K6: 60 | L6: 55 | M6: 60 | N6: 55 | O6: 45 | P6: 40 | Q6: 40 | R6: 35 | S6: 35 | T6: 45 | U6: 40 | V6: 35 | W6: 35 | X6: 30 | Y6: 30 | Z6: 30 | AA6: 25 | AB6: 30 | AC6: 30 | AD6: 25 | AE6: 30 | AF6: 30 | AG6: 35 | AH6: 30 | AI6: 40 | AJ6: 30 | AK6: 30 | AL6: 40 | AM6: 35 | AN6: 30 | AO6: 30 | AP6: 30 | AQ6: 20 | AR6: 25 | AS6: 25 | AT6: 25 | AU6: 25 | AV6: 25 | AW6: 35 | AX6: 35 | AY6: 30 | AZ6: 40 | BA6: 35 | BB6: 25 | BC6: 25 | BD6: 20 | BE6: 20 | BF6: 20 | BG6: 20 | BH6: 20 | BI6: 20 | BJ6: 25 | BK6: 25 | BL6: 25 | BM6: 25 | BN6: 25 | BO6: 30 | BP6: 30 | BQ6: 30 | BR6: 25 | BS6: 25 | BT6: 15 | BU6: 20 | BV6: 20 | BW6: 25 | BX6: 25 | BY6: 25 | BZ6: 25 | CA6: 25 | CB6: 30 | CC6: 30 | CD6: 30 | CE6: 30 | CF6: 35 | CG6: 35 | CH6: 35 | CI6: 35 | CJ6: 40 | CK6: 45 | CL6: 45 | CM6: 45 | CN6: 35 | CO6: 40 | CP6: 120 | CQ6: 155 | CR6: 135 | CS6: 150 | CT6: 145 | CU6: 140 | CV6: 125 | CW6: 125 | CX6: 120 | CY6: 110 | CZ6: 120 | DA6: 110 | DB6: 110 | DC6: 105 | DD6: 95 | DE6: 85 | DF6: 80 | DG6: 80 | DH6: 70 | DI6: 65 | DJ6: 65 | DK6: 65 | DL6: 65 | DM6: 65 | DN6: 55 | DO6: 55 | DP6: 45 | DQ6: 45 | DR6: 45 | DS6: 50 | DT6: 50 | DU6: 50 | DV6: 55 | DW6: 60 | DX6: 60 | DY6: 55 | DZ6: 50 | EA6: 40 | EB6: 40 | EC6: 40 | ED6: 40 | EE6: 35 | EF6: 45 | EG6: 40 | EH6: 55 | EI6: 55 | EJ6: 60 | EK6: 55 | EL6: 60 | EM6: 55
A7: Medway | B7: 00LCNT | C7: E05002254 | D7: E05002254 | E7: E36000807 | F7: Lordswood and Capstone | G7: 165 | H7: 185 | I7: 165 | J7: 160 | K7: 145 | L7: 120 | M7: 120 | N7: 125 | O7: 130 | P7: 135 | Q7: 135 | R7: 125 | S7: 140 | T7: 135 | U7: 135 | V7: 130 | W7: 125 | X7: 115 | Y7: 110 | Z7: 100 | AA7: 95 | AB7: 95 | AC7: 85 | AD7: 80 | AE7: 90 | AF7: 85 | AG7: 90 | AH7: 90 | AI7: 80 | AJ7: 85 | AK7: 85 | AL7: 80 | AM7: 75 | AN7: 80 | AO7: 75 | AP7: 75 | AQ7: 80 | AR7: 90 | AS7: 90 | AT7: 80 | AU7: 75 | AV7: 70 | AW7: 75 | AX7: 75 | AY7: 70 | AZ7: 75 | BA7: 80 | BB7: 75 | BC7: 85 | BD7: 90 | BE7: 90 | BF7: 90 | BG7: 90 | BH7: 85 | BI7: 70 | BJ7: 70 | BK7: 70 | BL7: 65 | BM7: 65 | BN7: 55 | BO7: 60 | BP7: 70 | BQ7: 65 | BR7: 70 | BS7: 65 | BT7: 60 | BU7: 65 | BV7: 65 | BW7: 70 | BX7: 75 | BY7: 80 | BZ7: 80 | CA7: 95 | CB7: 90 | CC7: 95 | CD7: 100 | CE7: 90 | CF7: 90 | CG7: 100 | CH7: 100 | CI7: 100 | CJ7: 110 | CK7: 105 | CL7: 100 | CM7: 110 | CN7: 105 | CO7: 110 | CP7: 225 | CQ7: 310 | CR7: 285 | CS7: 280 | CT7: 285 | CU7: 280 | CV7: 260 | CW7: 260 | CX7: 245 | CY7: 245 | CZ7: 265 | DA7: 270 | DB7: 260 | DC7: 245 | DD7: 240 | DE7: 230 | DF7: 220 | DG7: 210 | DH7: 205 | DI7: 190 | DJ7: 185 | DK7: 175 | DL7: 170 | DM7: 160 | DN7: 150 | DO7: 145 | DP7: 125 | DQ7: 135 | DR7: 135 | DS7: 125 | DT7: 130 | DU7: 125 | DV7: 120 | DW7: 120 | DX7: 115 | DY7: 115 | DZ7: 105 | EA7: 105 | EB7: 110 | EC7: 115 | ED7: 115 | EE7: 105 | EF7: 110 | EG7: 125 | EH7: 120 | EI7: 120 | EJ7: 130 | EK7: 130 | EL7: 125 | EM7: 135
A8: Medway | B8: 00LCNU | C8: E05002255 | D8: E05002255 | E8: E36000808 | F8: Luton and Wayfield | G8: 750 | H8: 720 | I8: 700 | J8: 680 | K8: 660 | L8: 650 | M8: 630 | N8: 605 | O8: 575 | P8: 560 | Q8: 580 | R8: 570 | S8: 585 | T8: 615 | U8: 605 | V8: 570 | W8: 555 | X8: 515 | Y8: 500 | Z8: 465 | AA8: 475 | AB8: 460 | AC8: 440 | AD8: 435 | AE8: 450 | AF8: 450 | AG8: 435 | AH8: 425 | AI8: 440 | AJ8: 435 | AK8: 420 | AL8: 410 | AM8: 420 | AN8: 390 | AO8: 375 | AP8: 370 | AQ8: 375 | AR8: 385 | AS8: 380 | AT8: 380 | AU8: 370 | AV8: 355 | AW8: 365 | AX8: 360 | AY8: 350 | AZ8: 355 | BA8: 355 | BB8: 340 | BC8: 355 | BD8: 355 | BE8: 365 | BF8: 360 | BG8: 360 | BH8: 360 | BI8: 355 | BJ8: 365 | BK8: 370 | BL8: 355 | BM8: 360 | BN8: 350 | BO8: 350 | BP8: 360 | BQ8: 345 | BR8: 365 | BS8: 375 | BT8: 355 | BU8: 350 | BV8: 360 | BW8: 355 | BX8: 365 | BY8: 380 | BZ8: 390 | CA8: 420 | CB8: 440 | CC8: 450 | CD8: 470 | CE8: 480 | CF8: 500 | CG8: 510 | CH8: 525 | CI8: 515 | CJ8: 525 | CK8: 535 | CL8: 525 | CM8: 555 | CN8: 555 | CO8: 575 | CP8: 790 | CQ8: 995 | CR8: 995 | CS8: 1005 | CT8: 1025 | CU8: 1030 | CV8: 985 | CW8: 1010 | CX8: 990 | CY8: 1000 | CZ8: 1060 | DA8: 1080 | DB8: 1060 | DC8: 1050 | DD8: 985 | DE8: 945 | DF8: 925 | DG8: 875 | DH8: 905 | DI8: 835 | DJ8: 845 | DK8: 830 | DL8: 825 | DM8: 815 | DN8: 775 | DO8: 740 | DP8: 670 | DQ8: 650 | DR8: 640 | DS8: 645 | DT8: 655 | DU8: 620 | DV8: 610 | DW8: 625 | DX8: 620 | DY8: 625 | DZ8: 665 | EA8: 635 | EB8: 660 | EC8: 635 | ED8: 625 | EE8: 620 | EF8: 620 | EG8: 635 | EH8: 635 | EI8: 655 | EJ8: 645 | EK8: 675 | EL8: 660 | EM8: 685
A9: Medway | B9: 00LCNW | C9: E05002256 | D9: E05002256 | E9: E36000809 | F9: Peninsula | G9: 260 | H9: 265 | I9: 260 | J9: 235 | K9: 220 | L9: 205 | M9: 190 | N9: 200 | O9: 175 | P9: 175 | Q9: 155 | R9: 160 | S9: 175 | T9: 175 | U9: 155 | V9: 140 | W9: 135 | X9: 135 | Y9: 140 | Z9: 140 | AA9: 135 | AB9: 140 | AC9: 145 | AD9: 130 | AE9: 135 | AF9: 140 | AG9: 130 | AH9: 125 | AI9: 125 | AJ9: 115 | AK9: 120 | AL9: 115 | AM9: 110 | AN9: 130 | AO9: 125 | AP9: 115 | AQ9: 115 | AR9: 115 | AS9: 125 | AT9: 120 | AU9: 115 | AV9: 105 | AW9: 115 | AX9: 115 | AY9: 115 | AZ9: 110 | BA9: 115 | BB9: 115 | BC9: 115 | BD9: 125 | BE9: 115 | BF9: 120 | BG9: 110 | BH9: 110 | BI9: 105 | BJ9: 95 | BK9: 95 | BL9: 100 | BM9: 100 | BN9: 110 | BO9: 115 | BP9: 120 | BQ9: 120 | BR9: 120 | BS9: 105 | BT9: 100 | BU9: 110 | BV9: 110 | BW9: 115 | BX9: 120 | BY9: 125 | BZ9: 135 | CA9: 135 | CB9: 145 | CC9: 160 | CD9: 165 | CE9: 165 | CF9: 180 | CG9: 180 | CH9: 180 | CI9: 185 | CJ9: 190 | CK9: 185 | CL9: 200 | CM9: 215 | CN9: 215 | CO9: 220 | CP9: 410 | CQ9: 565 | CR9: 525 | CS9: 525 | CT9: 540 | CU9: 520 | CV9: 490 | CW9: 495 | CX9: 505 | CY9: 485 | CZ9: 490 | DA9: 500 | DB9: 480 | DC9: 455 | DD9: 425 | DE9: 415 | DF9: 380 | DG9: 360 | DH9: 340 | DI9: 340 | DJ9: 330 | DK9: 325 | DL9: 335 | DM9: 310 | DN9: 295 | DO9: 275 | DP9: 265 | DQ9: 245 | DR9: 230 | DS9: 210 | DT9: 205 | DU9: 230 | DV9: 230 | DW9: 255 | DX9: 245 | DY9: 250 | DZ9: 250 | EA9: 255 | EB9: 250 | EC9: 260 | ED9: 245 | EE9: 245 | EF9: 250 | EG9: 255 | EH9: 255 | EI9: 275 | EJ9: 300 | EK9: 285 | EL9: 265 | EM9: 280
A10: Medway | B10: 00LCNX | C10: E05002257 | D10: E05002257 | E10: E36000810 | F10: Princes Park | G10: 225 | H10: 230 | I10: 220 | J10: 225 | K10: 215 | L10: 210 | M10: 195 | N10: 180 | O10: 185 | P10: 175 | Q10: 180 | R10: 175 | S10: 170 | T10: 190 | U10: 160 | V10: 155 | W10: 135 | X10: 130 | Y10: 125 | Z10: 125 | AA10: 130 | AB10: 120 | AC10: 130 | AD10: 120 | AE10: 125 | AF10: 120 | AG10: 120 | AH10: 115 | AI10: 125 | AJ10: 110 | AK10: 95 | AL10: 110 | AM10: 105 | AN10: 100 | AO10: 100 | AP10: 100 | AQ10: 105 | AR10: 110 | AS10: 115 | AT10: 115 | AU10: 100 | AV10: 85 | AW10: 90 | AX10: 100 | AY10: 90 | AZ10: 90 | BA10: 95 | BB10: 95 | BC10: 90 | BD10: 100 | BE10: 100 | BF10: 110 | BG10: 110 | BH10: 100 | BI10: 105 | BJ10: 100 | BK10: 100 | BL10: 105 | BM10: 105 | BN10: 105 | BO10: 105 | BP10: 105 | BQ10: 105 | BR10: 100 | BS10: 100 | BT10: 90 | BU10: 100 | BV10: 105 | BW10: 100 | BX10: 110 | BY10: 110 | BZ10: 125 | CA10: 125 | CB10: 125 | CC10: 135 | CD10: 140 | CE10: 135 | CF10: 155 | CG10: 160 | CH10: 150 | CI10: 150 | CJ10: 150 | CK10: 140 | CL10: 145 | CM10: 155 | CN10: 155 | CO10: 150 | CP10: 265 | CQ10: 395 | CR10: 350 | CS10: 385 | CT10: 385 | CU10: 370 | CV10: 345 | CW10: 340 | CX10: 335 | CY10: 315 | CZ10: 325 | DA10: 345 | DB10: 335 | DC10: 310 | DD10: 290 | DE10: 290 | DF10: 270 | DG10: 250 | DH10: 250 | DI10: 230 | DJ10: 235 | DK10: 225 | DL10: 230 | DM10: 210 | DN10: 185 | DO10: 180 | DP10: 170 | DQ10: 165 | DR10: 165 | DS10: 165 | DT10: 155 | DU10: 170 | DV10: 165 | DW10: 170 | DX10: 170 | DY10: 170 | DZ10: 160 | EA10: 155 | EB10: 160 | EC10: 160 | ED10: 155 | EE10: 160 | EF10: 145 | EG10: 160 | EH10: 165 | EI10: 180 | EJ10: 175 | EK10: 175 | EL10: 185 | EM10: 195
A11: Medway | B11: 00LCNY | C11: E05002258 | D11: E05002258 | E11: E36000811 | F11: Rainham Central | G11: 140 | H11: 145 | I11: 140 | J11: 120 | K11: 115 | L11: 110 | M11: 105 | N11: 110 | O11: 110 | P11: 105 | Q11: 95 | R11: 90 | S11: 105 | T11: 115 | U11: 95 | V11: 90 | W11: 90 | X11: 80 | Y11: 80 | Z11: 70 | AA11: 75 | AB11: 75 | AC11: 70 | AD11: 75 | AE11: 75 | AF11: 70 | AG11: 70 | AH11: 75 | AI11: 80 | AJ11: 75 | AK11: 80 | AL11: 90 | AM11: 80 | AN11: 70 | AO11: 60 | AP11: 50 | AQ11: 60 | AR11: 75 | AS11: 65 | AT11: 65 | AU11: 65 | AV11: 55 | AW11: 45 | AX11: 50 | AY11: 55 | AZ11: 55 | BA11: 55 | BB11: 55 | BC11: 60 | BD11: 65 | BE11: 65 | BF11: 65 | BG11: 65 | BH11: 60 | BI11: 65 | BJ11: 65 | BK11: 70 | BL11: 70 | BM11: 60 | BN11: 60 | BO11: 65 | BP11: 70 | BQ11: 70 | BR11: 75 | BS11: 70 | BT11: 60 | BU11: 45 | BV11: 55 | BW11: 55 | BX11: 65 | BY11: 65 | BZ11: 75 | CA11: 75 | CB11: 85 | CC11: 80 | CD11: 100 | CE11: 85 | CF11: 90 | CG11: 85 | CH11: 90 | CI11: 90 | CJ11: 95 | CK11: 100 | CL11: 85 | CM11: 85 | CN11: 95 | CO11: 95 | CP11: 215 | CQ11: 320 | CR11: 285 | CS11: 260 | CT11: 290 | CU11: 270 | CV11: 255 | CW11: 255 | CX11: 270 | CY11: 260 | CZ11: 265 | DA11: 275 | DB11: 275 | DC11: 250 | DD11: 250 | DE11: 230 | DF11: 215 | DG11: 195 | DH11: 185 | DI11: 180 | DJ11: 165 | DK11: 150 | DL11: 160 | DM11: 145 | DN11: 145 | DO11: 135 | DP11: 120 | DQ11: 130 | DR11: 125 | DS11: 120 | DT11: 130 | DU11: 125 | DV11: 110 | DW11: 110 | DX11: 115 | DY11: 105 | DZ11: 120 | EA11: 110 | EB11: 110 | EC11: 120 | ED11: 130 | EE11: 130 | EF11: 135 | EG11: 135 | EH11: 130 | EI11: 120 | EJ11: 120 | EK11: 140 | EL11: 120 | EM11: 120
A12: Medway | B12: 00LCNZ | C12: E05002259 | D12: E05002259 | E12: E36000812 | F12: Rainham North | G12: 165 | H12: 150 | I12: 140 | J12: 135 | K12: 120 | L12: 115 | M12: 115 | N12: 120 | O12: 120 | P12: 115 | Q12: 110 | R12: 110 | S12: 115 | T12: 115 | U12: 105 | V12: 105 | W12: 105 | X12: 105 | Y12: 100 | Z12: 95 | AA12: 90 | AB12: 75 | AC12: 80 | AD12: 80 | AE12: 75 | AF12: 75 | AG12: 75 | AH12: 80 | AI12: 75 | AJ12: 75 | AK12: 80 | AL12: 80 | AM12: 80 | AN12: 80 | AO12: 75 | AP12: 80 | AQ12: 85 | AR12: 85 | AS12: 80 | AT12: 90 | AU12: 80 | AV12: 75 | AW12: 80 | AX12: 75 | AY12: 75 | AZ12: 75 | BA12: 75 | BB12: 80 | BC12: 75 | BD12: 75 | BE12: 80 | BF12: 80 | BG12: 75 | BH12: 70 | BI12: 75 | BJ12: 80 | BK12: 65 | BL12: 65 | BM12: 70 | BN12: 65 | BO12: 60 | BP12: 65 | BQ12: 70 | BR12: 70 | BS12: 70 | BT12: 65 | BU12: 60 | BV12: 65 | BW12: 65 | BX12: 80 | BY12: 75 | BZ12: 85 | CA12: 80 | CB12: 90 | CC12: 95 | CD12: 110 | CE12: 105 | CF12: 95 | CG12: 105 | CH12: 100 | CI12: 105 | CJ12: 105 | CK12: 100 | CL12: 95 | CM12: 105 | CN12: 100 | CO12: 100 | CP12: 210 | CQ12: 285 | CR12: 260 | CS12: 280 | CT12: 300 | CU12: 265 | CV12: 250 | CW12: 240 | CX12: 250 | CY12: 245 | CZ12: 265 | DA12: 260 | DB12: 255 | DC12: 235 | DD12: 230 | DE12: 225 | DF12: 215 | DG12: 200 | DH12: 185 | DI12: 170 | DJ12: 170 | DK12: 175 | DL12: 185 | DM12: 170 | DN12: 160 | DO12: 140 | DP12: 130 | DQ12: 135 | DR12: 130 | DS12: 135 | DT12: 135 | DU12: 140 | DV12: 140 | DW12: 150 | DX12: 155 | DY12: 155 | DZ12: 155 | EA12: 140 | EB12: 150 | EC12: 140 | ED12: 145 | EE12: 135 | EF12: 140 | EG12: 145 | EH12: 155 | EI12: 160 | EJ12: 170 | EK12: 185 | EL12: 175 | EM12: 185
A13: Medway | B13: 00LCPA | C13: E05002260 | D13: E05002260 | E13: E36000813 | F13: Rainham South | G13: 190 | H13: 190 | I13: 185 | J13: 185 | K13: 180 | L13: 180 | M13: 155 | N13: 145 | O13: 150 | P13: 155 | Q13: 140 | R13: 140 | S13: 150 | T13: 145 | U13: 135 | V13: 130 | W13: 130 | X13: 120 | Y13: 130 | Z13: 125 | AA13: 110 | AB13: 100 | AC13: 100 | AD13: 95 | AE13: 95 | AF13: 90 | AG13: 95 | AH13: 95 | AI13: 95 | AJ13: 90 | AK13: 90 | AL13: 90 | AM13: 90 | AN13: 85 | AO13: 85 | AP13: 85 | AQ13: 85 | AR13: 95 | AS13: 105 | AT13: 100 | AU13: 90 | AV13: 80 | AW13: 80 | AX13: 85 | AY13: 85 | AZ13: 90 | BA13: 80 | BB13: 75 | BC13: 70 | BD13: 65 | BE13: 70 | BF13: 70 | BG13: 65 | BH13: 60 | BI13: 65 | BJ13: 65 | BK13: 70 | BL13: 75 | BM13: 75 | BN13: 75 | BO13: 75 | BP13: 70 | BQ13: 65 | BR13: 65 | BS13: 70 | BT13: 60 | BU13: 70 | BV13: 85 | BW13: 90 | BX13: 95 | BY13: 85 | BZ13: 90 | CA13: 100 | CB13: 110 | CC13: 120 | CD13: 115 | CE13: 120 | CF13: 135 | CG13: 130 | CH13: 115 | CI13: 110 | CJ13: 130 | CK13: 135 | CL13: 140 | CM13: 145 | CN13: 155 | CO13: 165 | CP13: 310 | CQ13: 395 | CR13: 365 | CS13: 350 | CT13: 385 | CU13: 375 | CV13: 380 | CW13: 380 | CX13: 375 | CY13: 375 | CZ13: 390 | DA13: 390 | DB13: 360 | DC13: 340 | DD13: 320 | DE13: 320 | DF13: 300 | DG13: 295 | DH13: 280 | DI13: 250 | DJ13: 255 | DK13: 235 | DL13: 210 | DM13: 210 | DN13: 205 | DO13: 205 | DP13: 195 | DQ13: 205 | DR13: 195 | DS13: 185 | DT13: 175 | DU13: 165 | DV13: 170 | DW13: 175 | DX13: 175 | DY13: 170 | DZ13: 165 | EA13: 160 | EB13: 195 | EC13: 185 | ED13: 180 | EE13: 160 | EF13: 175 | EG13: 190 | EH13: 180 | EI13: 190 | EJ13: 190 | EK13: 200 | EL13: 190 | EM13: 200
A14: Medway | B14: 00LCPB | C14: E05002261 | D14: E05002261 | E14: E36000814 | F14: River | G14: 380 | H14: 380 | I14: 355 | J14: 340 | K14: 340 | L14: 345 | M14: 335 | N14: 335 | O14: 305 | P14: 315 | Q14: 320 | R14: 295 | S14: 305 | T14: 315 | U14: 305 | V14: 295 | W14: 295 | X14: 290 | Y14: 270 | Z14: 285 | AA14: 270 | AB14: 260 | AC14: 245 | AD14: 240 | AE14: 250 | AF14: 250 | AG14: 245 | AH14: 250 | AI14: 255 | AJ14: 240 | AK14: 240 | AL14: 235 | AM14: 240 | AN14: 245 | AO14: 225 | AP14: 220 | AQ14: 230 | AR14: 240 | AS14: 230 | AT14: 240 | AU14: 240 | AV14: 225 | AW14: 240 | AX14: 240 | AY14: 225 | AZ14: 225 | BA14: 230 | BB14: 240 | BC14: 245 | BD14: 245 | BE14: 250 | BF14: 250 | BG14: 230 | BH14: 235 | BI14: 240 | BJ14: 240 | BK14: 240 | BL14: 245 | BM14: 245 | BN14: 250 | BO14: 265 | BP14: 265 | BQ14: 275 | BR14: 260 | BS14: 255 | BT14: 245 | BU14: 240 | BV14: 270 | BW14: 300 | BX14: 305 | BY14: 300 | BZ14: 340 | CA14: 345 | CB14: 365 | CC14: 380 | CD14: 385 | CE14: 395 | CF14: 425 | CG14: 415 | CH14: 425 | CI14: 430 | CJ14: 425 | CK14: 445 | CL14: 425 | CM14: 445 | CN14: 470 | CO14: 475 | CP14: 610 | CQ14: 685 | CR14: 655 | CS14: 675 | CT14: 690 | CU14: 680 | CV14: 680 | CW14: 665 | CX14: 685 | CY14: 675 | CZ14: 685 | DA14: 695 | DB14: 690 | DC14: 680 | DD14: 665 | DE14: 670 | DF14: 640 | DG14: 620 | DH14: 625 | DI14: 625 | DJ14: 605 | DK14: 570 | DL14: 545 | DM14: 515 | DN14: 515 | DO14: 505 | DP14: 475 | DQ14: 455 | DR14: 460 | DS14: 450 | DT14: 425 | DU14: 440 | DV14: 430 | DW14: 440 | DX14: 445 | DY14: 450 | DZ14: 485 | EA14: 480 | EB14: 500 | EC14: 505 | ED14: 510 | EE14: 495 | EF14: 490 | EG14: 505 | EH14: 505 | EI14: 515 | EJ14: 535 | EK14: 555 | EL14: 585 | EM14: 625
A15: Medway | B15: 00LCPC | C15: E05002262 | D15: E05002262 | E15: E36000815 | F15: Rochester East | G15: 320 | H15: 345 | I15: 335 | J15: 320 | K15: 305 | L15: 295 | M15: 280 | N15: 290 | O15: 290 | P15: 260 | Q15: 240 | R15: 235 | S15: 250 | T15: 245 | U15: 250 | V15: 235 | W15: 225 | X15: 215 | Y15: 205 | Z15: 210 | AA15: 200 | AB15: 180 | AC15: 175 | AD15: 185 | AE15: 195 | AF15: 205 | AG15: 190 | AH15: 195 | AI15: 175 | AJ15: 185 | AK15: 190 | AL15: 190 | AM15: 180 | AN15: 180 | AO15: 175 | AP15: 175 | AQ15: 170 | AR15: 180 | AS15: 175 | AT15: 180 | AU15: 175 | AV15: 185 | AW15: 165 | AX15: 170 | AY15: 180 | AZ15: 175 | BA15: 170 | BB15: 165 | BC15: 175 | BD15: 175 | BE15: 175 | BF15: 180 | BG15: 175 | BH15: 165 | BI15: 160 | BJ15: 165 | BK15: 170 | BL15: 165 | BM15: 165 | BN15: 160 | BO15: 160 | BP15: 180 | BQ15: 180 | BR15: 180 | BS15: 175 | BT15: 165 | BU15: 170 | BV15: 180 | BW15: 185 | BX15: 190 | BY15: 185 | BZ15: 205 | CA15: 210 | CB15: 230 | CC15: 245 | CD15: 240 | CE15: 235 | CF15: 255 | CG15: 260 | CH15: 250 | CI15: 265 | CJ15: 255 | CK15: 245 | CL15: 250 | CM15: 245 | CN15: 255 | CO15: 250 | CP15: 435 | CQ15: 555 | CR15: 510 | CS15: 535 | CT15: 560 | CU15: 545 | CV15: 530 | CW15: 530 | CX15: 515 | CY15: 520 | CZ15: 540 | DA15: 555 | DB15: 555 | DC15: 525 | DD15: 465 | DE15: 460 | DF15: 435 | DG15: 440 | DH15: 440 | DI15: 405 | DJ15: 400 | DK15: 385 | DL15: 375 | DM15: 375 | DN15: 355 | DO15: 345 | DP15: 315 | DQ15: 285 | DR15: 275 | DS15: 290 | DT15: 300 | DU15: 305 | DV15: 305 | DW15: 305 | DX15: 300 | DY15: 315 | DZ15: 315 | EA15: 330 | EB15: 335 | EC15: 355 | ED15: 335 | EE15: 345 | EF15: 350 | EG15: 350 | EH15: 345 | EI15: 345 | EJ15: 340 | EK15: 365 | EL15: 335 | EM15: 340
A16: Medway | B16: 00LCPD | C16: E05002263 | D16: E05002263 | E16: E36000816 | F16: Rochester South and Horsted | G16: 180 | H16: 185 | I16: 185 | J16: 180 | K16: 175 | L16: 170 | M16: 170 | N16: 175 | O16: 185 | P16: 175 | Q16: 185 | R16: 160 | S16: 170 | T16: 160 | U16: 150 | V16: 150 | W16: 140 | X16: 125 | Y16: 120 | Z16: 115 | AA16: 115 | AB16: 105 | AC16: 95 | AD16: 85 | AE16: 100 | AF16: 105 | AG16: 100 | AH16: 95 | AI16: 100 | AJ16: 105 | AK16: 110 | AL16: 100 | AM16: 105 | AN16: 110 | AO16: 105 | AP16: 105 | AQ16: 100 | AR16: 110 | AS16: 105 | AT16: 105 | AU16: 100 | AV16: 95 | AW16: 90 | AX16: 100 | AY16: 100 | AZ16: 90 | BA16: 85 | BB16: 75 | BC16: 80 | BD16: 85 | BE16: 85 | BF16: 85 | BG16: 90 | BH16: 85 | BI16: 85 | BJ16: 90 | BK16: 85 | BL16: 80 | BM16: 75 | BN16: 75 | BO16: 75 | BP16: 85 | BQ16: 90 | BR16: 95 | BS16: 95 | BT16: 90 | BU16: 80 | BV16: 90 | BW16: 90 | BX16: 100 | BY16: 105 | BZ16: 110 | CA16: 120 | CB16: 120 | CC16: 130 | CD16: 135 | CE16: 130 | CF16: 125 | CG16: 140 | CH16: 145 | CI16: 140 | CJ16: 140 | CK16: 145 | CL16: 150 | CM16: 150 | CN16: 135 | CO16: 145 | CP16: 285 | CQ16: 435 | CR16: 395 | CS16: 420 | CT16: 430 | CU16: 435 | CV16: 415 | CW16: 415 | CX16: 420 | CY16: 395 | CZ16: 415 | DA16: 410 | DB16: 410 | DC16: 390 | DD16: 345 | DE16: 340 | DF16: 310 | DG16: 270 | DH16: 235 | DI16: 225 | DJ16: 220 | DK16: 225 | DL16: 235 | DM16: 200 | DN16: 190 | DO16: 175 | DP16: 175 | DQ16: 170 | DR16: 170 | DS16: 175 | DT16: 170 | DU16: 180 | DV16: 175 | DW16: 165 | DX16: 175 | DY16: 180 | DZ16: 185 | EA16: 195 | EB16: 185 | EC16: 175 | ED16: 190 | EE16: 190 | EF16: 180 | EG16: 180 | EH16: 185 | EI16: 180 | EJ16: 185 | EK16: 190 | EL16: 190 | EM16: 185
A17: Medway | B17: 00LCPE | C17: E05002264 | D17: E05002264 | E17: E36000817 | F17: Rochester West | G17: 210 | H17: 230 | I17: 220 | J17: 210 | K17: 200 | L17: 195 | M17: 190 | N17: 195 | O17: 195 | P17: 180 | Q17: 170 | R17: 175 | S17: 175 | T17: 185 | U17: 180 | V17: 170 | W17: 165 | X17: 140 | Y17: 140 | Z17: 125 | AA17: 130 | AB17: 135 | AC17: 125 | AD17: 125 | AE17: 130 | AF17: 135 | AG17: 120 | AH17: 120 | AI17: 115 | AJ17: 120 | AK17: 120 | AL17: 125 | AM17: 120 | AN17: 120 | AO17: 125 | AP17: 110 | AQ17: 110 | AR17: 125 | AS17: 125 | AT17: 120 | AU17: 120 | AV17: 120 | AW17: 120 | AX17: 125 | AY17: 135 | AZ17: 130 | BA17: 120 | BB17: 115 | BC17: 125 | BD17: 125 | BE17: 130 | BF17: 125 | BG17: 125 | BH17: 125 | BI17: 120 | BJ17: 115 | BK17: 110 | BL17: 110 | BM17: 105 | BN17: 105 | BO17: 110 | BP17: 110 | BQ17: 105 | BR17: 105 | BS17: 110 | BT17: 95 | BU17: 95 | BV17: 95 | BW17: 95 | BX17: 115 | BY17: 115 | BZ17: 125 | CA17: 130 | CB17: 135 | CC17: 155 | CD17: 175 | CE17: 165 | CF17: 180 | CG17: 160 | CH17: 170 | CI17: 175 | CJ17: 185 | CK17: 180 | CL17: 180 | CM17: 185 | CN17: 205 | CO17: 210 | CP17: 340 | CQ17: 460 | CR17: 430 | CS17: 465 | CT17: 490 | CU17: 490 | CV17: 460 | CW17: 445 | CX17: 440 | CY17: 430 | CZ17: 470 | DA17: 465 | DB17: 440 | DC17: 420 | DD17: 380 | DE17: 365 | DF17: 350 | DG17: 310 | DH17: 310 | DI17: 300 | DJ17: 295 | DK17: 270 | DL17: 285 | DM17: 280 | DN17: 260 | DO17: 250 | DP17: 245 | DQ17: 235 | DR17: 250 | DS17: 240 | DT17: 220 | DU17: 230 | DV17: 235 | DW17: 240 | DX17: 255 | DY17: 255 | DZ17: 235 | EA17: 235 | EB17: 235 | EC17: 230 | ED17: 240 | EE17: 235 | EF17: 240 | EG17: 235 | EH17: 230 | EI17: 220 | EJ17: 235 | EK17: 240 | EL17: 240 | EM17: 255
A18: Medway | B18: 00LCPF | C18: E05002265 | D18: E05002265 | E18: E36000818 | F18: Strood North | G18: 370 | H18: 390 | I18: 365 | J18: 375 | K18: 360 | L18: 350 | M18: 340 | N18: 315 | O18: 295 | P18: 285 | Q18: 265 | R18: 260 | S18: 255 | T18: 260 | U18: 275 | V18: 255 | W18: 240 | X18: 230 | Y18: 230 | Z18: 225 | AA18: 220 | AB18: 195 | AC18: 200 | AD18: 185 | AE18: 185 | AF18: 185 | AG18: 200 | AH18: 190 | AI18: 180 | AJ18: 175 | AK18: 165 | AL18: 170 | AM18: 180 | AN18: 180 | AO18: 175 | AP18: 180 | AQ18: 190 | AR18: 205 | AS18: 215 | AT18: 220 | AU18: 205 | AV18: 195 | AW18: 195 | AX18: 190 | AY18: 185 | AZ18: 160 | BA18: 165 | BB18: 170 | BC18: 160 | BD18: 165 | BE18: 165 | BF18: 175 | BG18: 165 | BH18: 160 | BI18: 165 | BJ18: 170 | BK18: 165 | BL18: 145 | BM18: 150 | BN18: 150 | BO18: 160 | BP18: 160 | BQ18: 165 | BR18: 170 | BS18: 185 | BT18: 165 | BU18: 165 | BV18: 175 | BW18: 190 | BX18: 185 | BY18: 175 | BZ18: 180 | CA18: 195 | CB18: 210 | CC18: 220 | CD18: 225 | CE18: 220 | CF18: 225 | CG18: 225 | CH18: 225 | CI18: 235 | CJ18: 245 | CK18: 270 | CL18: 250 | CM18: 260 | CN18: 285 | CO18: 290 | CP18: 500 | CQ18: 660 | CR18: 610 | CS18: 640 | CT18: 635 | CU18: 630 | CV18: 600 | CW18: 585 | CX18: 585 | CY18: 590 | CZ18: 630 | DA18: 620 | DB18: 630 | DC18: 590 | DD18: 545 | DE18: 525 | DF18: 510 | DG18: 470 | DH18: 465 | DI18: 465 | DJ18: 410 | DK18: 400 | DL18: 410 | DM18: 390 | DN18: 375 | DO18: 345 | DP18: 330 | DQ18: 315 | DR18: 305 | DS18: 315 | DT18: 315 | DU18: 310 | DV18: 320 | DW18: 310 | DX18: 320 | DY18: 320 | DZ18: 315 | EA18: 305 | EB18: 325 | EC18: 330 | ED18: 325 | EE18: 325 | EF18: 315 | EG18: 315 | EH18: 310 | EI18: 305 | EJ18: 330 | EK18: 320 | EL18: 330 | EM18: 350
A19: Medway | B19: 00LCPG | C19: E05002266 | D19: E05002266 | E19: E36000819 | F19: Strood Rural | G19: 200 | H19: 185 | I19: 185 | J19: 180 | K19: 185 | L19: 170 | M19: 170 | N19: 170 | O19: 150 | P19: 140 | Q19: 140 | R19: 155 | S19: 165 | T19: 165 | U19: 155 | V19: 145 | W19: 125 | X19: 120 | Y19: 120 | Z19: 125 | AA19: 130 | AB19: 135 | AC19: 120 | AD19: 120 | AE19: 120 | AF19: 105 | AG19: 125 | AH19: 125 | AI19: 115 | AJ19: 110 | AK19: 110 | AL19: 100 | AM19: 105 | AN19: 95 | AO19: 95 | AP19: 90 | AQ19: 95 | AR19: 105 | AS19: 100 | AT19: 100 | AU19: 95 | AV19: 105 | AW19: 95 | AX19: 105 | AY19: 100 | AZ19: 105 | BA19: 95 | BB19: 105 | BC19: 100 | BD19: 105 | BE19: 110 | BF19: 100 | BG19: 105 | BH19: 95 | BI19: 100 | BJ19: 100 | BK19: 95 | BL19: 95 | BM19: 95 | BN19: 100 | BO19: 105 | BP19: 105 | BQ19: 105 | BR19: 105 | BS19: 120 | BT19: 110 | BU19: 100 | BV19: 100 | BW19: 100 | BX19: 110 | BY19: 115 | BZ19: 120 | CA19: 115 | CB19: 140 | CC19: 160 | CD19: 165 | CE19: 160 | CF19: 155 | CG19: 165 | CH19: 170 | CI19: 165 | CJ19: 180 | CK19: 175 | CL19: 180 | CM19: 185 | CN19: 190 | CO19: 180 | CP19: 365 | CQ19: 515 | CR19: 470 | CS19: 495 | CT19: 520 | CU19: 485 | CV19: 450 | CW19: 465 | CX19: 445 | CY19: 430 | CZ19: 455 | DA19: 450 | DB19: 440 | DC19: 380 | DD19: 370 | DE19: 360 | DF19: 335 | DG19: 320 | DH19: 315 | DI19: 300 | DJ19: 295 | DK19: 290 | DL19: 290 | DM19: 285 | DN19: 250 | DO19: 250 | DP19: 240 | DQ19: 245 | DR19: 220 | DS19: 215 | DT19: 220 | DU19: 215 | DV19: 210 | DW19: 235 | DX19: 240 | DY19: 225 | DZ19: 220 | EA19: 215 | EB19: 220 | EC19: 210 | ED19: 225 | EE19: 240 | EF19: 225 | EG19: 235 | EH19: 225 | EI19: 225 | EJ19: 230 | EK19: 225 | EL19: 225 | EM19: 220
A20: Medway | B20: 00LCPH | C20: E05002267 | D20: E05002267 | E20: E36000820 | F20: Strood South | G20: 445 | H20: 460 | I20: 455 | J20: 445 | K20: 420 | L20: 390 | M20: 380 | N20: 365 | O20: 355 | P20: 330 | Q20: 305 | R20: 290 | S20: 290 | T20: 290 | U20: 285 | V20: 275 | W20: 280 | X20: 260 | Y20: 260 | Z20: 245 | AA20: 255 | AB20: 240 | AC20: 215 | AD20: 200 | AE20: 220 | AF20: 240 | AG20: 230 | AH20: 220 | AI20: 220 | AJ20: 210 | AK20: 210 | AL20: 215 | AM20: 230 | AN20: 230 | AO20: 210 | AP20: 205 | AQ20: 205 | AR20: 220 | AS20: 210 | AT20: 210 | AU20: 205 | AV20: 200 | AW20: 205 | AX20: 195 | AY20: 185 | AZ20: 210 | BA20: 200 | BB20: 190 | BC20: 175 | BD20: 180 | BE20: 195 | BF20: 180 | BG20: 180 | BH20: 175 | BI20: 195 | BJ20: 190 | BK20: 185 | BL20: 185 | BM20: 185 | BN20: 190 | BO20: 200 | BP20: 190 | BQ20: 190 | BR20: 180 | BS20: 190 | BT20: 180 | BU20: 205 | BV20: 225 | BW20: 235 | BX20: 240 | BY20: 245 | BZ20: 285 | CA20: 290 | CB20: 285 | CC20: 280 | CD20: 300 | CE20: 290 | CF20: 300 | CG20: 305 | CH20: 310 | CI20: 305 | CJ20: 320 | CK20: 330 | CL20: 320 | CM20: 315 | CN20: 335 | CO20: 345 | CP20: 555 | CQ20: 745 | CR20: 695 | CS20: 715 | CT20: 735 | CU20: 725 | CV20: 705 | CW20: 715 | CX20: 685 | CY20: 685 | CZ20: 720 | DA20: 745 | DB20: 720 | DC20: 690 | DD20: 650 | DE20: 630 | DF20: 625 | DG20: 585 | DH20: 575 | DI20: 550 | DJ20: 520 | DK20: 505 | DL20: 485 | DM20: 475 | DN20: 465 | DO20: 425 | DP20: 415 | DQ20: 395 | DR20: 400 | DS20: 395 | DT20: 380 | DU20: 395 | DV20: 405 | DW20: 425 | DX20: 430 | DY20: 435 | DZ20: 430 | EA20: 420 | EB20: 415 | EC20: 415 | ED20: 405 | EE20: 420 | EF20: 445 | EG20: 450 | EH20: 420 | EI20: 415 | EJ20: 425 | EK20: 445 | EL20: 440 | EM20: 450
A21: Medway | B21: 00LCPJ | C21: E05002268 | D21: E05002268 | E21: E36000821 | F21: Twydall | G21: 320 | H21: 330 | I21: 325 | J21: 315 | K21: 300 | L21: 295 | M21: 285 | N21: 275 | O21: 270 | P21: 275 | Q21: 280 | R21: 265 | S21: 270 | T21: 270 | U21: 265 | V21: 250 | W21: 240 | X21: 220 | Y21: 215 | Z21: 205 | AA21: 205 | AB21: 205 | AC21: 200 | AD21: 170 | AE21: 185 | AF21: 195 | AG21: 185 | AH21: 190 | AI21: 190 | AJ21: 180 | AK21: 170 | AL21: 160 | AM21: 175 | AN21: 180 | AO21: 160 | AP21: 160 | AQ21: 165 | AR21: 180 | AS21: 175 | AT21: 185 | AU21: 175 | AV21: 165 | AW21: 175 | AX21: 175 | AY21: 180 | AZ21: 180 | BA21: 165 | BB21: 175 | BC21: 165 | BD21: 165 | BE21: 170 | BF21: 170 | BG21: 170 | BH21: 160 | BI21: 140 | BJ21: 130 | BK21: 135 | BL21: 140 | BM21: 140 | BN21: 135 | BO21: 145 | BP21: 160 | BQ21: 160 | BR21: 155 | BS21: 160 | BT21: 155 | BU21: 160 | BV21: 160 | BW21: 165 | BX21: 180 | BY21: 190 | BZ21: 195 | CA21: 200 | CB21: 225 | CC21: 240 | CD21: 255 | CE21: 275 | CF21: 265 | CG21: 270 | CH21: 275 | CI21: 280 | CJ21: 285 | CK21: 280 | CL21: 275 | CM21: 280 | CN21: 300 | CO21: 300 | CP21: 480 | CQ21: 590 | CR21: 545 | CS21: 570 | CT21: 585 | CU21: 595 | CV21: 580 | CW21: 600 | CX21: 585 | CY21: 575 | CZ21: 590 | DA21: 595 | DB21: 580 | DC21: 560 | DD21: 495 | DE21: 490 | DF21: 490 | DG21: 470 | DH21: 445 | DI21: 425 | DJ21: 405 | DK21: 400 | DL21: 385 | DM21: 360 | DN21: 345 | DO21: 330 | DP21: 315 | DQ21: 310 | DR21: 300 | DS21: 305 | DT21: 285 | DU21: 290 | DV21: 310 | DW21: 305 | DX21: 300 | DY21: 310 | DZ21: 320 | EA21: 310 | EB21: 290 | EC21: 285 | ED21: 275 | EE21: 260 | EF21: 275 | EG21: 275 | EH21: 275 | EI21: 285 | EJ21: 280 | EK21: 285 | EL21: 260 | EM21: 275
A22: Medway | B22: 00LCPK | C22: E05002269 | D22: E05002269 | E22: E36000822 | F22: Walderslade | G22: 200 | H22: 220 | I22: 215 | J22: 195 | K22: 185 | L22: 180 | M22: 180 | N22: 180 | O22: 175 | P22: 165 | Q22: 160 | R22: 160 | S22: 160 | T22: 165 | U22: 165 | V22: 150 | W22: 155 | X22: 145 | Y22: 130 | Z22: 120 | AA22: 110 | AB22: 105 | AC22: 95 | AD22: 105 | AE22: 115 | AF22: 105 | AG22: 105 | AH22: 115 | AI22: 115 | AJ22: 105 | AK22: 115 | AL22: 105 | AM22: 95 | AN22: 100 | AO22: 95 | AP22: 95 | AQ22: 100 | AR22: 105 | AS22: 100 | AT22: 100 | AU22: 95 | AV22: 85 | AW22: 90 | AX22: 85 | AY22: 90 | AZ22: 100 | BA22: 100 | BB22: 95 | BC22: 85 | BD22: 90 | BE22: 100 | BF22: 95 | BG22: 95 | BH22: 90 | BI22: 95 | BJ22: 100 | BK22: 90 | BL22: 95 | BM22: 90 | BN22: 90 | BO22: 95 | BP22: 100 | BQ22: 100 | BR22: 100 | BS22: 95 | BT22: 90 | BU22: 90 | BV22: 85 | BW22: 90 | BX22: 95 | BY22: 95 | BZ22: 95 | CA22: 105 | CB22: 120 | CC22: 130 | CD22: 135 | CE22: 140 | CF22: 145 | CG22: 155 | CH22: 145 | CI22: 145 | CJ22: 140 | CK22: 160 | CL22: 160 | CM22: 145 | CN22: 145 | CO22: 145 | CP22: 255 | CQ22: 360 | CR22: 310 | CS22: 310 | CT22: 330 | CU22: 325 | CV22: 305 | CW22: 300 | CX22: 295 | CY22: 300 | CZ22: 315 | DA22: 320 | DB22: 320 | DC22: 305 | DD22: 265 | DE22: 255 | DF22: 230 | DG22: 225 | DH22: 220 | DI22: 210 | DJ22: 205 | DK22: 195 | DL22: 205 | DM22: 190 | DN22: 180 | DO22: 160 | DP22: 150 | DQ22: 160 | DR22: 150 | DS22: 170 | DT22: 140 | DU22: 155 | DV22: 150 | DW22: 140 | DX22: 160 | DY22: 150 | DZ22: 155 | EA22: 155 | EB22: 160 | EC22: 165 | ED22: 160 | EE22: 160 | EF22: 175 | EG22: 175 | EH22: 185 | EI22: 190 | EJ22: 190 | EK22: 180 | EL22: 180 | EM22: 195
A23: Medway | B23: 00LCPL | C23: E05002270 | D23: E05002270 | E23: E36000823 | F23: Watling | G23: 175 | H23: 185 | I23: 195 | J23: 165 | K23: 150 | L23: 135 | M23: 130 | N23: 135 | O23: 135 | P23: 130 | Q23: 120 | R23: 115 | S23: 135 | T23: 135 | U23: 140 | V23: 130 | W23: 125 | X23: 105 | Y23: 95 | Z23: 100 | AA23: 85 | AB23: 95 | AC23: 85 | AD23: 90 | AE23: 90 | AF23: 85 | AG23: 85 | AH23: 90 | AI23: 90 | AJ23: 80 | AK23: 70 | AL23: 70 | AM23: 75 | AN23: 85 | AO23: 80 | AP23: 90 | AQ23: 105 | AR23: 100 | AS23: 110 | AT23: 105 | AU23: 100 | AV23: 95 | AW23: 90 | AX23: 90 | AY23: 90 | AZ23: 80 | BA23: 85 | BB23: 85 | BC23: 85 | BD23: 85 | BE23: 90 | BF23: 85 | BG23: 85 | BH23: 80 | BI23: 90 | BJ23: 90 | BK23: 90 | BL23: 85 | BM23: 85 | BN23: 85 | BO23: 90 | BP23: 90 | BQ23: 95 | BR23: 100 | BS23: 100 | BT23: 85 | BU23: 90 | BV23: 90 | BW23: 100 | BX23: 110 | BY23: 105 | BZ23: 115 | CA23: 120 | CB23: 115 | CC23: 125 | CD23: 125 | CE23: 135 | CF23: 130 | CG23: 145 | CH23: 145 | CI23: 135 | CJ23: 135 | CK23: 145 | CL23: 155 | CM23: 150 | CN23: 155 | CO23: 150 | CP23: 235 | CQ23: 330 | CR23: 325 | CS23: 335 | CT23: 340 | CU23: 340 | CV23: 325 | CW23: 340 | CX23: 350 | CY23: 340 | CZ23: 350 | DA23: 345 | DB23: 340 | DC23: 330 | DD23: 315 | DE23: 295 | DF23: 285 | DG23: 270 | DH23: 250 | DI23: 245 | DJ23: 235 | DK23: 230 | DL23: 230 | DM23: 220 | DN23: 195 | DO23: 195 | DP23: 180 | DQ23: 170 | DR23: 175 | DS23: 155 | DT23: 160 | DU23: 150 | DV23: 165 | DW23: 175 | DX23: 170 | DY23: 165 | DZ23: 175 | EA23: 165 | EB23: 170 | EC23: 170 | ED23: 175 | EE23: 170 | EF23: 160 | EG23: 170 | EH23: 155 | EI23: 145 | EJ23: 150 | EK23: 175 | EL23: 155 | EM23: 170
A24: Ashford | B24: 29UBGZ | C24: E05011743 | F24: Aylesford & East Stour | G24: 170 | H24: 185 | I24: 190 | J24: 180 | K24: 175 | L24: 155 | M24: 150 | N24: 145 | O24: 140 | P24: 140 | Q24: 140 | R24: 130 | S24: 140 | T24: 130 | U24: 125 | V24: 135 | W24: 130 | X24: 110 | Y24: 105 | Z24: 105 | AA24: 95 | AB24: 90 | AC24: 95 | AD24: 85 | AE24: 85 | AF24: 90 | AG24: 80 | AH24: 95 | AI24: 95 | AJ24: 100 | AK24: 100 | AL24: 95 | AM24: 95 | AN24: 95 | AO24: 100 | AP24: 100 | AQ24: 110 | AR24: 105 | AS24: 100 | AT24: 110 | AU24: 100 | AV24: 100 | AW24: 100 | AX24: 95 | AY24: 90 | AZ24: 100 | BA24: 95 | BB24: 95 | BC24: 105 | BD24: 110 | BE24: 110 | BF24: 110 | BG24: 100 | BH24: 100 | BI24: 95 | BJ24: 95 | BK24: 105 | BL24: 105 | BM24: 100 | BN24: 110 | BO24: 100 | BP24: 100 | BQ24: 100 | BR24: 105 | BS24: 105 | BT24: 105 | BU24: 100 | BV24: 100 | BW24: 95 | BX24: 110 | BY24: 125 | BZ24: 125 | CA24: 135 | CB24: 140 | CC24: 150 | CD24: 150 | CE24: 155 | CF24: 155 | CG24: 160 | CH24: 160 | CI24: 165 | CJ24: 180 | CK24: 175 | CL24: 195 | CM24: 190 | CN24: 190 | CO24: 195 | CP24: 310 | CQ24: 360 | CR24: 345 | CS24: 360 | CT24: 370 | CU24: 360 | CV24: 340 | CW24: 340 | CX24: 320 | CY24: 330 | CZ24: 335 | DA24: 320 | DB24: 330 | DC24: 315 | DD24: 300 | DE24: 295 | DF24: 275 | DG24: 270 | DH24: 240 | DI24: 240 | DJ24: 230 | DK24: 235 | DL24: 225 | DM24: 200 | DN24: 200 | DO24: 190 | DP24: 170 | DQ24: 160 | DR24: 160 | DS24: 165 | DT24: 145 | DU24: 160 | DV24: 165 | DW24: 175 | DX24: 180 | DY24: 180 | DZ24: 180 | EA24: 175 | EB24: 180 | EC24: 190 | ED24: 165 | EE24: 175 | EF24: 195 | EG24: 190 | EH24: 200 | EI24: 190 | EJ24: 200 | EK24: 200 | EL24: 195 | EM24: 195
A25: Ashford | B25: 29UBHA | C25: E05011744 | F25: Beaver | G25: 225 | H25: 225 | I25: 225 | J25: 215 | K25: 205 | L25: 195 | M25: 190 | N25: 185 | O25: 160 | P25: 170 | Q25: 170 | R25: 160 | S25: 160 | T25: 155 | U25: 160 | V25: 160 | W25: 155 | X25: 145 | Y25: 125 | Z25: 115 | AA25: 105 | AB25: 100 | AC25: 105 | AD25: 100 | AE25: 110 | AF25: 120 | AG25: 115 | AH25: 110 | AI25: 100 | AJ25: 95 | AK25: 100 | AL25: 90 | AM25: 100 | AN25: 105 | AO25: 105 | AP25: 110 | AQ25: 105 | AR25: 110 | AS25: 115 | AT25: 110 | AU25: 115 | AV25: 105 | AW25: 115 | AX25: 115 | AY25: 110 | AZ25: 110 | BA25: 110 | BB25: 110 | BC25: 115 | BD25: 125 | BE25: 130 | BF25: 135 | BG25: 130 | BH25: 130 | BI25: 130 | BJ25: 135 | BK25: 130 | BL25: 135 | BM25: 135 | BN25: 150 | BO25: 155 | BP25: 165 | BQ25: 160 | BR25: 145 | BS25: 140 | BT25: 145 | BU25: 135 | BV25: 140 | BW25: 150 | BX25: 170 | BY25: 175 | BZ25: 180 | CA25: 190 | CB25: 195 | CC25: 185 | CD25: 195 | CE25: 190 | CF25: 195 | CG25: 190 | CH25: 190 | CI25: 195 | CJ25: 205 | CK25: 215 | CL25: 210 | CM25: 210 | CN25: 230 | CO25: 235 | CP25: 340 | CQ25: 395 | CR25: 380 | CS25: 385 | CT25: 390 | CU25: 380 | CV25: 365 | CW25: 380 | CX25: 390 | CY25: 395 | CZ25: 400 | DA25: 390 | DB25: 385 | DC25: 365 | DD25: 350 | DE25: 340 | DF25: 330 | DG25: 320 | DH25: 310 | DI25: 305 | DJ25: 290 | DK25: 300 | DL25: 305 | DM25: 295 | DN25: 270 | DO25: 260 | DP25: 245 | DQ25: 240 | DR25: 230 | DS25: 215 | DT25: 210 | DU25: 205 | DV25: 200 | DW25: 200 | DX25: 215 | DY25: 230 | DZ25: 245 | EA25: 230 | EB25: 220 | EC25: 240 | ED25: 245 | EE25: 255 | EF25: 230 | EG25: 235 | EH25: 235 | EI25: 230 | EJ25: 230 | EK25: 255 | EL25: 260 | EM25: 245
A26: Ashford | B26: 29UBHB | C26: E05011745 | F26: Biddenden | G26: 20 | H26: 25 | I26: 25 | J26: 20 | K26: 20 | L26: 15 | M26: 15 | N26: 20 | O26: 15 | P26: 15 | Q26: 10 | R26: 10 | S26: 10 | T26: 10 | U26: 20 | V26: 15 | W26: 20 | X26: 20 | Y26: 20 | Z26: 20 | AA26: 15 | AB26: 10 | AC26: 15 | AD26: 15 | AE26: 15 | AF26: 15 | AG26: 15 | AH26: 10 | AI26: 10 | AJ26: 15 | AK26: 10 | AL26: 10 | AM26: 10 | AN26: 10 | AO26: 10 | AP26: 15 | AQ26: 10 | AR26: 15 | AS26: 15 | AT26: 10 | AU26: 10 | AV26: 10 | AW26: 15 | AX26: 20 | AY26: 20 | AZ26: 20 | BA26: 20 | BB26: 20 | BC26: 20 | BD26: 20 | BE26: 20 | BF26: 10 | BG26: 10 | BH26: 10 | BI26: 10 | BJ26: 10 | BK26: 15 | BL26: 15 | BM26: 15 | BN26: 15 | BO26: 10 | BP26: 15 | BQ26: 15 | BR26: 15 | BS26: 15 | BT26: 10 | BU26: 10 | BV26: 15 | BW26: 15 | BX26: 15 | BY26: 15 | BZ26: 20 | CA26: 20 | CB26: 20 | CC26: 25 | CD26: 25 | CE26: 20 | CF26: 25 | CG26: 25 | CH26: 20 | CI26: 25 | CJ26: 20 | CK26: 20 | CL26: 15 | CM26: 20 | CN26: 20 | CO26: 20 | CP26: 55 | CQ26: 75 | CR26: 75 | CS26: 80 | CT26: 85 | CU26: 75 | CV26: 75 | CW26: 75 | CX26: 80 | CY26: 70 | CZ26: 80 | DA26: 75 | DB26: 70 | DC26: 55 | DD26: 55 | DE26: 60 | DF26: 55 | DG26: 60 | DH26: 55 | DI26: 50 | DJ26: 55 | DK26: 55 | DL26: 60 | DM26: 45 | DN26: 40 | DO26: 35 | DP26: 35 | DQ26: 35 | DR26: 40 | DS26: 25 | DT26: 30 | DU26: 25 | DV26: 30 | DW26: 30 | DX26: 30 | DY26: 35 | DZ26: 35 | EA26: 30 | EB26: 35 | EC26: 35 | ED26: 40 | EE26: 35 | EF26: 35 | EG26: 35 | EH26: 40 | EI26: 40 | EJ26: 40 | EK26: 40 | EL26: 40 | EM26: 40
A27: Ashford | B27: 29UBHC | C27: E05011746 | F27: Bircholt | G27: 15 | H27: 20 | I27: 20 | J27: 15 | K27: 15 | L27: 20 | M27: 20 | N27: 15 | O27: 20 | P27: 20 | Q27: 15 | R27: 15 | S27: 20 | T27: 15 | U27: 20 | V27: 15 | W27: 20 | X27: 15 | Y27: 10 | Z27: 10 | AA27: 15 | AB27: 10 | AC27: 10 | AD27: 10 | AE27: 5 | AF27: 10 | AG27: 10 | AH27: 10 | AI27: 10 | AJ27: 10 | AK27: 10 | AL27: 5 | AM27: 10 | AN27: 5 | AO27: 5 | AP27: 10 | AQ27: 10 | AR27: 10 | AS27: 10 | AT27: 10 | AU27: 5 | AV27: 5 | AW27: 10 | AX27: 10 | AY27: 10 | AZ27: 10 | BA27: 10 | BB27: 10 | BC27: 10 | BD27: 15 | BE27: 15 | BF27: 15 | BG27: 10 | BH27: 10 | BI27: 15 | BJ27: 15 | BK27: 10 | BL27: 10 | BM27: 10 | BN27: 10 | BO27: 10 | BP27: 20 | BQ27: 15 | BR27: 10 | BS27: 10 | BT27: 15 | BU27: 15 | BV27: 10 | BW27: 15 | BX27: 10 | BY27: 15 | BZ27: 15 | CA27: 15 | CB27: 15 | CC27: 20 | CD27: 15 | CE27: 20 | CF27: 15 | CG27: 20 | CH27: 20 | CI27: 25 | CJ27: 20 | CK27: 20 | CL27: 20 | CM27: 15 | CN27: 15 | CO27: 20 | CP27: 60 | CQ27: 65 | CR27: 65 | CS27: 70 | CT27: 65 | CU27: 65 | CV27: 60 | CW27: 60 | CX27: 55 | CY27: 60 | CZ27: 55 | DA27: 55 | DB27: 50 | DC27: 55 | DD27: 45 | DE27: 50 | DF27: 50 | DG27: 50 | DH27: 45 | DI27: 45 | DJ27: 45 | DK27: 40 | DL27: 40 | DM27: 35 | DN27: 35 | DO27: 40 | DP27: 40 | DQ27: 40 | DR27: 35 | DS27: 30 | DT27: 30 | DU27: 30 | DV27: 35 | DW27: 35 | DX27: 35 | DY27: 35 | DZ27: 35 | EA27: 30 | EB27: 35 | EC27: 35 | ED27: 35 | EE27: 30 | EF27: 25 | EG27: 30 | EH27: 25 | EI27: 25 | EJ27: 30 | EK27: 30 | EL27: 30 | EM27: 35
A28: Ashford | B28: 29UBHD | C28: E05011747 | F28: Bockhanger | G28: 65 | H28: 60 | I28: 50 | J28: 55 | K28: 55 | L28: 50 | M28: 60 | N28: 55 | O28: 50 | P28: 45 | Q28: 50 | R28: 45 | S28: 50 | T28: 50 | U28: 45 | V28: 45 | W28: 45 | X28: 45 | Y28: 50 | Z28: 45 | AA28: 35 | AB28: 35 | AC28: 35 | AD28: 25 | AE28: 35 | AF28: 40 | AG28: 40 | AH28: 40 | AI28: 35 | AJ28: 30 | AK28: 35 | AL28: 35 | AM28: 40 | AN28: 40 | AO28: 35 | AP28: 35 | AQ28: 35 | AR28: 35 | AS28: 35 | AT28: 35 | AU28: 35 | AV28: 35 | AW28: 40 | AX28: 35 | AY28: 35 | AZ28: 40 | BA28: 40 | BB28: 35 | BC28: 40 | BD28: 40 | BE28: 40 | BF28: 35 | BG28: 30 | BH28: 30 | BI28: 35 | BJ28: 35 | BK28: 30 | BL28: 35 | BM28: 35 | BN28: 35 | BO28: 40 | BP28: 45 | BQ28: 50 | BR28: 45 | BS28: 45 | BT28: 50 | BU28: 45 | BV28: 45 | BW28: 50 | BX28: 45 | BY28: 55 | BZ28: 55 | CA28: 55 | CB28: 60 | CC28: 55 | CD28: 55 | CE28: 55 | CF28: 60 | CG28: 65 | CH28: 70 | CI28: 55 | CJ28: 55 | CK28: 60 | CL28: 60 | CM28: 60 | CN28: 65 | CO28: 75 | CP28: 105 | CQ28: 130 | CR28: 130 | CS28: 130 | CT28: 135 | CU28: 125 | CV28: 115 | CW28: 125 | CX28: 125 | CY28: 125 | CZ28: 145 | DA28: 140 | DB28: 135 | DC28: 130 | DD28: 120 | DE28: 130 | DF28: 110 | DG28: 110 | DH28: 100 | DI28: 100 | DJ28: 100 | DK28: 100 | DL28: 95 | DM28: 90 | DN28: 85 | DO28: 85 | DP28: 75 | DQ28: 70 | DR28: 65 | DS28: 65 | DT28: 65 | DU28: 75 | DV28: 75 | DW28: 70 | DX28: 60 | DY28: 60 | DZ28: 60 | EA28: 55 | EB28: 50 | EC28: 55 | ED28: 55 | EE28: 60 | EF28: 50 | EG28: 65 | EH28: 60 | EI28: 60 | EJ28: 60 | EK28: 65 | EL28: 55 | EM28: 60
A29: Ashford | B29: 29UBHE | C29: E05011748 | F29: Bybrook | G29: 50 | H29: 45 | I29: 45 | J29: 40 | K29: 50 | L29: 45 | M29: 45 | N29: 40 | O29: 40 | P29: 35 | Q29: 35 | R29: 35 | S29: 35 | T29: 35 | U29: 30 | V29: 30 | W29: 30 | X29: 30 | Y29: 25 | Z29: 25 | AA29: 25 | AB29: 25 | AC29: 30 | AD29: 30 | AE29: 25 | AF29: 25 | AG29: 25 | AH29: 25 | AI29: 25 | AJ29: 25 | AK29: 30 | AL29: 30 | AM29: 25 | AN29: 20 | AO29: 20 | AP29: 15 | AQ29: 20 | AR29: 25 | AS29: 25 | AT29: 30 | AU29: 25 | AV29: 25 | AW29: 25 | AX29: 25 | AY29: 25 | AZ29: 25 | BA29: 20 | BB29: 25 | BC29: 30 | BD29: 35 | BE29: 30 | BF29: 35 | BG29: 35 | BH29: 35 | BI29: 30 | BJ29: 25 | BK29: 25 | BL29: 25 | BM29: 25 | BN29: 25 | BO29: 25 | BP29: 30 | BQ29: 30 | BR29: 30 | BS29: 30 | BT29: 25 | BU29: 25 | BV29: 25 | BW29: 30 | BX29: 40 | BY29: 40 | BZ29: 45 | CA29: 45 | CB29: 45 | CC29: 45 | CD29: 45 | CE29: 50 | CF29: 50 | CG29: 50 | CH29: 50 | CI29: 50 | CJ29: 60 | CK29: 70 | CL29: 60 | CM29: 65 | CN29: 65 | CO29: 65 | CP29: 105 | CQ29: 130 | CR29: 130 | CS29: 135 | CT29: 140 | CU29: 140 | CV29: 130 | CW29: 120 | CX29: 110 | CY29: 115 | CZ29: 115 | DA29: 110 | DB29: 110 | DC29: 105 | DD29: 105 | DE29: 95 | DF29: 85 | DG29: 90 | DH29: 85 | DI29: 75 | DJ29: 80 | DK29: 75 | DL29: 75 | DM29: 65 | DN29: 70 | DO29: 65 | DP29: 65 | DQ29: 60 | DR29: 55 | DS29: 60 | DT29: 65 | DU29: 60 | DV29: 65 | DW29: 60 | DX29: 65 | DY29: 65 | DZ29: 60 | EA29: 60 | EB29: 60 | EC29: 60 | ED29: 65 | EE29: 60 | EF29: 60 | EG29: 70 | EH29: 60 | EI29: 65 | EJ29: 75 | EK29: 70 | EL29: 70 | EM29: 75
A30: Ashford | B30: 29UBHF | C30: E05011749 | F30: Charing | G30: 15 | H30: 20 | I30: 15 | J30: 20 | K30: 20 | L30: 20 | M30: 20 | N30: 15 | O30: 15 | P30: 20 | Q30: 20 | R30: 20 | S30: 20 | T30: 15 | U30: 20 | V30: 20 | W30: 25 | X30: 25 | Y30: 20 | Z30: 15 | AA30: 15 | AB30: 20 | AC30: 15 | AD30: 15 | AE30: 15 | AF30: 15 | AG30: 15 | AH30: 15 | AI30: 10 | AJ30: 5 | AK30: 10 | AL30: 10 | AM30: 10 | AN30: 10 | AO30: 15 | AP30: 20 | AQ30: 20 | AR30: 20 | AS30: 20 | AT30: 15 | AU30: 20 | AV30: 20 | AW30: 20 | AX30: 20 | AY30: 25 | AZ30: 20 | BA30: 20 | BB30: 25 | BC30: 25 | BD30: 20 | BE30: 20 | BF30: 25 | BG30: 20 | BH30: 20 | BI30: 25 | BJ30: 20 | BK30: 20 | BL30: 20 | BM30: 20 | BN30: 20 | BO30: 15 | BP30: 15 | BQ30: 15 | BR30: 15 | BS30: 20 | BT30: 20 | BU30: 20 | BV30: 20 | BW30: 20 | BX30: 25 | BY30: 25 | BZ30: 20 | CA30: 20 | CB30: 20 | CC30: 20 | CD30: 20 | CE30: 20 | CF30: 20 | CG30: 25 | CH30: 25 | CI30: 25 | CJ30: 25 | CK30: 25 | CL30: 25 | CM30: 20 | CN30: 20 | CO30: 25 | CP30: 55 | CQ30: 80 | CR30: 60 | CS30: 65 | CT30: 75 | CU30: 60 | CV30: 60 | CW30: 65 | CX30: 65 | CY30: 70 | CZ30: 75 | DA30: 75 | DB30: 75 | DC30: 70 | DD30: 65 | DE30: 60 | DF30: 55 | DG30: 55 | DH30: 50 | DI30: 45 | DJ30: 45 | DK30: 45 | DL30: 50 | DM30: 45 | DN30: 45 | DO30: 45 | DP30: 50 | DQ30: 45 | DR30: 40 | DS30: 45 | DT30: 50 | DU30: 45 | DV30: 45 | DW30: 40 | DX30: 40 | DY30: 35 | DZ30: 50 | EA30: 45 | EB30: 45 | EC30: 35 | ED30: 35 | EE30: 35 | EF30: 40 | EG30: 40 | EH30: 45 | EI30: 45 | EJ30: 45 | EK30: 45 | EL30: 45 | EM30: 40
A31: Ashford | B31: 29UBHG | C31: E05011750 | F31: Conningbrook & Little Burton Farm | G31: 20 | H31: 25 | I31: 25 | J31: 20 | K31: 20 | L31: 15 | M31: 15 | N31: 15 | O31: 20 | P31: 20 | Q31: 15 | R31: 15 | S31: 15 | T31: 20 | U31: 20 | V31: 20 | W31: 20 | X31: 15 | Y31: 15 | Z31: 15 | AA31: 15 | AB31: 15 | AC31: 10 | AD31: 10 | AE31: 10 | AF31: 10 | AG31: 15 | AH31: 10 | AI31: 10 | AJ31: 10 | AK31: 10 | AL31: 15 | AM31: 10 | AN31: 15 | AO31: 10 | AP31: 10 | AQ31: 10 | AR31: 10 | AS31: 15 | AT31: 20 | AU31: 15 | AV31: 10 | AW31: 15 | AX31: 15 | AY31: 10 | AZ31: 15 | BA31: 15 | BB31: 15 | BC31: 10 | BD31: 15 | BE31: 15 | BF31: 20 | BG31: 15 | BH31: 10 | BI31: 10 | BJ31: 15 | BK31: 15 | BL31: 15 | BM31: 15 | BN31: 10 | BO31: 10 | BP31: 10 | BQ31: 10 | BR31: 10 | BS31: 10 | BT31: 15 | BU31: 15 | BV31: 15 | BW31: 15 | BX31: 15 | BY31: 15 | BZ31: 15 | CA31: 15 | CB31: 15 | CC31: 15 | CD31: 15 | CE31: 15 | CF31: 20 | CG31: 20 | CH31: 20 | CI31: 20 | CJ31: 25 | CK31: 25 | CL31: 20 | CM31: 20 | CN31: 20 | CO31: 20 | CP31: 40 | CQ31: 50 | CR31: 50 | CS31: 55 | CT31: 45 | CU31: 50 | CV31: 50 | CW31: 50 | CX31: 55 | CY31: 55 | CZ31: 55 | DA31: 50 | DB31: 45 | DC31: 45 | DD31: 45 | DE31: 40 | DF31: 40 | DG31: 35 | DH31: 35 | DI31: 30 | DJ31: 30 | DK31: 30 | DL31: 30 | DM31: 30 | DN31: 30 | DO31: 25 | DP31: 15 | DQ31: 25 | DR31: 25 | DS31: 20 | DT31: 25 | DU31: 25 | DV31: 25 | DW31: 20 | DX31: 20 | DY31: 20 | DZ31: 20 | EA31: 20 | EB31: 25 | EC31: 20 | ED31: 25 | EE31: 20 | EF31: 20 | EG31: 25 | EH31: 20 | EI31: 20 | EJ31: 15 | EK31: 15 | EL31: 20 | EM31: 20
A32: Ashford | B32: 29UBHH | C32: E05011751 | F32: Downs North | G32: 15 | H32: 15 | I32: 20 | J32: 20 | K32: 20 | L32: 20 | M32: 25 | N32: 25 | O32: 15 | P32: 10 | Q32: 15 | R32: 15 | S32: 20 | T32: 15 | U32: 15 | V32: 20 | W32: 20 | X32: 10 | Y32: 10 | Z32: 15 | AA32: 10 | AB32: 10 | AC32: 10 | AD32: 10 | AE32: 5 | AF32: 10 | AG32: 15 | AH32: 15 | AI32: 15 | AJ32: 15 | AK32: 10 | AL32: 10 | AM32: 10 | AN32: 10 | AO32: 10 | AP32: 10 | AQ32: 10 | AR32: 10 | AS32: 10 | AT32: 10 | AU32: 10 | AV32: 10 | AW32: 5 | AX32: 15 | AY32: 10 | AZ32: 10 | BA32: 10 | BB32: 10 | BC32: 10 | BD32: 15 | BE32: 15 | BF32: 15 | BG32: 15 | BH32: 15 | BI32: 15 | BJ32: 10 | BK32: 10 | BL32: 10 | BM32: 10 | BN32: 15 | BO32: 15 | BP32: 15 | BQ32: 15 | BR32: 10 | BS32: 15 | BT32: 15 | BU32: 10 | BV32: 10 | BW32: 10 | BX32: 15 | BY32: 15 | BZ32: 15 | CA32: 20 | CB32: 20 | CC32: 20 | CD32: 15 | CE32: 20 | CF32: 25 | CG32: 20 | CH32: 20 | CI32: 20 | CJ32: 25 | CK32: 25 | CL32: 25 | CM32: 30 | CN32: 35 | CO32: 35 | CP32: 65 | CQ32: 65 | CR32: 60 | CS32: 65 | CT32: 60 | CU32: 65 | CV32: 65 | CW32: 60 | CX32: 65 | CY32: 70 | CZ32: 70 | DA32: 65 | DB32: 70 | DC32: 65 | DD32: 55 | DE32: 60 | DF32: 60 | DG32: 50 | DH32: 50 | DI32: 50 | DJ32: 40 | DK32: 35 | DL32: 40 | DM32: 40 | DN32: 35 | DO32: 30 | DP32: 40 | DQ32: 40 | DR32: 40 | DS32: 40 | DT32: 40 | DU32: 40 | DV32: 40 | DW32: 40 | DX32: 40 | DY32: 40 | DZ32: 40 | EA32: 40 | EB32: 30 | EC32: 30 | ED32: 35 | EE32: 35 | EF32: 35 | EG32: 35 | EH32: 30 | EI32: 35 | EJ32: 40 | EK32: 35 | EL32: 40 | EM32: 40
A33: Ashford | B33: 29UBHJ | C33: E05011752 | F33: Downs West | G33: 15 | H33: 20 | I33: 15 | J33: 10 | K33: 15 | L33: 15 | M33: 20 | N33: 15 | O33: 10 | P33: 10 | Q33: 15 | R33: 15 | S33: 10 | T33: 20 | U33: 15 | V33: 10 | W33: 10 | X33: 10 | Y33: 10 | Z33: 10 | AA33: 10 | AB33: 5 | AC33: 15 | AD33: 10 | AE33: 15 | AF33: 15 | AG33: 15 | AH33: 15 | AI33: 10 | AJ33: 10 | AK33: 10 | AL33: 10 | AM33: 10 | AN33: 10 | AO33: 10 | AP33: 10 | AQ33: 10 | AR33: 5 | AS33: 10 | AT33: 10 | AU33: 10 | AV33: 10 | AW33: 10 | AX33: 10 | AY33: 5 | AZ33: 5 | BA33: 10 | BB33: 10 | BC33: 10 | BD33: 10 | BE33: 10 | BF33: 10 | BG33: 15 | BH33: 15 | BI33: 10 | BJ33: 5 | BK33: 10 | BL33: 10 | BM33: 15 | BN33: 10 | BO33: 10 | BP33: 10 | BQ33: 10 | BR33: 10 | BS33: 5 | BT33: 5 | BU33: 5 | BV33: 5 | BW33: 5 | BX33: 5 | BY33: 10 | BZ33: 10 | CA33: 10 | CB33: 10 | CC33: 15 | CD33: 15 | CE33: 15 | CF33: 15 | CG33: 15 | CH33: 15 | CI33: 10 | CJ33: 15 | CK33: 15 | CL33: 10 | CM33: 10 | CN33: 10 | CO33: 10 | CP33: 45 | CQ33: 75 | CR33: 65 | CS33: 60 | CT33: 70 | CU33: 60 | CV33: 50 | CW33: 55 | CX33: 45 | CY33: 45 | CZ33: 50 | DA33: 50 | DB33: 50 | DC33: 45 | DD33: 40 | DE33: 40 | DF33: 30 | DG33: 35 | DH33: 30 | DI33: 30 | DJ33: 25 | DK33: 25 | DL33: 25 | DM33: 20 | DN33: 25 | DO33: 20 | DP33: 20 | DQ33: 10 | DR33: 10 | DS33: 15 | DT33: 15 | DU33: 10 | DV33: 10 | DW33: 10 | DX33: 10 | DY33: 10 | DZ33: 10 | EA33: 10 | EB33: 10 | EC33: 10 | ED33: 10 | EE33: 15 | EF33: 15 | EG33: 15 | EH33: 15 | EI33: 10 | EJ33: 10 | EK33: 10 | EL33: 15 | EM33: 20
A34: Ashford | B34: 29UBHK | C34: E05011753 | F34: Furley | G34: 135 | H34: 145 | I34: 135 | J34: 135 | K34: 135 | L34: 125 | M34: 115 | N34: 110 | O34: 120 | P34: 120 | Q34: 110 | R34: 115 | S34: 105 | T34: 105 | U34: 90 | V34: 80 | W34: 80 | X34: 80 | Y34: 85 | Z34: 75 | AA34: 60 | AB34: 65 | AC34: 65 | AD34: 65 | AE34: 60 | AF34: 75 | AG34: 75 | AH34: 75 | AI34: 60 | AJ34: 55 | AK34: 55 | AL34: 65 | AM34: 65 | AN34: 70 | AO34: 70 | AP34: 75 | AQ34: 70 | AR34: 70 | AS34: 80 | AT34: 80 | AU34: 80 | AV34: 75 | AW34: 85 | AX34: 85 | AY34: 90 | AZ34: 80 | BA34: 90 | BB34: 90 | BC34: 95 | BD34: 100 | BE34: 100 | BF34: 100 | BG34: 100 | BH34: 90 | BI34: 105 | BJ34: 115 | BK34: 100 | BL34: 100 | BM34: 100 | BN34: 100 | BO34: 105 | BP34: 110 | BQ34: 115 | BR34: 115 | BS34: 115 | BT34: 115 | BU34: 110 | BV34: 110 | BW34: 125 | BX34: 125 | BY34: 140 | BZ34: 150 | CA34: 165 | CB34: 180 | CC34: 170 | CD34: 150 | CE34: 160 | CF34: 145 | CG34: 150 | CH34: 150 | CI34: 145 | CJ34: 145 | CK34: 150 | CL34: 155 | CM34: 160 | CN34: 155 | CO34: 170 | CP34: 285 | CQ34: 340 | CR34: 325 | CS34: 340 | CT34: 335 | CU34: 320 | CV34: 320 | CW34: 310 | CX34: 305 | CY34: 305 | CZ34: 315 | DA34: 315 | DB34: 300 | DC34: 275 | DD34: 265 | DE34: 255 | DF34: 245 | DG34: 250 | DH34: 235 | DI34: 230 | DJ34: 230 | DK34: 225 | DL34: 205 | DM34: 205 | DN34: 190 | DO34: 170 | DP34: 165 | DQ34: 160 | DR34: 155 | DS34: 170 | DT34: 160 | DU34: 165 | DV34: 160 | DW34: 170 | DX34: 180 | DY34: 185 | DZ34: 190 | EA34: 190 | EB34: 205 | EC34: 205 | ED34: 200 | EE34: 205 | EF34: 205 | EG34: 205 | EH34: 195 | EI34: 220 | EJ34: 205 | EK34: 200 | EL34: 200 | EM34: 205
A35: Ashford | B35: 29UBHL | C35: E05011754 | F35: Goat Lees | G35: 55 | H35: 60 | I35: 50 | J35: 55 | K35: 55 | L35: 55 | M35: 50 | N35: 45 | O35: 40 | P35: 45 | Q35: 40 | R35: 40 | S35: 30 | T35: 45 | U35: 35 | V35: 30 | W35: 30 | X35: 25 | Y35: 30 | Z35: 30 | AA35: 30 | AB35: 30 | AC35: 25 | AD35: 25 | AE35: 25 | AF35: 30 | AG35: 30 | AH35: 30 | AI35: 35 | AJ35: 35 | AK35: 30 | AL35: 30 | AM35: 30 | AN35: 30 | AO35: 25 | AP35: 30 | AQ35: 30 | AR35: 30 | AS35: 30 | AT35: 30 | AU35: 30 | AV35: 25 | AW35: 20 | AX35: 25 | AY35: 30 | AZ35: 20 | BA35: 30 | BB35: 30 | BC35: 35 | BD35: 40 | BE35: 35 | BF35: 35 | BG35: 35 | BH35: 35 | BI35: 35 | BJ35: 35 | BK35: 35 | BL35: 35 | BM35: 35 | BN35: 30 | BO35: 35 | BP35: 35 | BQ35: 40 | BR35: 45 | BS35: 35 | BT35: 40 | BU35: 40 | BV35: 40 | BW35: 40 | BX35: 40 | BY35: 40 | BZ35: 40 | CA35: 50 | CB35: 50 | CC35: 45 | CD35: 50 | CE35: 55 | CF35: 50 | CG35: 60 | CH35: 55 | CI35: 55 | CJ35: 50 | CK35: 50 | CL35: 45 | CM35: 45 | CN35: 50 | CO35: 50 | CP35: 90 | CQ35: 100 | CR35: 100 | CS35: 110 | CT35: 120 | CU35: 120 | CV35: 110 | CW35: 120 | CX35: 115 | CY35: 120 | CZ35: 115 | DA35: 120 | DB35: 125 | DC35: 105 | DD35: 100 | DE35: 85 | DF35: 95 | DG35: 90 | DH35: 90 | DI35: 95 | DJ35: 85 | DK35: 75 | DL35: 75 | DM35: 70 | DN35: 75 | DO35: 75 | DP35: 70 | DQ35: 75 | DR35: 70 | DS35: 70 | DT35: 65 | DU35: 65 | DV35: 60 | DW35: 65 | DX35: 60 | DY35: 60 | DZ35: 55 | EA35: 55 | EB35: 60 | EC35: 60 | ED35: 55 | EE35: 60 | EF35: 55 | EG35: 55 | EH35: 60 | EI35: 60 | EJ35: 60 | EK35: 60 | EL35: 60 | EM35: 55
A36: Ashford | B36: 29UBHM | C36: E05011755 | F36: Godinton | G36: 30 | H36: 40 | I36: 35 | J36: 35 | K36: 40 | L36: 40 | M36: 40 | N36: 35 | O36: 30 | P36: 35 | Q36: 35 | R36: 30 | S36: 30 | T36: 25 | U36: 20 | V36: 25 | W36: 25 | X36: 25 | Y36: 20 | Z36: 15 | AA36: 10 | AB36: 20 | AC36: 15 | AD36: 15 | AE36: 20 | AF36: 15 | AG36: 20 | AH36: 15 | AI36: 15 | AJ36: 15 | AK36: 20 | AL36: 20 | AM36: 20 | AN36: 15 | AO36: 15 | AP36: 10 | AQ36: 15 | AR36: 20 | AS36: 20 | AT36: 25 | AU36: 20 | AV36: 15 | AW36: 15 | AX36: 15 | AY36: 15 | AZ36: 15 | BA36: 20 | BB36: 20 | BC36: 20 | BD36: 20 | BE36: 25 | BF36: 25 | BG36: 20 | BH36: 20 | BI36: 20 | BJ36: 25 | BK36: 25 | BL36: 25 | BM36: 25 | BN36: 25 | BO36: 20 | BP36: 20 | BQ36: 25 | BR36: 20 | BS36: 20 | BT36: 20 | BU36: 20 | BV36: 20 | BW36: 25 | BX36: 25 | BY36: 30 | BZ36: 30 | CA36: 35 | CB36: 35 | CC36: 35 | CD36: 35 | CE36: 35 | CF36: 35 | CG36: 30 | CH36: 35 | CI36: 35 | CJ36: 40 | CK36: 40 | CL36: 40 | CM36: 45 | CN36: 50 | CO36: 50 | CP36: 100 | CQ36: 120 | CR36: 110 | CS36: 105 | CT36: 120 | CU36: 120 | CV36: 120 | CW36: 115 | CX36: 120 | CY36: 120 | CZ36: 120 | DA36: 110 | DB36: 110 | DC36: 110 | DD36: 95 | DE36: 95 | DF36: 90 | DG36: 95 | DH36: 85 | DI36: 80 | DJ36: 75 | DK36: 65 | DL36: 65 | DM36: 65 | DN36: 65 | DO36: 65 | DP36: 70 | DQ36: 55 | DR36: 60 | DS36: 60 | DT36: 60 | DU36: 50 | DV36: 50 | DW36: 55 | DX36: 55 | DY36: 60 | DZ36: 65 | EA36: 65 | EB36: 65 | EC36: 65 | ED36: 60 | EE36: 55 | EF36: 65 | EG36: 65 | EH36: 65 | EI36: 60 | EJ36: 70 | EK36: 60 | EL36: 60 | EM36: 60
A37: Ashford | B37: 29UBHN | C37: E05011756 | F37: Highfield | G37: 30 | H37: 20 | I37: 20 | J37: 25 | K37: 20 | L37: 25 | M37: 30 | N37: 20 | O37: 15 | P37: 15 | Q37: 15 | R37: 15 | S37: 15 | T37: 15 | U37: 15 | V37: 15 | W37: 15 | X37: 10 | Y37: 15 | Z37: 15 | AA37: 10 | AB37: 10 | AC37: 10 | AD37: 15 | AE37: 15 | AF37: 15 | AG37: 15 | AH37: 20 | AI37: 15 | AJ37: 10 | AK37: 10 | AL37: 10 | AM37: 15 | AN37: 10 | AO37: 10 | AP37: 10 | AQ37: 10 | AR37: 10 | AS37: 15 | AT37: 15 | AU37: 15 | AV37: 15 | AW37: 15 | AX37: 15 | AY37: 15 | AZ37: 15 | BA37: 10 | BB37: 15 | BC37: 10 | BD37: 15 | BE37: 15 | BF37: 10 | BG37: 10 | BH37: 10 | BI37: 5 | BJ37: 10 | BK37: 5 | BL37: 5 | BM37: 5 | BN37: 5 | BO37: 5 | BP37: 10 | BQ37: 5 | BR37: 5 | BS37: 5 | BT37: 5 | BU37: 5 | BV37: 5 | BW37: 10 | BX37: 10 | BY37: 10 | BZ37: 10 | CA37: 10 | CB37: 15 | CC37: 10 | CD37: 10 | CE37: 10 | CF37: 10 | CG37: 10 | CH37: 10 | CI37: 10 | CJ37: 15 | CK37: 10 | CL37: 15 | CM37: 10 | CN37: 10 | CO37: 10 | CP37: 50 | CQ37: 60 | CR37: 50 | CS37: 50 | CT37: 55 | CU37: 55 | CV37: 55 | CW37: 45 | CX37: 45 | CY37: 35 | CZ37: 40 | DA37: 40 | DB37: 35 | DC37: 35 | DD37: 25 | DE37: 25 | DF37: 20 | DG37: 30 | DH37: 20 | DI37: 15 | DJ37: 15 | DK37: 10 | DL37: 10 | DM37: 15 | DN37: 20 | DO37: 20 | DP37: 20 | DQ37: 15 | DR37: 20 | DS37: 20 | DT37: 20 | DU37: 15 | DV37: 20 | DW37: 15 | DX37: 20 | DY37: 15 | DZ37: 15 | EA37: 20 | EB37: 20 | EC37: 15 | ED37: 15 | EE37: 15 | EF37: 15 | EG37: 15 | EH37: 10 | EI37: 15 | EJ37: 15 | EK37: 25 | EL37: 20 | EM37: 20
A38: Ashford | B38: 29UBHP | C38: E05011757 | F38: Isle of Oxney | G38: 35 | H38: 30 | I38: 30 | J38: 30 | K38: 35 | L38: 30 | M38: 25 | N38: 25 | O38: 20 | P38: 20 | Q38: 20 | R38: 20 | S38: 25 | T38: 20 | U38: 20 | V38: 15 | W38: 15 | X38: 20 | Y38: 20 | Z38: 20 | AA38: 15 | AB38: 20 | AC38: 15 | AD38: 15 | AE38: 20 | AF38: 20 | AG38: 20 | AH38: 20 | AI38: 15 | AJ38: 15 | AK38: 15 | AL38: 15 | AM38: 15 | AN38: 15 | AO38: 15 | AP38: 15 | AQ38: 10 | AR38: 15 | AS38: 15 | AT38: 15 | AU38: 15 | AV38: 15 | AW38: 15 | AX38: 15 | AY38: 15 | AZ38: 15 | BA38: 15 | BB38: 15 | BC38: 15 | BD38: 20 | BE38: 20 | BF38: 20 | BG38: 15 | BH38: 20 | BI38: 20 | BJ38: 20 | BK38: 15 | BL38: 15 | BM38: 15 | BN38: 20 | BO38: 20 | BP38: 20 | BQ38: 20 | BR38: 20 | BS38: 15 | BT38: 15 | BU38: 15 | BV38: 20 | BW38: 20 | BX38: 20 | BY38: 25 | BZ38: 25 | CA38: 30 | CB38: 30 | CC38: 30 | CD38: 30 | CE38: 25 | CF38: 30 | CG38: 30 | CH38: 30 | CI38: 30 | CJ38: 35 | CK38: 30 | CL38: 30 | CM38: 35 | CN38: 35 | CO38: 40 | CP38: 75 | CQ38: 100 | CR38: 90 | CS38: 85 | CT38: 90 | CU38: 85 | CV38: 75 | CW38: 70 | CX38: 70 | CY38: 65 | CZ38: 70 | DA38: 70 | DB38: 70 | DC38: 60 | DD38: 55 | DE38: 45 | DF38: 45 | DG38: 50 | DH38: 45 | DI38: 50 | DJ38: 50 | DK38: 50 | DL38: 45 | DM38: 50 | DN38: 40 | DO38: 40 | DP38: 40 | DQ38: 35 | DR38: 35 | DS38: 35 | DT38: 40 | DU38: 40 | DV38: 35 | DW38: 25 | DX38: 35 | DY38: 30 | DZ38: 25 | EA38: 25 | EB38: 25 | EC38: 25 | ED38: 25 | EE38: 30 | EF38: 30 | EG38: 30 | EH38: 30 | EI38: 30 | EJ38: 35 | EK38: 35 | EL38: 35 | EM38: 35
A39: Ashford | B39: 29UBHQ | C39: E05011758 | F39: Kennington | G39: 15 | H39: 15 | I39: 20 | J39: 15 | K39: 25 | L39: 25 | M39: 20 | N39: 25 | O39: 30 | P39: 25 | Q39: 20 | R39: 20 | S39: 15 | T39: 15 | U39: 10 | V39: 5 | W39: 10 | X39: 5 | Y39: 5 | Z39: 10 | AA39: 10 | AB39: 10 | AC39: 10 | AD39: 15 | AE39: 15 | AF39: 15 | AG39: 15 | AH39: 10 | AI39: 10 | AJ39: 10 | AK39: 15 | AL39: 15 | AM39: 15 | AN39: 15 | AO39: 10 | AP39: 5 | AQ39: 10 | AR39: 10 | AS39: 10 | AT39: 10 | AU39: 10 | AV39: 10 | AW39: 15 | AX39: 15 | AY39: 15 | AZ39: 10 | BA39: 10 | BB39: 15 | BC39: 15 | BD39: 15 | BE39: 10 | BF39: 10 | BG39: 5 | BH39: 5 | BI39: 5 | BJ39: 5 | BK39: 0 | BL39: 5 | BM39: 10 | BN39: 10 | BO39: 10 | BP39: 10 | BQ39: 10 | BR39: 10 | BS39: 15 | BT39: 10 | BU39: 10 | BV39: 15 | BW39: 15 | BX39: 15 | BY39: 15 | BZ39: 15 | CA39: 15 | CB39: 15 | CC39: 15 | CD39: 15 | CE39: 10 | CF39: 15 | CG39: 10 | CH39: 15 | CI39: 10 | CJ39: 15 | CK39: 15 | CL39: 10 | CM39: 10 | CN39: 10 | CO39: 10 | CP39: 30 | CQ39: 35 | CR39: 35 | CS39: 35 | CT39: 40 | CU39: 40 | CV39: 35 | CW39: 35 | CX39: 35 | CY39: 30 | CZ39: 40 | DA39: 30 | DB39: 30 | DC39: 30 | DD39: 25 | DE39: 20 | DF39: 25 | DG39: 25 | DH39: 20 | DI39: 20 | DJ39: 20 | DK39: 15 | DL39: 15 | DM39: 20 | DN39: 10 | DO39: 5 | DP39: 10 | DQ39: 10 | DR39: 15 | DS39: 15 | DT39: 20 | DU39: 15 | DV39: 20 | DW39: 25 | DX39: 30 | DY39: 30 | DZ39: 30 | EA39: 30 | EB39: 30 | EC39: 30 | ED39: 25 | EE39: 25 | EF39: 25 | EG39: 25 | EH39: 25 | EI39: 30 | EJ39: 25 | EK39: 25 | EL39: 25 | EM39: 25
A40: Ashford | B40: 29UBHR | C40: E05011759 | F40: Kingsnorth Village & Bridgefield | G40: 25 | H40: 20 | I40: 20 | J40: 20 | K40: 15 | L40: 20 | M40: 20 | N40: 20 | O40: 20 | P40: 20 | Q40: 10 | R40: 10 | S40: 15 | T40: 10 | U40: 10 | V40: 10 | W40: 10 | X40: 10 | Y40: 5 | Z40: 5 | AA40: 10 | AB40: 10 | AC40: 5 | AD40: 5 | AE40: 5 | AF40: 10 | AG40: 10 | AH40: 5 | AI40: 5 | AJ40: 5 | AK40: 5 | AL40: 5 | AM40: 5 | AN40: 5 | AO40: 10 | AP40: 5 | AQ40: 10 | AR40: 10 | AS40: 10 | AT40: 10 | AU40: 10 | AV40: 10 | AW40: 5 | AX40: 10 | AY40: 10 | AZ40: 10 | BA40: 10 | BB40: 10 | BC40: 15 | BD40: 15 | BE40: 15 | BF40: 15 | BG40: 15 | BH40: 15 | BI40: 15 | BJ40: 15 | BK40: 15 | BL40: 20 | BM40: 15 | BN40: 15 | BO40: 10 | BP40: 15 | BQ40: 10 | BR40: 10 | BS40: 10 | BT40: 10 | BU40: 10 | BV40: 10 | BW40: 10 | BX40: 10 | BY40: 15 | BZ40: 15 | CA40: 15 | CB40: 15 | CC40: 15 | CD40: 15 | CE40: 20 | CF40: 20 | CG40: 15 | CH40: 15 | CI40: 15 | CJ40: 15 | CK40: 20 | CL40: 20 | CM40: 25 | CN40: 15 | CO40: 20 | CP40: 60 | CQ40: 80 | CR40: 60 | CS40: 70 | CT40: 75 | CU40: 65 | CV40: 60 | CW40: 70 | CX40: 70 | CY40: 70 | CZ40: 65 | DA40: 55 | DB40: 55 | DC40: 55 | DD40: 50 | DE40: 50 | DF40: 55 | DG40: 60 | DH40: 50 | DI40: 50 | DJ40: 55 | DK40: 50 | DL40: 50 | DM40: 50 | DN40: 40 | DO40: 45 | DP40: 40 | DQ40: 30 | DR40: 30 | DS40: 35 | DT40: 30 | DU40: 35 | DV40: 35 | DW40: 40 | DX40: 45 | DY40: 50 | DZ40: 50 | EA40: 45 | EB40: 45 | EC40: 50 | ED40: 45 | EE40: 40 | EF40: 40 | EG40: 45 | EH40: 45 | EI40: 40 | EJ40: 50 | EK40: 50 | EL40: 55 | EM40: 50
A41: Ashford | B41: 29UBHS | C41: E05011760 | F41: Mersham, Sevington South with Finberry | G41: 15 | H41: 15 | I41: 10 | J41: 10 | K41: 10 | L41: 15 | M41: 5 | N41: 5 | O41: 0 | P41: 0 | Q41: 5 | R41: 10 | S41: 5 | T41: 5 | U41: 5 | V41: 5 | W41: 5 | X41: 5 | Y41: 5 | Z41: 10 | AA41: 5 | AB41: 5 | AC41: 5 | AD41: 0 | AE41: 5 | AF41: 5 | AG41: 5 | AH41: 5 | AI41: 5 | AJ41: 5 | AK41: 5 | AL41: 5 | AM41: 5 | AN41: 5 | AO41: 5 | AP41: 5 | AQ41: 5 | AR41: 5 | AS41: 0 | AT41: 0 | AU41: 0 | AV41: 0 | AW41: 5 | AX41: 5 | AY41: 5 | AZ41: 5 | BA41: 5 | BB41: 5 | BC41: 5 | BD41: 5 | BE41: 5 | BF41: 5 | BG41: 5 | BH41: 5 | BI41: 5 | BJ41: 5 | BK41: 5 | BL41: 5 | BM41: 5 | BN41: 5 | BO41: 5 | BP41: 5 | BQ41: 5 | BR41: 5 | BS41: 5 | BT41: 5 | BU41: 10 | BV41: 5 | BW41: 10 | BX41: 10 | BY41: 15 | BZ41: 15 | CA41: 10 | CB41: 10 | CC41: 10 | CD41: 10 | CE41: 10 | CF41: 15 | CG41: 15 | CH41: 15 | CI41: 15 | CJ41: 15 | CK41: 15 | CL41: 15 | CM41: 20 | CN41: 20 | CO41: 20 | CP41: 40 | CQ41: 50 | CR41: 45 | CS41: 45 | CT41: 55 | CU41: 55 | CV41: 50 | CW41: 55 | CX41: 50 | CY41: 40 | CZ41: 45 | DA41: 45 | DB41: 35 | DC41: 35 | DD41: 35 | DE41: 35 | DF41: 35 | DG41: 30 | DH41: 30 | DI41: 25 | DJ41: 25 | DK41: 25 | DL41: 25 | DM41: 30 | DN41: 25 | DO41: 25 | DP41: 25 | DQ41: 20 | DR41: 25 | DS41: 25 | DT41: 30 | DU41: 30 | DV41: 30 | DW41: 30 | DX41: 30 | DY41: 35 | DZ41: 30 | EA41: 35 | EB41: 30 | EC41: 30 | ED41: 35 | EE41: 30 | EF41: 35 | EG41: 35 | EH41: 35 | EI41: 40 | EJ41: 35 | EK41: 40 | EL41: 45 | EM41: 40
A42: Ashford | B42: 29UBHT | C42: E05011761 | F42: Norman | G42: 105 | H42: 115 | I42: 105 | J42: 105 | K42: 95 | L42: 85 | M42: 90 | N42: 90 | O42: 85 | P42: 80 | Q42: 75 | R42: 75 | S42: 80 | T42: 85 | U42: 80 | V42: 70 | W42: 65 | X42: 65 | Y42: 55 | Z42: 55 | AA42: 50 | AB42: 45 | AC42: 55 | AD42: 55 | AE42: 60 | AF42: 60 | AG42: 50 | AH42: 55 | AI42: 45 | AJ42: 45 | AK42: 45 | AL42: 45 | AM42: 45 | AN42: 40 | AO42: 40 | AP42: 45 | AQ42: 45 | AR42: 50 | AS42: 50 | AT42: 50 | AU42: 55 | AV42: 55 | AW42: 55 | AX42: 50 | AY42: 55 | AZ42: 55 | BA42: 55 | BB42: 55 | BC42: 65 | BD42: 60 | BE42: 65 | BF42: 60 | BG42: 65 | BH42: 55 | BI42: 50 | BJ42: 50 | BK42: 50 | BL42: 55 | BM42: 55 | BN42: 65 | BO42: 65 | BP42: 70 | BQ42: 75 | BR42: 75 | BS42: 70 | BT42: 70 | BU42: 70 | BV42: 65 | BW42: 65 | BX42: 60 | BY42: 65 | BZ42: 70 | CA42: 70 | CB42: 75 | CC42: 80 | CD42: 80 | CE42: 85 | CF42: 90 | CG42: 90 | CH42: 85 | CI42: 95 | CJ42: 95 | CK42: 100 | CL42: 95 | CM42: 95 | CN42: 95 | CO42: 90 | CP42: 155 | CQ42: 195 | CR42: 190 | CS42: 195 | CT42: 195 | CU42: 190 | CV42: 190 | CW42: 185 | CX42: 200 | CY42: 185 | CZ42: 190 | DA42: 185 | DB42: 185 | DC42: 170 | DD42: 170 | DE42: 155 | DF42: 150 | DG42: 130 | DH42: 130 | DI42: 120 | DJ42: 110 | DK42: 115 | DL42: 125 | DM42: 120 | DN42: 110 | DO42: 105 | DP42: 105 | DQ42: 100 | DR42: 95 | DS42: 100 | DT42: 100 | DU42: 90 | DV42: 90 | DW42: 85 | DX42: 90 | DY42: 90 | DZ42: 85 | EA42: 95 | EB42: 95 | EC42: 90 | ED42: 85 | EE42: 85 | EF42: 85 | EG42: 75 | EH42: 80 | EI42: 80 | EJ42: 85 | EK42: 90 | EL42: 80 | EM42: 95
A43: Ashford | B43: 29UBHU | C43: E05011762 | F43: Park Farm North | G43: 25 | H43: 20 | I43: 20 | J43: 25 | K43: 20 | L43: 15 | M43: 15 | N43: 10 | O43: 10 | P43: 15 | Q43: 10 | R43: 15 | S43: 20 | T43: 15 | U43: 20 | V43: 20 | W43: 15 | X43: 15 | Y43: 15 | Z43: 15 | AA43: 15 | AB43: 10 | AC43: 10 | AD43: 10 | AE43: 10 | AF43: 10 | AG43: 10 | AH43: 5 | AI43: 5 | AJ43: 5 | AK43: 5 | AL43: 10 | AM43: 10 | AN43: 15 | AO43: 15 | AP43: 15 | AQ43: 15 | AR43: 10 | AS43: 15 | AT43: 10 | AU43: 15 | AV43: 10 | AW43: 10 | AX43: 15 | AY43: 10 | AZ43: 10 | BA43: 10 | BB43: 10 | BC43: 10 | BD43: 10 | BE43: 15 | BF43: 15 | BG43: 10 | BH43: 5 | BI43: 10 | BJ43: 5 | BK43: 15 | BL43: 15 | BM43: 15 | BN43: 15 | BO43: 15 | BP43: 15 | BQ43: 10 | BR43: 15 | BS43: 15 | BT43: 15 | BU43: 10 | BV43: 10 | BW43: 15 | BX43: 15 | BY43: 10 | BZ43: 5 | CA43: 5 | CB43: 10 | CC43: 10 | CD43: 10 | CE43: 15 | CF43: 15 | CG43: 15 | CH43: 20 | CI43: 20 | CJ43: 20 | CK43: 20 | CL43: 25 | CM43: 25 | CN43: 20 | CO43: 20 | CP43: 60 | CQ43: 75 | CR43: 75 | CS43: 85 | CT43: 90 | CU43: 90 | CV43: 80 | CW43: 80 | CX43: 85 | CY43: 85 | CZ43: 90 | DA43: 90 | DB43: 85 | DC43: 65 | DD43: 55 | DE43: 60 | DF43: 65 | DG43: 65 | DH43: 50 | DI43: 50 | DJ43: 45 | DK43: 35 | DL43: 35 | DM43: 35 | DN43: 30 | DO43: 30 | DP43: 20 | DQ43: 20 | DR43: 20 | DS43: 20 | DT43: 20 | DU43: 30 | DV43: 25 | DW43: 30 | DX43: 35 | DY43: 35 | DZ43: 35 | EA43: 30 | EB43: 30 | EC43: 25 | ED43: 35 | EE43: 35 | EF43: 35 | EG43: 35 | EH43: 35 | EI43: 35 | EJ43: 30 | EK43: 30 | EL43: 30 | EM43: 30
A44: Ashford | B44: 29UBHW | C44: E05011763 | F44: Park Farm South | G44: 30 | H44: 40 | I44: 35 | J44: 25 | K44: 25 | L44: 30 | M44: 30 | N44: 30 | O44: 35 | P44: 35 | Q44: 35 | R44: 30 | S44: 25 | T44: 35 | U44: 30 | V44: 20 | W44: 25 | X44: 20 | Y44: 15 | Z44: 15 | AA44: 20 | AB44: 20 | AC44: 20 | AD44: 20 | AE44: 15 | AF44: 20 | AG44: 20 | AH44: 20 | AI44: 20 | AJ44: 15 | AK44: 15 | AL44: 15 | AM44: 15 | AN44: 20 | AO44: 15 | AP44: 15 | AQ44: 15 | AR44: 15 | AS44: 15 | AT44: 15 | AU44: 15 | AV44: 15 | AW44: 15 | AX44: 15 | AY44: 15 | AZ44: 15 | BA44: 20 | BB44: 15 | BC44: 20 | BD44: 20 | BE44: 15 | BF44: 15 | BG44: 20 | BH44: 20 | BI44: 20 | BJ44: 15 | BK44: 15 | BL44: 15 | BM44: 15 | BN44: 10 | BO44: 15 | BP44: 20 | BQ44: 25 | BR44: 20 | BS44: 20 | BT44: 20 | BU44: 20 | BV44: 20 | BW44: 20 | BX44: 20 | BY44: 20 | BZ44: 20 | CA44: 20 | CB44: 20 | CC44: 20 | CD44: 15 | CE44: 15 | CF44: 15 | CG44: 20 | CH44: 25 | CI44: 25 | CJ44: 30 | CK44: 30 | CL44: 35 | CM44: 35 | CN44: 45 | CO44: 35 | CP44: 65 | CQ44: 85 | CR44: 75 | CS44: 90 | CT44: 90 | CU44: 80 | CV44: 70 | CW44: 65 | CX44: 60 | CY44: 60 | CZ44: 65 | DA44: 65 | DB44: 65 | DC44: 60 | DD44: 55 | DE44: 50 | DF44: 50 | DG44: 45 | DH44: 45 | DI44: 45 | DJ44: 50 | DK44: 45 | DL44: 45 | DM44: 40 | DN44: 45 | DO44: 40 | DP44: 35 | DQ44: 30 | DR44: 35 | DS44: 30 | DT44: 35 | DU44: 35 | DV44: 30 | DW44: 35 | DX44: 40 | DY44: 40 | DZ44: 40 | EA44: 35 | EB44: 40 | EC44: 35 | ED44: 40 | EE44: 40 | EF44: 45 | EG44: 35 | EH44: 35 | EI44: 35 | EJ44: 40 | EK44: 40 | EL44: 35 | EM44: 40
A45: Ashford | B45: 29UBHX | C45: E05011764 | F45: Repton | G45: 35 | H45: 30 | I45: 30 | J45: 30 | K45: 30 | L45: 30 | M45: 25 | N45: 30 | O45: 20 | P45: 15 | Q45: 20 | R45: 25 | S45: 20 | T45: 25 | U45: 20 | V45: 20 | W45: 20 | X45: 20 | Y45: 15 | Z45: 20 | AA45: 15 | AB45: 15 | AC45: 10 | AD45: 10 | AE45: 10 | AF45: 15 | AG45: 15 | AH45: 10 | AI45: 15 | AJ45: 15 | AK45: 15 | AL45: 15 | AM45: 10 | AN45: 10 | AO45: 10 | AP45: 10 | AQ45: 10 | AR45: 15 | AS45: 10 | AT45: 10 | AU45: 10 | AV45: 10 | AW45: 15 | AX45: 20 | AY45: 15 | AZ45: 15 | BA45: 15 | BB45: 15 | BC45: 15 | BD45: 15 | BE45: 15 | BF45: 15 | BG45: 15 | BH45: 15 | BI45: 20 | BJ45: 20 | BK45: 20 | BL45: 15 | BM45: 20 | BN45: 20 | BO45: 20 | BP45: 20 | BQ45: 20 | BR45: 20 | BS45: 20 | BT45: 20 | BU45: 25 | BV45: 25 | BW45: 25 | BX45: 25 | BY45: 25 | BZ45: 30 | CA45: 30 | CB45: 35 | CC45: 35 | CD45: 35 | CE45: 35 | CF45: 30 | CG45: 35 | CH45: 30 | CI45: 30 | CJ45: 35 | CK45: 35 | CL45: 35 | CM45: 35 | CN45: 35 | CO45: 35 | CP45: 90 | CQ45: 105 | CR45: 90 | CS45: 90 | CT45: 95 | CU45: 100 | CV45: 95 | CW45: 105 | CX45: 115 | CY45: 105 | CZ45: 95 | DA45: 100 | DB45: 85 | DC45: 70 | DD45: 65 | DE45: 75 | DF45: 70 | DG45: 70 | DH45: 70 | DI45: 65 | DJ45: 65 | DK45: 50 | DL45: 55 | DM45: 55 | DN45: 50 | DO45: 50 | DP45: 50 | DQ45: 40 | DR45: 45 | DS45: 50 | DT45: 45 | DU45: 50 | DV45: 55 | DW45: 45 | DX45: 45 | DY45: 45 | DZ45: 45 | EA45: 50 | EB45: 45 | EC45: 45 | ED45: 45 | EE45: 50 | EF45: 50 | EG45: 60 | EH45: 55 | EI45: 50 | EJ45: 55 | EK45: 55 | EL45: 50 | EM45: 50
A46: Ashford | B46: 29UBHY | C46: E05011765 | F46: Rolvenden & Tenterden West | G46: 20 | H46: 20 | I46: 20 | J46: 15 | K46: 15 | L46: 20 | M46: 15 | N46: 15 | O46: 15 | P46: 15 | Q46: 15 | R46: 15 | S46: 15 | T46: 15 | U46: 15 | V46: 15 | W46: 10 | X46: 15 | Y46: 15 | Z46: 15 | AA46: 10 | AB46: 10 | AC46: 15 | AD46: 15 | AE46: 15 | AF46: 15 | AG46: 10 | AH46: 10 | AI46: 5 | AJ46: 10 | AK46: 10 | AL46: 10 | AM46: 5 | AN46: 5 | AO46: 5 | AP46: 5 | AQ46: 10 | AR46: 15 | AS46: 15 | AT46: 15 | AU46: 15 | AV46: 10 | AW46: 10 | AX46: 15 | AY46: 15 | AZ46: 15 | BA46: 15 | BB46: 10 | BC46: 10 | BD46: 10 | BE46: 15 | BF46: 10 | BG46: 15 | BH46: 15 | BI46: 10 | BJ46: 10 | BK46: 10 | BL46: 5 | BM46: 10 | BN46: 5 | BO46: 10 | BP46: 5 | BQ46: 5 | BR46: 5 | BS46: 10 | BT46: 10 | BU46: 10 | BV46: 5 | BW46: 5 | BX46: 5 | BY46: 5 | BZ46: 5 | CA46: 10 | CB46: 15 | CC46: 20 | CD46: 20 | CE46: 15 | CF46: 20 | CG46: 20 | CH46: 20 | CI46: 20 | CJ46: 25 | CK46: 25 | CL46: 25 | CM46: 25 | CN46: 25 | CO46: 25 | CP46: 50 | CQ46: 70 | CR46: 65 | CS46: 65 | CT46: 65 | CU46: 65 | CV46: 60 | CW46: 70 | CX46: 55 | CY46: 55 | CZ46: 65 | DA46: 60 | DB46: 65 | DC46: 60 | DD46: 45 | DE46: 50 | DF46: 45 | DG46: 40 | DH46: 40 | DI46: 40 | DJ46: 40 | DK46: 40 | DL46: 30 | DM46: 35 | DN46: 25 | DO46: 25 | DP46: 30 | DQ46: 30 | DR46: 25 | DS46: 25 | DT46: 30 | DU46: 25 | DV46: 30 | DW46: 25 | DX46: 20 | DY46: 30 | DZ46: 30 | EA46: 25 | EB46: 20 | EC46: 25 | ED46: 30 | EE46: 25 | EF46: 25 | EG46: 25 | EH46: 30 | EI46: 25 | EJ46: 30 | EK46: 30 | EL46: 30 | EM46: 40
A47: Ashford | B47: 29UBHZ | C47: E05011766 | F47: Roman | G47: 35 | H47: 35 | I47: 30 | J47: 40 | K47: 40 | L47: 40 | M47: 35 | N47: 30 | O47: 30 | P47: 30 | Q47: 25 | R47: 30 | S47: 30 | T47: 30 | U47: 30 | V47: 40 | W47: 35 | X47: 25 | Y47: 20 | Z47: 20 | AA47: 20 | AB47: 20 | AC47: 20 | AD47: 20 | AE47: 25 | AF47: 25 | AG47: 20 | AH47: 20 | AI47: 20 | AJ47: 15 | AK47: 20 | AL47: 20 | AM47: 20 | AN47: 20 | AO47: 20 | AP47: 15 | AQ47: 20 | AR47: 25 | AS47: 20 | AT47: 20 | AU47: 20 | AV47: 20 | AW47: 25 | AX47: 25 | AY47: 20 | AZ47: 20 | BA47: 20 | BB47: 20 | BC47: 20 | BD47: 25 | BE47: 25 | BF47: 30 | BG47: 25 | BH47: 25 | BI47: 25 | BJ47: 25 | BK47: 25 | BL47: 20 | BM47: 20 | BN47: 20 | BO47: 20 | BP47: 15 | BQ47: 20 | BR47: 20 | BS47: 20 | BT47: 20 | BU47: 20 | BV47: 25 | BW47: 25 | BX47: 25 | BY47: 25 | BZ47: 25 | CA47: 25 | CB47: 25 | CC47: 25 | CD47: 30 | CE47: 30 | CF47: 25 | CG47: 25 | CH47: 25 | CI47: 25 | CJ47: 30 | CK47: 25 | CL47: 25 | CM47: 20 | CN47: 20 | CO47: 25 | CP47: 65 | CQ47: 90 | CR47: 80 | CS47: 80 | CT47: 75 | CU47: 70 | CV47: 65 | CW47: 60 | CX47: 60 | CY47: 60 | CZ47: 75 | DA47: 80 | DB47: 75 | DC47: 75 | DD47: 60 | DE47: 50 | DF47: 50 | DG47: 45 | DH47: 50 | DI47: 50 | DJ47: 50 | DK47: 50 | DL47: 55 | DM47: 55 | DN47: 55 | DO47: 45 | DP47: 50 | DQ47: 45 | DR47: 45 | DS47: 35 | DT47: 45 | DU47: 40 | DV47: 50 | DW47: 50 | DX47: 40 | DY47: 45 | DZ47: 35 | EA47: 35 | EB47: 35 | EC47: 40 | ED47: 45 | EE47: 40 | EF47: 40 | EG47: 40 | EH47: 35 | EI47: 35 | EJ47: 40 | EK47: 40 | EL47: 35 | EM47: 40
A48: Ashford | B48: 29UBJA | C48: E05011767 | F48: Saxon Shore | G48: 20 | H48: 15 | I48: 15 | J48: 20 | K48: 15 | L48: 15 | M48: 10 | N48: 10 | O48: 15 | P48: 15 | Q48: 15 | R48: 10 | S48: 15 | T48: 10 | U48: 10 | V48: 10 | W48: 10 | X48: 5 | Y48: 5 | Z48: 5 | AA48: 10 | AB48: 10 | AC48: 10 | AD48: 10 | AE48: 10 | AF48: 10 | AG48: 15 | AH48: 15 | AI48: 10 | AJ48: 15 | AK48: 15 | AL48: 15 | AM48: 10 | AN48: 15 | AO48: 10 | AP48: 15 | AQ48: 15 | AR48: 10 | AS48: 15 | AT48: 10 | AU48: 10 | AV48: 5 | AW48: 5 | AX48: 10 | AY48: 10 | AZ48: 10 | BA48: 10 | BB48: 10 | BC48: 10 | BD48: 15 | BE48: 15 | BF48: 15 | BG48: 15 | BH48: 10 | BI48: 15 | BJ48: 15 | BK48: 15 | BL48: 15 | BM48: 20 | BN48: 15 | BO48: 15 | BP48: 15 | BQ48: 20 | BR48: 15 | BS48: 15 | BT48: 15 | BU48: 15 | BV48: 15 | BW48: 15 | BX48: 15 | BY48: 15 | BZ48: 10 | CA48: 15 | CB48: 10 | CC48: 10 | CD48: 10 | CE48: 10 | CF48: 10 | CG48: 15 | CH48: 15 | CI48: 15 | CJ48: 15 | CK48: 20 | CL48: 20 | CM48: 15 | CN48: 20 | CO48: 20 | CP48: 50 | CQ48: 65 | CR48: 60 | CS48: 60 | CT48: 60 | CU48: 65 | CV48: 60 | CW48: 55 | CX48: 50 | CY48: 50 | CZ48: 55 | DA48: 50 | DB48: 50 | DC48: 50 | DD48: 45 | DE48: 35 | DF48: 35 | DG48: 30 | DH48: 40 | DI48: 40 | DJ48: 40 | DK48: 40 | DL48: 40 | DM48: 40 | DN48: 35 | DO48: 30 | DP48: 30 | DQ48: 25 | DR48: 20 | DS48: 25 | DT48: 20 | DU48: 25 | DV48: 20 | DW48: 15 | DX48: 15 | DY48: 20 | DZ48: 15 | EA48: 15 | EB48: 15 | EC48: 20 | ED48: 15 | EE48: 20 | EF48: 20 | EG48: 15 | EH48: 15 | EI48: 20 | EJ48: 25 | EK48: 20 | EL48: 20 | EM48: 20
A49: Ashford | B49: 29UBJB | C49: E05011768 | F49: Singleton East | G49: 40 | H49: 50 | I49: 45 | J49: 45 | K49: 45 | L49: 45 | M49: 45 | N49: 45 | O49: 35 | P49: 35 | Q49: 25 | R49: 25 | S49: 25 | T49: 30 | U49: 25 | V49: 20 | W49: 20 | X49: 20 | Y49: 15 | Z49: 15 | AA49: 15 | AB49: 20 | AC49: 15 | AD49: 15 | AE49: 20 | AF49: 15 | AG49: 15 | AH49: 15 | AI49: 15 | AJ49: 15 | AK49: 10 | AL49: 10 | AM49: 10 | AN49: 10 | AO49: 15 | AP49: 10 | AQ49: 10 | AR49: 15 | AS49: 15 | AT49: 15 | AU49: 15 | AV49: 15 | AW49: 15 | AX49: 15 | AY49: 15 | AZ49: 15 | BA49: 10 | BB49: 15 | BC49: 15 | BD49: 15 | BE49: 15 | BF49: 15 | BG49: 15 | BH49: 15 | BI49: 20 | BJ49: 20 | BK49: 15 | BL49: 20 | BM49: 20 | BN49: 20 | BO49: 25 | BP49: 30 | BQ49: 25 | BR49: 20 | BS49: 25 | BT49: 20 | BU49: 20 | BV49: 30 | BW49: 30 | BX49: 35 | BY49: 35 | BZ49: 35 | CA49: 40 | CB49: 40 | CC49: 40 | CD49: 40 | CE49: 40 | CF49: 40 | CG49: 45 | CH49: 40 | CI49: 40 | CJ49: 50 | CK49: 45 | CL49: 45 | CM49: 45 | CN49: 45 | CO49: 50 | CP49: 80 | CQ49: 100 | CR49: 90 | CS49: 90 | CT49: 95 | CU49: 85 | CV49: 95 | CW49: 80 | CX49: 80 | CY49: 85 | CZ49: 90 | DA49: 90 | DB49: 90 | DC49: 75 | DD49: 70 | DE49: 70 | DF49: 75 | DG49: 70 | DH49: 65 | DI49: 65 | DJ49: 60 | DK49: 55 | DL49: 65 | DM49: 55 | DN49: 50 | DO49: 50 | DP49: 50 | DQ49: 45 | DR49: 50 | DS49: 50 | DT49: 35 | DU49: 40 | DV49: 40 | DW49: 45 | DX49: 45 | DY49: 50 | DZ49: 45 | EA49: 50 | EB49: 50 | EC49: 50 | ED49: 45 | EE49: 45 | EF49: 45 | EG49: 40 | EH49: 40 | EI49: 35 | EJ49: 40 | EK49: 45 | EL49: 45 | EM49: 45
A50: Ashford | B50: 29UBJC | C50: E05011769 | F50: Singleton West | G50: 30 | H50: 30 | I50: 35 | J50: 30 | K50: 30 | L50: 30 | M50: 30 | N50: 30 | O50: 25 | P50: 20 | Q50: 25 | R50: 25 | S50: 30 | T50: 20 | U50: 25 | V50: 25 | W50: 25 | X50: 25 | Y50: 20 | Z50: 20 | AA50: 15 | AB50: 10 | AC50: 15 | AD50: 15 | AE50: 15 | AF50: 15 | AG50: 10 | AH50: 15 | AI50: 10 | AJ50: 10 | AK50: 15 | AL50: 20 | AM50: 15 | AN50: 15 | AO50: 15 | AP50: 15 | AQ50: 15 | AR50: 10 | AS50: 10 | AT50: 15 | AU50: 15 | AV50: 15 | AW50: 15 | AX50: 15 | AY50: 15 | AZ50: 15 | BA50: 15 | BB50: 15 | BC50: 15 | BD50: 15 | BE50: 20 | BF50: 20 | BG50: 15 | BH50: 20 | BI50: 20 | BJ50: 15 | BK50: 15 | BL50: 15 | BM50: 15 | BN50: 15 | BO50: 15 | BP50: 15 | BQ50: 15 | BR50: 20 | BS50: 20 | BT50: 20 | BU50: 15 | BV50: 15 | BW50: 20 | BX50: 25 | BY50: 25 | BZ50: 20 | CA50: 25 | CB50: 25 | CC50: 30 | CD50: 35 | CE50: 30 | CF50: 30 | CG50: 30 | CH50: 30 | CI50: 25 | CJ50: 30 | CK50: 30 | CL50: 35 | CM50: 30 | CN50: 30 | CO50: 35 | CP50: 65 | CQ50: 100 | CR50: 100 | CS50: 95 | CT50: 100 | CU50: 105 | CV50: 95 | CW50: 100 | CX50: 90 | CY50: 90 | CZ50: 85 | DA50: 80 | DB50: 85 | DC50: 75 | DD50: 70 | DE50: 65 | DF50: 60 | DG50: 55 | DH50: 50 | DI50: 50 | DJ50: 45 | DK50: 40 | DL50: 50 | DM50: 40 | DN50: 40 | DO50: 40 | DP50: 30 | DQ50: 25 | DR50: 30 | DS50: 30 | DT50: 35 | DU50: 35 | DV50: 35 | DW50: 30 | DX50: 40 | DY50: 35 | DZ50: 40 | EA50: 35 | EB50: 40 | EC50: 35 | ED50: 40 | EE50: 30 | EF50: 30 | EG50: 35 | EH50: 35 | EI50: 35 | EJ50: 35 | EK50: 35 | EL50: 35 | EM50: 35
A51: Ashford | B51: 29UBJD | C51: E05011770 | F51: Stanhope | G51: 130 | H51: 140 | I51: 135 | J51: 130 | K51: 130 | L51: 120 | M51: 115 | N51: 110 | O51: 115 | P51: 105 | Q51: 110 | R51: 110 | S51: 110 | T51: 115 | U51: 115 | V51: 100 | W51: 110 | X51: 100 | Y51: 95 | Z51: 90 | AA51: 85 | AB51: 70 | AC51: 65 | AD51: 65 | AE51: 75 | AF51: 85 | AG51: 85 | AH51: 75 | AI51: 60 | AJ51: 55 | AK51: 60 | AL51: 55 | AM51: 60 | AN51: 60 | AO51: 65 | AP51: 75 | AQ51: 75 | AR51: 85 | AS51: 80 | AT51: 80 | AU51: 80 | AV51: 80 | AW51: 80 | AX51: 80 | AY51: 85 | AZ51: 80 | BA51: 80 | BB51: 75 | BC51: 75 | BD51: 80 | BE51: 85 | BF51: 90 | BG51: 90 | BH51: 95 | BI51: 90 | BJ51: 85 | BK51: 90 | BL51: 85 | BM51: 90 | BN51: 90 | BO51: 85 | BP51: 85 | BQ51: 95 | BR51: 110 | BS51: 105 | BT51: 100 | BU51: 95 | BV51: 100 | BW51: 110 | BX51: 120 | BY51: 120 | BZ51: 135 | CA51: 135 | CB51: 135 | CC51: 135 | CD51: 130 | CE51: 135 | CF51: 140 | CG51: 155 | CH51: 155 | CI51: 150 | CJ51: 150 | CK51: 150 | CL51: 150 | CM51: 140 | CN51: 145 | CO51: 145 | CP51: 200 | CQ51: 235 | CR51: 235 | CS51: 220 | CT51: 230 | CU51: 230 | CV51: 240 | CW51: 225 | CX51: 235 | CY51: 225 | CZ51: 245 | DA51: 245 | DB51: 240 | DC51: 235 | DD51: 205 | DE51: 200 | DF51: 195 | DG51: 190 | DH51: 170 | DI51: 165 | DJ51: 160 | DK51: 160 | DL51: 160 | DM51: 160 | DN51: 155 | DO51: 155 | DP51: 150 | DQ51: 140 | DR51: 140 | DS51: 130 | DT51: 135 | DU51: 140 | DV51: 145 | DW51: 140 | DX51: 140 | DY51: 140 | DZ51: 155 | EA51: 145 | EB51: 150 | EC51: 145 | ED51: 150 | EE51: 155 | EF51: 155 | EG51: 155 | EH51: 150 | EI51: 165 | EJ51: 160 | EK51: 175 | EL51: 160 | EM51: 160
A52: Ashford | B52: 29UBJE | C52: E05011771 | F52: Tenterden North | G52: 10 | H52: 15 | I52: 15 | J52: 10 | K52: 10 | L52: 10 | M52: 5 | N52: 5 | O52: 10 | P52: 10 | Q52: 10 | R52: 10 | S52: 10 | T52: 10 | U52: 10 | V52: 10 | W52: 10 | X52: 10 | Y52: 10 | Z52: 10 | AA52: 10 | AB52: 5 | AC52: 5 | AD52: 5 | AE52: 5 | AF52: 10 | AG52: 10 | AH52: 10 | AI52: 10 | AJ52: 10 | AK52: 10 | AL52: 5 | AM52: 5 | AN52: 5 | AO52: 5 | AP52: 5 | AQ52: 10 | AR52: 10 | AS52: 10 | AT52: 5 | AU52: 5 | AV52: 5 | AW52: 10 | AX52: 5 | AY52: 10 | AZ52: 10 | BA52: 15 | BB52: 10 | BC52: 15 | BD52: 15 | BE52: 15 | BF52: 10 | BG52: 10 | BH52: 15 | BI52: 15 | BJ52: 15 | BK52: 15 | BL52: 20 | BM52: 15 | BN52: 15 | BO52: 20 | BP52: 15 | BQ52: 15 | BR52: 10 | BS52: 10 | BT52: 10 | BU52: 10 | BV52: 10 | BW52: 15 | BX52: 15 | BY52: 15 | BZ52: 20 | CA52: 20 | CB52: 20 | CC52: 25 | CD52: 20 | CE52: 25 | CF52: 20 | CG52: 20 | CH52: 25 | CI52: 20 | CJ52: 25 | CK52: 20 | CL52: 25 | CM52: 25 | CN52: 25 | CO52: 25 | CP52: 50 | CQ52: 70 | CR52: 60 | CS52: 70 | CT52: 70 | CU52: 65 | CV52: 65 | CW52: 75 | CX52: 65 | CY52: 65 | CZ52: 70 | DA52: 70 | DB52: 65 | DC52: 60 | DD52: 55 | DE52: 50 | DF52: 50 | DG52: 45 | DH52: 40 | DI52: 40 | DJ52: 45 | DK52: 40 | DL52: 40 | DM52: 40 | DN52: 40 | DO52: 40 | DP52: 40 | DQ52: 35 | DR52: 35 | DS52: 30 | DT52: 35 | DU52: 35 | DV52: 25 | DW52: 25 | DX52: 25 | DY52: 30 | DZ52: 35 | EA52: 25 | EB52: 30 | EC52: 30 | ED52: 25 | EE52: 30 | EF52: 35 | EG52: 35 | EH52: 35 | EI52: 35 | EJ52: 40 | EK52: 30 | EL52: 25 | EM52: 25
A53: Ashford | B53: 29UBJF | C53: E05011772 | F53: Tenterden South | G53: 15 | H53: 15 | I53: 15 | J53: 10 | K53: 10 | L53: 10 | M53: 15 | N53: 10 | O53: 10 | P53: 10 | Q53: 10 | R53: 15 | S53: 15 | T53: 15 | U53: 15 | V53: 10 | W53: 15 | X53: 10 | Y53: 10 | Z53: 15 | AA53: 10 | AB53: 10 | AC53: 10 | AD53: 5 | AE53: 5 | AF53: 5 | AG53: 5 | AH53: 5 | AI53: 10 | AJ53: 5 | AK53: 5 | AL53: 10 | AM53: 5 | AN53: 5 | AO53: 10 | AP53: 10 | AQ53: 15 | AR53: 10 | AS53: 15 | AT53: 15 | AU53: 15 | AV53: 15 | AW53: 10 | AX53: 10 | AY53: 10 | AZ53: 10 | BA53: 15 | BB53: 10 | BC53: 10 | BD53: 10 | BE53: 10 | BF53: 15 | BG53: 20 | BH53: 15 | BI53: 15 | BJ53: 15 | BK53: 15 | BL53: 15 | BM53: 15 | BN53: 15 | BO53: 20 | BP53: 15 | BQ53: 15 | BR53: 15 | BS53: 20 | BT53: 20 | BU53: 20 | BV53: 20 | BW53: 15 | BX53: 20 | BY53: 20 | BZ53: 20 | CA53: 20 | CB53: 20 | CC53: 25 | CD53: 25 | CE53: 25 | CF53: 25 | CG53: 30 | CH53: 30 | CI53: 30 | CJ53: 25 | CK53: 25 | CL53: 30 | CM53: 25 | CN53: 25 | CO53: 30 | CP53: 65 | CQ53: 85 | CR53: 85 | CS53: 75 | CT53: 85 | CU53: 90 | CV53: 80 | CW53: 80 | CX53: 80 | CY53: 75 | CZ53: 80 | DA53: 80 | DB53: 80 | DC53: 70 | DD53: 65 | DE53: 60 | DF53: 55 | DG53: 55 | DH53: 55 | DI53: 55 | DJ53: 55 | DK53: 50 | DL53: 45 | DM53: 50 | DN53: 40 | DO53: 40 | DP53: 35 | DQ53: 30 | DR53: 30 | DS53: 30 | DT53: 30 | DU53: 30 | DV53: 35 | DW53: 45 | DX53: 40 | DY53: 45 | DZ53: 40 | EA53: 35 | EB53: 40 | EC53: 40 | ED53: 35 | EE53: 35 | EF53: 35 | EG53: 45 | EH53: 50 | EI53: 40 | EJ53: 50 | EK53: 40 | EL53: 40 | EM53: 40
A54: Ashford | B54: 29UBJG | C54: E05011773 | F54: Tenterden St Michael's | G54: 15 | H54: 15 | I54: 20 | J54: 20 | K54: 20 | L54: 15 | M54: 15 | N54: 15 | O54: 10 | P54: 10 | Q54: 15 | R54: 15 | S54: 15 | T54: 20 | U54: 20 | V54: 15 | W54: 10 | X54: 10 | Y54: 5 | Z54: 5 | AA54: 10 | AB54: 10 | AC54: 10 | AD54: 15 | AE54: 15 | AF54: 10 | AG54: 10 | AH54: 5 | AI54: 5 | AJ54: 5 | AK54: 5 | AL54: 10 | AM54: 10 | AN54: 10 | AO54: 5 | AP54: 10 | AQ54: 15 | AR54: 15 | AS54: 15 | AT54: 10 | AU54: 10 | AV54: 10 | AW54: 15 | AX54: 10 | AY54: 15 | AZ54: 15 | BA54: 15 | BB54: 10 | BC54: 10 | BD54: 10 | BE54: 15 | BF54: 15 | BG54: 15 | BH54: 15 | BI54: 10 | BJ54: 15 | BK54: 15 | BL54: 10 | BM54: 10 | BN54: 15 | BO54: 15 | BP54: 15 | BQ54: 15 | BR54: 15 | BS54: 10 | BT54: 15 | BU54: 10 | BV54: 15 | BW54: 15 | BX54: 15 | BY54: 15 | BZ54: 20 | CA54: 15 | CB54: 15 | CC54: 15 | CD54: 20 | CE54: 15 | CF54: 15 | CG54: 20 | CH54: 15 | CI54: 20 | CJ54: 15 | CK54: 15 | CL54: 10 | CM54: 15 | CN54: 15 | CO54: 15 | CP54: 40 | CQ54: 50 | CR54: 50 | CS54: 55 | CT54: 60 | CU54: 65 | CV54: 55 | CW54: 55 | CX54: 60 | CY54: 65 | CZ54: 65 | DA54: 60 | DB54: 55 | DC54: 50 | DD54: 45 | DE54: 45 | DF54: 40 | DG54: 35 | DH54: 35 | DI54: 35 | DJ54: 35 | DK54: 30 | DL54: 30 | DM54: 30 | DN54: 30 | DO54: 30 | DP54: 25 | DQ54: 25 | DR54: 25 | DS54: 25 | DT54: 30 | DU54: 25 | DV54: 30 | DW54: 30 | DX54: 30 | DY54: 25 | DZ54: 25 | EA54: 30 | EB54: 25 | EC54: 30 | ED54: 25 | EE54: 30 | EF54: 30 | EG54: 30 | EH54: 30 | EI54: 25 | EJ54: 30 | EK54: 35 | EL54: 30 | EM54: 30
A55: Ashford | B55: 29UBJH | C55: E05011774 | F55: Upper Weald | G55: 35 | H55: 40 | I55: 35 | J55: 30 | K55: 30 | L55: 30 | M55: 30 | N55: 25 | O55: 25 | P55: 25 | Q55: 20 | R55: 15 | S55: 20 | T55: 20 | U55: 20 | V55: 25 | W55: 25 | X55: 20 | Y55: 25 | Z55: 25 | AA55: 25 | AB55: 30 | AC55: 30 | AD55: 25 | AE55: 25 | AF55: 25 | AG55: 20 | AH55: 15 | AI55: 15 | AJ55: 15 | AK55: 10 | AL55: 15 | AM55: 15 | AN55: 15 | AO55: 20 | AP55: 15 | AQ55: 15 | AR55: 15 | AS55: 15 | AT55: 15 | AU55: 15 | AV55: 15 | AW55: 15 | AX55: 20 | AY55: 20 | AZ55: 20 | BA55: 15 | BB55: 15 | BC55: 20 | BD55: 20 | BE55: 20 | BF55: 25 | BG55: 25 | BH55: 25 | BI55: 20 | BJ55: 20 | BK55: 20 | BL55: 20 | BM55: 20 | BN55: 25 | BO55: 25 | BP55: 25 | BQ55: 25 | BR55: 25 | BS55: 25 | BT55: 20 | BU55: 20 | BV55: 20 | BW55: 15 | BX55: 15 | BY55: 25 | BZ55: 25 | CA55: 30 | CB55: 30 | CC55: 35 | CD55: 40 | CE55: 35 | CF55: 35 | CG55: 30 | CH55: 30 | CI55: 25 | CJ55: 25 | CK55: 30 | CL55: 30 | CM55: 25 | CN55: 25 | CO55: 25 | CP55: 70 | CQ55: 85 | CR55: 80 | CS55: 85 | CT55: 85 | CU55: 80 | CV55: 75 | CW55: 75 | CX55: 75 | CY55: 70 | CZ55: 80 | DA55: 70 | DB55: 70 | DC55: 60 | DD55: 55 | DE55: 65 | DF55: 50 | DG55: 50 | DH55: 80 | DI55: 90 | DJ55: 95 | DK55: 95 | DL55: 95 | DM55: 90 | DN55: 90 | DO55: 85 | DP55: 80 | DQ55: 85 | DR55: 85 | DS55: 85 | DT55: 75 | DU55: 80 | DV55: 80 | DW55: 80 | DX55: 65 | DY55: 55 | DZ55: 55 | EA55: 55 | EB55: 50 | EC55: 50 | ED55: 45 | EE55: 45 | EF55: 40 | EG55: 40 | EH55: 40 | EI55: 40 | EJ55: 40 | EK55: 45 | EL55: 45 | EM55: 40
A56: Ashford | B56: 29UBJJ | C56: E05011775 | F56: Victoria | G56: 160 | H56: 180 | I56: 180 | J56: 185 | K56: 190 | L56: 180 | M56: 175 | N56: 170 | O56: 145 | P56: 150 | Q56: 145 | R56: 145 | S56: 140 | T56: 135 | U56: 130 | V56: 145 | W56: 135 | X56: 120 | Y56: 115 | Z56: 110 | AA56: 110 | AB56: 105 | AC56: 105 | AD56: 100 | AE56: 105 | AF56: 105 | AG56: 95 | AH56: 110 | AI56: 90 | AJ56: 90 | AK56: 85 | AL56: 90 | AM56: 100 | AN56: 105 | AO56: 100 | AP56: 100 | AQ56: 95 | AR56: 100 | AS56: 105 | AT56: 105 | AU56: 105 | AV56: 105 | AW56: 105 | AX56: 110 | AY56: 115 | AZ56: 115 | BA56: 115 | BB56: 115 | BC56: 120 | BD56: 110 | BE56: 115 | BF56: 120 | BG56: 120 | BH56: 130 | BI56: 135 | BJ56: 130 | BK56: 125 | BL56: 125 | BM56: 125 | BN56: 130 | BO56: 135 | BP56: 135 | BQ56: 140 | BR56: 150 | BS56: 150 | BT56: 155 | BU56: 155 | BV56: 160 | BW56: 165 | BX56: 185 | BY56: 195 | BZ56: 205 | CA56: 205 | CB56: 215 | CC56: 230 | CD56: 215 | CE56: 220 | CF56: 215 | CG56: 225 | CH56: 220 | CI56: 235 | CJ56: 240 | CK56: 245 | CL56: 245 | CM56: 250 | CN56: 260 | CO56: 260 | CP56: 350 | CQ56: 440 | CR56: 420 | CS56: 415 | CT56: 440 | CU56: 455 | CV56: 430 | CW56: 440 | CX56: 430 | CY56: 420 | CZ56: 430 | DA56: 420 | DB56: 390 | DC56: 390 | DD56: 360 | DE56: 335 | DF56: 320 | DG56: 300 | DH56: 310 | DI56: 280 | DJ56: 265 | DK56: 285 | DL56: 280 | DM56: 265 | DN56: 255 | DO56: 240 | DP56: 225 | DQ56: 235 | DR56: 235 | DS56: 245 | DT56: 240 | DU56: 235 | DV56: 225 | DW56: 240 | DX56: 225 | DY56: 235 | DZ56: 240 | EA56: 240 | EB56: 245 | EC56: 250 | ED56: 250 | EE56: 250 | EF56: 245 | EG56: 245 | EH56: 250 | EI56: 235 | EJ56: 250 | EK56: 245 | EL56: 240 | EM56: 260
A57: Ashford | B57: 29UBJK | C57: E05011776 | F57: Washford | G57: 50 | H57: 50 | I57: 50 | J57: 45 | K57: 40 | L57: 40 | M57: 55 | N57: 45 | O57: 40 | P57: 40 | Q57: 45 | R57: 45 | S57: 45 | T57: 45 | U57: 45 | V57: 40 | W57: 35 | X57: 30 | Y57: 35 | Z57: 30 | AA57: 30 | AB57: 30 | AC57: 25 | AD57: 25 | AE57: 20 | AF57: 25 | AG57: 25 | AH57: 25 | AI57: 25 | AJ57: 20 | AK57: 20 | AL57: 30 | AM57: 25 | AN57: 30 | AO57: 20 | AP57: 20 | AQ57: 25 | AR57: 25 | AS57: 30 | AT57: 30 | AU57: 25 | AV57: 25 | AW57: 30 | AX57: 30 | AY57: 25 | AZ57: 25 | BA57: 25 | BB57: 25 | BC57: 20 | BD57: 20 | BE57: 25 | BF57: 25 | BG57: 25 | BH57: 25 | BI57: 30 | BJ57: 35 | BK57: 30 | BL57: 25 | BM57: 30 | BN57: 30 | BO57: 30 | BP57: 30 | BQ57: 30 | BR57: 25 | BS57: 25 | BT57: 25 | BU57: 25 | BV57: 25 | BW57: 25 | BX57: 35 | BY57: 35 | BZ57: 40 | CA57: 40 | CB57: 45 | CC57: 40 | CD57: 40 | CE57: 35 | CF57: 40 | CG57: 40 | CH57: 45 | CI57: 50 | CJ57: 50 | CK57: 50 | CL57: 55 | CM57: 55 | CN57: 60 | CO57: 60 | CP57: 90 | CQ57: 95 | CR57: 95 | CS57: 105 | CT57: 110 | CU57: 110 | CV57: 110 | CW57: 105 | CX57: 105 | CY57: 105 | CZ57: 105 | DA57: 105 | DB57: 100 | DC57: 95 | DD57: 85 | DE57: 90 | DF57: 80 | DG57: 80 | DH57: 70 | DI57: 70 | DJ57: 65 | DK57: 60 | DL57: 60 | DM57: 60 | DN57: 55 | DO57: 55 | DP57: 50 | DQ57: 45 | DR57: 40 | DS57: 40 | DT57: 40 | DU57: 45 | DV57: 50 | DW57: 50 | DX57: 50 | DY57: 50 | DZ57: 60 | EA57: 50 | EB57: 50 | EC57: 55 | ED57: 45 | EE57: 45 | EF57: 45 | EG57: 50 | EH57: 50 | EI57: 40 | EJ57: 50 | EK57: 55 | EL57: 55 | EM57: 50
A58: Ashford | B58: 29UBJL | C58: E05011777 | F58: Weald Central | G58: 50 | H58: 50 | I58: 45 | J58: 40 | K58: 35 | L58: 30 | M58: 25 | N58: 25 | O58: 25 | P58: 20 | Q58: 20 | R58: 30 | S58: 30 | T58: 35 | U58: 30 | V58: 30 | W58: 25 | X58: 25 | Y58: 25 | Z58: 25 | AA58: 25 | AB58: 20 | AC58: 15 | AD58: 15 | AE58: 20 | AF58: 20 | AG58: 20 | AH58: 20 | AI58: 15 | AJ58: 20 | AK58: 20 | AL58: 20 | AM58: 25 | AN58: 25 | AO58: 30 | AP58: 35 | AQ58: 35 | AR58: 35 | AS58: 40 | AT58: 40 | AU58: 40 | AV58: 40 | AW58: 40 | AX58: 35 | AY58: 35 | AZ58: 35 | BA58: 35 | BB58: 35 | BC58: 40 | BD58: 35 | BE58: 35 | BF58: 30 | BG58: 30 | BH58: 35 | BI58: 30 | BJ58: 35 | BK58: 35 | BL58: 35 | BM58: 35 | BN58: 40 | BO58: 40 | BP58: 40 | BQ58: 40 | BR58: 40 | BS58: 35 | BT58: 35 | BU58: 35 | BV58: 35 | BW58: 40 | BX58: 50 | BY58: 45 | BZ58: 45 | CA58: 50 | CB58: 50 | CC58: 50 | CD58: 55 | CE58: 50 | CF58: 50 | CG58: 50 | CH58: 50 | CI58: 50 | CJ58: 50 | CK58: 55 | CL58: 50 | CM58: 50 | CN58: 55 | CO58: 60 | CP58: 135 | CQ58: 185 | CR58: 155 | CS58: 160 | CT58: 165 | CU58: 155 | CV58: 145 | CW58: 150 | CX58: 155 | CY58: 150 | CZ58: 160 | DA58: 145 | DB58: 135 | DC58: 125 | DD58: 115 | DE58: 115 | DF58: 115 | DG58: 105 | DH58: 110 | DI58: 95 | DJ58: 95 | DK58: 85 | DL58: 90 | DM58: 95 | DN58: 90 | DO58: 85 | DP58: 80 | DQ58: 80 | DR58: 80 | DS58: 75 | DT58: 65 | DU58: 70 | DV58: 70 | DW58: 70 | DX58: 75 | DY58: 75 | DZ58: 75 | EA58: 80 | EB58: 85 | EC58: 85 | ED58: 75 | EE58: 70 | EF58: 75 | EG58: 70 | EH58: 80 | EI58: 85 | EJ58: 85 | EK58: 85 | EL58: 85 | EM58: 90
A59: Ashford | C59: E05011778 | F59: Weald North | G59: 20 | H59: 25 | I59: 25 | J59: 25 | K59: 30 | L59: 25 | M59: 25 | N59: 25 | O59: 25 | P59: 25 | Q59: 20 | R59: 20 | S59: 20 | T59: 20 | U59: 15 | V59: 10 | W59: 15 | X59: 10 | Y59: 10 | Z59: 10 | AA59: 10 | AB59: 15 | AC59: 15 | AD59: 10 | AE59: 10 | AF59: 10 | AG59: 10 | AH59: 10 | AI59: 10 | AJ59: 5 | AK59: 5 | AL59: 5 | AM59: 5 | AN59: 10 | AO59: 10 | AP59: 10 | AQ59: 10 | AR59: 10 | AS59: 10 | AT59: 10 | AU59: 5 | AV59: 10 | AW59: 10 | AX59: 10 | AY59: 10 | AZ59: 10 | BA59: 15 | BB59: 15 | BC59: 15 | BD59: 15 | BE59: 20 | BF59: 20 | BG59: 20 | BH59: 20 | BI59: 20 | BJ59: 20 | BK59: 20 | BL59: 15 | BM59: 20 | BN59: 20 | BO59: 15 | BP59: 15 | BQ59: 15 | BR59: 10 | BS59: 15 | BT59: 15 | BU59: 15 | BV59: 15 | BW59: 15 | BX59: 10 | BY59: 15 | BZ59: 10 | CA59: 15 | CB59: 20 | CC59: 20 | CD59: 20 | CE59: 15 | CF59: 20 | CG59: 20 | CH59: 20 | CI59: 20 | CJ59: 20 | CK59: 20 | CL59: 20 | CM59: 20 | CN59: 20 | CO59: 20 | CP59: 45 | CQ59: 70 | CR59: 60 | CS59: 65 | CT59: 55 | CU59: 55 | CV59: 45 | CW59: 50 | CX59: 50 | CY59: 50 | CZ59: 50 | DA59: 60 | DB59: 55 | DC59: 45 | DD59: 40 | DE59: 35 | DF59: 35 | DG59: 30 | DH59: 35 | DI59: 35 | DJ59: 35 | DK59: 25 | DL59: 30 | DM59: 25 | DN59: 25 | DO59: 20 | DP59: 20 | DQ59: 20 | DR59: 20 | DS59: 20 | DT59: 15 | DU59: 15 | DV59: 15 | DW59: 15 | DX59: 15 | DY59: 20 | DZ59: 10 | EA59: 10 | EB59: 10 | EC59: 15 | ED59: 15 | EE59: 15 | EF59: 15 | EG59: 20 | EH59: 15 | EI59: 15 | EJ59: 15 | EK59: 10 | EL59: 20 | EM59: 20
A60: Ashford | C60: E05011779 | F60: Weald South | G60: 45 | H60: 45 | I60: 50 | J60: 45 | K60: 40 | L60: 40 | M60: 30 | N60: 35 | O60: 35 | P60: 30 | Q60: 25 | R60: 25 | S60: 30 | T60: 30 | U60: 25 | V60: 25 | W60: 25 | X60: 20 | Y60: 15 | Z60: 15 | AA60: 15 | AB60: 15 | AC60: 20 | AD60: 15 | AE60: 20 | AF60: 25 | AG60: 25 | AH60: 25 | AI60: 20 | AJ60: 20 | AK60: 15 | AL60: 20 | AM60: 20 | AN60: 20 | AO60: 25 | AP60: 25 | AQ60: 25 | AR60: 25 | AS60: 25 | AT60: 20 | AU60: 20 | AV60: 20 | AW60: 20 | AX60: 25 | AY60: 20 | AZ60: 25 | BA60: 25 | BB60: 25 | BC60: 15 | BD60: 20 | BE60: 25 | BF60: 25 | BG60: 30 | BH60: 30 | BI60: 40 | BJ60: 40 | BK60: 35 | BL60: 30 | BM60: 25 | BN60: 30 | BO60: 30 | BP60: 35 | BQ60: 35 | BR60: 35 | BS60: 35 | BT60: 35 | BU60: 35 | BV60: 40 | BW60: 40 | BX60: 40 | BY60: 45 | BZ60: 45 | CA60: 45 | CB60: 45 | CC60: 45 | CD60: 50 | CE60: 45 | CF60: 45 | CG60: 50 | CH60: 55 | CI60: 55 | CJ60: 55 | CK60: 60 | CL60: 60 | CM60: 70 | CN60: 65 | CO60: 65 | CP60: 140 | CQ60: 160 | CR60: 150 | CS60: 160 | CT60: 160 | CU60: 165 | CV60: 145 | CW60: 155 | CX60: 150 | CY60: 155 | CZ60: 165 | DA60: 155 | DB60: 150 | DC60: 140 | DD60: 135 | DE60: 125 | DF60: 115 | DG60: 110 | DH60: 95 | DI60: 90 | DJ60: 90 | DK60: 85 | DL60: 85 | DM60: 85 | DN60: 70 | DO60: 75 | DP60: 70 | DQ60: 70 | DR60: 70 | DS60: 60 | DT60: 55 | DU60: 60 | DV60: 65 | DW60: 70 | DX60: 70 | DY60: 80 | DZ60: 75 | EA60: 75 | EB60: 70 | EC60: 65 | ED60: 60 | EE60: 65 | EF60: 60 | EG60: 70 | EH60: 65 | EI60: 65 | EJ60: 75 | EK60: 70 | EL60: 65 | EM60: 65
A61: Ashford | C61: E05011780 | F61: Willesborough | G61: 85 | H61: 95 | I61: 95 | J61: 100 | K61: 100 | L61: 90 | M61: 90 | N61: 95 | O61: 80 | P61: 80 | Q61: 80 | R61: 90 | S61: 85 | T61: 80 | U61: 75 | V61: 65 | W61: 65 | X61: 60 | Y61: 60 | Z61: 60 | AA61: 55 | AB61: 55 | AC61: 55 | AD61: 50 | AE61: 55 | AF61: 60 | AG61: 50 | AH61: 55 | AI61: 40 | AJ61: 40 | AK61: 40 | AL61: 40 | AM61: 45 | AN61: 45 | AO61: 45 | AP61: 45 | AQ61: 45 | AR61: 45 | AS61: 50 | AT61: 55 | AU61: 60 | AV61: 55 | AW61: 55 | AX61: 55 | AY61: 55 | AZ61: 60 | BA61: 50 | BB61: 55 | BC61: 55 | BD61: 60 | BE61: 75 | BF61: 70 | BG61: 70 | BH61: 65 | BI61: 60 | BJ61: 55 | BK61: 65 | BL61: 65 | BM61: 65 | BN61: 75 | BO61: 75 | BP61: 80 | BQ61: 85 | BR61: 80 | BS61: 80 | BT61: 80 | BU61: 75 | BV61: 75 | BW61: 75 | BX61: 70 | BY61: 65 | BZ61: 70 | CA61: 75 | CB61: 90 | CC61: 85 | CD61: 80 | CE61: 80 | CF61: 80 | CG61: 85 | CH61: 75 | CI61: 70 | CJ61: 80 | CK61: 90 | CL61: 80 | CM61: 90 | CN61: 95 | CO61: 95 | CP61: 165 | CQ61: 210 | CR61: 185 | CS61: 205 | CT61: 215 | CU61: 210 | CV61: 205 | CW61: 210 | CX61: 200 | CY61: 185 | CZ61: 190 | DA61: 195 | DB61: 185 | DC61: 185 | DD61: 145 | DE61: 145 | DF61: 130 | DG61: 130 | DH61: 120 | DI61: 120 | DJ61: 105 | DK61: 105 | DL61: 120 | DM61: 110 | DN61: 105 | DO61: 95 | DP61: 95 | DQ61: 85 | DR61: 85 | DS61: 85 | DT61: 85 | DU61: 95 | DV61: 85 | DW61: 95 | DX61: 90 | DY61: 85 | DZ61: 90 | EA61: 90 | EB61: 95 | EC61: 100 | ED61: 95 | EE61: 105 | EF61: 105 | EG61: 100 | EH61: 90 | EI61: 85 | EJ61: 90 | EK61: 90 | EL61: 100 | EM61: 110
A62: Ashford | C62: E05011781 | F62: Wye with Hinxhill | G62: 20 | H62: 35 | I62: 35 | J62: 30 | K62: 25 | L62: 25 | M62: 30 | N62: 35 | O62: 25 | P62: 25 | Q62: 20 | R62: 15 | S62: 15 | T62: 20 | U62: 20 | V62: 20 | W62: 20 | X62: 20 | Y62: 20 | Z62: 15 | AA62: 15 | AB62: 15 | AC62: 15 | AD62: 15 | AE62: 15 | AF62: 20 | AG62: 20 | AH62: 20 | AI62: 20 | AJ62: 15 | AK62: 15 | AL62: 15 | AM62: 15 | AN62: 15 | AO62: 15 | AP62: 15 | AQ62: 15 | AR62: 20 | AS62: 20 | AT62: 20 | AU62: 20 | AV62: 20 | AW62: 15 | AX62: 20 | AY62: 15 | AZ62: 15 | BA62: 15 | BB62: 15 | BC62: 10 | BD62: 15 | BE62: 15 | BF62: 20 | BG62: 20 | BH62: 20 | BI62: 20 | BJ62: 20 | BK62: 15 | BL62: 20 | BM62: 20 | BN62: 15 | BO62: 15 | BP62: 20 | BQ62: 20 | BR62: 15 | BS62: 15 | BT62: 20 | BU62: 20 | BV62: 20 | BW62: 25 | BX62: 25 | BY62: 30 | BZ62: 30 | CA62: 30 | CB62: 30 | CC62: 30 | CD62: 30 | CE62: 30 | CF62: 25 | CG62: 30 | CH62: 25 | CI62: 25 | CJ62: 30 | CK62: 25 | CL62: 30 | CM62: 30 | CN62: 35 | CO62: 30 | CP62: 60 | CQ62: 65 | CR62: 70 | CS62: 70 | CT62: 75 | CU62: 60 | CV62: 55 | CW62: 55 | CX62: 60 | CY62: 55 | CZ62: 60 | DA62: 60 | DB62: 60 | DC62: 55 | DD62: 55 | DE62: 55 | DF62: 45 | DG62: 45 | DH62: 45 | DI62: 40 | DJ62: 40 | DK62: 40 | DL62: 45 | DM62: 40 | DN62: 40 | DO62: 40 | DP62: 35 | DQ62: 40 | DR62: 45 | DS62: 45 | DT62: 40 | DU62: 40 | DV62: 40 | DW62: 45 | DX62: 45 | DY62: 35 | DZ62: 45 | EA62: 45 | EB62: 40 | EC62: 45 | ED62: 40 | EE62: 35 | EF62: 45 | EG62: 45 | EH62: 50 | EI62: 45 | EJ62: 50 | EK62: 45 | EL62: 45 | EM62: 45
A63: Canterbury | C63: E05012990 | D63: E05004902 | E63: E36003515 | F63: Barton | G63: 220 | H63: 210 | I63: 195 | J63: 195 | K63: 190 | L63: 185 | M63: 180 | N63: 180 | O63: 180 | P63: 175 | Q63: 170 | R63: 155 | S63: 155 | T63: 165 | U63: 170 | V63: 155 | W63: 140 | X63: 140 | Y63: 130 | Z63: 120 | AA63: 110 | AB63: 115 | AC63: 105 | AD63: 105 | AE63: 105 | AF63: 110 | AG63: 110 | AH63: 100 | AI63: 110 | AJ63: 95 | AK63: 100 | AL63: 95 | AM63: 100 | AN63: 105 | AO63: 105 | AP63: 105 | AQ63: 110 | AR63: 105 | AS63: 105 | AT63: 115 | AU63: 110 | AV63: 100 | AW63: 110 | AX63: 120 | AY63: 140 | AZ63: 150 | BA63: 160 | BB63: 155 | BC63: 160 | BD63: 160 | BE63: 155 | BF63: 155 | BG63: 145 | BH63: 145 | BI63: 145 | BJ63: 145 | BK63: 135 | BL63: 130 | BM63: 135 | BN63: 140 | BO63: 140 | BP63: 155 | BQ63: 155 | BR63: 155 | BS63: 155 | BT63: 150 | BU63: 140 | BV63: 140 | BW63: 150 | BX63: 160 | BY63: 170 | BZ63: 185 | CA63: 190 | CB63: 205 | CC63: 225 | CD63: 225 | CE63: 230 | CF63: 240 | CG63: 240 | CH63: 235 | CI63: 215 | CJ63: 210 | CK63: 225 | CL63: 215 | CM63: 220 | CN63: 240 | CO63: 260 | CP63: 400 | CQ63: 465 | CR63: 445 | CS63: 475 | CT63: 495 | CU63: 485 | CV63: 475 | CW63: 490 | CX63: 480 | CY63: 480 | CZ63: 500 | DA63: 505 | DB63: 490 | DC63: 465 | DD63: 440 | DE63: 430 | DF63: 405 | DG63: 400 | DH63: 400 | DI63: 415 | DJ63: 405 | DK63: 405 | DL63: 395 | DM63: 390 | DN63: 390 | DO63: 375 | DP63: 365 | DQ63: 375 | DR63: 365 | DS63: 365 | DT63: 365 | DU63: 370 | DV63: 350 | DW63: 360 | DX63: 360 | DY63: 365 | DZ63: 365 | EA63: 355 | EB63: 360 | EC63: 350 | ED63: 335 | EE63: 355 | EF63: 340 | EG63: 375 | EH63: 360 | EI63: 370 | EJ63: 385 | EK63: 390 | EL63: 385 | EM63: 385
A64: Canterbury | C64: E05010392 | D64: E05004903 | E64: E36003516 | F64: Beltinge | G64: 85 | H64: 85 | I64: 75 | J64: 90 | K64: 75 | L64: 70 | M64: 75 | N64: 70 | O64: 60 | P64: 65 | Q64: 60 | R64: 55 | S64: 55 | T64: 50 | U64: 45 | V64: 40 | W64: 35 | X64: 35 | Y64: 25 | Z64: 35 | AA64: 45 | AB64: 30 | AC64: 30 | AD64: 30 | AE64: 35 | AF64: 40 | AG64: 35 | AH64: 35 | AI64: 30 | AJ64: 30 | AK64: 30 | AL64: 30 | AM64: 30 | AN64: 30 | AO64: 40 | AP64: 35 | AQ64: 45 | AR64: 45 | AS64: 40 | AT64: 45 | AU64: 45 | AV64: 35 | AW64: 40 | AX64: 40 | AY64: 40 | AZ64: 45 | BA64: 45 | BB64: 45 | BC64: 45 | BD64: 40 | BE64: 35 | BF64: 30 | BG64: 30 | BH64: 35 | BI64: 35 | BJ64: 40 | BK64: 40 | BL64: 35 | BM64: 40 | BN64: 50 | BO64: 40 | BP64: 40 | BQ64: 45 | BR64: 45 | BS64: 45 | BT64: 40 | BU64: 40 | BV64: 40 | BW64: 45 | BX64: 45 | BY64: 50 | BZ64: 50 | CA64: 55 | CB64: 55 | CC64: 55 | CD64: 60 | CE64: 65 | CF64: 65 | CG64: 75 | CH64: 80 | CI64: 75 | CJ64: 80 | CK64: 75 | CL64: 75 | CM64: 70 | CN64: 75 | CO64: 75 | CP64: 180 | CQ64: 200 | CR64: 185 | CS64: 190 | CT64: 200 | CU64: 190 | CV64: 175 | CW64: 170 | CX64: 180 | CY64: 170 | CZ64: 185 | DA64: 190 | DB64: 180 | DC64: 160 | DD64: 140 | DE64: 150 | DF64: 150 | DG64: 130 | DH64: 130 | DI64: 125 | DJ64: 105 | DK64: 100 | DL64: 115 | DM64: 115 | DN64: 110 | DO64: 95 | DP64: 90 | DQ64: 85 | DR64: 90 | DS64: 85 | DT64: 90 | DU64: 85 | DV64: 85 | DW64: 80 | DX64: 85 | DY64: 80 | DZ64: 80 | EA64: 70 | EB64: 70 | EC64: 70 | ED64: 70 | EE64: 70 | EF64: 80 | EG64: 80 | EH64: 80 | EI64: 80 | EJ64: 85 | EK64: 85 | EL64: 90 | EM64: 85
A65: Canterbury | C65: E05010393 | D65: E05004904 | E65: E36003517 | F65: Blean Forest | G65: 45 | H65: 45 | I65: 45 | J65: 45 | K65: 40 | L65: 35 | M65: 35 | N65: 40 | O65: 40 | P65: 45 | Q65: 40 | R65: 30 | S65: 35 | T65: 40 | U65: 35 | V65: 35 | W65: 35 | X65: 25 | Y65: 30 | Z65: 20 | AA65: 25 | AB65: 25 | AC65: 20 | AD65: 20 | AE65: 25 | AF65: 20 | AG65: 20 | AH65: 20 | AI65: 25 | AJ65: 20 | AK65: 20 | AL65: 20 | AM65: 15 | AN65: 20 | AO65: 25 | AP65: 20 | AQ65: 15 | AR65: 20 | AS65: 25 | AT65: 25 | AU65: 20 | AV65: 20 | AW65: 20 | AX65: 25 | AY65: 30 | AZ65: 30 | BA65: 30 | BB65: 30 | BC65: 35 | BD65: 30 | BE65: 30 | BF65: 35 | BG65: 25 | BH65: 20 | BI65: 25 | BJ65: 25 | BK65: 30 | BL65: 30 | BM65: 30 | BN65: 30 | BO65: 25 | BP65: 30 | BQ65: 30 | BR65: 35 | BS65: 35 | BT65: 35 | BU65: 30 | BV65: 25 | BW65: 25 | BX65: 20 | BY65: 30 | BZ65: 35 | CA65: 35 | CB65: 40 | CC65: 40 | CD65: 40 | CE65: 35 | CF65: 35 | CG65: 40 | CH65: 40 | CI65: 35 | CJ65: 45 | CK65: 35 | CL65: 35 | CM65: 35 | CN65: 35 | CO65: 35 | CP65: 75 | CQ65: 110 | CR65: 105 | CS65: 120 | CT65: 125 | CU65: 130 | CV65: 120 | CW65: 115 | CX65: 130 | CY65: 130 | CZ65: 130 | DA65: 130 | DB65: 120 | DC65: 110 | DD65: 95 | DE65: 85 | DF65: 75 | DG65: 65 | DH65: 70 | DI65: 70 | DJ65: 70 | DK65: 70 | DL65: 75 | DM65: 70 | DN65: 65 | DO65: 65 | DP65: 55 | DQ65: 60 | DR65: 60 | DS65: 65 | DT65: 55 | DU65: 60 | DV65: 65 | DW65: 60 | DX65: 55 | DY65: 60 | DZ65: 65 | EA65: 65 | EB65: 70 | EC65: 65 | ED65: 60 | EE65: 60 | EF65: 65 | EG65: 55 | EH65: 60 | EI65: 55 | EJ65: 60 | EK65: 65 | EL65: 65 | EM65: 65
A66: Canterbury | C66: E05012991 | D66: E05004905 | E66: E36003518 | F66: Chartham & Stone Street | G66: 80 | H66: 80 | I66: 85 | J66: 85 | K66: 80 | L66: 85 | M66: 75 | N66: 75 | O66: 65 | P66: 60 | Q66: 60 | R66: 55 | S66: 55 | T66: 50 | U66: 50 | V66: 50 | W66: 40 | X66: 40 | Y66: 40 | Z66: 30 | AA66: 30 | AB66: 40 | AC66: 35 | AD66: 30 | AE66: 25 | AF66: 30 | AG66: 30 | AH66: 35 | AI66: 25 | AJ66: 25 | AK66: 20 | AL66: 20 | AM66: 20 | AN66: 20 | AO66: 15 | AP66: 20 | AQ66: 25 | AR66: 25 | AS66: 30 | AT66: 35 | AU66: 35 | AV66: 30 | AW66: 30 | AX66: 30 | AY66: 30 | AZ66: 40 | BA66: 40 | BB66: 40 | BC66: 40 | BD66: 40 | BE66: 40 | BF66: 30 | BG66: 25 | BH66: 25 | BI66: 30 | BJ66: 30 | BK66: 30 | BL66: 35 | BM66: 35 | BN66: 40 | BO66: 45 | BP66: 50 | BQ66: 40 | BR66: 40 | BS66: 40 | BT66: 35 | BU66: 35 | BV66: 35 | BW66: 35 | BX66: 40 | BY66: 60 | BZ66: 60 | CA66: 60 | CB66: 75 | CC66: 75 | CD66: 70 | CE66: 75 | CF66: 65 | CG66: 70 | CH66: 70 | CI66: 75 | CJ66: 70 | CK66: 80 | CL66: 70 | CM66: 75 | CN66: 85 | CO66: 80 | CP66: 170 | CQ66: 215 | CR66: 205 | CS66: 220 | CT66: 220 | CU66: 215 | CV66: 205 | CW66: 195 | CX66: 195 | CY66: 190 | CZ66: 190 | DA66: 185 | DB66: 190 | DC66: 170 | DD66: 150 | DE66: 150 | DF66: 150 | DG66: 140 | DH66: 140 | DI66: 145 | DJ66: 135 | DK66: 125 | DL66: 140 | DM66: 145 | DN66: 130 | DO66: 135 | DP66: 125 | DQ66: 125 | DR66: 120 | DS66: 130 | DT66: 140 | DU66: 140 | DV66: 140 | DW66: 140 | DX66: 135 | DY66: 145 | DZ66: 135 | EA66: 125 | EB66: 125 | EC66: 130 | ED66: 110 | EE66: 95 | EF66: 95 | EG66: 110 | EH66: 115 | EI66: 115 | EJ66: 115 | EK66: 120 | EL66: 115 | EM66: 110
A67: Canterbury | C67: E05010395 | D67: E05004906 | E67: E36003519 | F67: Chestfield | G67: 75 | H67: 75 | I67: 70 | J67: 60 | K67: 65 | L67: 65 | M67: 60 | N67: 60 | O67: 50 | P67: 55 | Q67: 60 | R67: 60 | S67: 60 | T67: 55 | U67: 45 | V67: 40 | W67: 40 | X67: 35 | Y67: 25 | Z67: 25 | AA67: 20 | AB67: 15 | AC67: 20 | AD67: 20 | AE67: 20 | AF67: 25 | AG67: 20 | AH67: 20 | AI67: 20 | AJ67: 15 | AK67: 20 | AL67: 20 | AM67: 20 | AN67: 25 | AO67: 30 | AP67: 30 | AQ67: 30 | AR67: 30 | AS67: 30 | AT67: 35 | AU67: 30 | AV67: 30 | AW67: 30 | AX67: 30 | AY67: 25 | AZ67: 25 | BA67: 25 | BB67: 25 | BC67: 25 | BD67: 30 | BE67: 30 | BF67: 30 | BG67: 30 | BH67: 30 | BI67: 25 | BJ67: 30 | BK67: 30 | BL67: 30 | BM67: 35 | BN67: 35 | BO67: 40 | BP67: 35 | BQ67: 35 | BR67: 35 | BS67: 35 | BT67: 30 | BU67: 30 | BV67: 30 | BW67: 30 | BX67: 35 | BY67: 40 | BZ67: 40 | CA67: 45 | CB67: 55 | CC67: 55 | CD67: 60 | CE67: 60 | CF67: 60 | CG67: 55 | CH67: 55 | CI67: 55 | CJ67: 55 | CK67: 55 | CL67: 50 | CM67: 60 | CN67: 65 | CO67: 60 | CP67: 135 | CQ67: 165 | CR67: 165 | CS67: 160 | CT67: 170 | CU67: 155 | CV67: 155 | CW67: 150 | CX67: 145 | CY67: 145 | CZ67: 160 | DA67: 160 | DB67: 145 | DC67: 135 | DD67: 130 | DE67: 120 | DF67: 110 | DG67: 110 | DH67: 105 | DI67: 95 | DJ67: 100 | DK67: 100 | DL67: 95 | DM67: 85 | DN67: 80 | DO67: 75 | DP67: 75 | DQ67: 65 | DR67: 70 | DS67: 60 | DT67: 70 | DU67: 70 | DV67: 70 | DW67: 70 | DX67: 70 | DY67: 75 | DZ67: 75 | EA67: 75 | EB67: 75 | EC67: 80 | ED67: 85 | EE67: 85 | EF67: 90 | EG67: 80 | EH67: 85 | EI67: 85 | EJ67: 85 | EK67: 75 | EL67: 75 | EM67: 80
A68: Canterbury | C68: E05010396 | D68: E05004907 | E68: E36003520 | F68: Gorrell | G68: 160 | H68: 190 | I68: 195 | J68: 170 | K68: 175 | L68: 175 | M68: 160 | N68: 150 | O68: 150 | P68: 145 | Q68: 145 | R68: 150 | S68: 155 | T68: 150 | U68: 135 | V68: 115 | W68: 105 | X68: 100 | Y68: 95 | Z68: 85 | AA68: 65 | AB68: 75 | AC68: 75 | AD68: 80 | AE68: 85 | AF68: 90 | AG68: 95 | AH68: 85 | AI68: 75 | AJ68: 70 | AK68: 55 | AL68: 60 | AM68: 70 | AN68: 75 | AO68: 70 | AP68: 75 | AQ68: 80 | AR68: 80 | AS68: 80 | AT68: 80 | AU68: 80 | AV68: 85 | AW68: 95 | AX68: 90 | AY68: 85 | AZ68: 85 | BA68: 85 | BB68: 80 | BC68: 85 | BD68: 80 | BE68: 85 | BF68: 90 | BG68: 95 | BH68: 85 | BI68: 80 | BJ68: 80 | BK68: 80 | BL68: 85 | BM68: 75 | BN68: 80 | BO68: 90 | BP68: 95 | BQ68: 95 | BR68: 95 | BS68: 90 | BT68: 85 | BU68: 85 | BV68: 90 | BW68: 105 | BX68: 115 | BY68: 125 | BZ68: 135 | CA68: 145 | CB68: 160 | CC68: 155 | CD68: 155 | CE68: 155 | CF68: 170 | CG68: 170 | CH68: 175 | CI68: 165 | CJ68: 170 | CK68: 160 | CL68: 155 | CM68: 175 | CN68: 165 | CO68: 165 | CP68: 400 | CQ68: 465 | CR68: 435 | CS68: 440 | CT68: 465 | CU68: 445 | CV68: 405 | CW68: 400 | CX68: 410 | CY68: 385 | CZ68: 435 | DA68: 430 | DB68: 425 | DC68: 395 | DD68: 335 | DE68: 320 | DF68: 295 | DG68: 285 | DH68: 280 | DI68: 285 | DJ68: 255 | DK68: 260 | DL68: 265 | DM68: 245 | DN68: 235 | DO68: 225 | DP68: 220 | DQ68: 205 | DR68: 190 | DS68: 195 | DT68: 200 | DU68: 200 | DV68: 205 | DW68: 200 | DX68: 205 | DY68: 210 | DZ68: 205 | EA68: 210 | EB68: 205 | EC68: 200 | ED68: 175 | EE68: 190 | EF68: 200 | EG68: 205 | EH68: 210 | EI68: 220 | EJ68: 220 | EK68: 220 | EL68: 225 | EM68: 225
A69: Canterbury | C69: E05010397 | D69: E05004908 | E69: E36003521 | F69: Greenhill | G69: 75 | H69: 70 | I69: 70 | J69: 65 | K69: 70 | L69: 65 | M69: 60 | N69: 60 | O69: 55 | P69: 55 | Q69: 55 | R69: 60 | S69: 70 | T69: 60 | U69: 60 | V69: 50 | W69: 45 | X69: 40 | Y69: 35 | Z69: 30 | AA69: 35 | AB69: 30 | AC69: 30 | AD69: 30 | AE69: 25 | AF69: 35 | AG69: 40 | AH69: 40 | AI69: 30 | AJ69: 30 | AK69: 30 | AL69: 25 | AM69: 25 | AN69: 25 | AO69: 25 | AP69: 25 | AQ69: 25 | AR69: 25 | AS69: 30 | AT69: 30 | AU69: 30 | AV69: 35 | AW69: 30 | AX69: 35 | AY69: 40 | AZ69: 40 | BA69: 40 | BB69: 40 | BC69: 35 | BD69: 35 | BE69: 35 | BF69: 45 | BG69: 40 | BH69: 35 | BI69: 40 | BJ69: 40 | BK69: 35 | BL69: 35 | BM69: 40 | BN69: 45 | BO69: 50 | BP69: 45 | BQ69: 45 | BR69: 40 | BS69: 35 | BT69: 35 | BU69: 35 | BV69: 35 | BW69: 40 | BX69: 45 | BY69: 50 | BZ69: 55 | CA69: 55 | CB69: 55 | CC69: 60 | CD69: 60 | CE69: 55 | CF69: 60 | CG69: 60 | CH69: 60 | CI69: 65 | CJ69: 65 | CK69: 60 | CL69: 70 | CM69: 75 | CN69: 75 | CO69: 70 | CP69: 130 | CQ69: 150 | CR69: 145 | CS69: 140 | CT69: 140 | CU69: 135 | CV69: 130 | CW69: 130 | CX69: 140 | CY69: 135 | CZ69: 160 | DA69: 155 | DB69: 150 | DC69: 140 | DD69: 120 | DE69: 120 | DF69: 115 | DG69: 105 | DH69: 110 | DI69: 115 | DJ69: 110 | DK69: 110 | DL69: 110 | DM69: 90 | DN69: 95 | DO69: 90 | DP69: 95 | DQ69: 85 | DR69: 85 | DS69: 80 | DT69: 90 | DU69: 90 | DV69: 95 | DW69: 85 | DX69: 85 | DY69: 90 | DZ69: 90 | EA69: 90 | EB69: 95 | EC69: 90 | ED69: 95 | EE69: 95 | EF69: 95 | EG69: 90 | EH69: 105 | EI69: 110 | EJ69: 120 | EK69: 105 | EL69: 110 | EM69: 110
A70: Canterbury | C70: E05010398 | D70: E05004909 | E70: E36003522 | F70: Herne & Broomfield | G70: 105 | H70: 110 | I70: 105 | J70: 110 | K70: 105 | L70: 105 | M70: 95 | N70: 95 | O70: 90 | P70: 95 | Q70: 75 | R70: 80 | S70: 75 | T70: 80 | U70: 85 | V70: 75 | W70: 75 | X70: 50 | Y70: 45 | Z70: 50 | AA70: 45 | AB70: 40 | AC70: 45 | AD70: 35 | AE70: 35 | AF70: 40 | AG70: 40 | AH70: 35 | AI70: 35 | AJ70: 40 | AK70: 35 | AL70: 40 | AM70: 35 | AN70: 35 | AO70: 35 | AP70: 30 | AQ70: 35 | AR70: 40 | AS70: 45 | AT70: 40 | AU70: 45 | AV70: 30 | AW70: 40 | AX70: 35 | AY70: 35 | AZ70: 40 | BA70: 35 | BB70: 35 | BC70: 45 | BD70: 45 | BE70: 40 | BF70: 40 | BG70: 40 | BH70: 45 | BI70: 40 | BJ70: 45 | BK70: 40 | BL70: 45 | BM70: 40 | BN70: 45 | BO70: 45 | BP70: 40 | BQ70: 45 | BR70: 45 | BS70: 45 | BT70: 45 | BU70: 40 | BV70: 40 | BW70: 55 | BX70: 65 | BY70: 70 | BZ70: 70 | CA70: 70 | CB70: 70 | CC70: 75 | CD70: 80 | CE70: 85 | CF70: 80 | CG70: 85 | CH70: 80 | CI70: 85 | CJ70: 85 | CK70: 90 | CL70: 90 | CM70: 95 | CN70: 90 | CO70: 85 | CP70: 220 | CQ70: 260 | CR70: 245 | CS70: 255 | CT70: 250 | CU70: 235 | CV70: 245 | CW70: 215 | CX70: 225 | CY70: 220 | CZ70: 230 | DA70: 210 | DB70: 210 | DC70: 195 | DD70: 175 | DE70: 165 | DF70: 155 | DG70: 145 | DH70: 145 | DI70: 140 | DJ70: 130 | DK70: 130 | DL70: 130 | DM70: 125 | DN70: 110 | DO70: 105 | DP70: 100 | DQ70: 100 | DR70: 90 | DS70: 100 | DT70: 115 | DU70: 125 | DV70: 125 | DW70: 120 | DX70: 130 | DY70: 130 | DZ70: 125 | EA70: 125 | EB70: 120 | EC70: 125 | ED70: 115 | EE70: 125 | EF70: 130 | EG70: 125 | EH70: 140 | EI70: 135 | EJ70: 135 | EK70: 145 | EL70: 130 | EM70: 140
A71: Canterbury | C71: E05010399 | D71: E05004910 | E71: E36003523 | F71: Heron | G71: 360 | H71: 345 | I71: 345 | J71: 335 | K71: 330 | L71: 315 | M71: 300 | N71: 285 | O71: 290 | P71: 275 | Q71: 260 | R71: 265 | S71: 275 | T71: 265 | U71: 270 | V71: 255 | W71: 245 | X71: 225 | Y71: 220 | Z71: 215 | AA71: 200 | AB71: 190 | AC71: 190 | AD71: 185 | AE71: 205 | AF71: 205 | AG71: 190 | AH71: 175 | AI71: 170 | AJ71: 170 | AK71: 160 | AL71: 155 | AM71: 170 | AN71: 165 | AO71: 170 | AP71: 175 | AQ71: 190 | AR71: 210 | AS71: 220 | AT71: 215 | AU71: 215 | AV71: 220 | AW71: 220 | AX71: 220 | AY71: 220 | AZ71: 205 | BA71: 205 | BB71: 195 | BC71: 190 | BD71: 190 | BE71: 195 | BF71: 175 | BG71: 170 | BH71: 165 | BI71: 170 | BJ71: 175 | BK71: 185 | BL71: 180 | BM71: 190 | BN71: 190 | BO71: 185 | BP71: 195 | BQ71: 200 | BR71: 205 | BS71: 195 | BT71: 190 | BU71: 170 | BV71: 170 | BW71: 190 | BX71: 215 | BY71: 220 | BZ71: 245 | CA71: 245 | CB71: 270 | CC71: 275 | CD71: 270 | CE71: 280 | CF71: 280 | CG71: 295 | CH71: 295 | CI71: 280 | CJ71: 300 | CK71: 300 | CL71: 295 | CM71: 300 | CN71: 305 | CO71: 300 | CP71: 560 | CQ71: 675 | CR71: 650 | CS71: 640 | CT71: 650 | CU71: 635 | CV71: 585 | CW71: 600 | CX71: 595 | CY71: 585 | CZ71: 600 | DA71: 605 | DB71: 570 | DC71: 550 | DD71: 515 | DE71: 500 | DF71: 485 | DG71: 445 | DH71: 435 | DI71: 440 | DJ71: 410 | DK71: 405 | DL71: 410 | DM71: 405 | DN71: 405 | DO71: 370 | DP71: 355 | DQ71: 330 | DR71: 325 | DS71: 315 | DT71: 310 | DU71: 320 | DV71: 320 | DW71: 335 | DX71: 345 | DY71: 345 | DZ71: 380 | EA71: 360 | EB71: 360 | EC71: 360 | ED71: 355 | EE71: 360 | EF71: 330 | EG71: 335 | EH71: 340 | EI71: 360 | EJ71: 370 | EK71: 355 | EL71: 340 | EM71: 325
A72: Canterbury | C72: E05012953 | D72: E05004911 | E72: E36003524 | F72: Little Stour & Adisham | G72: 45 | H72: 40 | I72: 45 | J72: 35 | K72: 35 | L72: 35 | M72: 30 | N72: 30 | O72: 35 | P72: 35 | Q72: 25 | R72: 30 | S72: 35 | T72: 35 | U72: 30 | V72: 30 | W72: 30 | X72: 25 | Y72: 25 | Z72: 25 | AA72: 25 | AB72: 15 | AC72: 10 | AD72: 15 | AE72: 20 | AF72: 20 | AG72: 20 | AH72: 25 | AI72: 25 | AJ72: 15 | AK72: 20 | AL72: 25 | AM72: 25 | AN72: 20 | AO72: 25 | AP72: 25 | AQ72: 25 | AR72: 25 | AS72: 25 | AT72: 25 | AU72: 25 | AV72: 25 | AW72: 25 | AX72: 25 | AY72: 25 | AZ72: 25 | BA72: 25 | BB72: 25 | BC72: 25 | BD72: 25 | BE72: 20 | BF72: 20 | BG72: 20 | BH72: 20 | BI72: 20 | BJ72: 20 | BK72: 25 | BL72: 25 | BM72: 20 | BN72: 25 | BO72: 30 | BP72: 25 | BQ72: 25 | BR72: 30 | BS72: 25 | BT72: 25 | BU72: 25 | BV72: 25 | BW72: 30 | BX72: 30 | BY72: 25 | BZ72: 30 | CA72: 30 | CB72: 30 | CC72: 30 | CD72: 35 | CE72: 30 | CF72: 30 | CG72: 35 | CH72: 35 | CI72: 35 | CJ72: 40 | CK72: 45 | CL72: 50 | CM72: 50 | CN72: 45 | CO72: 40 | CP72: 85 | CQ72: 115 | CR72: 100 | CS72: 100 | CT72: 110 | CU72: 95 | CV72: 90 | CW72: 90 | CX72: 100 | CY72: 100 | CZ72: 95 | DA72: 95 | DB72: 90 | DC72: 85 | DD72: 80 | DE72: 80 | DF72: 75 | DG72: 70 | DH72: 80 | DI72: 75 | DJ72: 70 | DK72: 75 | DL72: 70 | DM72: 70 | DN72: 55 | DO72: 55 | DP72: 60 | DQ72: 55 | DR72: 55 | DS72: 50 | DT72: 50 | DU72: 45 | DV72: 55 | DW72: 50 | DX72: 50 | DY72: 45 | DZ72: 40 | EA72: 45 | EB72: 45 | EC72: 40 | ED72: 40 | EE72: 50 | EF72: 45 | EG72: 55 | EH72: 65 | EI72: 60 | EJ72: 60 | EK72: 55 | EL72: 50 | EM72: 55
A73: Canterbury | C73: E05012954 | D73: E05004912 | E73: E36003525 | F73: Nailbourne | G73: 25 | H73: 35 | I73: 35 | J73: 30 | K73: 25 | L73: 25 | M73: 25 | N73: 25 | O73: 25 | P73: 20 | Q73: 20 | R73: 20 | S73: 20 | T73: 25 | U73: 20 | V73: 15 | W73: 15 | X73: 10 | Y73: 10 | Z73: 10 | AA73: 15 | AB73: 20 | AC73: 15 | AD73: 10 | AE73: 15 | AF73: 10 | AG73: 15 | AH73: 10 | AI73: 10 | AJ73: 10 | AK73: 5 | AL73: 5 | AM73: 10 | AN73: 15 | AO73: 15 | AP73: 15 | AQ73: 10 | AR73: 10 | AS73: 10 | AT73: 10 | AU73: 10 | AV73: 10 | AW73: 15 | AX73: 15 | AY73: 15 | AZ73: 15 | BA73: 10 | BB73: 10 | BC73: 10 | BD73: 15 | BE73: 15 | BF73: 10 | BG73: 15 | BH73: 15 | BI73: 15 | BJ73: 15 | BK73: 20 | BL73: 15 | BM73: 15 | BN73: 15 | BO73: 10 | BP73: 15 | BQ73: 15 | BR73: 10 | BS73: 10 | BT73: 5 | BU73: 10 | BV73: 10 | BW73: 10 | BX73: 15 | BY73: 15 | BZ73: 20 | CA73: 20 | CB73: 20 | CC73: 20 | CD73: 20 | CE73: 20 | CF73: 20 | CG73: 15 | CH73: 20 | CI73: 20 | CJ73: 25 | CK73: 30 | CL73: 30 | CM73: 30 | CN73: 30 | CO73: 30 | CP73: 65 | CQ73: 90 | CR73: 85 | CS73: 90 | CT73: 85 | CU73: 85 | CV73: 80 | CW73: 80 | CX73: 80 | CY73: 75 | CZ73: 80 | DA73: 85 | DB73: 80 | DC73: 75 | DD73: 60 | DE73: 65 | DF73: 65 | DG73: 50 | DH73: 55 | DI73: 50 | DJ73: 40 | DK73: 45 | DL73: 45 | DM73: 55 | DN73: 45 | DO73: 40 | DP73: 45 | DQ73: 45 | DR73: 50 | DS73: 50 | DT73: 55 | DU73: 45 | DV73: 50 | DW73: 50 | DX73: 55 | DY73: 55 | DZ73: 50 | EA73: 55 | EB73: 55 | EC73: 50 | ED73: 55 | EE73: 55 | EF73: 50 | EG73: 50 | EH73: 50 | EI73: 50 | EJ73: 50 | EK73: 55 | EL73: 55 | EM73: 50
A74: Canterbury | C74: E05010402 | D74: E05004913 | E74: E36003526 | F74: Northgate | G74: 195 | H74: 205 | I74: 195 | J74: 195 | K74: 185 | L74: 180 | M74: 175 | N74: 165 | O74: 160 | P74: 155 | Q74: 150 | R74: 155 | S74: 145 | T74: 140 | U74: 140 | V74: 135 | W74: 130 | X74: 115 | Y74: 120 | Z74: 125 | AA74: 115 | AB74: 100 | AC74: 105 | AD74: 105 | AE74: 105 | AF74: 115 | AG74: 110 | AH74: 105 | AI74: 95 | AJ74: 90 | AK74: 90 | AL74: 95 | AM74: 105 | AN74: 95 | AO74: 95 | AP74: 100 | AQ74: 110 | AR74: 110 | AS74: 125 | AT74: 125 | AU74: 135 | AV74: 130 | AW74: 125 | AX74: 125 | AY74: 120 | AZ74: 130 | BA74: 130 | BB74: 135 | BC74: 135 | BD74: 130 | BE74: 135 | BF74: 145 | BG74: 140 | BH74: 150 | BI74: 155 | BJ74: 145 | BK74: 140 | BL74: 140 | BM74: 150 | BN74: 145 | BO74: 150 | BP74: 155 | BQ74: 155 | BR74: 150 | BS74: 140 | BT74: 130 | BU74: 120 | BV74: 130 | BW74: 140 | BX74: 160 | BY74: 160 | BZ74: 180 | CA74: 175 | CB74: 200 | CC74: 195 | CD74: 205 | CE74: 215 | CF74: 215 | CG74: 225 | CH74: 230 | CI74: 240 | CJ74: 235 | CK74: 255 | CL74: 245 | CM74: 245 | CN74: 245 | CO74: 225 | CP74: 345 | CQ74: 420 | CR74: 395 | CS74: 425 | CT74: 425 | CU74: 435 | CV74: 415 | CW74: 410 | CX74: 425 | CY74: 420 | CZ74: 420 | DA74: 420 | DB74: 400 | DC74: 380 | DD74: 370 | DE74: 380 | DF74: 350 | DG74: 360 | DH74: 340 | DI74: 335 | DJ74: 320 | DK74: 315 | DL74: 330 | DM74: 320 | DN74: 305 | DO74: 305 | DP74: 265 | DQ74: 260 | DR74: 265 | DS74: 275 | DT74: 275 | DU74: 270 | DV74: 290 | DW74: 285 | DX74: 280 | DY74: 305 | DZ74: 315 | EA74: 320 | EB74: 325 | EC74: 330 | ED74: 325 | EE74: 330 | EF74: 310 | EG74: 340 | EH74: 340 | EI74: 345 | EJ74: 360 | EK74: 345 | EL74: 335 | EM74: 355
A75: Canterbury | C75: E05012955 | D75: E05004914 | E75: E36003527 | F75: Reculver | G75: 45 | H75: 45 | I75: 40 | J75: 35 | K75: 40 | L75: 35 | M75: 35 | N75: 35 | O75: 30 | P75: 30 | Q75: 30 | R75: 35 | S75: 35 | T75: 30 | U75: 25 | V75: 25 | W75: 20 | X75: 20 | Y75: 20 | Z75: 15 | AA75: 15 | AB75: 15 | AC75: 10 | AD75: 10 | AE75: 15 | AF75: 15 | AG75: 15 | AH75: 20 | AI75: 15 | AJ75: 20 | AK75: 20 | AL75: 15 | AM75: 15 | AN75: 15 | AO75: 20 | AP75: 15 | AQ75: 15 | AR75: 20 | AS75: 20 | AT75: 25 | AU75: 25 | AV75: 20 | AW75: 20 | AX75: 20 | AY75: 20 | AZ75: 15 | BA75: 15 | BB75: 20 | BC75: 25 | BD75: 25 | BE75: 25 | BF75: 20 | BG75: 20 | BH75: 20 | BI75: 25 | BJ75: 25 | BK75: 20 | BL75: 20 | BM75: 20 | BN75: 15 | BO75: 15 | BP75: 20 | BQ75: 25 | BR75: 25 | BS75: 30 | BT75: 25 | BU75: 20 | BV75: 25 | BW75: 25 | BX75: 30 | BY75: 35 | BZ75: 40 | CA75: 45 | CB75: 45 | CC75: 50 | CD75: 45 | CE75: 50 | CF75: 50 | CG75: 45 | CH75: 40 | CI75: 40 | CJ75: 45 | CK75: 45 | CL75: 50 | CM75: 50 | CN75: 50 | CO75: 45 | CP75: 120 | CQ75: 125 | CR75: 110 | CS75: 115 | CT75: 120 | CU75: 110 | CV75: 115 | CW75: 115 | CX75: 115 | CY75: 120 | CZ75: 130 | DA75: 125 | DB75: 110 | DC75: 100 | DD75: 80 | DE75: 70 | DF75: 75 | DG75: 75 | DH75: 70 | DI75: 60 | DJ75: 70 | DK75: 65 | DL75: 70 | DM75: 65 | DN75: 55 | DO75: 55 | DP75: 45 | DQ75: 45 | DR75: 50 | DS75: 50 | DT75: 50 | DU75: 55 | DV75: 60 | DW75: 65 | DX75: 50 | DY75: 55 | DZ75: 55 | EA75: 60 | EB75: 55 | EC75: 60 | ED75: 60 | EE75: 65 | EF75: 70 | EG75: 70 | EH75: 70 | EI75: 70 | EJ75: 75 | EK75: 75 | EL75: 65 | EM75: 70
A76: Canterbury | C76: E05010404 | D76: E05004915 | E76: E36003528 | F76: Seasalter | G76: 95 | H76: 95 | I76: 95 | J76: 85 | K76: 80 | L76: 75 | M76: 60 | N76: 65 | O76: 65 | P76: 70 | Q76: 65 | R76: 75 | S76: 75 | T76: 80 | U76: 75 | V76: 65 | W76: 55 | X76: 45 | Y76: 50 | Z76: 45 | AA76: 45 | AB76: 35 | AC76: 35 | AD76: 45 | AE76: 40 | AF76: 40 | AG76: 40 | AH76: 35 | AI76: 35 | AJ76: 35 | AK76: 35 | AL76: 30 | AM76: 30 | AN76: 30 | AO76: 25 | AP76: 35 | AQ76: 35 | AR76: 40 | AS76: 45 | AT76: 40 | AU76: 40 | AV76: 40 | AW76: 40 | AX76: 45 | AY76: 45 | AZ76: 45 | BA76: 50 | BB76: 50 | BC76: 55 | BD76: 60 | BE76: 55 | BF76: 50 | BG76: 45 | BH76: 50 | BI76: 50 | BJ76: 50 | BK76: 50 | BL76: 40 | BM76: 45 | BN76: 50 | BO76: 55 | BP76: 60 | BQ76: 60 | BR76: 55 | BS76: 55 | BT76: 55 | BU76: 50 | BV76: 55 | BW76: 60 | BX76: 60 | BY76: 60 | BZ76: 65 | CA76: 65 | CB76: 70 | CC76: 65 | CD76: 70 | CE76: 70 | CF76: 65 | CG76: 65 | CH76: 70 | CI76: 80 | CJ76: 80 | CK76: 80 | CL76: 90 | CM76: 95 | CN76: 90 | CO76: 100 | CP76: 210 | CQ76: 240 | CR76: 210 | CS76: 230 | CT76: 215 | CU76: 205 | CV76: 200 | CW76: 195 | CX76: 200 | CY76: 190 | CZ76: 200 | DA76: 190 | DB76: 195 | DC76: 170 | DD76: 175 | DE76: 160 | DF76: 150 | DG76: 145 | DH76: 125 | DI76: 125 | DJ76: 125 | DK76: 120 | DL76: 120 | DM76: 115 | DN76: 105 | DO76: 105 | DP76: 90 | DQ76: 85 | DR76: 90 | DS76: 80 | DT76: 90 | DU76: 85 | DV76: 90 | DW76: 100 | DX76: 95 | DY76: 95 | DZ76: 100 | EA76: 90 | EB76: 90 | EC76: 85 | ED76: 100 | EE76: 90 | EF76: 90 | EG76: 95 | EH76: 105 | EI76: 115 | EJ76: 120 | EK76: 115 | EL76: 120 | EM76: 115
A77: Canterbury | C77: E05010405 | D77: E05004916 | E77: E36003529 | F77: St Stephen's | G77: 135 | H77: 135 | I77: 140 | J77: 145 | K77: 130 | L77: 130 | M77: 135 | N77: 130 | O77: 115 | P77: 95 | Q77: 95 | R77: 95 | S77: 100 | T77: 95 | U77: 100 | V77: 95 | W77: 90 | X77: 75 | Y77: 80 | Z77: 80 | AA77: 80 | AB77: 80 | AC77: 85 | AD77: 80 | AE77: 75 | AF77: 80 | AG77: 75 | AH77: 65 | AI77: 65 | AJ77: 65 | AK77: 60 | AL77: 70 | AM77: 60 | AN77: 70 | AO77: 75 | AP77: 70 | AQ77: 75 | AR77: 85 | AS77: 85 | AT77: 90 | AU77: 95 | AV77: 85 | AW77: 80 | AX77: 80 | AY77: 80 | AZ77: 80 | BA77: 90 | BB77: 95 | BC77: 95 | BD77: 95 | BE77: 105 | BF77: 100 | BG77: 95 | BH77: 95 | BI77: 95 | BJ77: 90 | BK77: 90 | BL77: 85 | BM77: 85 | BN77: 85 | BO77: 95 | BP77: 105 | BQ77: 120 | BR77: 110 | BS77: 110 | BT77: 115 | BU77: 110 | BV77: 110 | BW77: 120 | BX77: 130 | BY77: 145 | BZ77: 145 | CA77: 145 | CB77: 170 | CC77: 185 | CD77: 195 | CE77: 190 | CF77: 195 | CG77: 190 | CH77: 200 | CI77: 195 | CJ77: 200 | CK77: 190 | CL77: 200 | CM77: 195 | CN77: 205 | CO77: 220 | CP77: 315 | CQ77: 375 | CR77: 370 | CS77: 375 | CT77: 385 | CU77: 415 | CV77: 390 | CW77: 400 | CX77: 380 | CY77: 385 | CZ77: 390 | DA77: 375 | DB77: 360 | DC77: 330 | DD77: 315 | DE77: 305 | DF77: 310 | DG77: 295 | DH77: 270 | DI77: 285 | DJ77: 265 | DK77: 260 | DL77: 255 | DM77: 255 | DN77: 240 | DO77: 240 | DP77: 240 | DQ77: 235 | DR77: 240 | DS77: 245 | DT77: 245 | DU77: 250 | DV77: 250 | DW77: 265 | DX77: 275 | DY77: 295 | DZ77: 285 | EA77: 280 | EB77: 280 | EC77: 260 | ED77: 280 | EE77: 275 | EF77: 265 | EG77: 280 | EH77: 275 | EI77: 255 | EJ77: 275 | EK77: 275 | EL77: 265 | EM77: 270
A78: Canterbury | C78: E05012956 | D78: E05004917 | E78: E36003530 | F78: Sturry | G78: 115 | H78: 120 | I78: 135 | J78: 125 | K78: 115 | L78: 110 | M78: 105 | N78: 85 | O78: 90 | P78: 80 | Q78: 80 | R78: 80 | S78: 80 | T78: 100 | U78: 95 | V78: 85 | W78: 75 | X78: 70 | Y78: 70 | Z78: 65 | AA78: 75 | AB78: 70 | AC78: 60 | AD78: 65 | AE78: 65 | AF78: 80 | AG78: 75 | AH78: 75 | AI78: 70 | AJ78: 70 | AK78: 60 | AL78: 50 | AM78: 45 | AN78: 50 | AO78: 55 | AP78: 60 | AQ78: 55 | AR78: 60 | AS78: 70 | AT78: 65 | AU78: 65 | AV78: 75 | AW78: 70 | AX78: 75 | AY78: 80 | AZ78: 80 | BA78: 70 | BB78: 70 | BC78: 70 | BD78: 70 | BE78: 70 | BF78: 65 | BG78: 60 | BH78: 60 | BI78: 75 | BJ78: 65 | BK78: 70 | BL78: 70 | BM78: 70 | BN78: 75 | BO78: 80 | BP78: 90 | BQ78: 90 | BR78: 90 | BS78: 85 | BT78: 85 | BU78: 80 | BV78: 80 | BW78: 90 | BX78: 90 | BY78: 85 | BZ78: 105 | CA78: 110 | CB78: 115 | CC78: 110 | CD78: 120 | CE78: 115 | CF78: 120 | CG78: 130 | CH78: 130 | CI78: 125 | CJ78: 130 | CK78: 130 | CL78: 125 | CM78: 125 | CN78: 125 | CO78: 135 | CP78: 265 | CQ78: 305 | CR78: 280 | CS78: 305 | CT78: 315 | CU78: 315 | CV78: 300 | CW78: 300 | CX78: 290 | CY78: 275 | CZ78: 295 | DA78: 275 | DB78: 280 | DC78: 265 | DD78: 240 | DE78: 230 | DF78: 205 | DG78: 200 | DH78: 210 | DI78: 215 | DJ78: 195 | DK78: 190 | DL78: 200 | DM78: 195 | DN78: 175 | DO78: 160 | DP78: 150 | DQ78: 150 | DR78: 155 | DS78: 155 | DT78: 155 | DU78: 140 | DV78: 150 | DW78: 155 | DX78: 150 | DY78: 160 | DZ78: 160 | EA78: 155 | EB78: 165 | EC78: 155 | ED78: 160 | EE78: 155 | EF78: 165 | EG78: 160 | EH78: 165 | EI78: 165 | EJ78: 175 | EK78: 170 | EL78: 165 | EM78: 175
A79: Canterbury | C79: E05010407 | D79: E05004918 | E79: E36003532 | F79: Swalecliffe | G79: 45 | H79: 50 | I79: 55 | J79: 50 | K79: 45 | L79: 45 | M79: 40 | N79: 40 | O79: 45 | P79: 45 | Q79: 45 | R79: 40 | S79: 40 | T79: 45 | U79: 40 | V79: 35 | W79: 35 | X79: 30 | Y79: 30 | Z79: 25 | AA79: 25 | AB79: 25 | AC79: 25 | AD79: 15 | AE79: 20 | AF79: 25 | AG79: 25 | AH79: 30 | AI79: 25 | AJ79: 25 | AK79: 15 | AL79: 20 | AM79: 20 | AN79: 25 | AO79: 20 | AP79: 20 | AQ79: 20 | AR79: 20 | AS79: 20 | AT79: 20 | AU79: 20 | AV79: 25 | AW79: 25 | AX79: 35 | AY79: 30 | AZ79: 25 | BA79: 20 | BB79: 25 | BC79: 20 | BD79: 25 | BE79: 25 | BF79: 20 | BG79: 25 | BH79: 30 | BI79: 25 | BJ79: 30 | BK79: 25 | BL79: 25 | BM79: 30 | BN79: 30 | BO79: 30 | BP79: 30 | BQ79: 20 | BR79: 20 | BS79: 20 | BT79: 20 | BU79: 20 | BV79: 20 | BW79: 20 | BX79: 25 | BY79: 25 | BZ79: 35 | CA79: 35 | CB79: 35 | CC79: 40 | CD79: 40 | CE79: 35 | CF79: 35 | CG79: 45 | CH79: 35 | CI79: 40 | CJ79: 40 | CK79: 40 | CL79: 35 | CM79: 40 | CN79: 45 | CO79: 45 | CP79: 105 | CQ79: 125 | CR79: 100 | CS79: 105 | CT79: 105 | CU79: 105 | CV79: 90 | CW79: 90 | CX79: 85 | CY79: 85 | CZ79: 90 | DA79: 95 | DB79: 90 | DC79: 80 | DD79: 70 | DE79: 70 | DF79: 65 | DG79: 55 | DH79: 60 | DI79: 60 | DJ79: 60 | DK79: 65 | DL79: 70 | DM79: 60 | DN79: 50 | DO79: 50 | DP79: 50 | DQ79: 50 | DR79: 50 | DS79: 55 | DT79: 50 | DU79: 50 | DV79: 50 | DW79: 50 | DX79: 55 | DY79: 50 | DZ79: 55 | EA79: 50 | EB79: 50 | EC79: 50 | ED79: 45 | EE79: 45 | EF79: 50 | EG79: 55 | EH79: 60 | EI79: 50 | EJ79: 45 | EK79: 55 | EL79: 60 | EM79: 55
A80: Canterbury | C80: E05010408 | D80: E05004919 | E80: E36003531 | F80: Tankerton | G80: 40 | H80: 40 | I80: 35 | J80: 35 | K80: 35 | L80: 30 | M80: 35 | N80: 35 | O80: 35 | P80: 35 | Q80: 30 | R80: 25 | S80: 25 | T80: 25 | U80: 25 | V80: 25 | W80: 20 | X80: 10 | Y80: 10 | Z80: 15 | AA80: 20 | AB80: 15 | AC80: 15 | AD80: 10 | AE80: 15 | AF80: 20 | AG80: 15 | AH80: 15 | AI80: 15 | AJ80: 15 | AK80: 15 | AL80: 15 | AM80: 10 | AN80: 10 | AO80: 5 | AP80: 10 | AQ80: 10 | AR80: 10 | AS80: 15 | AT80: 15 | AU80: 15 | AV80: 10 | AW80: 15 | AX80: 10 | AY80: 15 | AZ80: 10 | BA80: 10 | BB80: 10 | BC80: 10 | BD80: 15 | BE80: 15 | BF80: 15 | BG80: 10 | BH80: 10 | BI80: 10 | BJ80: 10 | BK80: 10 | BL80: 10 | BM80: 10 | BN80: 15 | BO80: 15 | BP80: 20 | BQ80: 20 | BR80: 20 | BS80: 20 | BT80: 15 | BU80: 15 | BV80: 15 | BW80: 15 | BX80: 20 | BY80: 20 | BZ80: 25 | CA80: 25 | CB80: 30 | CC80: 30 | CD80: 25 | CE80: 20 | CF80: 25 | CG80: 20 | CH80: 20 | CI80: 20 | CJ80: 30 | CK80: 25 | CL80: 25 | CM80: 25 | CN80: 25 | CO80: 20 | CP80: 60 | CQ80: 75 | CR80: 70 | CS80: 75 | CT80: 75 | CU80: 80 | CV80: 75 | CW80: 75 | CX80: 80 | CY80: 75 | CZ80: 75 | DA80: 75 | DB80: 75 | DC80: 70 | DD80: 60 | DE80: 55 | DF80: 55 | DG80: 50 | DH80: 50 | DI80: 45 | DJ80: 45 | DK80: 45 | DL80: 45 | DM80: 45 | DN80: 40 | DO80: 40 | DP80: 35 | DQ80: 35 | DR80: 25 | DS80: 25 | DT80: 25 | DU80: 25 | DV80: 30 | DW80: 25 | DX80: 30 | DY80: 35 | DZ80: 30 | EA80: 30 | EB80: 25 | EC80: 25 | ED80: 20 | EE80: 25 | EF80: 25 | EG80: 25 | EH80: 20 | EI80: 30 | EJ80: 35 | EK80: 35 | EL80: 30 | EM80: 30
A81: Canterbury | C81: E05010409 | D81: E05004920 | E81: E36003533 | F81: West Bay | G81: 85 | H81: 100 | I81: 105 | J81: 110 | K81: 95 | L81: 90 | M81: 85 | N81: 80 | O81: 75 | P81: 75 | Q81: 70 | R81: 70 | S81: 75 | T81: 70 | U81: 70 | V81: 70 | W81: 75 | X81: 60 | Y81: 55 | Z81: 50 | AA81: 45 | AB81: 45 | AC81: 45 | AD81: 45 | AE81: 50 | AF81: 50 | AG81: 45 | AH81: 45 | AI81: 30 | AJ81: 30 | AK81: 30 | AL81: 25 | AM81: 30 | AN81: 30 | AO81: 30 | AP81: 35 | AQ81: 40 | AR81: 45 | AS81: 55 | AT81: 45 | AU81: 40 | AV81: 45 | AW81: 40 | AX81: 40 | AY81: 45 | AZ81: 45 | BA81: 45 | BB81: 35 | BC81: 40 | BD81: 40 | BE81: 40 | BF81: 40 | BG81: 35 | BH81: 30 | BI81: 35 | BJ81: 40 | BK81: 40 | BL81: 40 | BM81: 35 | BN81: 40 | BO81: 40 | BP81: 40 | BQ81: 45 | BR81: 40 | BS81: 40 | BT81: 40 | BU81: 35 | BV81: 35 | BW81: 40 | BX81: 45 | BY81: 50 | BZ81: 50 | CA81: 55 | CB81: 60 | CC81: 55 | CD81: 50 | CE81: 50 | CF81: 50 | CG81: 50 | CH81: 55 | CI81: 65 | CJ81: 70 | CK81: 65 | CL81: 65 | CM81: 70 | CN81: 75 | CO81: 75 | CP81: 145 | CQ81: 175 | CR81: 175 | CS81: 180 | CT81: 165 | CU81: 160 | CV81: 155 | CW81: 155 | CX81: 155 | CY81: 155 | CZ81: 180 | DA81: 175 | DB81: 170 | DC81: 160 | DD81: 140 | DE81: 140 | DF81: 125 | DG81: 105 | DH81: 105 | DI81: 105 | DJ81: 100 | DK81: 105 | DL81: 110 | DM81: 110 | DN81: 95 | DO81: 90 | DP81: 100 | DQ81: 85 | DR81: 85 | DS81: 80 | DT81: 75 | DU81: 80 | DV81: 75 | DW81: 75 | DX81: 75 | DY81: 80 | DZ81: 80 | EA81: 75 | EB81: 70 | EC81: 80 | ED81: 85 | EE81: 75 | EF81: 80 | EG81: 85 | EH81: 85 | EI81: 85 | EJ81: 85 | EK81: 85 | EL81: 85 | EM81: 90
A82: Canterbury | C82: E05010410 | D82: E05004921 | E82: E36003534 | F82: Westgate | G82: 175 | H82: 175 | I82: 170 | J82: 165 | K82: 165 | L82: 145 | M82: 155 | N82: 155 | O82: 145 | P82: 145 | Q82: 135 | R82: 120 | S82: 125 | T82: 135 | U82: 115 | V82: 110 | W82: 105 | X82: 85 | Y82: 85 | Z82: 85 | AA82: 90 | AB82: 90 | AC82: 75 | AD82: 80 | AE82: 80 | AF82: 85 | AG82: 80 | AH82: 75 | AI82: 60 | AJ82: 60 | AK82: 65 | AL82: 65 | AM82: 60 | AN82: 65 | AO82: 65 | AP82: 75 | AQ82: 70 | AR82: 75 | AS82: 80 | AT82: 85 | AU82: 85 | AV82: 85 | AW82: 80 | AX82: 90 | AY82: 95 | AZ82: 105 | BA82: 110 | BB82: 120 | BC82: 115 | BD82: 110 | BE82: 110 | BF82: 100 | BG82: 110 | BH82: 110 | BI82: 115 | BJ82: 125 | BK82: 120 | BL82: 110 | BM82: 105 | BN82: 110 | BO82: 110 | BP82: 110 | BQ82: 100 | BR82: 100 | BS82: 105 | BT82: 100 | BU82: 95 | BV82: 100 | BW82: 100 | BX82: 115 | BY82: 125 | BZ82: 140 | CA82: 145 | CB82: 140 | CC82: 150 | CD82: 145 | CE82: 140 | CF82: 140 | CG82: 145 | CH82: 150 | CI82: 150 | CJ82: 135 | CK82: 135 | CL82: 140 | CM82: 145 | CN82: 155 | CO82: 150 | CP82: 265 | CQ82: 325 | CR82: 315 | CS82: 340 | CT82: 345 | CU82: 350 | CV82: 325 | CW82: 340 | CX82: 340 | CY82: 340 | CZ82: 345 | DA82: 330 | DB82: 320 | DC82: 285 | DD82: 265 | DE82: 265 | DF82: 255 | DG82: 255 | DH82: 225 | DI82: 235 | DJ82: 205 | DK82: 205 | DL82: 205 | DM82: 195 | DN82: 200 | DO82: 190 | DP82: 175 | DQ82: 170 | DR82: 180 | DS82: 165 | DT82: 180 | DU82: 195 | DV82: 215 | DW82: 220 | DX82: 225 | DY82: 220 | DZ82: 220 | EA82: 235 | EB82: 240 | EC82: 215 | ED82: 240 | EE82: 245 | EF82: 245 | EG82: 245 | EH82: 255 | EI82: 260 | EJ82: 260 | EK82: 255 | EL82: 245 | EM82: 240
A83: Canterbury | C83: E05010411 | D83: E05004922 | E83: E36003535 | F83: Wincheap | G83: 170 | H83: 170 | I83: 165 | J83: 155 | K83: 160 | L83: 135 | M83: 140 | N83: 135 | O83: 135 | P83: 135 | Q83: 125 | R83: 115 | S83: 120 | T83: 130 | U83: 135 | V83: 125 | W83: 115 | X83: 110 | Y83: 100 | Z83: 100 | AA83: 90 | AB83: 90 | AC83: 85 | AD83: 75 | AE83: 80 | AF83: 90 | AG83: 80 | AH83: 75 | AI83: 65 | AJ83: 60 | AK83: 50 | AL83: 60 | AM83: 75 | AN83: 70 | AO83: 85 | AP83: 95 | AQ83: 90 | AR83: 95 | AS83: 95 | AT83: 90 | AU83: 95 | AV83: 100 | AW83: 110 | AX83: 110 | AY83: 90 | AZ83: 95 | BA83: 90 | BB83: 85 | BC83: 75 | BD83: 75 | BE83: 80 | BF83: 85 | BG83: 85 | BH83: 95 | BI83: 90 | BJ83: 100 | BK83: 100 | BL83: 100 | BM83: 100 | BN83: 100 | BO83: 110 | BP83: 115 | BQ83: 120 | BR83: 120 | BS83: 110 | BT83: 95 | BU83: 95 | BV83: 100 | BW83: 105 | BX83: 120 | BY83: 130 | BZ83: 145 | CA83: 165 | CB83: 165 | CC83: 175 | CD83: 165 | CE83: 160 | CF83: 160 | CG83: 165 | CH83: 160 | CI83: 170 | CJ83: 170 | CK83: 185 | CL83: 180 | CM83: 185 | CN83: 190 | CO83: 195 | CP83: 340 | CQ83: 400 | CR83: 395 | CS83: 420 | CT83: 420 | CU83: 420 | CV83: 390 | CW83: 390 | CX83: 400 | CY83: 380 | CZ83: 390 | DA83: 395 | DB83: 385 | DC83: 375 | DD83: 340 | DE83: 330 | DF83: 325 | DG83: 305 | DH83: 310 | DI83: 300 | DJ83: 285 | DK83: 295 | DL83: 280 | DM83: 270 | DN83: 235 | DO83: 225 | DP83: 235 | DQ83: 230 | DR83: 215 | DS83: 215 | DT83: 220 | DU83: 225 | DV83: 225 | DW83: 230 | DX83: 250 | DY83: 255 | DZ83: 250 | EA83: 250 | EB83: 250 | EC83: 265 | ED83: 255 | EE83: 255 | EF83: 270 | EG83: 245 | EH83: 255 | EI83: 275 | EJ83: 280 | EK83: 285 | EL83: 275 | EM83: 265
A84: Dartford | B84: 29UDGA | C84: E05012392 | D84: E05004926 | E84: E36003539 | F84: Bean & Village Park | G84: 20 | H84: 30 | I84: 25 | J84: 25 | K84: 25 | L84: 25 | M84: 20 | N84: 20 | O84: 20 | P84: 20 | Q84: 15 | R84: 20 | S84: 20 | T84: 30 | U84: 25 | V84: 25 | W84: 25 | X84: 20 | Y84: 20 | Z84: 25 | AA84: 25 | AB84: 20 | AC84: 20 | AD84: 15 | AE84: 15 | AF84: 15 | AG84: 10 | AH84: 10 | AI84: 15 | AJ84: 10 | AK84: 10 | AL84: 10 | AM84: 10 | AN84: 10 | AO84: 10 | AP84: 10 | AQ84: 5 | AR84: 10 | AS84: 10 | AT84: 15 | AU84: 10 | AV84: 15 | AW84: 10 | AX84: 15 | AY84: 15 | AZ84: 15 | BA84: 15 | BB84: 15 | BC84: 15 | BD84: 15 | BE84: 15 | BF84: 15 | BG84: 15 | BH84: 15 | BI84: 10 | BJ84: 10 | BK84: 10 | BL84: 10 | BM84: 10 | BN84: 10 | BO84: 10 | BP84: 5 | BQ84: 10 | BR84: 10 | BS84: 10 | BT84: 10 | BU84: 10 | BV84: 10 | BW84: 10 | BX84: 10 | BY84: 10 | BZ84: 10 | CA84: 10 | CB84: 15 | CC84: 20 | CD84: 20 | CE84: 20 | CF84: 25 | CG84: 25 | CH84: 20 | CI84: 20 | CJ84: 25 | CK84: 25 | CL84: 25 | CM84: 30 | CN84: 25 | CO84: 20 | CP84: 55 | CQ84: 80 | CR84: 80 | CS84: 80 | CT84: 80 | CU84: 85 | CV84: 75 | CW84: 80 | CX84: 85 | CY84: 80 | CZ84: 85 | DA84: 90 | DB84: 85 | DC84: 75 | DD84: 70 | DE84: 65 | DF84: 55 | DG84: 45 | DH84: 45 | DI84: 45 | DJ84: 45 | DK84: 45 | DL84: 35 | DM84: 30 | DN84: 40 | DO84: 40 | DP84: 40 | DQ84: 40 | DR84: 40 | DS84: 40 | DT84: 40 | DU84: 40 | DV84: 45 | DW84: 35 | DX84: 30 | DY84: 30 | DZ84: 30 | EA84: 40 | EB84: 35 | EC84: 40 | ED84: 35 | EE84: 30 | EF84: 30 | EG84: 30 | EH84: 35 | EI84: 35 | EJ84: 30 | EK84: 35 | EL84: 35 | EM84: 40
A85: Dartford | B85: 29UDGB | C85: E05012393 | D85: E05004927 | E85: E36003540 | F85: Brent | G85: 65 | H85: 70 | I85: 70 | J85: 65 | K85: 50 | L85: 55 | M85: 60 | N85: 60 | O85: 60 | P85: 55 | Q85: 55 | R85: 55 | S85: 60 | T85: 55 | U85: 50 | V85: 50 | W85: 50 | X85: 45 | Y85: 45 | Z85: 40 | AA85: 40 | AB85: 40 | AC85: 40 | AD85: 35 | AE85: 40 | AF85: 40 | AG85: 35 | AH85: 45 | AI85: 40 | AJ85: 40 | AK85: 35 | AL85: 30 | AM85: 30 | AN85: 30 | AO85: 20 | AP85: 20 | AQ85: 25 | AR85: 25 | AS85: 20 | AT85: 25 | AU85: 25 | AV85: 25 | AW85: 25 | AX85: 35 | AY85: 25 | AZ85: 25 | BA85: 20 | BB85: 20 | BC85: 15 | BD85: 20 | BE85: 25 | BF85: 25 | BG85: 25 | BH85: 20 | BI85: 20 | BJ85: 25 | BK85: 30 | BL85: 35 | BM85: 35 | BN85: 35 | BO85: 35 | BP85: 35 | BQ85: 40 | BR85: 35 | BS85: 30 | BT85: 20 | BU85: 25 | BV85: 25 | BW85: 25 | BX85: 35 | BY85: 30 | BZ85: 35 | CA85: 40 | CB85: 50 | CC85: 55 | CD85: 60 | CE85: 55 | CF85: 60 | CG85: 55 | CH85: 55 | CI85: 60 | CJ85: 55 | CK85: 55 | CL85: 55 | CM85: 55 | CN85: 55 | CO85: 60 | CP85: 105 | CQ85: 165 | CR85: 160 | CS85: 165 | CT85: 155 | CU85: 165 | CV85: 145 | CW85: 160 | CX85: 160 | CY85: 155 | CZ85: 170 | DA85: 155 | DB85: 160 | DC85: 145 | DD85: 130 | DE85: 130 | DF85: 115 | DG85: 115 | DH85: 100 | DI85: 95 | DJ85: 90 | DK85: 90 | DL85: 90 | DM85: 80 | DN85: 75 | DO85: 70 | DP85: 65 | DQ85: 70 | DR85: 65 | DS85: 65 | DT85: 75 | DU85: 70 | DV85: 65 | DW85: 70 | DX85: 65 | DY85: 70 | DZ85: 70 | EA85: 70 | EB85: 70 | EC85: 75 | ED85: 85 | EE85: 75 | EF85: 80 | EG85: 80 | EH85: 70 | EI85: 80 | EJ85: 90 | EK85: 90 | EL85: 95 | EM85: 95
A86: Dartford | B86: 29UDGC | C86: E05012394 | D86: E05004928 | E86: E36003541 | F86: Bridge | G86: 10 | H86: 10 | I86: 10 | J86: 5 | K86: 5 | L86: 5 | M86: 5 | N86: 5 | O86: 10 | P86: 10 | Q86: 5 | R86: 5 | S86: 5 | T86: 5 | U86: 5 | V86: 5 | W86: 10 | X86: 10 | Y86: 10 | Z86: 10 | AA86: 10 | AB86: 5 | AC86: 10 | AD86: 5 | AE86: 5 | AF86: 5 | AG86: 5 | AH86: 0 | AI86: 5 | AJ86: 5 | AK86: 5 | AL86: 5 | AM86: 5 | AN86: 5 | AO86: 5 | AP86: 5 | AQ86: 10 | AR86: 10 | AS86: 5 | AT86: 5 | AU86: 5 | AV86: 5 | AW86: 5 | AX86: 10 | AY86: 5 | AZ86: 10 | BA86: 10 | BB86: 10 | BC86: 10 | BD86: 5 | BE86: 5 | BF86: 0 | BG86: 0 | BH86: 5 | BI86: 5 | BJ86: 10 | BK86: 5 | BL86: 5 | BM86: 5 | BN86: 5 | BO86: 5 | BP86: 5 | BQ86: 5 | BR86: 5 | BS86: 5 | BT86: 0 | BU86: 0 | BV86: 5 | BW86: 5 | BX86: 5 | BY86: 5 | BZ86: 10 | CA86: 5 | CB86: 10 | CC86: 10 | CD86: 10 | CE86: 10 | CF86: 15 | CG86: 10 | CH86: 10 | CI86: 15 | CJ86: 15 | CK86: 15 | CL86: 10 | CM86: 15 | CN86: 20 | CO86: 20 | CP86: 35 | CQ86: 70 | CR86: 55 | CS86: 55 | CT86: 65 | CU86: 55 | CV86: 50 | CW86: 55 | CX86: 55 | CY86: 55 | CZ86: 65 | DA86: 60 | DB86: 60 | DC86: 50 | DD86: 45 | DE86: 50 | DF86: 35 | DG86: 35 | DH86: 30 | DI86: 30 | DJ86: 30 | DK86: 35 | DL86: 35 | DM86: 30 | DN86: 30 | DO86: 25 | DP86: 25 | DQ86: 25 | DR86: 30 | DS86: 35 | DT86: 30 | DU86: 30 | DV86: 40 | DW86: 35 | DX86: 40 | DY86: 35 | DZ86: 40 | EA86: 40 | EB86: 40 | EC86: 35 | ED86: 35 | EE86: 35 | EF86: 40 | EG86: 35 | EH86: 35 | EI86: 35 | EJ86: 35 | EK86: 40 | EL86: 40 | EM86: 40
A87: Dartford | B87: 29UDGD | C87: E05012395 | D87: E05004929 | E87: E36003542 | F87: Burnham | G87: 50 | H87: 60 | I87: 60 | J87: 45 | K87: 45 | L87: 40 | M87: 35 | N87: 40 | O87: 35 | P87: 30 | Q87: 20 | R87: 25 | S87: 25 | T87: 35 | U87: 30 | V87: 35 | W87: 35 | X87: 30 | Y87: 25 | Z87: 25 | AA87: 25 | AB87: 15 | AC87: 15 | AD87: 15 | AE87: 20 | AF87: 20 | AG87: 15 | AH87: 15 | AI87: 20 | AJ87: 25 | AK87: 20 | AL87: 20 | AM87: 15 | AN87: 15 | AO87: 15 | AP87: 10 | AQ87: 15 | AR87: 20 | AS87: 20 | AT87: 20 | AU87: 25 | AV87: 25 | AW87: 20 | AX87: 25 | AY87: 20 | AZ87: 25 | BA87: 20 | BB87: 20 | BC87: 25 | BD87: 25 | BE87: 30 | BF87: 20 | BG87: 20 | BH87: 15 | BI87: 15 | BJ87: 20 | BK87: 25 | BL87: 30 | BM87: 25 | BN87: 25 | BO87: 25 | BP87: 30 | BQ87: 25 | BR87: 20 | BS87: 20 | BT87: 25 | BU87: 30 | BV87: 20 | BW87: 25 | BX87: 25 | BY87: 20 | BZ87: 35 | CA87: 30 | CB87: 40 | CC87: 50 | CD87: 40 | CE87: 40 | CF87: 45 | CG87: 50 | CH87: 50 | CI87: 60 | CJ87: 55 | CK87: 60 | CL87: 60 | CM87: 70 | CN87: 65 | CO87: 70 | CP87: 125 | CQ87: 160 | CR87: 160 | CS87: 160 | CT87: 165 | CU87: 160 | CV87: 145 | CW87: 150 | CX87: 150 | CY87: 145 | CZ87: 155 | DA87: 165 | DB87: 165 | DC87: 150 | DD87: 140 | DE87: 135 | DF87: 135 | DG87: 120 | DH87: 115 | DI87: 105 | DJ87: 100 | DK87: 90 | DL87: 80 | DM87: 80 | DN87: 85 | DO87: 80 | DP87: 75 | DQ87: 75 | DR87: 70 | DS87: 70 | DT87: 65 | DU87: 75 | DV87: 80 | DW87: 80 | DX87: 75 | DY87: 75 | DZ87: 85 | EA87: 80 | EB87: 75 | EC87: 75 | ED87: 65 | EE87: 70 | EF87: 70 | EG87: 70 | EH87: 75 | EI87: 70 | EJ87: 70 | EK87: 80 | EL87: 80 | EM87: 80
A88: Dartford | B88: 29UDGE | C88: E05012396 | D88: E05004930 | E88: E36003543 | F88: Darenth | G88: 65 | H88: 65 | I88: 70 | J88: 65 | K88: 55 | L88: 50 | M88: 45 | N88: 40 | O88: 40 | P88: 40 | Q88: 35 | R88: 35 | S88: 40 | T88: 35 | U88: 45 | V88: 40 | W88: 40 | X88: 30 | Y88: 30 | Z88: 30 | AA88: 25 | AB88: 25 | AC88: 25 | AD88: 20 | AE88: 30 | AF88: 35 | AG88: 35 | AH88: 35 | AI88: 25 | AJ88: 30 | AK88: 30 | AL88: 30 | AM88: 25 | AN88: 30 | AO88: 30 | AP88: 25 | AQ88: 30 | AR88: 40 | AS88: 35 | AT88: 30 | AU88: 25 | AV88: 25 | AW88: 20 | AX88: 20 | AY88: 20 | AZ88: 25 | BA88: 20 | BB88: 25 | BC88: 25 | BD88: 25 | BE88: 20 | BF88: 20 | BG88: 20 | BH88: 25 | BI88: 30 | BJ88: 30 | BK88: 30 | BL88: 25 | BM88: 20 | BN88: 20 | BO88: 20 | BP88: 30 | BQ88: 30 | BR88: 30 | BS88: 20 | BT88: 20 | BU88: 20 | BV88: 20 | BW88: 20 | BX88: 20 | BY88: 20 | BZ88: 15 | CA88: 25 | CB88: 25 | CC88: 30 | CD88: 30 | CE88: 30 | CF88: 35 | CG88: 40 | CH88: 50 | CI88: 45 | CJ88: 50 | CK88: 45 | CL88: 50 | CM88: 55 | CN88: 55 | CO88: 55 | CP88: 110 | CQ88: 145 | CR88: 120 | CS88: 135 | CT88: 135 | CU88: 140 | CV88: 120 | CW88: 130 | CX88: 125 | CY88: 120 | CZ88: 125 | DA88: 120 | DB88: 130 | DC88: 120 | DD88: 115 | DE88: 115 | DF88: 105 | DG88: 105 | DH88: 95 | DI88: 80 | DJ88: 90 | DK88: 80 | DL88: 85 | DM88: 80 | DN88: 70 | DO88: 70 | DP88: 70 | DQ88: 65 | DR88: 60 | DS88: 55 | DT88: 65 | DU88: 55 | DV88: 55 | DW88: 55 | DX88: 60 | DY88: 65 | DZ88: 60 | EA88: 70 | EB88: 60 | EC88: 60 | ED88: 55 | EE88: 60 | EF88: 60 | EG88: 60 | EH88: 60 | EI88: 65 | EJ88: 70 | EK88: 65 | EL88: 60 | EM88: 60
A89: Dartford | B89: 29UDGF | C89: E05012397 | D89: E05004931 | E89: E36003544 | F89: Ebbsfleet | G89: 30 | H89: 30 | I89: 30 | J89: 25 | K89: 25 | L89: 25 | M89: 25 | N89: 25 | O89: 20 | P89: 20 | Q89: 20 | R89: 20 | S89: 20 | T89: 15 | U89: 20 | V89: 25 | W89: 25 | X89: 15 | Y89: 15 | Z89: 15 | AA89: 15 | AB89: 10 | AC89: 10 | AD89: 10 | AE89: 15 | AF89: 10 | AG89: 10 | AH89: 10 | AI89: 10 | AJ89: 15 | AK89: 15 | AL89: 10 | AM89: 15 | AN89: 15 | AO89: 15 | AP89: 15 | AQ89: 10 | AR89: 15 | AS89: 15 | AT89: 15 | AU89: 15 | AV89: 20 | AW89: 15 | AX89: 15 | AY89: 10 | AZ89: 10 | BA89: 15 | BB89: 10 | BC89: 10 | BD89: 10 | BE89: 10 | BF89: 10 | BG89: 10 | BH89: 5 | BI89: 10 | BJ89: 10 | BK89: 10 | BL89: 10 | BM89: 10 | BN89: 10 | BO89: 10 | BP89: 10 | BQ89: 10 | BR89: 10 | BS89: 10 | BT89: 10 | BU89: 15 | BV89: 10 | BW89: 20 | BX89: 15 | BY89: 20 | BZ89: 15 | CA89: 20 | CB89: 20 | CC89: 20 | CD89: 20 | CE89: 20 | CF89: 20 | CG89: 20 | CH89: 20 | CI89: 20 | CJ89: 20 | CK89: 15 | CL89: 20 | CM89: 20 | CN89: 25 | CO89: 25 | CP89: 45 | CQ89: 65 | CR89: 65 | CS89: 70 | CT89: 75 | CU89: 75 | CV89: 65 | CW89: 65 | CX89: 60 | CY89: 60 | CZ89: 70 | DA89: 70 | DB89: 65 | DC89: 60 | DD89: 55 | DE89: 55 | DF89: 45 | DG89: 45 | DH89: 40 | DI89: 40 | DJ89: 35 | DK89: 45 | DL89: 40 | DM89: 40 | DN89: 35 | DO89: 30 | DP89: 35 | DQ89: 30 | DR89: 30 | DS89: 30 | DT89: 35 | DU89: 35 | DV89: 30 | DW89: 35 | DX89: 35 | DY89: 35 | DZ89: 35 | EA89: 35 | EB89: 35 | EC89: 35 | ED89: 40 | EE89: 35 | EF89: 40 | EG89: 40 | EH89: 40 | EI89: 40 | EJ89: 40 | EK89: 35 | EL89: 35 | EM89: 35
A90: Dartford | B90: 29UDGG | C90: E05012398 | D90: E05004932 | E90: E36003545 | F90: Greenhithe & Knockhall | G90: 115 | H90: 135 | I90: 130 | J90: 135 | K90: 135 | L90: 125 | M90: 115 | N90: 105 | O90: 100 | P90: 80 | Q90: 85 | R90: 85 | S90: 90 | T90: 90 | U90: 90 | V90: 95 | W90: 90 | X90: 75 | Y90: 75 | Z90: 70 | AA90: 65 | AB90: 60 | AC90: 55 | AD90: 50 | AE90: 55 | AF90: 50 | AG90: 50 | AH90: 50 | AI90: 55 | AJ90: 50 | AK90: 55 | AL90: 50 | AM90: 50 | AN90: 50 | AO90: 50 | AP90: 45 | AQ90: 45 | AR90: 45 | AS90: 45 | AT90: 50 | AU90: 55 | AV90: 55 | AW90: 45 | AX90: 55 | AY90: 55 | AZ90: 50 | BA90: 55 | BB90: 50 | BC90: 50 | BD90: 65 | BE90: 55 | BF90: 50 | BG90: 55 | BH90: 50 | BI90: 50 | BJ90: 50 | BK90: 50 | BL90: 50 | BM90: 55 | BN90: 60 | BO90: 55 | BP90: 65 | BQ90: 65 | BR90: 60 | BS90: 50 | BT90: 55 | BU90: 50 | BV90: 50 | BW90: 55 | BX90: 65 | BY90: 60 | BZ90: 55 | CA90: 65 | CB90: 65 | CC90: 65 | CD90: 65 | CE90: 75 | CF90: 95 | CG90: 95 | CH90: 105 | CI90: 105 | CJ90: 115 | CK90: 115 | CL90: 105 | CM90: 105 | CN90: 105 | CO90: 110 | CP90: 265 | CQ90: 345 | CR90: 335 | CS90: 335 | CT90: 340 | CU90: 325 | CV90: 315 | CW90: 305 | CX90: 310 | CY90: 300 | CZ90: 330 | DA90: 315 | DB90: 305 | DC90: 280 | DD90: 250 | DE90: 250 | DF90: 240 | DG90: 225 | DH90: 220 | DI90: 210 | DJ90: 195 | DK90: 190 | DL90: 190 | DM90: 175 | DN90: 165 | DO90: 180 | DP90: 165 | DQ90: 165 | DR90: 170 | DS90: 165 | DT90: 165 | DU90: 160 | DV90: 155 | DW90: 165 | DX90: 165 | DY90: 170 | DZ90: 185 | EA90: 185 | EB90: 185 | EC90: 195 | ED90: 195 | EE90: 195 | EF90: 195 | EG90: 195 | EH90: 195 | EI90: 200 | EJ90: 200 | EK90: 200 | EL90: 205 | EM90: 210
A91: Dartford | B91: 29UDGH | C91: E05012399 | D91: E05004933 | E91: E36003546 | F91: Heath | G91: 60 | H91: 65 | I91: 60 | J91: 55 | K91: 55 | L91: 50 | M91: 45 | N91: 45 | O91: 30 | P91: 40 | Q91: 40 | R91: 35 | S91: 35 | T91: 45 | U91: 40 | V91: 45 | W91: 35 | X91: 35 | Y91: 35 | Z91: 30 | AA91: 35 | AB91: 25 | AC91: 20 | AD91: 15 | AE91: 20 | AF91: 25 | AG91: 20 | AH91: 25 | AI91: 20 | AJ91: 25 | AK91: 25 | AL91: 20 | AM91: 25 | AN91: 25 | AO91: 15 | AP91: 20 | AQ91: 20 | AR91: 20 | AS91: 20 | AT91: 25 | AU91: 30 | AV91: 30 | AW91: 25 | AX91: 30 | AY91: 25 | AZ91: 25 | BA91: 20 | BB91: 20 | BC91: 20 | BD91: 20 | BE91: 20 | BF91: 20 | BG91: 20 | BH91: 20 | BI91: 15 | BJ91: 20 | BK91: 25 | BL91: 20 | BM91: 25 | BN91: 20 | BO91: 20 | BP91: 20 | BQ91: 20 | BR91: 15 | BS91: 15 | BT91: 15 | BU91: 15 | BV91: 15 | BW91: 15 | BX91: 25 | BY91: 20 | BZ91: 20 | CA91: 15 | CB91: 15 | CC91: 20 | CD91: 20 | CE91: 20 | CF91: 25 | CG91: 25 | CH91: 25 | CI91: 30 | CJ91: 35 | CK91: 30 | CL91: 35 | CM91: 30 | CN91: 30 | CO91: 40 | CP91: 85 | CQ91: 130 | CR91: 120 | CS91: 125 | CT91: 130 | CU91: 125 | CV91: 115 | CW91: 120 | CX91: 125 | CY91: 120 | CZ91: 125 | DA91: 135 | DB91: 125 | DC91: 105 | DD91: 100 | DE91: 90 | DF91: 90 | DG91: 80 | DH91: 75 | DI91: 80 | DJ91: 70 | DK91: 65 | DL91: 65 | DM91: 60 | DN91: 55 | DO91: 50 | DP91: 45 | DQ91: 45 | DR91: 50 | DS91: 55 | DT91: 55 | DU91: 50 | DV91: 50 | DW91: 50 | DX91: 55 | DY91: 50 | DZ91: 50 | EA91: 50 | EB91: 55 | EC91: 45 | ED91: 45 | EE91: 40 | EF91: 45 | EG91: 50 | EH91: 55 | EI91: 55 | EJ91: 70 | EK91: 70 | EL91: 65 | EM91: 65
A92: Dartford | B92: 29UDGJ | C92: E05012400 | D92: E05004934 | E92: E36003547 | F92: Joyden's Wood | G92: 40 | H92: 50 | I92: 50 | J92: 50 | K92: 45 | L92: 45 | M92: 35 | N92: 40 | O92: 30 | P92: 30 | Q92: 25 | R92: 30 | S92: 25 | T92: 35 | U92: 30 | V92: 35 | W92: 30 | X92: 30 | Y92: 35 | Z92: 30 | AA92: 35 | AB92: 30 | AC92: 30 | AD92: 20 | AE92: 20 | AF92: 25 | AG92: 20 | AH92: 20 | AI92: 20 | AJ92: 20 | AK92: 20 | AL92: 25 | AM92: 25 | AN92: 20 | AO92: 15 | AP92: 15 | AQ92: 15 | AR92: 15 | AS92: 20 | AT92: 20 | AU92: 20 | AV92: 15 | AW92: 15 | AX92: 15 | AY92: 20 | AZ92: 15 | BA92: 10 | BB92: 10 | BC92: 10 | BD92: 10 | BE92: 10 | BF92: 10 | BG92: 15 | BH92: 20 | BI92: 15 | BJ92: 10 | BK92: 10 | BL92: 15 | BM92: 20 | BN92: 25 | BO92: 20 | BP92: 20 | BQ92: 20 | BR92: 20 | BS92: 20 | BT92: 15 | BU92: 10 | BV92: 15 | BW92: 15 | BX92: 20 | BY92: 15 | BZ92: 15 | CA92: 20 | CB92: 25 | CC92: 25 | CD92: 20 | CE92: 25 | CF92: 25 | CG92: 25 | CH92: 25 | CI92: 35 | CJ92: 35 | CK92: 30 | CL92: 30 | CM92: 25 | CN92: 35 | CO92: 30 | CP92: 75 | CQ92: 110 | CR92: 95 | CS92: 90 | CT92: 90 | CU92: 95 | CV92: 95 | CW92: 85 | CX92: 80 | CY92: 80 | CZ92: 85 | DA92: 95 | DB92: 90 | DC92: 85 | DD92: 80 | DE92: 75 | DF92: 75 | DG92: 60 | DH92: 70 | DI92: 55 | DJ92: 50 | DK92: 45 | DL92: 45 | DM92: 50 | DN92: 40 | DO92: 45 | DP92: 45 | DQ92: 45 | DR92: 45 | DS92: 45 | DT92: 45 | DU92: 45 | DV92: 50 | DW92: 45 | DX92: 45 | DY92: 40 | DZ92: 45 | EA92: 40 | EB92: 35 | EC92: 35 | ED92: 30 | EE92: 40 | EF92: 40 | EG92: 45 | EH92: 40 | EI92: 40 | EJ92: 50 | EK92: 50 | EL92: 55 | EM92: 55
A93: Dartford | B93: 29UDGK | C93: E05012401 | D93: E05004935 | E93: E36003548 | F93: Longfield, New Barn & Southfleet | G93: 50 | H93: 65 | I93: 65 | J93: 50 | K93: 45 | L93: 35 | M93: 40 | N93: 40 | O93: 40 | P93: 40 | Q93: 30 | R93: 35 | S93: 35 | T93: 40 | U93: 35 | V93: 35 | W93: 30 | X93: 30 | Y93: 30 | Z93: 30 | AA93: 30 | AB93: 25 | AC93: 25 | AD93: 25 | AE93: 30 | AF93: 25 | AG93: 20 | AH93: 15 | AI93: 15 | AJ93: 15 | AK93: 15 | AL93: 15 | AM93: 20 | AN93: 15 | AO93: 10 | AP93: 10 | AQ93: 20 | AR93: 20 | AS93: 15 | AT93: 15 | AU93: 20 | AV93: 10 | AW93: 15 | AX93: 15 | AY93: 15 | AZ93: 25 | BA93: 25 | BB93: 20 | BC93: 20 | BD93: 20 | BE93: 25 | BF93: 25 | BG93: 25 | BH93: 20 | BI93: 20 | BJ93: 20 | BK93: 15 | BL93: 15 | BM93: 15 | BN93: 15 | BO93: 15 | BP93: 25 | BQ93: 25 | BR93: 20 | BS93: 20 | BT93: 20 | BU93: 20 | BV93: 25 | BW93: 30 | BX93: 30 | BY93: 35 | BZ93: 40 | CA93: 35 | CB93: 35 | CC93: 40 | CD93: 35 | CE93: 35 | CF93: 40 | CG93: 35 | CH93: 35 | CI93: 40 | CJ93: 45 | CK93: 40 | CL93: 35 | CM93: 35 | CN93: 40 | CO93: 45 | CP93: 95 | CQ93: 135 | CR93: 120 | CS93: 125 | CT93: 115 | CU93: 125 | CV93: 120 | CW93: 115 | CX93: 120 | CY93: 120 | CZ93: 120 | DA93: 125 | DB93: 110 | DC93: 100 | DD93: 90 | DE93: 90 | DF93: 80 | DG93: 80 | DH93: 70 | DI93: 75 | DJ93: 70 | DK93: 70 | DL93: 70 | DM93: 70 | DN93: 60 | DO93: 55 | DP93: 50 | DQ93: 45 | DR93: 60 | DS93: 55 | DT93: 60 | DU93: 55 | DV93: 50 | DW93: 50 | DX93: 55 | DY93: 60 | DZ93: 60 | EA93: 55 | EB93: 55 | EC93: 55 | ED93: 55 | EE93: 50 | EF93: 60 | EG93: 65 | EH93: 60 | EI93: 55 | EJ93: 60 | EK93: 70 | EL93: 70 | EM93: 65
A94: Dartford | B94: 29UDGL | C94: E05012402 | D94: E05004936 | E94: E36003549 | F94: Maypole & Leyton Cross | G94: 30 | H94: 25 | I94: 25 | J94: 25 | K94: 25 | L94: 30 | M94: 25 | N94: 20 | O94: 20 | P94: 25 | Q94: 20 | R94: 15 | S94: 15 | T94: 15 | U94: 20 | V94: 20 | W94: 20 | X94: 15 | Y94: 10 | Z94: 15 | AA94: 5 | AB94: 5 | AC94: 5 | AD94: 5 | AE94: 5 | AF94: 5 | AG94: 5 | AH94: 10 | AI94: 10 | AJ94: 10 | AK94: 5 | AL94: 10 | AM94: 10 | AN94: 10 | AO94: 5 | AP94: 5 | AQ94: 5 | AR94: 10 | AS94: 5 | AT94: 10 | AU94: 10 | AV94: 10 | AW94: 10 | AX94: 10 | AY94: 10 | AZ94: 10 | BA94: 10 | BB94: 10 | BC94: 10 | BD94: 10 | BE94: 15 | BF94: 5 | BG94: 10 | BH94: 10 | BI94: 10 | BJ94: 15 | BK94: 15 | BL94: 15 | BM94: 15 | BN94: 10 | BO94: 15 | BP94: 10 | BQ94: 15 | BR94: 15 | BS94: 10 | BT94: 15 | BU94: 10 | BV94: 10 | BW94: 10 | BX94: 10 | BY94: 10 | BZ94: 10 | CA94: 15 | CB94: 15 | CC94: 20 | CD94: 15 | CE94: 20 | CF94: 20 | CG94: 20 | CH94: 20 | CI94: 20 | CJ94: 20 | CK94: 15 | CL94: 20 | CM94: 20 | CN94: 20 | CO94: 20 | CP94: 55 | CQ94: 90 | CR94: 85 | CS94: 90 | CT94: 95 | CU94: 90 | CV94: 85 | CW94: 75 | CX94: 70 | CY94: 70 | CZ94: 75 | DA94: 70 | DB94: 70 | DC94: 55 | DD94: 40 | DE94: 40 | DF94: 35 | DG94: 40 | DH94: 40 | DI94: 35 | DJ94: 30 | DK94: 30 | DL94: 30 | DM94: 20 | DN94: 25 | DO94: 25 | DP94: 20 | DQ94: 25 | DR94: 25 | DS94: 25 | DT94: 30 | DU94: 30 | DV94: 35 | DW94: 30 | DX94: 30 | DY94: 35 | DZ94: 40 | EA94: 40 | EB94: 45 | EC94: 40 | ED94: 35 | EE94: 40 | EF94: 35 | EG94: 30 | EH94: 40 | EI94: 30 | EJ94: 40 | EK94: 40 | EL94: 35 | EM94: 40
A95: Dartford | B95: 29UDGM | C95: E05012403 | D95: E05004937 | E95: E36003550 | F95: Newtown | G95: 155 | H95: 160 | I95: 155 | J95: 150 | K95: 145 | L95: 145 | M95: 160 | N95: 145 | O95: 145 | P95: 135 | Q95: 135 | R95: 130 | S95: 125 | T95: 130 | U95: 105 | V95: 100 | W95: 95 | X95: 95 | Y95: 90 | Z95: 80 | AA95: 70 | AB95: 65 | AC95: 65 | AD95: 60 | AE95: 65 | AF95: 75 | AG95: 75 | AH95: 65 | AI95: 60 | AJ95: 65 | AK95: 65 | AL95: 60 | AM95: 60 | AN95: 60 | AO95: 60 | AP95: 50 | AQ95: 45 | AR95: 60 | AS95: 60 | AT95: 55 | AU95: 50 | AV95: 55 | AW95: 75 | AX95: 75 | AY95: 75 | AZ95: 70 | BA95: 60 | BB95: 55 | BC95: 60 | BD95: 55 | BE95: 60 | BF95: 65 | BG95: 60 | BH95: 60 | BI95: 60 | BJ95: 55 | BK95: 55 | BL95: 60 | BM95: 55 | BN95: 50 | BO95: 50 | BP95: 55 | BQ95: 60 | BR95: 55 | BS95: 50 | BT95: 45 | BU95: 45 | BV95: 45 | BW95: 45 | BX95: 50 | BY95: 50 | BZ95: 55 | CA95: 55 | CB95: 70 | CC95: 70 | CD95: 85 | CE95: 80 | CF95: 85 | CG95: 75 | CH95: 75 | CI95: 80 | CJ95: 80 | CK95: 80 | CL95: 80 | CM95: 100 | CN95: 105 | CO95: 105 | CP95: 200 | CQ95: 265 | CR95: 260 | CS95: 265 | CT95: 270 | CU95: 260 | CV95: 245 | CW95: 260 | CX95: 245 | CY95: 250 | CZ95: 260 | DA95: 250 | DB95: 260 | DC95: 235 | DD95: 225 | DE95: 220 | DF95: 200 | DG95: 185 | DH95: 175 | DI95: 165 | DJ95: 175 | DK95: 170 | DL95: 180 | DM95: 175 | DN95: 170 | DO95: 175 | DP95: 170 | DQ95: 170 | DR95: 185 | DS95: 190 | DT95: 190 | DU95: 185 | DV95: 165 | DW95: 170 | DX95: 165 | DY95: 165 | DZ95: 180 | EA95: 175 | EB95: 170 | EC95: 170 | ED95: 160 | EE95: 175 | EF95: 160 | EG95: 160 | EH95: 165 | EI95: 170 | EJ95: 170 | EK95: 160 | EL95: 145 | EM95: 165
A96: Dartford | B96: 29UDGN | C96: E05012404 | D96: E05004938 | E96: E36003551 | F96: Princes | G96: 165 | H96: 180 | I96: 180 | J96: 175 | K96: 160 | L96: 150 | M96: 150 | N96: 145 | O96: 130 | P96: 125 | Q96: 135 | R96: 115 | S96: 120 | T96: 110 | U96: 110 | V96: 105 | W96: 105 | X96: 110 | Y96: 105 | Z96: 105 | AA96: 95 | AB96: 95 | AC96: 85 | AD96: 80 | AE96: 75 | AF96: 80 | AG96: 90 | AH96: 90 | AI96: 85 | AJ96: 80 | AK96: 75 | AL96: 80 | AM96: 85 | AN96: 70 | AO96: 60 | AP96: 60 | AQ96: 60 | AR96: 65 | AS96: 65 | AT96: 65 | AU96: 60 | AV96: 60 | AW96: 55 | AX96: 65 | AY96: 70 | AZ96: 65 | BA96: 60 | BB96: 60 | BC96: 65 | BD96: 70 | BE96: 65 | BF96: 60 | BG96: 50 | BH96: 60 | BI96: 60 | BJ96: 65 | BK96: 60 | BL96: 70 | BM96: 65 | BN96: 65 | BO96: 55 | BP96: 65 | BQ96: 65 | BR96: 65 | BS96: 70 | BT96: 65 | BU96: 70 | BV96: 75 | BW96: 75 | BX96: 75 | BY96: 80 | BZ96: 85 | CA96: 75 | CB96: 90 | CC96: 90 | CD96: 95 | CE96: 105 | CF96: 120 | CG96: 115 | CH96: 120 | CI96: 120 | CJ96: 125 | CK96: 135 | CL96: 135 | CM96: 135 | CN96: 130 | CO96: 125 | CP96: 205 | CQ96: 265 | CR96: 260 | CS96: 260 | CT96: 265 | CU96: 260 | CV96: 260 | CW96: 260 | CX96: 265 | CY96: 265 | CZ96: 270 | DA96: 265 | DB96: 270 | DC96: 245 | DD96: 220 | DE96: 220 | DF96: 200 | DG96: 195 | DH96: 180 | DI96: 160 | DJ96: 155 | DK96: 150 | DL96: 155 | DM96: 150 | DN96: 170 | DO96: 155 | DP96: 160 | DQ96: 150 | DR96: 155 | DS96: 145 | DT96: 145 | DU96: 140 | DV96: 145 | DW96: 140 | DX96: 150 | DY96: 155 | DZ96: 160 | EA96: 150 | EB96: 160 | EC96: 145 | ED96: 140 | EE96: 145 | EF96: 150 | EG96: 165 | EH96: 165 | EI96: 160 | EJ96: 155 | EK96: 160 | EL96: 155 | EM96: 155
A97: Dartford | B97: 29UDGP | C97: E05012405 | D97: E05004939 | E97: E36003552 | F97: Stone Castle | G97: 110 | H97: 110 | I97: 115 | J97: 120 | K97: 120 | L97: 120 | M97: 110 | N97: 105 | O97: 100 | P97: 90 | Q97: 90 | R97: 85 | S97: 90 | T97: 95 | U97: 85 | V97: 80 | W97: 80 | X97: 70 | Y97: 60 | Z97: 60 | AA97: 55 | AB97: 50 | AC97: 45 | AD97: 45 | AE97: 45 | AF97: 50 | AG97: 55 | AH97: 55 | AI97: 45 | AJ97: 45 | AK97: 45 | AL97: 40 | AM97: 35 | AN97: 50 | AO97: 45 | AP97: 40 | AQ97: 50 | AR97: 40 | AS97: 40 | AT97: 50 | AU97: 50 | AV97: 50 | AW97: 50 | AX97: 40 | AY97: 45 | AZ97: 40 | BA97: 45 | BB97: 45 | BC97: 45 | BD97: 50 | BE97: 50 | BF97: 60 | BG97: 60 | BH97: 55 | BI97: 45 | BJ97: 50 | BK97: 40 | BL97: 40 | BM97: 30 | BN97: 35 | BO97: 40 | BP97: 40 | BQ97: 35 | BR97: 40 | BS97: 35 | BT97: 45 | BU97: 40 | BV97: 35 | BW97: 40 | BX97: 40 | BY97: 45 | BZ97: 45 | CA97: 55 | CB97: 65 | CC97: 60 | CD97: 65 | CE97: 80 | CF97: 80 | CG97: 85 | CH97: 95 | CI97: 95 | CJ97: 100 | CK97: 95 | CL97: 90 | CM97: 100 | CN97: 105 | CO97: 105 | CP97: 240 | CQ97: 315 | CR97: 285 | CS97: 295 | CT97: 290 | CU97: 280 | CV97: 285 | CW97: 295 | CX97: 285 | CY97: 280 | CZ97: 305 | DA97: 295 | DB97: 300 | DC97: 270 | DD97: 255 | DE97: 250 | DF97: 250 | DG97: 225 | DH97: 220 | DI97: 200 | DJ97: 195 | DK97: 195 | DL97: 190 | DM97: 165 | DN97: 160 | DO97: 150 | DP97: 160 | DQ97: 140 | DR97: 140 | DS97: 145 | DT97: 150 | DU97: 155 | DV97: 155 | DW97: 145 | DX97: 160 | DY97: 155 | DZ97: 160 | EA97: 150 | EB97: 160 | EC97: 150 | ED97: 145 | EE97: 150 | EF97: 150 | EG97: 155 | EH97: 155 | EI97: 160 | EJ97: 150 | EK97: 155 | EL97: 150 | EM97: 175
A98: Dartford | B98: 29UDGQ | C98: E05012406 | D98: E05004940 | E98: E36003553 | F98: Stone House | G98: 120 | H98: 115 | I98: 110 | J98: 110 | K98: 110 | L98: 105 | M98: 105 | N98: 110 | O98: 110 | P98: 105 | Q98: 100 | R98: 95 | S98: 100 | T98: 95 | U98: 90 | V98: 80 | W98: 85 | X98: 80 | Y98: 75 | Z98: 65 | AA98: 75 | AB98: 70 | AC98: 55 | AD98: 60 | AE98: 60 | AF98: 60 | AG98: 55 | AH98: 60 | AI98: 55 | AJ98: 50 | AK98: 45 | AL98: 55 | AM98: 50 | AN98: 45 | AO98: 45 | AP98: 55 | AQ98: 55 | AR98: 55 | AS98: 60 | AT98: 60 | AU98: 60 | AV98: 55 | AW98: 60 | AX98: 60 | AY98: 55 | AZ98: 50 | BA98: 50 | BB98: 50 | BC98: 45 | BD98: 45 | BE98: 50 | BF98: 45 | BG98: 50 | BH98: 55 | BI98: 60 | BJ98: 55 | BK98: 50 | BL98: 40 | BM98: 40 | BN98: 45 | BO98: 50 | BP98: 45 | BQ98: 50 | BR98: 45 | BS98: 45 | BT98: 45 | BU98: 45 | BV98: 45 | BW98: 45 | BX98: 55 | BY98: 60 | BZ98: 65 | CA98: 65 | CB98: 65 | CC98: 70 | CD98: 70 | CE98: 75 | CF98: 80 | CG98: 85 | CH98: 85 | CI98: 100 | CJ98: 95 | CK98: 95 | CL98: 90 | CM98: 105 | CN98: 105 | CO98: 100 | CP98: 205 | CQ98: 260 | CR98: 240 | CS98: 250 | CT98: 255 | CU98: 245 | CV98: 230 | CW98: 260 | CX98: 265 | CY98: 225 | CZ98: 255 | DA98: 240 | DB98: 240 | DC98: 240 | DD98: 215 | DE98: 230 | DF98: 215 | DG98: 185 | DH98: 175 | DI98: 155 | DJ98: 155 | DK98: 155 | DL98: 155 | DM98: 140 | DN98: 135 | DO98: 135 | DP98: 130 | DQ98: 135 | DR98: 130 | DS98: 140 | DT98: 140 | DU98: 140 | DV98: 140 | DW98: 135 | DX98: 150 | DY98: 150 | DZ98: 140 | EA98: 130 | EB98: 140 | EC98: 135 | ED98: 140 | EE98: 150 | EF98: 155 | EG98: 140 | EH98: 145 | EI98: 145 | EJ98: 155 | EK98: 145 | EL98: 125 | EM98: 135
A99: Dartford | B99: 29UDGR | C99: E05012407 | D99: E05004941 | E99: E36003554 | F99: Swanscombe | G99: 200 | H99: 205 | I99: 190 | J99: 190 | K99: 170 | L99: 160 | M99: 160 | N99: 150 | O99: 160 | P99: 155 | Q99: 150 | R99: 160 | S99: 160 | T99: 165 | U99: 160 | V99: 140 | W99: 145 | X99: 125 | Y99: 125 | Z99: 130 | AA99: 110 | AB99: 115 | AC99: 115 | AD99: 110 | AE99: 120 | AF99: 120 | AG99: 115 | AH99: 115 | AI99: 105 | AJ99: 100 | AK99: 95 | AL99: 95 | AM99: 105 | AN99: 100 | AO99: 90 | AP99: 90 | AQ99: 90 | AR99: 95 | AS99: 90 | AT99: 90 | AU99: 85 | AV99: 80 | AW99: 80 | AX99: 85 | AY99: 95 | AZ99: 90 | BA99: 90 | BB99: 90 | BC99: 90 | BD99: 105 | BE99: 120 | BF99: 125 | BG99: 110 | BH99: 110 | BI99: 105 | BJ99: 105 | BK99: 105 | BL99: 100 | BM99: 105 | BN99: 110 | BO99: 115 | BP99: 115 | BQ99: 125 | BR99: 130 | BS99: 130 | BT99: 130 | BU99: 130 | BV99: 135 | BW99: 135 | BX99: 140 | BY99: 145 | BZ99: 145 | CA99: 150 | CB99: 165 | CC99: 165 | CD99: 175 | CE99: 160 | CF99: 175 | CG99: 185 | CH99: 185 | CI99: 185 | CJ99: 190 | CK99: 195 | CL99: 200 | CM99: 190 | CN99: 190 | CO99: 190 | CP99: 315 | CQ99: 395 | CR99: 375 | CS99: 385 | CT99: 390 | CU99: 400 | CV99: 390 | CW99: 390 | CX99: 395 | CY99: 405 | CZ99: 410 | DA99: 410 | DB99: 415 | DC99: 365 | DD99: 340 | DE99: 350 | DF99: 325 | DG99: 300 | DH99: 280 | DI99: 270 | DJ99: 250 | DK99: 240 | DL99: 250 | DM99: 255 | DN99: 225 | DO99: 225 | DP99: 220 | DQ99: 225 | DR99: 205 | DS99: 210 | DT99: 205 | DU99: 205 | DV99: 205 | DW99: 215 | DX99: 215 | DY99: 225 | DZ99: 230 | EA99: 220 | EB99: 225 | EC99: 225 | ED99: 210 | EE99: 210 | EF99: 220 | EG99: 215 | EH99: 210 | EI99: 225 | EJ99: 245 | EK99: 225 | EL99: 230 | EM99: 230
A100: Dartford | B100: 29UDGS | C100: E05012408 | D100: E05004942 | E100: E36003555 | F100: Temple Hill | G100: 285 | H100: 285 | I100: 280 | J100: 270 | K100: 265 | L100: 250 | M100: 245 | N100: 240 | O100: 240 | P100: 230 | Q100: 220 | R100: 215 | S100: 230 | T100: 225 | U100: 205 | V100: 190 | W100: 195 | X100: 175 | Y100: 160 | Z100: 160 | AA100: 150 | AB100: 155 | AC100: 140 | AD100: 135 | AE100: 140 | AF100: 150 | AG100: 150 | AH100: 130 | AI100: 125 | AJ100: 140 | AK100: 130 | AL100: 105 | AM100: 105 | AN100: 110 | AO100: 115 | AP100: 100 | AQ100: 115 | AR100: 120 | AS100: 110 | AT100: 125 | AU100: 125 | AV100: 130 | AW100: 120 | AX100: 110 | AY100: 120 | AZ100: 110 | BA100: 110 | BB100: 110 | BC100: 125 | BD100: 130 | BE100: 130 | BF100: 135 | BG100: 135 | BH100: 140 | BI100: 140 | BJ100: 140 | BK100: 140 | BL100: 135 | BM100: 140 | BN100: 115 | BO100: 120 | BP100: 120 | BQ100: 135 | BR100: 115 | BS100: 115 | BT100: 110 | BU100: 110 | BV100: 105 | BW100: 115 | BX100: 120 | BY100: 130 | BZ100: 150 | CA100: 150 | CB100: 165 | CC100: 175 | CD100: 190 | CE100: 190 | CF100: 210 | CG100: 215 | CH100: 240 | CI100: 235 | CJ100: 250 | CK100: 250 | CL100: 250 | CM100: 250 | CN100: 255 | CO100: 270 | CP100: 450 | CQ100: 550 | CR100: 530 | CS100: 545 | CT100: 545 | CU100: 535 | CV100: 535 | CW100: 530 | CX100: 530 | CY100: 555 | CZ100: 565 | DA100: 555 | DB100: 560 | DC100: 525 | DD100: 485 | DE100: 465 | DF100: 450 | DG100: 430 | DH100: 390 | DI100: 385 | DJ100: 365 | DK100: 360 | DL100: 365 | DM100: 360 | DN100: 345 | DO100: 340 | DP100: 315 | DQ100: 295 | DR100: 295 | DS100: 305 | DT100: 320 | DU100: 320 | DV100: 325 | DW100: 345 | DX100: 345 | DY100: 355 | DZ100: 360 | EA100: 340 | EB100: 345 | EC100: 365 | ED100: 360 | EE100: 375 | EF100: 355 | EG100: 340 | EH100: 330 | EI100: 335 | EJ100: 330 | EK100: 350 | EL100: 350 | EM100: 360
C101: E05012409 | F101: Town | G101: 40 | H101: 40 | I101: 40 | J101: 35 | K101: 35 | L101: 40 | M101: 40 | N101: 30 | O101: 35 | P101: 30 | Q101: 25 | R101: 25 | S101: 30 | T101: 40 | U101: 30 | V101: 25 | W101: 20 | X101: 20 | Y101: 20 | Z101: 20 | AA101: 20 | AB101: 20 | AC101: 20 | AD101: 20 | AE101: 15 | AF101: 20 | AG101: 15 | AH101: 20 | AI101: 20 | AJ101: 20 | AK101: 20 | AL101: 25 | AM101: 20 | AN101: 20 | AO101: 25 | AP101: 25 | AQ101: 20 | AR101: 25 | AS101: 25 | AT101: 20 | AU101: 20 | AV101: 20 | AW101: 20 | AX101: 20 | AY101: 15 | AZ101: 20 | BA101: 25 | BB101: 25 | BC101: 25 | BD101: 25 | BE101: 25 | BF101: 25 | BG101: 30 | BH101: 25 | BI101: 25 | BJ101: 25 | BK101: 25 | BL101: 20 | BM101: 15 | BN101: 20 | BO101: 20 | BP101: 25 | BQ101: 25 | BR101: 25 | BS101: 20 | BT101: 20 | BU101: 25 | BV101: 25 | BW101: 15 | BX101: 20 | BY101: 20 | BZ101: 30 | CA101: 30 | CB101: 40 | CC101: 40 | CD101: 40 | CE101: 40 | CF101: 40 | CG101: 45 | CH101: 55 | CI101: 55 | CJ101: 60 | CK101: 60 | CL101: 60 | CM101: 65 | CN101: 60 | CO101: 65 | CP101: 115 | CQ101: 145 | CR101: 135 | CS101: 140 | CT101: 135 | CU101: 130 | CV101: 115 | CW101: 120 | CX101: 120 | CY101: 115 | CZ101: 115 | DA101: 115 | DB101: 120 | DC101: 110 | DD101: 105 | DE101: 110 | DF101: 95 | DG101: 100 | DH101: 100 | DI101: 95 | DJ101: 95 | DK101: 95 | DL101: 90 | DM101: 80 | DN101: 80 | DO101: 80 | DP101: 80 | DQ101: 80 | DR101: 80 | DS101: 85 | DT101: 75 | DU101: 85 | DV101: 85 | DW101: 85 | DX101: 80 | DY101: 75 | DZ101: 85 | EA101: 80 | EB101: 85 | EC101: 95 | ED101: 100 | EE101: 90 | EF101: 90 | EG101: 90 | EH101: 100 | EI101: 105 | EJ101: 115 | EK101: 105 | EL101: 95 | EM101: 100
C102: E05012410 | F102: West Hill | G102: 120 | H102: 120 | I102: 110 | J102: 100 | K102: 90 | L102: 95 | M102: 90 | N102: 90 | O102: 90 | P102: 75 | Q102: 80 | R102: 70 | S102: 70 | T102: 80 | U102: 75 | V102: 80 | W102: 75 | X102: 65 | Y102: 70 | Z102: 65 | AA102: 45 | AB102: 45 | AC102: 45 | AD102: 40 | AE102: 50 | AF102: 55 | AG102: 50 | AH102: 45 | AI102: 50 | AJ102: 55 | AK102: 45 | AL102: 45 | AM102: 50 | AN102: 50 | AO102: 45 | AP102: 45 | AQ102: 50 | AR102: 50 | AS102: 50 | AT102: 45 | AU102: 50 | AV102: 55 | AW102: 55 | AX102: 50 | AY102: 50 | AZ102: 50 | BA102: 45 | BB102: 50 | BC102: 35 | BD102: 45 | BE102: 50 | BF102: 45 | BG102: 45 | BH102: 50 | BI102: 55 | BJ102: 50 | BK102: 45 | BL102: 35 | BM102: 40 | BN102: 45 | BO102: 45 | BP102: 45 | BQ102: 40 | BR102: 40 | BS102: 40 | BT102: 40 | BU102: 35 | BV102: 30 | BW102: 30 | BX102: 40 | BY102: 40 | BZ102: 40 | CA102: 35 | CB102: 50 | CC102: 55 | CD102: 45 | CE102: 50 | CF102: 50 | CG102: 55 | CH102: 60 | CI102: 60 | CJ102: 70 | CK102: 70 | CL102: 70 | CM102: 80 | CN102: 90 | CO102: 90 | CP102: 200 | CQ102: 275 | CR102: 255 | CS102: 255 | CT102: 260 | CU102: 250 | CV102: 225 | CW102: 230 | CX102: 240 | CY102: 245 | CZ102: 275 | DA102: 275 | DB102: 260 | DC102: 235 | DD102: 215 | DE102: 220 | DF102: 195 | DG102: 180 | DH102: 170 | DI102: 165 | DJ102: 170 | DK102: 145 | DL102: 140 | DM102: 135 | DN102: 130 | DO102: 125 | DP102: 135 | DQ102: 125 | DR102: 140 | DS102: 120 | DT102: 120 | DU102: 125 | DV102: 120 | DW102: 120 | DX102: 130 | DY102: 140 | DZ102: 150 | EA102: 150 | EB102: 155 | EC102: 150 | ED102: 140 | EE102: 140 | EF102: 150 | EG102: 155 | EH102: 135 | EI102: 145 | EJ102: 135 | EK102: 130 | EL102: 130 | EM102: 135
C103: E05012411 | F103: Wilmington, Sutton-at-Hone & Hawley | G103: 100 | H103: 100 | I103: 100 | J103: 95 | K103: 85 | L103: 80 | M103: 80 | N103: 70 | O103: 70 | P103: 70 | Q103: 70 | R103: 60 | S103: 65 | T103: 70 | U103: 65 | V103: 60 | W103: 65 | X103: 45 | Y103: 45 | Z103: 45 | AA103: 45 | AB103: 40 | AC103: 45 | AD103: 30 | AE103: 30 | AF103: 40 | AG103: 40 | AH103: 45 | AI103: 45 | AJ103: 35 | AK103: 40 | AL103: 35 | AM103: 30 | AN103: 30 | AO103: 25 | AP103: 30 | AQ103: 35 | AR103: 40 | AS103: 40 | AT103: 35 | AU103: 35 | AV103: 35 | AW103: 35 | AX103: 40 | AY103: 45 | AZ103: 50 | BA103: 40 | BB103: 45 | BC103: 40 | BD103: 45 | BE103: 45 | BF103: 45 | BG103: 45 | BH103: 45 | BI103: 45 | BJ103: 45 | BK103: 45 | BL103: 40 | BM103: 40 | BN103: 35 | BO103: 30 | BP103: 35 | BQ103: 40 | BR103: 40 | BS103: 35 | BT103: 35 | BU103: 25 | BV103: 25 | BW103: 35 | BX103: 35 | BY103: 40 | BZ103: 50 | CA103: 50 | CB103: 55 | CC103: 60 | CD103: 65 | CE103: 60 | CF103: 60 | CG103: 60 | CH103: 55 | CI103: 60 | CJ103: 60 | CK103: 55 | CL103: 55 | CM103: 65 | CN103: 65 | CO103: 55 | CP103: 155 | CQ103: 205 | CR103: 165 | CS103: 185 | CT103: 190 | CU103: 195 | CV103: 180 | CW103: 180 | CX103: 190 | CY103: 195 | CZ103: 200 | DA103: 215 | DB103: 210 | DC103: 205 | DD103: 165 | DE103: 160 | DF103: 150 | DG103: 135 | DH103: 130 | DI103: 125 | DJ103: 120 | DK103: 110 | DL103: 100 | DM103: 100 | DN103: 90 | DO103: 95 | DP103: 100 | DQ103: 100 | DR103: 95 | DS103: 90 | DT103: 95 | DU103: 110 | DV103: 105 | DW103: 100 | DX103: 90 | DY103: 95 | DZ103: 95 | EA103: 100 | EB103: 110 | EC103: 110 | ED103: 115 | EE103: 105 | EF103: 105 | EG103: 110 | EH103: 110 | EI103: 110 | EJ103: 105 | EK103: 105 | EL103: 95 | EM103: 90
A104: Dover | B104: 29UEGJ | C104: E05012855 | D104: E05004943 | E104: E36003556 | F104: Alkham & Capel-le-Ferne | G104: 35 | H104: 35 | I104: 40 | J104: 40 | K104: 35 | L104: 30 | M104: 30 | N104: 25 | O104: 25 | P104: 25 | Q104: 25 | R104: 30 | S104: 25 | T104: 20 | U104: 20 | V104: 15 | W104: 20 | X104: 15 | Y104: 15 | Z104: 20 | AA104: 15 | AB104: 20 | AC104: 20 | AD104: 15 | AE104: 20 | AF104: 20 | AG104: 15 | AH104: 20 | AI104: 10 | AJ104: 10 | AK104: 10 | AL104: 10 | AM104: 10 | AN104: 10 | AO104: 10 | AP104: 10 | AQ104: 5 | AR104: 10 | AS104: 10 | AT104: 10 | AU104: 10 | AV104: 10 | AW104: 10 | AX104: 10 | AY104: 10 | AZ104: 5 | BA104: 5 | BB104: 5 | BC104: 10 | BD104: 10 | BE104: 10 | BF104: 10 | BG104: 10 | BH104: 15 | BI104: 10 | BJ104: 10 | BK104: 10 | BL104: 15 | BM104: 15 | BN104: 15 | BO104: 15 | BP104: 20 | BQ104: 20 | BR104: 20 | BS104: 20 | BT104: 20 | BU104: 25 | BV104: 25 | BW104: 20 | BX104: 25 | BY104: 30 | BZ104: 25 | CA104: 25 | CB104: 30 | CC104: 25 | CD104: 25 | CE104: 20 | CF104: 25 | CG104: 25 | CH104: 25 | CI104: 30 | CJ104: 30 | CK104: 25 | CL104: 25 | CM104: 25 | CN104: 30 | CO104: 35 | CP104: 75 | CQ104: 95 | CR104: 95 | CS104: 100 | CT104: 95 | CU104: 95 | CV104: 90 | CW104: 85 | CX104: 90 | CY104: 90 | CZ104: 85 | DA104: 85 | DB104: 85 | DC104: 70 | DD104: 70 | DE104: 65 | DF104: 60 | DG104: 55 | DH104: 55 | DI104: 55 | DJ104: 45 | DK104: 50 | DL104: 55 | DM104: 50 | DN104: 55 | DO104: 55 | DP104: 50 | DQ104: 50 | DR104: 50 | DS104: 45 | DT104: 45 | DU104: 50 | DV104: 45 | DW104: 35 | DX104: 45 | DY104: 40 | DZ104: 30 | EA104: 35 | EB104: 35 | EC104: 40 | ED104: 35 | EE104: 35 | EF104: 30 | EG104: 30 | EH104: 30 | EI104: 30 | EJ104: 35 | EK104: 35 | EL104: 35 | EM104: 40
A105: Dover | B105: 29UEGK | C105: E05012856 | D105: E05004944 | E105: E36003557 | F105: Aylesham, Eythorne & Shepherdswell | G105: 205 | H105: 210 | I105: 210 | J105: 205 | K105: 200 | L105: 180 | M105: 170 | N105: 145 | O105: 140 | P105: 130 | Q105: 135 | R105: 135 | S105: 155 | T105: 145 | U105: 150 | V105: 140 | W105: 150 | X105: 120 | Y105: 125 | Z105: 120 | AA105: 135 | AB105: 125 | AC105: 120 | AD105: 125 | AE105: 125 | AF105: 125 | AG105: 115 | AH105: 120 | AI105: 105 | AJ105: 100 | AK105: 90 | AL105: 95 | AM105: 100 | AN105: 90 | AO105: 100 | AP105: 95 | AQ105: 100 | AR105: 100 | AS105: 95 | AT105: 100 | AU105: 100 | AV105: 95 | AW105: 95 | AX105: 95 | AY105: 100 | AZ105: 100 | BA105: 105 | BB105: 105 | BC105: 105 | BD105: 115 | BE105: 120 | BF105: 115 | BG105: 115 | BH105: 125 | BI105: 120 | BJ105: 125 | BK105: 130 | BL105: 145 | BM105: 140 | BN105: 130 | BO105: 135 | BP105: 150 | BQ105: 150 | BR105: 175 | BS105: 160 | BT105: 165 | BU105: 150 | BV105: 155 | BW105: 145 | BX105: 150 | BY105: 155 | BZ105: 150 | CA105: 155 | CB105: 155 | CC105: 170 | CD105: 175 | CE105: 170 | CF105: 165 | CG105: 160 | CH105: 180 | CI105: 175 | CJ105: 185 | CK105: 185 | CL105: 185 | CM105: 190 | CN105: 190 | CO105: 190 | CP105: 355 | CQ105: 400 | CR105: 370 | CS105: 365 | CT105: 370 | CU105: 355 | CV105: 345 | CW105: 335 | CX105: 325 | CY105: 310 | CZ105: 330 | DA105: 330 | DB105: 325 | DC105: 300 | DD105: 285 | DE105: 280 | DF105: 285 | DG105: 270 | DH105: 260 | DI105: 240 | DJ105: 240 | DK105: 240 | DL105: 245 | DM105: 230 | DN105: 220 | DO105: 195 | DP105: 185 | DQ105: 185 | DR105: 195 | DS105: 180 | DT105: 185 | DU105: 185 | DV105: 185 | DW105: 185 | DX105: 170 | DY105: 185 | DZ105: 200 | EA105: 205 | EB105: 200 | EC105: 195 | ED105: 190 | EE105: 190 | EF105: 185 | EG105: 200 | EH105: 205 | EI105: 195 | EJ105: 200 | EK105: 195 | EL105: 200 | EM105: 200
A106: Dover | B106: 29UEGL | C106: E05012857 | D106: E05004945 | E106: E36003558 | F106: Buckland | G106: 285 | H106: 290 | I106: 285 | J106: 285 | K106: 265 | L106: 250 | M106: 235 | N106: 225 | O106: 215 | P106: 210 | Q106: 205 | R106: 225 | S106: 230 | T106: 220 | U106: 215 | V106: 210 | W106: 185 | X106: 175 | Y106: 175 | Z106: 160 | AA106: 145 | AB106: 145 | AC106: 145 | AD106: 155 | AE106: 150 | AF106: 160 | AG106: 145 | AH106: 145 | AI106: 130 | AJ106: 125 | AK106: 125 | AL106: 120 | AM106: 125 | AN106: 130 | AO106: 125 | AP106: 140 | AQ106: 150 | AR106: 150 | AS106: 140 | AT106: 145 | AU106: 145 | AV106: 135 | AW106: 140 | AX106: 150 | AY106: 160 | AZ106: 160 | BA106: 160 | BB106: 155 | BC106: 155 | BD106: 155 | BE106: 160 | BF106: 165 | BG106: 165 | BH106: 175 | BI106: 170 | BJ106: 160 | BK106: 175 | BL106: 185 | BM106: 195 | BN106: 190 | BO106: 200 | BP106: 215 | BQ106: 230 | BR106: 260 | BS106: 240 | BT106: 240 | BU106: 240 | BV106: 215 | BW106: 210 | BX106: 215 | BY106: 215 | BZ106: 225 | CA106: 240 | CB106: 245 | CC106: 245 | CD106: 240 | CE106: 250 | CF106: 245 | CG106: 260 | CH106: 250 | CI106: 250 | CJ106: 245 | CK106: 245 | CL106: 255 | CM106: 250 | CN106: 255 | CO106: 270 | CP106: 370 | CQ106: 405 | CR106: 390 | CS106: 375 | CT106: 385 | CU106: 395 | CV106: 395 | CW106: 390 | CX106: 385 | CY106: 390 | CZ106: 400 | DA106: 390 | DB106: 380 | DC106: 345 | DD106: 315 | DE106: 320 | DF106: 310 | DG106: 305 | DH106: 305 | DI106: 290 | DJ106: 270 | DK106: 265 | DL106: 275 | DM106: 270 | DN106: 255 | DO106: 240 | DP106: 215 | DQ106: 225 | DR106: 225 | DS106: 230 | DT106: 220 | DU106: 225 | DV106: 240 | DW106: 245 | DX106: 245 | DY106: 265 | DZ106: 240 | EA106: 250 | EB106: 245 | EC106: 240 | ED106: 235 | EE106: 235 | EF106: 245 | EG106: 255 | EH106: 255 | EI106: 240 | EJ106: 255 | EK106: 255 | EL106: 235 | EM106: 235
A107: Dover | B107: 29UEGM | C107: E05012858 | D107: E05004946 | E107: E36003559 | F107: Dover Downs & River | G107: 55 | H107: 65 | I107: 60 | J107: 60 | K107: 55 | L107: 45 | M107: 45 | N107: 40 | O107: 40 | P107: 35 | Q107: 30 | R107: 30 | S107: 30 | T107: 30 | U107: 25 | V107: 30 | W107: 25 | X107: 20 | Y107: 15 | Z107: 20 | AA107: 20 | AB107: 20 | AC107: 25 | AD107: 30 | AE107: 30 | AF107: 30 | AG107: 20 | AH107: 20 | AI107: 20 | AJ107: 15 | AK107: 15 | AL107: 15 | AM107: 15 | AN107: 20 | AO107: 20 | AP107: 25 | AQ107: 30 | AR107: 25 | AS107: 25 | AT107: 30 | AU107: 20 | AV107: 25 | AW107: 25 | AX107: 25 | AY107: 25 | AZ107: 20 | BA107: 15 | BB107: 20 | BC107: 25 | BD107: 20 | BE107: 25 | BF107: 25 | BG107: 25 | BH107: 25 | BI107: 30 | BJ107: 30 | BK107: 25 | BL107: 30 | BM107: 30 | BN107: 25 | BO107: 30 | BP107: 35 | BQ107: 30 | BR107: 40 | BS107: 40 | BT107: 45 | BU107: 40 | BV107: 35 | BW107: 40 | BX107: 40 | BY107: 40 | BZ107: 45 | CA107: 50 | CB107: 45 | CC107: 40 | CD107: 45 | CE107: 50 | CF107: 45 | CG107: 50 | CH107: 45 | CI107: 45 | CJ107: 55 | CK107: 50 | CL107: 45 | CM107: 50 | CN107: 50 | CO107: 55 | CP107: 120 | CQ107: 120 | CR107: 115 | CS107: 120 | CT107: 125 | CU107: 120 | CV107: 115 | CW107: 115 | CX107: 105 | CY107: 105 | CZ107: 110 | DA107: 105 | DB107: 95 | DC107: 85 | DD107: 70 | DE107: 75 | DF107: 70 | DG107: 70 | DH107: 65 | DI107: 65 | DJ107: 60 | DK107: 65 | DL107: 70 | DM107: 60 | DN107: 55 | DO107: 55 | DP107: 50 | DQ107: 60 | DR107: 55 | DS107: 60 | DT107: 55 | DU107: 50 | DV107: 45 | DW107: 55 | DX107: 60 | DY107: 55 | DZ107: 45 | EA107: 50 | EB107: 45 | EC107: 50 | ED107: 50 | EE107: 55 | EF107: 55 | EG107: 50 | EH107: 65 | EI107: 65 | EJ107: 65 | EK107: 65 | EL107: 55 | EM107: 55
A108: Dover | B108: 29UEGN | C108: E05012859 | D108: E05004947 | E108: E36003560 | F108: Eastry Rural | G108: 80 | H108: 90 | I108: 85 | J108: 85 | K108: 75 | L108: 70 | M108: 65 | N108: 60 | O108: 55 | P108: 50 | Q108: 55 | R108: 60 | S108: 50 | T108: 55 | U108: 55 | V108: 55 | W108: 55 | X108: 45 | Y108: 45 | Z108: 45 | AA108: 35 | AB108: 35 | AC108: 40 | AD108: 45 | AE108: 45 | AF108: 45 | AG108: 50 | AH108: 45 | AI108: 40 | AJ108: 45 | AK108: 35 | AL108: 25 | AM108: 25 | AN108: 30 | AO108: 35 | AP108: 30 | AQ108: 25 | AR108: 35 | AS108: 30 | AT108: 30 | AU108: 30 | AV108: 30 | AW108: 40 | AX108: 45 | AY108: 50 | AZ108: 50 | BA108: 40 | BB108: 45 | BC108: 45 | BD108: 50 | BE108: 55 | BF108: 45 | BG108: 40 | BH108: 45 | BI108: 45 | BJ108: 55 | BK108: 60 | BL108: 45 | BM108: 55 | BN108: 50 | BO108: 65 | BP108: 65 | BQ108: 65 | BR108: 65 | BS108: 70 | BT108: 80 | BU108: 75 | BV108: 70 | BW108: 65 | BX108: 75 | BY108: 75 | BZ108: 80 | CA108: 75 | CB108: 85 | CC108: 75 | CD108: 80 | CE108: 75 | CF108: 85 | CG108: 75 | CH108: 80 | CI108: 80 | CJ108: 90 | CK108: 80 | CL108: 75 | CM108: 65 | CN108: 80 | CO108: 75 | CP108: 185 | CQ108: 215 | CR108: 200 | CS108: 200 | CT108: 200 | CU108: 190 | CV108: 185 | CW108: 185 | CX108: 200 | CY108: 185 | CZ108: 195 | DA108: 205 | DB108: 195 | DC108: 175 | DD108: 170 | DE108: 165 | DF108: 165 | DG108: 145 | DH108: 140 | DI108: 135 | DJ108: 135 | DK108: 125 | DL108: 120 | DM108: 120 | DN108: 115 | DO108: 105 | DP108: 110 | DQ108: 100 | DR108: 105 | DS108: 110 | DT108: 110 | DU108: 105 | DV108: 115 | DW108: 120 | DX108: 115 | DY108: 110 | DZ108: 105 | EA108: 105 | EB108: 95 | EC108: 100 | ED108: 100 | EE108: 110 | EF108: 110 | EG108: 110 | EH108: 110 | EI108: 100 | EJ108: 100 | EK108: 115 | EL108: 105 | EM108: 100
A109: Dover | B109: 29UEGP | C109: E05012860 | D109: E05004948 | E109: E36003561 | F109: Guston, Kingsdown & St Margaret's-at-Cliffe | G109: 100 | H109: 85 | I109: 85 | J109: 80 | K109: 65 | L109: 60 | M109: 50 | N109: 55 | O109: 50 | P109: 60 | Q109: 60 | R109: 65 | S109: 60 | T109: 70 | U109: 70 | V109: 65 | W109: 55 | X109: 50 | Y109: 45 | Z109: 40 | AA109: 45 | AB109: 40 | AC109: 40 | AD109: 40 | AE109: 40 | AF109: 50 | AG109: 45 | AH109: 40 | AI109: 30 | AJ109: 35 | AK109: 35 | AL109: 30 | AM109: 30 | AN109: 35 | AO109: 35 | AP109: 35 | AQ109: 40 | AR109: 45 | AS109: 45 | AT109: 40 | AU109: 40 | AV109: 30 | AW109: 35 | AX109: 40 | AY109: 35 | AZ109: 35 | BA109: 35 | BB109: 35 | BC109: 35 | BD109: 35 | BE109: 40 | BF109: 40 | BG109: 40 | BH109: 40 | BI109: 40 | BJ109: 50 | BK109: 45 | BL109: 55 | BM109: 50 | BN109: 50 | BO109: 50 | BP109: 55 | BQ109: 55 | BR109: 60 | BS109: 50 | BT109: 55 | BU109: 60 | BV109: 60 | BW109: 60 | BX109: 60 | BY109: 70 | BZ109: 65 | CA109: 65 | CB109: 65 | CC109: 65 | CD109: 70 | CE109: 65 | CF109: 65 | CG109: 75 | CH109: 70 | CI109: 60 | CJ109: 70 | CK109: 70 | CL109: 70 | CM109: 75 | CN109: 70 | CO109: 70 | CP109: 165 | CQ109: 195 | CR109: 180 | CS109: 180 | CT109: 185 | CU109: 170 | CV109: 155 | CW109: 160 | CX109: 160 | CY109: 160 | CZ109: 175 | DA109: 160 | DB109: 155 | DC109: 140 | DD109: 130 | DE109: 125 | DF109: 110 | DG109: 105 | DH109: 105 | DI109: 110 | DJ109: 95 | DK109: 90 | DL109: 85 | DM109: 75 | DN109: 70 | DO109: 65 | DP109: 70 | DQ109: 65 | DR109: 70 | DS109: 65 | DT109: 65 | DU109: 70 | DV109: 60 | DW109: 65 | DX109: 70 | DY109: 80 | DZ109: 85 | EA109: 80 | EB109: 85 | EC109: 75 | ED109: 90 | EE109: 90 | EF109: 95 | EG109: 100 | EH109: 100 | EI109: 95 | EJ109: 100 | EK109: 105 | EL109: 110 | EM109: 105
A110: Dover | B110: 29UEGQ | C110: E05012861 | D110: E05004949 | E110: E36003562 | F110: Little Stour & Ashstone | G110: 75 | H110: 75 | I110: 75 | J110: 65 | K110: 70 | L110: 65 | M110: 60 | N110: 60 | O110: 55 | P110: 45 | Q110: 50 | R110: 55 | S110: 60 | T110: 60 | U110: 55 | V110: 45 | W110: 40 | X110: 40 | Y110: 40 | Z110: 45 | AA110: 40 | AB110: 40 | AC110: 30 | AD110: 30 | AE110: 35 | AF110: 45 | AG110: 45 | AH110: 45 | AI110: 40 | AJ110: 30 | AK110: 35 | AL110: 40 | AM110: 40 | AN110: 35 | AO110: 40 | AP110: 40 | AQ110: 40 | AR110: 45 | AS110: 45 | AT110: 50 | AU110: 45 | AV110: 45 | AW110: 40 | AX110: 40 | AY110: 40 | AZ110: 40 | BA110: 40 | BB110: 40 | BC110: 40 | BD110: 40 | BE110: 40 | BF110: 35 | BG110: 35 | BH110: 35 | BI110: 30 | BJ110: 40 | BK110: 40 | BL110: 40 | BM110: 45 | BN110: 50 | BO110: 45 | BP110: 50 | BQ110: 50 | BR110: 50 | BS110: 50 | BT110: 45 | BU110: 40 | BV110: 40 | BW110: 40 | BX110: 50 | BY110: 50 | BZ110: 55 | CA110: 60 | CB110: 65 | CC110: 70 | CD110: 65 | CE110: 60 | CF110: 60 | CG110: 60 | CH110: 65 | CI110: 65 | CJ110: 75 | CK110: 75 | CL110: 75 | CM110: 70 | CN110: 75 | CO110: 80 | CP110: 190 | CQ110: 210 | CR110: 200 | CS110: 200 | CT110: 200 | CU110: 205 | CV110: 195 | CW110: 200 | CX110: 195 | CY110: 185 | CZ110: 190 | DA110: 185 | DB110: 180 | DC110: 175 | DD110: 150 | DE110: 140 | DF110: 135 | DG110: 130 | DH110: 125 | DI110: 125 | DJ110: 115 | DK110: 110 | DL110: 110 | DM110: 110 | DN110: 100 | DO110: 100 | DP110: 95 | DQ110: 95 | DR110: 100 | DS110: 100 | DT110: 105 | DU110: 100 | DV110: 110 | DW110: 115 | DX110: 105 | DY110: 100 | DZ110: 100 | EA110: 95 | EB110: 90 | EC110: 90 | ED110: 90 | EE110: 100 | EF110: 100 | EG110: 105 | EH110: 115 | EI110: 110 | EJ110: 110 | EK110: 115 | EL110: 110 | EM110: 110
A111: Dover | B111: 29UEGR | C111: E05012862 | D111: E05004950 | E111: E36003563 | F111: Maxton & Elms Vale | G111: 75 | H111: 75 | I111: 70 | J111: 75 | K111: 70 | L111: 65 | M111: 65 | N111: 60 | O111: 50 | P111: 55 | Q111: 60 | R111: 55 | S111: 60 | T111: 55 | U111: 60 | V111: 55 | W111: 50 | X111: 40 | Y111: 40 | Z111: 40 | AA111: 45 | AB111: 45 | AC111: 45 | AD111: 45 | AE111: 50 | AF111: 45 | AG111: 45 | AH111: 50 | AI111: 45 | AJ111: 40 | AK111: 35 | AL111: 30 | AM111: 30 | AN111: 25 | AO111: 25 | AP111: 25 | AQ111: 25 | AR111: 25 | AS111: 25 | AT111: 25 | AU111: 25 | AV111: 30 | AW111: 30 | AX111: 40 | AY111: 35 | AZ111: 40 | BA111: 35 | BB111: 35 | BC111: 35 | BD111: 45 | BE111: 50 | BF111: 40 | BG111: 35 | BH111: 40 | BI111: 35 | BJ111: 40 | BK111: 40 | BL111: 35 | BM111: 40 | BN111: 40 | BO111: 35 | BP111: 40 | BQ111: 40 | BR111: 50 | BS111: 55 | BT111: 55 | BU111: 55 | BV111: 60 | BW111: 55 | BX111: 50 | BY111: 45 | BZ111: 55 | CA111: 60 | CB111: 60 | CC111: 60 | CD111: 60 | CE111: 65 | CF111: 60 | CG111: 60 | CH111: 60 | CI111: 55 | CJ111: 65 | CK111: 55 | CL111: 60 | CM111: 65 | CN111: 70 | CO111: 75 | CP111: 135 | CQ111: 140 | CR111: 135 | CS111: 140 | CT111: 135 | CU111: 140 | CV111: 125 | CW111: 130 | CX111: 135 | CY111: 125 | CZ111: 125 | DA111: 130 | DB111: 110 | DC111: 105 | DD111: 90 | DE111: 90 | DF111: 90 | DG111: 95 | DH111: 85 | DI111: 80 | DJ111: 75 | DK111: 80 | DL111: 80 | DM111: 75 | DN111: 75 | DO111: 65 | DP111: 65 | DQ111: 60 | DR111: 65 | DS111: 60 | DT111: 65 | DU111: 70 | DV111: 70 | DW111: 70 | DX111: 70 | DY111: 80 | DZ111: 75 | EA111: 80 | EB111: 75 | EC111: 80 | ED111: 75 | EE111: 65 | EF111: 65 | EG111: 70 | EH111: 70 | EI111: 70 | EJ111: 75 | EK111: 70 | EL111: 60 | EM111: 65
A112: Dover | B112: 29UEGS | C112: E05012863 | D112: E05004951 | E112: E36003564 | F112: Middle Deal | G112: 155 | H112: 165 | I112: 170 | J112: 160 | K112: 155 | L112: 155 | M112: 145 | N112: 140 | O112: 130 | P112: 140 | Q112: 155 | R112: 150 | S112: 150 | T112: 145 | U112: 145 | V112: 140 | W112: 135 | X112: 130 | Y112: 120 | Z112: 95 | AA112: 95 | AB112: 100 | AC112: 90 | AD112: 90 | AE112: 90 | AF112: 95 | AG112: 95 | AH112: 85 | AI112: 80 | AJ112: 75 | AK112: 65 | AL112: 65 | AM112: 65 | AN112: 70 | AO112: 80 | AP112: 80 | AQ112: 80 | AR112: 75 | AS112: 75 | AT112: 85 | AU112: 80 | AV112: 80 | AW112: 70 | AX112: 80 | AY112: 80 | AZ112: 80 | BA112: 85 | BB112: 90 | BC112: 85 | BD112: 90 | BE112: 95 | BF112: 95 | BG112: 90 | BH112: 100 | BI112: 95 | BJ112: 95 | BK112: 105 | BL112: 120 | BM112: 125 | BN112: 130 | BO112: 135 | BP112: 135 | BQ112: 140 | BR112: 140 | BS112: 135 | BT112: 125 | BU112: 135 | BV112: 125 | BW112: 140 | BX112: 140 | BY112: 140 | BZ112: 145 | CA112: 145 | CB112: 140 | CC112: 155 | CD112: 155 | CE112: 155 | CF112: 145 | CG112: 150 | CH112: 140 | CI112: 150 | CJ112: 155 | CK112: 140 | CL112: 130 | CM112: 130 | CN112: 130 | CO112: 130 | CP112: 245 | CQ112: 285 | CR112: 270 | CS112: 270 | CT112: 295 | CU112: 285 | CV112: 275 | CW112: 270 | CX112: 280 | CY112: 265 | CZ112: 275 | DA112: 270 | DB112: 260 | DC112: 230 | DD112: 225 | DE112: 210 | DF112: 195 | DG112: 190 | DH112: 190 | DI112: 180 | DJ112: 185 | DK112: 195 | DL112: 205 | DM112: 170 | DN112: 160 | DO112: 155 | DP112: 145 | DQ112: 140 | DR112: 140 | DS112: 135 | DT112: 130 | DU112: 140 | DV112: 140 | DW112: 150 | DX112: 150 | DY112: 145 | DZ112: 145 | EA112: 135 | EB112: 130 | EC112: 135 | ED112: 135 | EE112: 140 | EF112: 150 | EG112: 150 | EH112: 155 | EI112: 150 | EJ112: 150 | EK112: 155 | EL112: 140 | EM112: 145
A113: Dover | B113: 29UEGT | C113: E05012864 | D113: E05004952 | E113: E36003565 | F113: Mill Hill | G113: 175 | H113: 175 | I113: 170 | J113: 160 | K113: 150 | L113: 140 | M113: 130 | N113: 125 | O113: 130 | P113: 120 | Q113: 110 | R113: 120 | S113: 125 | T113: 130 | U113: 125 | V113: 130 | W113: 120 | X113: 100 | Y113: 105 | Z113: 90 | AA113: 85 | AB113: 80 | AC113: 90 | AD113: 90 | AE113: 90 | AF113: 85 | AG113: 85 | AH113: 80 | AI113: 75 | AJ113: 65 | AK113: 60 | AL113: 60 | AM113: 60 | AN113: 60 | AO113: 65 | AP113: 65 | AQ113: 75 | AR113: 75 | AS113: 80 | AT113: 75 | AU113: 65 | AV113: 65 | AW113: 70 | AX113: 65 | AY113: 70 | AZ113: 80 | BA113: 80 | BB113: 85 | BC113: 85 | BD113: 100 | BE113: 100 | BF113: 95 | BG113: 95 | BH113: 90 | BI113: 85 | BJ113: 90 | BK113: 90 | BL113: 95 | BM113: 105 | BN113: 105 | BO113: 110 | BP113: 120 | BQ113: 120 | BR113: 115 | BS113: 110 | BT113: 115 | BU113: 115 | BV113: 130 | BW113: 130 | BX113: 145 | BY113: 150 | BZ113: 170 | CA113: 155 | CB113: 165 | CC113: 150 | CD113: 155 | CE113: 165 | CF113: 155 | CG113: 170 | CH113: 160 | CI113: 165 | CJ113: 160 | CK113: 165 | CL113: 145 | CM113: 160 | CN113: 165 | CO113: 160 | CP113: 315 | CQ113: 325 | CR113: 310 | CS113: 320 | CT113: 335 | CU113: 330 | CV113: 305 | CW113: 300 | CX113: 310 | CY113: 295 | CZ113: 300 | DA113: 295 | DB113: 285 | DC113: 255 | DD113: 245 | DE113: 240 | DF113: 225 | DG113: 220 | DH113: 210 | DI113: 200 | DJ113: 200 | DK113: 195 | DL113: 185 | DM113: 180 | DN113: 160 | DO113: 145 | DP113: 150 | DQ113: 140 | DR113: 140 | DS113: 140 | DT113: 150 | DU113: 165 | DV113: 180 | DW113: 160 | DX113: 150 | DY113: 155 | DZ113: 150 | EA113: 155 | EB113: 155 | EC113: 150 | ED113: 160 | EE113: 160 | EF113: 150 | EG113: 140 | EH113: 145 | EI113: 145 | EJ113: 155 | EK113: 145 | EL113: 140 | EM113: 150
A114: Dover | B114: 29UEGU | C114: E05012865 | D114: E05004953 | E114: E36003566 | F114: North Deal | G114: 165 | H114: 165 | I114: 155 | J114: 150 | K114: 150 | L114: 150 | M114: 145 | N114: 130 | O114: 120 | P114: 120 | Q114: 120 | R114: 120 | S114: 120 | T114: 130 | U114: 130 | V114: 125 | W114: 120 | X114: 105 | Y114: 90 | Z114: 90 | AA114: 85 | AB114: 80 | AC114: 70 | AD114: 75 | AE114: 80 | AF114: 75 | AG114: 75 | AH114: 65 | AI114: 65 | AJ114: 65 | AK114: 60 | AL114: 60 | AM114: 55 | AN114: 60 | AO114: 70 | AP114: 75 | AQ114: 80 | AR114: 80 | AS114: 90 | AT114: 80 | AU114: 75 | AV114: 80 | AW114: 85 | AX114: 75 | AY114: 75 | AZ114: 80 | BA114: 80 | BB114: 90 | BC114: 90 | BD114: 85 | BE114: 80 | BF114: 85 | BG114: 95 | BH114: 95 | BI114: 75 | BJ114: 95 | BK114: 95 | BL114: 100 | BM114: 105 | BN114: 115 | BO114: 115 | BP114: 115 | BQ114: 110 | BR114: 130 | BS114: 115 | BT114: 120 | BU114: 130 | BV114: 130 | BW114: 130 | BX114: 135 | BY114: 130 | BZ114: 135 | CA114: 140 | CB114: 140 | CC114: 145 | CD114: 150 | CE114: 140 | CF114: 150 | CG114: 140 | CH114: 140 | CI114: 145 | CJ114: 150 | CK114: 145 | CL114: 145 | CM114: 150 | CN114: 145 | CO114: 145 | CP114: 275 | CQ114: 320 | CR114: 325 | CS114: 310 | CT114: 305 | CU114: 310 | CV114: 280 | CW114: 255 | CX114: 265 | CY114: 245 | CZ114: 265 | DA114: 250 | DB114: 255 | DC114: 235 | DD114: 220 | DE114: 220 | DF114: 200 | DG114: 195 | DH114: 170 | DI114: 170 | DJ114: 155 | DK114: 150 | DL114: 170 | DM114: 160 | DN114: 155 | DO114: 150 | DP114: 140 | DQ114: 130 | DR114: 120 | DS114: 125 | DT114: 115 | DU114: 130 | DV114: 125 | DW114: 130 | DX114: 130 | DY114: 135 | DZ114: 130 | EA114: 120 | EB114: 115 | EC114: 120 | ED114: 120 | EE114: 125 | EF114: 120 | EG114: 125 | EH114: 135 | EI114: 135 | EJ114: 130 | EK114: 135 | EL114: 135 | EM114: 120
A115: Dover | B115: 29UEGW | C115: E05012867 | D115: E05004954 | E115: E36003567 | F115: Sandwich | G115: 90 | H115: 90 | I115: 80 | J115: 75 | K115: 75 | L115: 70 | M115: 75 | N115: 70 | O115: 65 | P115: 60 | Q115: 55 | R115: 55 | S115: 50 | T115: 55 | U115: 55 | V115: 50 | W115: 50 | X115: 45 | Y115: 50 | Z115: 40 | AA115: 45 | AB115: 45 | AC115: 50 | AD115: 40 | AE115: 45 | AF115: 45 | AG115: 35 | AH115: 35 | AI115: 35 | AJ115: 35 | AK115: 40 | AL115: 35 | AM115: 35 | AN115: 35 | AO115: 35 | AP115: 35 | AQ115: 35 | AR115: 35 | AS115: 40 | AT115: 45 | AU115: 40 | AV115: 40 | AW115: 35 | AX115: 35 | AY115: 35 | AZ115: 35 | BA115: 35 | BB115: 30 | BC115: 40 | BD115: 40 | BE115: 40 | BF115: 45 | BG115: 45 | BH115: 45 | BI115: 45 | BJ115: 50 | BK115: 55 | BL115: 60 | BM115: 60 | BN115: 65 | BO115: 70 | BP115: 75 | BQ115: 80 | BR115: 75 | BS115: 70 | BT115: 70 | BU115: 70 | BV115: 75 | BW115: 75 | BX115: 80 | BY115: 80 | BZ115: 80 | CA115: 85 | CB115: 95 | CC115: 85 | CD115: 80 | CE115: 95 | CF115: 90 | CG115: 90 | CH115: 80 | CI115: 85 | CJ115: 85 | CK115: 70 | CL115: 70 | CM115: 75 | CN115: 75 | CO115: 75 | CP115: 135 | CQ115: 200 | CR115: 170 | CS115: 175 | CT115: 170 | CU115: 160 | CV115: 170 | CW115: 175 | CX115: 180 | CY115: 185 | CZ115: 180 | DA115: 185 | DB115: 185 | DC115: 165 | DD115: 150 | DE115: 135 | DF115: 125 | DG115: 125 | DH115: 125 | DI115: 120 | DJ115: 120 | DK115: 120 | DL115: 125 | DM115: 105 | DN115: 105 | DO115: 110 | DP115: 105 | DQ115: 95 | DR115: 100 | DS115: 105 | DT115: 100 | DU115: 95 | DV115: 105 | DW115: 115 | DX115: 120 | DY115: 130 | DZ115: 125 | EA115: 120 | EB115: 110 | EC115: 100 | ED115: 110 | EE115: 100 | EF115: 100 | EG115: 95 | EH115: 110 | EI115: 115 | EJ115: 125 | EK115: 115 | EL115: 110 | EM115: 120
A116: Dover | B116: 29UEGX | C116: E05012866 | D116: E05004955 | E116: E36003568 | F116: St Radigunds | G116: 305 | H116: 300 | I116: 290 | J116: 290 | K116: 270 | L116: 235 | M116: 215 | N116: 220 | O116: 230 | P116: 230 | Q116: 240 | R116: 245 | S116: 250 | T116: 270 | U116: 275 | V116: 255 | W116: 240 | X116: 215 | Y116: 205 | Z116: 195 | AA116: 180 | AB116: 175 | AC116: 170 | AD116: 175 | AE116: 185 | AF116: 195 | AG116: 185 | AH116: 185 | AI116: 155 | AJ116: 145 | AK116: 135 | AL116: 145 | AM116: 140 | AN116: 145 | AO116: 155 | AP116: 155 | AQ116: 165 | AR116: 175 | AS116: 190 | AT116: 200 | AU116: 200 | AV116: 180 | AW116: 190 | AX116: 185 | AY116: 195 | AZ116: 180 | BA116: 180 | BB116: 180 | BC116: 180 | BD116: 195 | BE116: 215 | BF116: 210 | BG116: 205 | BH116: 200 | BI116: 200 | BJ116: 210 | BK116: 220 | BL116: 235 | BM116: 240 | BN116: 275 | BO116: 275 | BP116: 300 | BQ116: 315 | BR116: 325 | BS116: 305 | BT116: 320 | BU116: 315 | BV116: 315 | BW116: 290 | BX116: 295 | BY116: 300 | BZ116: 310 | CA116: 320 | CB116: 320 | CC116: 330 | CD116: 320 | CE116: 330 | CF116: 325 | CG116: 325 | CH116: 330 | CI116: 325 | CJ116: 325 | CK116: 320 | CL116: 320 | CM116: 325 | CN116: 355 | CO116: 370 | CP116: 510 | CQ116: 520 | CR116: 500 | CS116: 510 | CT116: 495 | CU116: 505 | CV116: 500 | CW116: 490 | CX116: 500 | CY116: 485 | CZ116: 500 | DA116: 505 | DB116: 495 | DC116: 475 | DD116: 440 | DE116: 415 | DF116: 405 | DG116: 385 | DH116: 390 | DI116: 385 | DJ116: 365 | DK116: 365 | DL116: 355 | DM116: 350 | DN116: 320 | DO116: 305 | DP116: 295 | DQ116: 275 | DR116: 275 | DS116: 270 | DT116: 285 | DU116: 285 | DV116: 290 | DW116: 290 | DX116: 285 | DY116: 295 | DZ116: 300 | EA116: 290 | EB116: 290 | EC116: 295 | ED116: 290 | EE116: 280 | EF116: 265 | EG116: 265 | EH116: 275 | EI116: 285 | EJ116: 300 | EK116: 305 | EL116: 295 | EM116: 300
A117: Dover | B117: 29UEGY | C117: E05012868 | D117: E05004956 | E117: E36003569 | F117: Tower Hamlets | G117: 235 | H117: 255 | I117: 250 | J117: 245 | K117: 240 | L117: 225 | M117: 235 | N117: 210 | O117: 190 | P117: 185 | Q117: 195 | R117: 205 | S117: 205 | T117: 205 | U117: 200 | V117: 200 | W117: 190 | X117: 185 | Y117: 170 | Z117: 160 | AA117: 165 | AB117: 160 | AC117: 170 | AD117: 165 | AE117: 165 | AF117: 160 | AG117: 155 | AH117: 150 | AI117: 130 | AJ117: 130 | AK117: 120 | AL117: 115 | AM117: 110 | AN117: 110 | AO117: 115 | AP117: 120 | AQ117: 130 | AR117: 120 | AS117: 140 | AT117: 135 | AU117: 135 | AV117: 125 | AW117: 120 | AX117: 130 | AY117: 140 | AZ117: 135 | BA117: 130 | BB117: 135 | BC117: 140 | BD117: 150 | BE117: 155 | BF117: 155 | BG117: 145 | BH117: 140 | BI117: 150 | BJ117: 165 | BK117: 180 | BL117: 175 | BM117: 185 | BN117: 180 | BO117: 180 | BP117: 205 | BQ117: 205 | BR117: 225 | BS117: 210 | BT117: 215 | BU117: 215 | BV117: 215 | BW117: 215 | BX117: 220 | BY117: 220 | BZ117: 230 | CA117: 230 | CB117: 230 | CC117: 230 | CD117: 240 | CE117: 235 | CF117: 230 | CG117: 235 | CH117: 230 | CI117: 235 | CJ117: 235 | CK117: 235 | CL117: 245 | CM117: 250 | CN117: 255 | CO117: 255 | CP117: 355 | CQ117: 385 | CR117: 370 | CS117: 405 | CT117: 380 | CU117: 380 | CV117: 380 | CW117: 375 | CX117: 390 | CY117: 365 | CZ117: 380 | DA117: 365 | DB117: 360 | DC117: 340 | DD117: 320 | DE117: 310 | DF117: 280 | DG117: 265 | DH117: 290 | DI117: 260 | DJ117: 265 | DK117: 255 | DL117: 255 | DM117: 255 | DN117: 235 | DO117: 225 | DP117: 215 | DQ117: 205 | DR117: 205 | DS117: 210 | DT117: 210 | DU117: 220 | DV117: 230 | DW117: 220 | DX117: 225 | DY117: 225 | DZ117: 225 | EA117: 230 | EB117: 245 | EC117: 245 | ED117: 230 | EE117: 245 | EF117: 255 | EG117: 260 | EH117: 260 | EI117: 255 | EJ117: 260 | EK117: 255 | EL117: 250 | EM117: 250
A118: Dover | B118: 29UEGZ | C118: E05012869 | D118: E05004957 | E118: E36003571 | F118: Town & Castle | G118: 455 | H118: 475 | I118: 485 | J118: 475 | K118: 455 | L118: 415 | M118: 395 | N118: 385 | O118: 385 | P118: 370 | Q118: 405 | R118: 405 | S118: 425 | T118: 445 | U118: 445 | V118: 425 | W118: 405 | X118: 360 | Y118: 360 | Z118: 310 | AA118: 275 | AB118: 280 | AC118: 280 | AD118: 285 | AE118: 285 | AF118: 275 | AG118: 265 | AH118: 250 | AI118: 205 | AJ118: 195 | AK118: 190 | AL118: 180 | AM118: 170 | AN118: 175 | AO118: 205 | AP118: 230 | AQ118: 225 | AR118: 225 | AS118: 235 | AT118: 235 | AU118: 250 | AV118: 245 | AW118: 240 | AX118: 240 | AY118: 230 | AZ118: 245 | BA118: 255 | BB118: 260 | BC118: 255 | BD118: 265 | BE118: 270 | BF118: 275 | BG118: 275 | BH118: 255 | BI118: 270 | BJ118: 305 | BK118: 310 | BL118: 325 | BM118: 350 | BN118: 355 | BO118: 375 | BP118: 390 | BQ118: 370 | BR118: 420 | BS118: 400 | BT118: 390 | BU118: 380 | BV118: 380 | BW118: 395 | BX118: 395 | BY118: 405 | BZ118: 420 | CA118: 440 | CB118: 450 | CC118: 460 | CD118: 460 | CE118: 435 | CF118: 415 | CG118: 415 | CH118: 420 | CI118: 415 | CJ118: 415 | CK118: 405 | CL118: 410 | CM118: 405 | CN118: 425 | CO118: 430 | CP118: 575 | CQ118: 645 | CR118: 660 | CS118: 670 | CT118: 700 | CU118: 705 | CV118: 695 | CW118: 715 | CX118: 725 | CY118: 720 | CZ118: 710 | DA118: 710 | DB118: 695 | DC118: 645 | DD118: 620 | DE118: 595 | DF118: 575 | DG118: 570 | DH118: 570 | DI118: 575 | DJ118: 560 | DK118: 570 | DL118: 570 | DM118: 545 | DN118: 520 | DO118: 510 | DP118: 485 | DQ118: 455 | DR118: 455 | DS118: 470 | DT118: 450 | DU118: 470 | DV118: 495 | DW118: 495 | DX118: 500 | DY118: 510 | DZ118: 495 | EA118: 475 | EB118: 475 | EC118: 480 | ED118: 485 | EE118: 475 | EF118: 480 | EG118: 480 | EH118: 500 | EI118: 500 | EJ118: 505 | EK118: 495 | EL118: 490 | EM118: 490
A119: Dover | B119: 29UEHA | C119: E05012870 | D119: E05004958 | E119: E36003572 | F119: Walmer | G119: 90 | H119: 90 | I119: 95 | J119: 85 | K119: 85 | L119: 75 | M119: 75 | N119: 80 | O119: 70 | P119: 65 | Q119: 65 | R119: 65 | S119: 70 | T119: 75 | U119: 65 | V119: 65 | W119: 55 | X119: 50 | Y119: 50 | Z119: 50 | AA119: 50 | AB119: 45 | AC119: 50 | AD119: 45 | AE119: 50 | AF119: 50 | AG119: 45 | AH119: 40 | AI119: 40 | AJ119: 40 | AK119: 40 | AL119: 35 | AM119: 30 | AN119: 25 | AO119: 45 | AP119: 45 | AQ119: 50 | AR119: 55 | AS119: 50 | AT119: 45 | AU119: 40 | AV119: 40 | AW119: 45 | AX119: 45 | AY119: 45 | AZ119: 40 | BA119: 40 | BB119: 50 | BC119: 55 | BD119: 55 | BE119: 55 | BF119: 50 | BG119: 45 | BH119: 50 | BI119: 50 | BJ119: 50 | BK119: 50 | BL119: 50 | BM119: 55 | BN119: 60 | BO119: 65 | BP119: 65 | BQ119: 70 | BR119: 80 | BS119: 65 | BT119: 60 | BU119: 65 | BV119: 70 | BW119: 75 | BX119: 85 | BY119: 80 | BZ119: 80 | CA119: 80 | CB119: 90 | CC119: 85 | CD119: 85 | CE119: 85 | CF119: 85 | CG119: 85 | CH119: 85 | CI119: 85 | CJ119: 80 | CK119: 80 | CL119: 85 | CM119: 85 | CN119: 85 | CO119: 90 | CP119: 200 | CQ119: 225 | CR119: 200 | CS119: 210 | CT119: 205 | CU119: 205 | CV119: 185 | CW119: 200 | CX119: 195 | CY119: 185 | CZ119: 200 | DA119: 195 | DB119: 180 | DC119: 170 | DD119: 150 | DE119: 150 | DF119: 135 | DG119: 125 | DH119: 115 | DI119: 125 | DJ119: 120 | DK119: 115 | DL119: 115 | DM119: 110 | DN119: 115 | DO119: 110 | DP119: 95 | DQ119: 95 | DR119: 100 | DS119: 105 | DT119: 100 | DU119: 100 | DV119: 95 | DW119: 90 | DX119: 85 | DY119: 95 | DZ119: 95 | EA119: 100 | EB119: 100 | EC119: 95 | ED119: 100 | EE119: 90 | EF119: 85 | EG119: 75 | EH119: 90 | EI119: 85 | EJ119: 90 | EK119: 90 | EL119: 75 | EM119: 80
A120: Dover | B120: 29UEHB | C120: E05012871 | D120: E05004959 | E120: E36003570 | F120: Whitfield | G120: 100 | H120: 105 | I120: 105 | J120: 100 | K120: 80 | L120: 75 | M120: 75 | N120: 75 | O120: 75 | P120: 75 | Q120: 80 | R120: 75 | S120: 75 | T120: 75 | U120: 75 | V120: 75 | W120: 70 | X120: 60 | Y120: 60 | Z120: 60 | AA120: 60 | AB120: 65 | AC120: 65 | AD120: 60 | AE120: 60 | AF120: 55 | AG120: 50 | AH120: 50 | AI120: 45 | AJ120: 45 | AK120: 40 | AL120: 35 | AM120: 40 | AN120: 35 | AO120: 40 | AP120: 45 | AQ120: 50 | AR120: 50 | AS120: 60 | AT120: 50 | AU120: 45 | AV120: 45 | AW120: 45 | AX120: 45 | AY120: 45 | AZ120: 50 | BA120: 50 | BB120: 45 | BC120: 40 | BD120: 45 | BE120: 50 | BF120: 55 | BG120: 55 | BH120: 60 | BI120: 55 | BJ120: 55 | BK120: 65 | BL120: 75 | BM120: 70 | BN120: 75 | BO120: 85 | BP120: 80 | BQ120: 85 | BR120: 95 | BS120: 90 | BT120: 90 | BU120: 90 | BV120: 90 | BW120: 80 | BX120: 70 | BY120: 75 | BZ120: 85 | CA120: 85 | CB120: 100 | CC120: 95 | CD120: 95 | CE120: 90 | CF120: 90 | CG120: 90 | CH120: 90 | CI120: 90 | CJ120: 100 | CK120: 90 | CL120: 95 | CM120: 90 | CN120: 90 | CO120: 85 | CP120: 150 | CQ120: 155 | CR120: 155 | CS120: 170 | CT120: 160 | CU120: 170 | CV120: 160 | CW120: 165 | CX120: 170 | CY120: 165 | CZ120: 165 | DA120: 165 | DB120: 155 | DC120: 155 | DD120: 135 | DE120: 130 | DF120: 110 | DG120: 100 | DH120: 90 | DI120: 90 | DJ120: 95 | DK120: 80 | DL120: 75 | DM120: 80 | DN120: 75 | DO120: 80 | DP120: 85 | DQ120: 90 | DR120: 85 | DS120: 85 | DT120: 80 | DU120: 85 | DV120: 85 | DW120: 80 | DX120: 90 | DY120: 95 | DZ120: 90 | EA120: 90 | EB120: 100 | EC120: 105 | ED120: 95 | EE120: 85 | EF120: 85 | EG120: 95 | EH120: 95 | EI120: 100 | EJ120: 110 | EK120: 105 | EL120: 95 | EM120: 95
A121: Gravesham | B121: 29UGFW | C121: E05004964 | D121: E05004964 | E121: E05004964 | F121: Central | G121: 230 | H121: 260 | I121: 250 | J121: 250 | K121: 230 | L121: 215 | M121: 205 | N121: 200 | O121: 200 | P121: 185 | Q121: 180 | R121: 185 | S121: 180 | T121: 185 | U121: 175 | V121: 175 | W121: 170 | X121: 165 | Y121: 165 | Z121: 150 | AA121: 140 | AB121: 125 | AC121: 120 | AD121: 115 | AE121: 130 | AF121: 130 | AG121: 130 | AH121: 120 | AI121: 125 | AJ121: 110 | AK121: 110 | AL121: 105 | AM121: 100 | AN121: 100 | AO121: 110 | AP121: 100 | AQ121: 105 | AR121: 105 | AS121: 115 | AT121: 125 | AU121: 110 | AV121: 110 | AW121: 110 | AX121: 110 | AY121: 105 | AZ121: 110 | BA121: 115 | BB121: 110 | BC121: 115 | BD121: 120 | BE121: 125 | BF121: 120 | BG121: 125 | BH121: 125 | BI121: 120 | BJ121: 120 | BK121: 120 | BL121: 125 | BM121: 125 | BN121: 110 | BO121: 120 | BP121: 130 | BQ121: 130 | BR121: 125 | BS121: 125 | BT121: 115 | BU121: 125 | BV121: 120 | BW121: 145 | BX121: 155 | BY121: 150 | BZ121: 145 | CA121: 155 | CB121: 155 | CC121: 160 | CD121: 170 | CE121: 175 | CF121: 195 | CG121: 200 | CH121: 195 | CI121: 205 | CJ121: 200 | CK121: 205 | CL121: 225 | CM121: 215 | CN121: 235 | CO121: 235 | CP121: 350 | CQ121: 460 | CR121: 430 | CS121: 440 | CT121: 455 | CU121: 455 | CV121: 440 | CW121: 435 | CX121: 420 | CY121: 420 | CZ121: 440 | DA121: 440 | DB121: 430 | DC121: 395 | DD121: 375 | DE121: 350 | DF121: 335 | DG121: 305 | DH121: 300 | DI121: 295 | DJ121: 290 | DK121: 275 | DL121: 275 | DM121: 265 | DN121: 275 | DO121: 260 | DP121: 260 | DQ121: 260 | DR121: 265 | DS121: 245 | DT121: 250 | DU121: 255 | DV121: 250 | DW121: 240 | DX121: 245 | DY121: 270 | DZ121: 275 | EA121: 265 | EB121: 250 | EC121: 255 | ED121: 250 | EE121: 260 | EF121: 255 | EG121: 245 | EH121: 255 | EI121: 250 | EJ121: 270 | EK121: 255 | EL121: 245 | EM121: 250
A122: Gravesham | B122: 29UGFX | C122: E05004965 | D122: E05004965 | E122: E05004965 | F122: Chalk | G122: 25 | H122: 25 | I122: 25 | J122: 20 | K122: 15 | L122: 15 | M122: 15 | N122: 15 | O122: 15 | P122: 20 | Q122: 15 | R122: 10 | S122: 15 | T122: 15 | U122: 15 | V122: 15 | W122: 20 | X122: 20 | Y122: 20 | Z122: 15 | AA122: 10 | AB122: 10 | AC122: 10 | AD122: 15 | AE122: 15 | AF122: 15 | AG122: 10 | AH122: 10 | AI122: 10 | AJ122: 10 | AK122: 10 | AL122: 10 | AM122: 10 | AN122: 5 | AO122: 10 | AP122: 5 | AQ122: 5 | AR122: 5 | AS122: 10 | AT122: 10 | AU122: 10 | AV122: 5 | AW122: 5 | AX122: 10 | AY122: 10 | AZ122: 10 | BA122: 10 | BB122: 15 | BC122: 15 | BD122: 20 | BE122: 15 | BF122: 15 | BG122: 20 | BH122: 15 | BI122: 15 | BJ122: 15 | BK122: 20 | BL122: 20 | BM122: 15 | BN122: 15 | BO122: 15 | BP122: 20 | BQ122: 20 | BR122: 20 | BS122: 20 | BT122: 15 | BU122: 20 | BV122: 25 | BW122: 15 | BX122: 20 | BY122: 20 | BZ122: 20 | CA122: 20 | CB122: 20 | CC122: 20 | CD122: 25 | CE122: 30 | CF122: 25 | CG122: 25 | CH122: 20 | CI122: 20 | CJ122: 20 | CK122: 25 | CL122: 25 | CM122: 30 | CN122: 30 | CO122: 30 | CP122: 50 | CQ122: 60 | CR122: 60 | CS122: 65 | CT122: 65 | CU122: 65 | CV122: 60 | CW122: 60 | CX122: 50 | CY122: 55 | CZ122: 55 | DA122: 50 | DB122: 50 | DC122: 50 | DD122: 45 | DE122: 45 | DF122: 45 | DG122: 50 | DH122: 45 | DI122: 35 | DJ122: 35 | DK122: 40 | DL122: 40 | DM122: 35 | DN122: 35 | DO122: 35 | DP122: 30 | DQ122: 35 | DR122: 30 | DS122: 35 | DT122: 40 | DU122: 35 | DV122: 35 | DW122: 30 | DX122: 25 | DY122: 25 | DZ122: 25 | EA122: 30 | EB122: 25 | EC122: 25 | ED122: 25 | EE122: 25 | EF122: 30 | EG122: 25 | EH122: 30 | EI122: 30 | EJ122: 30 | EK122: 30 | EL122: 35 | EM122: 40
A123: Gravesham | B123: 29UGFY | C123: E05004966 | D123: E05004966 | E123: E05004966 | F123: Coldharbour | G123: 115 | H123: 125 | I123: 120 | J123: 115 | K123: 110 | L123: 115 | M123: 105 | N123: 105 | O123: 110 | P123: 115 | Q123: 105 | R123: 100 | S123: 105 | T123: 110 | U123: 100 | V123: 90 | W123: 85 | X123: 90 | Y123: 90 | Z123: 90 | AA123: 95 | AB123: 90 | AC123: 85 | AD123: 85 | AE123: 80 | AF123: 80 | AG123: 80 | AH123: 75 | AI123: 75 | AJ123: 70 | AK123: 70 | AL123: 75 | AM123: 80 | AN123: 80 | AO123: 75 | AP123: 80 | AQ123: 80 | AR123: 85 | AS123: 90 | AT123: 85 | AU123: 80 | AV123: 85 | AW123: 80 | AX123: 90 | AY123: 90 | AZ123: 90 | BA123: 80 | BB123: 80 | BC123: 85 | BD123: 80 | BE123: 90 | BF123: 85 | BG123: 85 | BH123: 80 | BI123: 80 | BJ123: 80 | BK123: 75 | BL123: 75 | BM123: 80 | BN123: 75 | BO123: 75 | BP123: 75 | BQ123: 90 | BR123: 85 | BS123: 90 | BT123: 90 | BU123: 95 | BV123: 95 | BW123: 85 | BX123: 85 | BY123: 90 | BZ123: 105 | CA123: 105 | CB123: 105 | CC123: 115 | CD123: 130 | CE123: 125 | CF123: 130 | CG123: 140 | CH123: 150 | CI123: 140 | CJ123: 140 | CK123: 135 | CL123: 125 | CM123: 125 | CN123: 130 | CO123: 135 | CP123: 210 | CQ123: 255 | CR123: 225 | CS123: 235 | CT123: 245 | CU123: 240 | CV123: 245 | CW123: 240 | CX123: 230 | CY123: 230 | CZ123: 240 | DA123: 235 | DB123: 235 | DC123: 220 | DD123: 230 | DE123: 220 | DF123: 210 | DG123: 210 | DH123: 200 | DI123: 175 | DJ123: 165 | DK123: 165 | DL123: 170 | DM123: 160 | DN123: 130 | DO123: 135 | DP123: 145 | DQ123: 140 | DR123: 140 | DS123: 145 | DT123: 135 | DU123: 135 | DV123: 140 | DW123: 135 | DX123: 145 | DY123: 150 | DZ123: 160 | EA123: 155 | EB123: 160 | EC123: 165 | ED123: 155 | EE123: 160 | EF123: 140 | EG123: 145 | EH123: 140 | EI123: 135 | EJ123: 150 | EK123: 140 | EL123: 150 | EM123: 135
A124: Gravesham | B124: 29UGFZ | C124: E05004967 | D124: E05004967 | E124: E05004967 | F124: Higham | G124: 45 | H124: 55 | I124: 50 | J124: 45 | K124: 45 | L124: 40 | M124: 45 | N124: 40 | O124: 30 | P124: 40 | Q124: 30 | R124: 30 | S124: 35 | T124: 30 | U124: 30 | V124: 35 | W124: 35 | X124: 30 | Y124: 35 | Z124: 35 | AA124: 40 | AB124: 35 | AC124: 35 | AD124: 30 | AE124: 25 | AF124: 30 | AG124: 30 | AH124: 40 | AI124: 35 | AJ124: 30 | AK124: 30 | AL124: 30 | AM124: 25 | AN124: 25 | AO124: 25 | AP124: 20 | AQ124: 15 | AR124: 30 | AS124: 25 | AT124: 30 | AU124: 30 | AV124: 30 | AW124: 25 | AX124: 30 | AY124: 30 | AZ124: 30 | BA124: 35 | BB124: 35 | BC124: 35 | BD124: 35 | BE124: 35 | BF124: 35 | BG124: 35 | BH124: 30 | BI124: 30 | BJ124: 35 | BK124: 35 | BL124: 30 | BM124: 35 | BN124: 35 | BO124: 35 | BP124: 35 | BQ124: 35 | BR124: 35 | BS124: 35 | BT124: 35 | BU124: 35 | BV124: 40 | BW124: 35 | BX124: 35 | BY124: 35 | BZ124: 40 | CA124: 40 | CB124: 50 | CC124: 45 | CD124: 50 | CE124: 45 | CF124: 45 | CG124: 50 | CH124: 45 | CI124: 55 | CJ124: 45 | CK124: 45 | CL124: 50 | CM124: 45 | CN124: 50 | CO124: 45 | CP124: 75 | CQ124: 105 | CR124: 105 | CS124: 105 | CT124: 110 | CU124: 105 | CV124: 90 | CW124: 100 | CX124: 85 | CY124: 90 | CZ124: 95 | DA124: 90 | DB124: 90 | DC124: 95 | DD124: 85 | DE124: 80 | DF124: 80 | DG124: 70 | DH124: 60 | DI124: 60 | DJ124: 60 | DK124: 60 | DL124: 60 | DM124: 65 | DN124: 55 | DO124: 50 | DP124: 45 | DQ124: 45 | DR124: 45 | DS124: 40 | DT124: 45 | DU124: 45 | DV124: 45 | DW124: 45 | DX124: 50 | DY124: 50 | DZ124: 50 | EA124: 45 | EB124: 45 | EC124: 40 | ED124: 40 | EE124: 40 | EF124: 45 | EG124: 45 | EH124: 45 | EI124: 45 | EJ124: 50 | EK124: 55 | EL124: 55 | EM124: 50
A125: Gravesham | B125: 29UGGA | C125: E05004968 | D125: E05004968 | E125: E05004968 | F125: Istead Rise | G125: 30 | H125: 30 | I125: 30 | J125: 25 | K125: 25 | L125: 25 | M125: 25 | N125: 25 | O125: 25 | P125: 25 | Q125: 25 | R125: 25 | S125: 25 | T125: 25 | U125: 25 | V125: 25 | W125: 20 | X125: 15 | Y125: 15 | Z125: 15 | AA125: 10 | AB125: 10 | AC125: 10 | AD125: 5 | AE125: 10 | AF125: 10 | AG125: 10 | AH125: 10 | AI125: 10 | AJ125: 10 | AK125: 10 | AL125: 10 | AM125: 10 | AN125: 10 | AO125: 15 | AP125: 15 | AQ125: 15 | AR125: 20 | AS125: 15 | AT125: 15 | AU125: 15 | AV125: 15 | AW125: 20 | AX125: 15 | AY125: 15 | AZ125: 15 | BA125: 15 | BB125: 15 | BC125: 20 | BD125: 20 | BE125: 25 | BF125: 20 | BG125: 20 | BH125: 15 | BI125: 20 | BJ125: 15 | BK125: 15 | BL125: 15 | BM125: 15 | BN125: 15 | BO125: 15 | BP125: 15 | BQ125: 10 | BR125: 10 | BS125: 10 | BT125: 10 | BU125: 10 | BV125: 10 | BW125: 10 | BX125: 15 | BY125: 10 | BZ125: 10 | CA125: 15 | CB125: 15 | CC125: 15 | CD125: 15 | CE125: 15 | CF125: 20 | CG125: 10 | CH125: 15 | CI125: 10 | CJ125: 15 | CK125: 15 | CL125: 15 | CM125: 15 | CN125: 20 | CO125: 20 | CP125: 50 | CQ125: 70 | CR125: 75 | CS125: 80 | CT125: 75 | CU125: 70 | CV125: 65 | CW125: 50 | CX125: 50 | CY125: 45 | CZ125: 50 | DA125: 55 | DB125: 55 | DC125: 45 | DD125: 40 | DE125: 45 | DF125: 40 | DG125: 40 | DH125: 30 | DI125: 30 | DJ125: 30 | DK125: 30 | DL125: 30 | DM125: 30 | DN125: 25 | DO125: 30 | DP125: 30 | DQ125: 25 | DR125: 25 | DS125: 20 | DT125: 25 | DU125: 25 | DV125: 20 | DW125: 20 | DX125: 20 | DY125: 20 | DZ125: 25 | EA125: 20 | EB125: 20 | EC125: 20 | ED125: 20 | EE125: 25 | EF125: 20 | EG125: 20 | EH125: 20 | EI125: 20 | EJ125: 20 | EK125: 15 | EL125: 15 | EM125: 15
A126: Gravesham | B126: 29UGGB | C126: E05004969 | D126: E05004969 | E126: E05004969 | F126: Meopham North | G126: 30 | H126: 40 | I126: 30 | J126: 35 | K126: 30 | L126: 30 | M126: 25 | N126: 25 | O126: 25 | P126: 25 | Q126: 25 | R126: 25 | S126: 35 | T126: 35 | U126: 35 | V126: 25 | W126: 25 | X126: 20 | Y126: 20 | Z126: 20 | AA126: 20 | AB126: 20 | AC126: 10 | AD126: 15 | AE126: 15 | AF126: 15 | AG126: 15 | AH126: 10 | AI126: 10 | AJ126: 10 | AK126: 10 | AL126: 10 | AM126: 10 | AN126: 10 | AO126: 15 | AP126: 15 | AQ126: 15 | AR126: 15 | AS126: 15 | AT126: 15 | AU126: 15 | AV126: 15 | AW126: 15 | AX126: 15 | AY126: 15 | AZ126: 10 | BA126: 10 | BB126: 10 | BC126: 15 | BD126: 15 | BE126: 15 | BF126: 20 | BG126: 20 | BH126: 15 | BI126: 15 | BJ126: 15 | BK126: 15 | BL126: 15 | BM126: 10 | BN126: 15 | BO126: 15 | BP126: 15 | BQ126: 10 | BR126: 15 | BS126: 10 | BT126: 10 | BU126: 5 | BV126: 10 | BW126: 10 | BX126: 15 | BY126: 15 | BZ126: 15 | CA126: 15 | CB126: 20 | CC126: 20 | CD126: 20 | CE126: 25 | CF126: 25 | CG126: 25 | CH126: 35 | CI126: 35 | CJ126: 35 | CK126: 35 | CL126: 30 | CM126: 30 | CN126: 25 | CO126: 25 | CP126: 70 | CQ126: 90 | CR126: 85 | CS126: 90 | CT126: 90 | CU126: 80 | CV126: 80 | CW126: 75 | CX126: 75 | CY126: 75 | CZ126: 85 | DA126: 90 | DB126: 85 | DC126: 75 | DD126: 65 | DE126: 60 | DF126: 60 | DG126: 45 | DH126: 45 | DI126: 45 | DJ126: 40 | DK126: 35 | DL126: 35 | DM126: 35 | DN126: 30 | DO126: 30 | DP126: 30 | DQ126: 30 | DR126: 25 | DS126: 25 | DT126: 25 | DU126: 20 | DV126: 25 | DW126: 25 | DX126: 25 | DY126: 30 | DZ126: 30 | EA126: 25 | EB126: 15 | EC126: 20 | ED126: 25 | EE126: 30 | EF126: 30 | EG126: 35 | EH126: 30 | EI126: 35 | EJ126: 35 | EK126: 40 | EL126: 45 | EM126: 40
A127: Gravesham | B127: 29UGGC | C127: E05004970 | D127: E05004970 | E127: E05004970 | F127: Meopham South and Vigo | G127: 35 | H127: 40 | I127: 40 | J127: 40 | K127: 35 | L127: 35 | M127: 30 | N127: 25 | O127: 25 | P127: 20 | Q127: 15 | R127: 20 | S127: 20 | T127: 25 | U127: 25 | V127: 25 | W127: 25 | X127: 20 | Y127: 20 | Z127: 20 | AA127: 25 | AB127: 20 | AC127: 15 | AD127: 20 | AE127: 25 | AF127: 20 | AG127: 25 | AH127: 20 | AI127: 20 | AJ127: 15 | AK127: 15 | AL127: 10 | AM127: 5 | AN127: 10 | AO127: 10 | AP127: 15 | AQ127: 15 | AR127: 15 | AS127: 15 | AT127: 20 | AU127: 20 | AV127: 15 | AW127: 20 | AX127: 20 | AY127: 10 | AZ127: 15 | BA127: 15 | BB127: 15 | BC127: 15 | BD127: 15 | BE127: 15 | BF127: 15 | BG127: 10 | BH127: 15 | BI127: 15 | BJ127: 15 | BK127: 20 | BL127: 15 | BM127: 15 | BN127: 15 | BO127: 15 | BP127: 15 | BQ127: 15 | BR127: 15 | BS127: 15 | BT127: 10 | BU127: 15 | BV127: 15 | BW127: 25 | BX127: 20 | BY127: 20 | BZ127: 20 | CA127: 20 | CB127: 20 | CC127: 20 | CD127: 25 | CE127: 25 | CF127: 25 | CG127: 25 | CH127: 25 | CI127: 25 | CJ127: 30 | CK127: 35 | CL127: 35 | CM127: 40 | CN127: 35 | CO127: 35 | CP127: 90 | CQ127: 115 | CR127: 100 | CS127: 105 | CT127: 105 | CU127: 110 | CV127: 100 | CW127: 95 | CX127: 105 | CY127: 105 | CZ127: 110 | DA127: 110 | DB127: 95 | DC127: 85 | DD127: 80 | DE127: 80 | DF127: 75 | DG127: 65 | DH127: 50 | DI127: 45 | DJ127: 45 | DK127: 45 | DL127: 40 | DM127: 45 | DN127: 35 | DO127: 45 | DP127: 40 | DQ127: 40 | DR127: 35 | DS127: 35 | DT127: 35 | DU127: 35 | DV127: 35 | DW127: 40 | DX127: 30 | DY127: 45 | DZ127: 35 | EA127: 45 | EB127: 40 | EC127: 40 | ED127: 45 | EE127: 55 | EF127: 55 | EG127: 60 | EH127: 45 | EI127: 50 | EJ127: 40 | EK127: 40 | EL127: 45 | EM127: 45
A128: Gravesham | B128: 29UGGD | C128: E05004971 | D128: E05004971 | E128: E05004971 | F128: Northfleet North | G128: 295 | H128: 310 | I128: 305 | J128: 290 | K128: 280 | L128: 280 | M128: 250 | N128: 255 | O128: 250 | P128: 245 | Q128: 220 | R128: 220 | S128: 225 | T128: 245 | U128: 235 | V128: 230 | W128: 210 | X128: 205 | Y128: 195 | Z128: 180 | AA128: 165 | AB128: 150 | AC128: 140 | AD128: 155 | AE128: 160 | AF128: 160 | AG128: 150 | AH128: 145 | AI128: 150 | AJ128: 150 | AK128: 135 | AL128: 155 | AM128: 155 | AN128: 155 | AO128: 140 | AP128: 145 | AQ128: 160 | AR128: 165 | AS128: 160 | AT128: 170 | AU128: 165 | AV128: 155 | AW128: 160 | AX128: 150 | AY128: 160 | AZ128: 155 | BA128: 160 | BB128: 155 | BC128: 150 | BD128: 155 | BE128: 160 | BF128: 160 | BG128: 160 | BH128: 160 | BI128: 165 | BJ128: 165 | BK128: 155 | BL128: 155 | BM128: 155 | BN128: 150 | BO128: 160 | BP128: 170 | BQ128: 180 | BR128: 185 | BS128: 190 | BT128: 185 | BU128: 195 | BV128: 190 | BW128: 185 | BX128: 195 | BY128: 210 | BZ128: 205 | CA128: 220 | CB128: 225 | CC128: 240 | CD128: 240 | CE128: 245 | CF128: 255 | CG128: 280 | CH128: 285 | CI128: 275 | CJ128: 265 | CK128: 275 | CL128: 275 | CM128: 285 | CN128: 280 | CO128: 280 | CP128: 415 | CQ128: 555 | CR128: 565 | CS128: 540 | CT128: 545 | CU128: 550 | CV128: 500 | CW128: 525 | CX128: 525 | CY128: 520 | CZ128: 550 | DA128: 545 | DB128: 540 | DC128: 515 | DD128: 470 | DE128: 465 | DF128: 460 | DG128: 450 | DH128: 430 | DI128: 410 | DJ128: 405 | DK128: 375 | DL128: 365 | DM128: 365 | DN128: 345 | DO128: 340 | DP128: 315 | DQ128: 310 | DR128: 310 | DS128: 320 | DT128: 315 | DU128: 300 | DV128: 315 | DW128: 325 | DX128: 300 | DY128: 315 | DZ128: 350 | EA128: 335 | EB128: 335 | EC128: 355 | ED128: 360 | EE128: 345 | EF128: 330 | EG128: 320 | EH128: 355 | EI128: 340 | EJ128: 350 | EK128: 340 | EL128: 350 | EM128: 370
A129: Gravesham | B129: 29UGGE | C129: E05004972 | D129: E05004972 | E129: E05004972 | F129: Northfleet South | G129: 185 | H129: 190 | I129: 185 | J129: 185 | K129: 165 | L129: 170 | M129: 165 | N129: 150 | O129: 155 | P129: 160 | Q129: 140 | R129: 150 | S129: 150 | T129: 150 | U129: 145 | V129: 145 | W129: 135 | X129: 125 | Y129: 105 | Z129: 100 | AA129: 100 | AB129: 105 | AC129: 100 | AD129: 100 | AE129: 105 | AF129: 115 | AG129: 105 | AH129: 95 | AI129: 90 | AJ129: 85 | AK129: 90 | AL129: 85 | AM129: 90 | AN129: 85 | AO129: 90 | AP129: 90 | AQ129: 100 | AR129: 105 | AS129: 110 | AT129: 100 | AU129: 100 | AV129: 95 | AW129: 85 | AX129: 85 | AY129: 85 | AZ129: 85 | BA129: 85 | BB129: 80 | BC129: 90 | BD129: 90 | BE129: 95 | BF129: 95 | BG129: 95 | BH129: 95 | BI129: 100 | BJ129: 110 | BK129: 115 | BL129: 105 | BM129: 115 | BN129: 120 | BO129: 120 | BP129: 120 | BQ129: 120 | BR129: 110 | BS129: 105 | BT129: 100 | BU129: 100 | BV129: 100 | BW129: 100 | BX129: 100 | BY129: 115 | BZ129: 105 | CA129: 105 | CB129: 105 | CC129: 120 | CD129: 125 | CE129: 135 | CF129: 130 | CG129: 150 | CH129: 160 | CI129: 165 | CJ129: 165 | CK129: 160 | CL129: 160 | CM129: 160 | CN129: 175 | CO129: 170 | CP129: 300 | CQ129: 420 | CR129: 380 | CS129: 375 | CT129: 400 | CU129: 385 | CV129: 375 | CW129: 395 | CX129: 405 | CY129: 395 | CZ129: 400 | DA129: 425 | DB129: 425 | DC129: 385 | DD129: 355 | DE129: 345 | DF129: 315 | DG129: 315 | DH129: 305 | DI129: 285 | DJ129: 285 | DK129: 270 | DL129: 260 | DM129: 245 | DN129: 235 | DO129: 225 | DP129: 235 | DQ129: 220 | DR129: 220 | DS129: 225 | DT129: 240 | DU129: 240 | DV129: 250 | DW129: 230 | DX129: 260 | DY129: 260 | DZ129: 260 | EA129: 250 | EB129: 230 | EC129: 225 | ED129: 230 | EE129: 255 | EF129: 250 | EG129: 255 | EH129: 245 | EI129: 240 | EJ129: 270 | EK129: 255 | EL129: 260 | EM129: 255
A130: Gravesham | B130: 29UGGF | C130: E05004973 | D130: E05004973 | E130: E05004973 | F130: Painters Ash | G130: 100 | H130: 90 | I130: 80 | J130: 90 | K130: 80 | L130: 75 | M130: 75 | N130: 75 | O130: 75 | P130: 65 | Q130: 60 | R130: 60 | S130: 60 | T130: 70 | U130: 65 | V130: 65 | W130: 65 | X130: 55 | Y130: 55 | Z130: 55 | AA130: 55 | AB130: 45 | AC130: 40 | AD130: 45 | AE130: 50 | AF130: 45 | AG130: 50 | AH130: 50 | AI130: 40 | AJ130: 40 | AK130: 45 | AL130: 50 | AM130: 55 | AN130: 60 | AO130: 55 | AP130: 55 | AQ130: 50 | AR130: 55 | AS130: 55 | AT130: 55 | AU130: 45 | AV130: 40 | AW130: 40 | AX130: 45 | AY130: 45 | AZ130: 40 | BA130: 45 | BB130: 40 | BC130: 35 | BD130: 40 | BE130: 45 | BF130: 45 | BG130: 40 | BH130: 45 | BI130: 45 | BJ130: 45 | BK130: 45 | BL130: 40 | BM130: 35 | BN130: 40 | BO130: 40 | BP130: 40 | BQ130: 35 | BR130: 40 | BS130: 40 | BT130: 35 | BU130: 40 | BV130: 40 | BW130: 40 | BX130: 45 | BY130: 50 | BZ130: 55 | CA130: 60 | CB130: 65 | CC130: 65 | CD130: 70 | CE130: 80 | CF130: 70 | CG130: 75 | CH130: 75 | CI130: 85 | CJ130: 80 | CK130: 75 | CL130: 80 | CM130: 75 | CN130: 80 | CO130: 75 | CP130: 140 | CQ130: 175 | CR130: 170 | CS130: 180 | CT130: 185 | CU130: 185 | CV130: 180 | CW130: 165 | CX130: 170 | CY130: 175 | CZ130: 180 | DA130: 175 | DB130: 180 | DC130: 165 | DD130: 145 | DE130: 145 | DF130: 135 | DG130: 120 | DH130: 125 | DI130: 115 | DJ130: 120 | DK130: 95 | DL130: 105 | DM130: 100 | DN130: 95 | DO130: 85 | DP130: 80 | DQ130: 80 | DR130: 70 | DS130: 75 | DT130: 80 | DU130: 75 | DV130: 70 | DW130: 70 | DX130: 75 | DY130: 80 | DZ130: 80 | EA130: 75 | EB130: 75 | EC130: 80 | ED130: 85 | EE130: 95 | EF130: 85 | EG130: 85 | EH130: 90 | EI130: 95 | EJ130: 105 | EK130: 110 | EL130: 105 | EM130: 110
